Workbook

Sheet Contents
C1: Go to Charts by Pressing Shift and Enter on Menu Item
C3: Sheet Tab | D3: Description | E3: Author
B4: 1 | C4: Contents
B5: 2 | C5: Menu Sheet
B6: 3 | C6: Equity Trend Analysis
B7: 4 | C7: EBITDA Trend Analysis
B8: 5 | C8: Single Company Graph
B9: 6 | C9: Historic for Model
B10: 7 | C10: Value Driver Equity
B11: 8 | C11: Value Driver ROI
B12: 9 | C12: MB and ROE
B13: 10 | C13: EV to Inv Cap and ROI
B14: 11 | C14: Dividend Discount
B15: 12 | C15: CAPM Summary
B16: 13 | C16: EV to EBITDA Analysis
B17: 14 | C17: PE Analysis
B18: 15 | C18: Data Cost of Capital
B19: 16 | C19: Data Extract Stocks
B20: 17 | C20: Data Extract Income Stmt
B21: 18 | C21: Data Extract Balance Sheet
B22: 19 | C22: General Instructions
B23: 20 | C23: Notes
B24: 21 | C24: BREAK
B25: 22 | C25: CABGY Income St
B26: 23 | C26: CABGY Balance Sheet
B27: 24 | C27: CABGY Cash Flow
B28: 25 | C28: CARL-B.CO Summary
B29: 26 | C29: CABGY Mktw Sum
B30: 27 | C30: CABGY Mkwt Basic
B31: 28 | C31: CARL-B.CO Yahoo Gr
B32: 29 | C32: CABGY Mktwth Gr
B33: 30 | C33: CABGY Income Qtr
B34: 31 | C34: CABGY Balance Qtr
B35: 32 | C35: CABGY Cash Qtr
B36: 33 | C36: DEO Income St
B37: 34 | C37: DEO Balance Sheet
B38: 35 | C38: DEO Cash Flow
B39: 36 | C39: DGE.L Summary
B40: 37 | C40: DEO Mktw Sum
B41: 38 | C41: DEO Mkwt Basic
B42: 39 | C42: DGE.L Yahoo Gr
B43: 40 | C43: DEO Mktwth Gr
B44: 41 | C44: DEO Income Qtr
B45: 42 | C45: DEO Balance Qtr
B46: 43 | C46: DEO Cash Qtr
B47: 44 | C47: ABEV Income St
B48: 45 | C48: ABEV Balance Sheet
B49: 46 | C49: ABEV Cash Flow
B50: 47 | C50: ABEV3.SA Summary
B51: 48 | C51: ABEV Mktw Sum
B52: 49 | C52: ABEV Mkwt Basic
B53: 50 | C53: ABEV3.SA Yahoo Gr
B54: 51 | C54: ABEV Mktwth Gr
B55: 52 | C55: ABEV Income Qtr
B56: 53 | C56: ABEV Balance Qtr
B57: 54 | C57: ABEV Cash Qtr
B58: 55 | C58: TAP Income St
B59: 56 | C59: TAP Balance Sheet
B60: 57 | C60: TAP Cash Flow
B61: 58 | C61: TAP Summary
B62: 59 | C62: TAP Mktw Sum
B63: 60 | C63: TAP Mkwt Basic
B64: 61 | C64: TAP Yahoo Gr
B65: 62 | C65: TAP Mktwth Gr
B66: 63 | C66: TAP Income Qtr
B67: 64 | C67: TAP Balance Qtr
B68: 65 | C68: TAP Cash Qtr
B69: 66 | C69: SAM Income St
B70: 67 | C70: SAM Balance Sheet
B71: 68 | C71: SAM Cash Flow
B72: 69 | C72: SAM Summary
B73: 70 | C73: SAM Mktw Sum
B74: 71 | C74: SAM Mkwt Basic
B75: 72 | C75: SAM Yahoo Gr
B76: 73 | C76: SAM Mktwth Gr
B77: 74 | C77: SAM Income Qtr
B78: 75 | C78: SAM Balance Qtr
B79: 76 | C79: SAM Cash Qtr
B80: 77 | C80: STZ Income St
B81: 78 | C81: STZ Balance Sheet
B82: 79 | C82: STZ Cash Flow
B83: 80 | C83: STZ Summary
B84: 81 | C84: STZ Mktw Sum
B85: 82 | C85: STZ Mkwt Basic
B86: 83 | C86: STZ Yahoo Gr
B87: 84 | C87: STZ Mktwth Gr
B88: 85 | C88: STZ Income Qtr
B89: 86 | C89: STZ Balance Qtr
B90: 87 | C90: STZ Cash Qtr
B91: 88 | C91: BREW Income St
B92: 89 | C92: BREW Balance Sheet
B93: 90 | C93: BREW Cash Flow
B94: 91 | C94: BREW Summary
B95: 92 | C95: BREW Mktw Sum
B96: 93 | C96: BREW Mkwt Basic
B97: 94 | C97: BREW Yahoo Gr
B98: 95 | C98: BREW Mktwth Gr
B99: 96 | C99: BREW Income Qtr
B100: 97 | C100: BREW Balance Qtr
B101: 98 | C101: BREW Cash Qtr
B102: 99 | C102: WVVI Income St
B103: 100 | C103: WVVI Balance Sheet
B104: 101 | C104: WVVI Cash Flow
B105: 102 | C105: WVVI Summary
B106: 103 | C106: WVVI Mktw Sum
B107: 104 | C107: WVVI Mkwt Basic
B108: 105 | C108: WVVI Yahoo Gr
B109: 106 | C109: WVVI Mktwth Gr
B110: 107 | C110: WVVI Income Qtr
B111: 108 | C111: WVVI Balance Qtr
B112: 109 | C112: WVVI Cash Qtr
B113: 110 | C113: HEIA.AS Income St
B114: 111 | C114: HEIA.AS Balance Sheet
B115: 112 | C115: HEIA.AS Cash Flow
B116: 113 | C116: HINKF Summary
B117: 114 | C117: HEIA.AS Mktw Sum
B118: 115 | C118: HEIA.AS Mkwt Basic
B119: 116 | C119: HINKF Yahoo Gr
B120: 117 | C120: HEIA.AS Mktwth Gr
B121: 118 | C121: HEIA.AS Income Qtr
B122: 119 | C122: HEIA.AS Balance Qtr
B123: 120 | C123: HEIA.AS Cash Qtr
B124: 121 | C124: COT Income St
B125: 122 | C125: COT Balance Sheet
B126: 123 | C126: COT Cash Flow
B127: 124 | C127: COT Summary
B128: 125 | C128: COT Mktw Sum
B129: 126 | C129: COT Mkwt Basic
B130: 127 | C130: COT Yahoo Gr
B131: 128 | C131: COT Mktwth Gr
B132: 129 | C132: COT Income Qtr
B133: 130 | C133: COT Balance Qtr
B134: 131 | C134: COT Cash Qtr
B135: 132 | C135: FMOCY Income St
B136: 133 | C136: FMOCY Balance Sheet
B137: 134 | C137: FMOCY Cash Flow
B138: 135 | C138: FCC.MC Summary
B139: 136 | C139: FMOCY Mktw Sum
B140: 137 | C140: FMOCY Mkwt Basic
B141: 138 | C141: FCC.MC Yahoo Gr
B142: 139 | C142: FMOCY Mktwth Gr
B143: 140 | C143: FMOCY Income Qtr
B144: 141 | C144: FMOCY Balance Qtr
B145: 142 | C145: FMOCY Cash Qtr
B146: 143 | C146: TSGTF Income St
B147: 144 | C147: TSGTF Balance Sheet
B148: 145 | C148: TSGTF Cash Flow
B149: 146 | C149: 0168.HK Summary
B150: 147 | C150: TSGTF Mktw Sum
B151: 148 | C151: TSGTF Mkwt Basic
B152: 149 | C152: 0168.HK Yahoo Gr
B153: 150 | C153: TSGTF Mktwth Gr
B154: 151 | C154: TSGTF Income Qtr
B155: 152 | C155: TSGTF Balance Qtr
B156: 153 | C156: TSGTF Cash Qtr
B157: 154 | C157: LTEA Income St
B158: 155 | C158: LTEA Balance Sheet
B159: 156 | C159: LTEA Cash Flow
B160: 157 | C160: LTEA Summary
B161: 158 | C161: LTEA Mktw Sum
B162: 159 | C162: LTEA Mkwt Basic
B163: 160 | C163: LTEA Yahoo Gr
B164: 161 | C164: LTEA Mktwth Gr
B165: 162 | C165: LTEA Income Qtr
B166: 163 | C166: LTEA Balance Qtr
B167: 164 | C167: LTEA Cash Qtr
B168: 165 | C168: ROX Income St
B169: 166 | C169: ROX Balance Sheet
B170: 167 | C170: ROX Cash Flow
B171: 168 | C171: ROX Summary
B172: 169 | C172: ROX Mktw Sum
B173: 170 | C173: ROX Mkwt Basic
B174: 171 | C174: ROX Yahoo Gr
B175: 172 | C175: ROX Mktwth Gr
B176: 173 | C176: ROX Income Qtr
B177: 174 | C177: ROX Balance Qtr
B178: 175 | C178: ROX Cash Qtr
B179: 176 | C179: PDRDY Income St
B180: 177 | C180: PDRDY Balance Sheet
B181: 178 | C181: PDRDY Cash Flow
B182: 179 | C182: RI.PA Summary
B183: 180 | C183: PDRDY Mktw Sum
B184: 181 | C184: PDRDY Mkwt Basic
B185: 182 | C185: RI.PA Yahoo Gr
B186: 183 | C186: PDRDY Mktwth Gr
B187: 184 | C187: PDRDY Income Qtr
B188: 185 | C188: PDRDY Balance Qtr
B189: 186 | C189: PDRDY Cash Qtr
B190: 187 | C190: TBVPY Income St
B191: 188 | C191: TBVPY Balance Sheet
B192: 189 | C192: TBVPY Cash Flow
B193: 190 | C193: Y92.SI Summary
B194: 191 | C194: TBVPY Mktw Sum
B195: 192 | C195: TBVPY Mkwt Basic
B196: 193 | C196: Y92.SI Yahoo Gr
B197: 194 | C197: TBVPY Mktwth Gr
B198: 195 | C198: TBVPY Income Qtr
B199: 196 | C199: TBVPY Balance Qtr
B200: 197 | C200: TBVPY Cash Qtr
B201: 198 | C201: BF.A Income St
... 84 more rows

Sheet Menu Sheet
B1: Menu Sheet to Read Stocks | F1: Max to Read | G1: 100 | J1: Stock Price | K1: End Year | L1: 2018 | M1: End Month | N1: 1
K2: End FY | L2: 2016 | M2: 1st Hist Data | N2: 2011
F3: Ticker Number | G3: 1 | K3: End Analysis | L3: 2016 | M3: Start Analysis
D4: Yahoo | E4: Mkt Watch | F4: URL Code | G4: 1 | I4: =INDEX(I44:I57,G4) -> https://query1.finance.yahoo.com/v7/finance/download/CARL-B.CO?period1=-631152000&period2=1518566400&interval=1wk&events=history&crumb=Z8ypP.JqFfe | Q4: http://finance.yahoo.com/q/ks?s=RNW.TO+Key+Statistics
E5: Symbol to Implement | F5: =INDEX(D13:D2160,G3) -> CARL-B.CO | G5: =INDEX(E13:E2160,G3) -> CABGY
F6: Total Number of Companies to Read | G6: =MIN(COUNTA(D13:D34),G1) -> 22
F7: Sheet Name to Create | G7: =INDEX(P13:AA34,ticker_code,url_code) -> CARL-B.CO Stock Price
I8: Start Time | J8: 11:52:33 | P8: Total Time | Q8: =End_Time-Start_Time -> 0.01677083333
I9: End Time | J9: 12:16:42
G10: Ticker | H10: Select | K10: Simple | P10: Sheet Names ---------------------------------------------------------------------------------------------------------->
D11: Yahoo | E11: Mktwatch | F11: Yahoo Sum | G11: Name | H11: Ticker | I11: True Counter | K11: Count | L11: Match | N11: Adjusted Ticker | P11: Stock Price | Q11: Income Stmt | R11: Balance Sheet | S11: Cash Flow | T11: Summary | U11: Mkt W Summary | V11: MktW Basic | W11: Yahoo Projected Growth | X11: Mkt W Projected Growth | Y11: Qtly Income | Z11: Qtly Balance | AA11: Qtly Cash
I12: 0
B13: Carlesberg | D13: CARL-B.CO | E13: CABGY | F13: =D13 -> CARL-B.CO | G13: ='Menu Sheet'!E13 -> CABGY | H13: TRUE | I13: =I12+H13 -> 1 | K13: 1 | L13: =MATCH(K13,$I$13:$I$33,0) -> 1 | N13: =INDEX($G$13:$G$33,L13) -> CABGY | P13: =D13&" "&$E$44 -> CARL-B.CO Stock Price | Q13: =N13&" "&$E$45 -> CABGY Income St | R13: =N13&" "&$E$46 -> CABGY Balance Sheet | S13: =N13&" "&$E$47 -> CABGY Cash Flow | T13: =F13&" "&$E$48 -> CARL-B.CO Summary | U13: =N13&" "&$E$49 -> CABGY Mktw Sum | V13: =$N13&" "&$E$50 -> CABGY Mkwt Basic | W13: =F13&" "&$E$51 -> CARL-B.CO Yahoo Gr | X13: =$N13&" "&$E$52 -> CABGY Mktwth Gr | Y13: =$N13&" "&$E$53 -> CABGY Income Qtr | Z13: =$N13&" "&$E$54 -> CABGY Balance Qtr | AA13: =$N13&" "&$E$55 -> CABGY Cash Qtr
B14: Diageo | D14: DGE.L | E14: DEO | F14: =D14 -> DGE.L | G14: ='Menu Sheet'!E14 -> DEO | H14: TRUE | I14: =I13+H14 -> 2 | K14: =K13+1 -> 2 | L14: 2 | N14: DEO | P14: DGE.L Stock Price | Q14: DEO Income St | R14: DEO Balance Sheet | S14: DEO Cash Flow | T14: =F14&" "&$E$48 -> DGE.L Summary | U14: DEO Mktw Sum | V14: =N14&" "&$E$50 -> DEO Mkwt Basic | W14: =F14&" "&$E$51 -> DGE.L Yahoo Gr | X14: DEO Mktwth Gr | Y14: DEO Income Qtr | Z14: DEO Balance Qtr | AA14: DEO Cash Qtr
B15: Ambev SA (USD,BRL) | D15: ABEV3.SA | E15: ABEV | F15: ABEV3.SA | G15: ='Menu Sheet'!E15 -> ABEV | H15: TRUE | I15: 3 | K15: =K14+1 -> 3 | L15: 3 | N15: ABEV | P15: ABEV3.SA Stock Price | Q15: ABEV Income St | R15: ABEV Balance Sheet | S15: ABEV Cash Flow | T15: ABEV3.SA Summary | U15: ABEV Mktw Sum | V15: ABEV Mkwt Basic | W15: ABEV3.SA Yahoo Gr | X15: ABEV Mktwth Gr | Y15: ABEV Income Qtr | Z15: ABEV Balance Qtr | AA15: ABEV Cash Qtr
B16: Molson Coors Brewing Company | D16: TAP | E16: TAP | F16: TAP | G16: ='Menu Sheet'!E16 -> TAP | H16: TRUE | I16: 4 | K16: 4 | L16: 4 | N16: TAP | P16: TAP Stock Price | Q16: TAP Income St | R16: TAP Balance Sheet | S16: TAP Cash Flow | T16: TAP Summary | U16: TAP Mktw Sum | V16: TAP Mkwt Basic | W16: TAP Yahoo Gr | X16: TAP Mktwth Gr | Y16: TAP Income Qtr | Z16: TAP Balance Qtr | AA16: TAP Cash Qtr
B17: Boston Beer | D17: SAM | E17: SAM | F17: SAM | G17: ='Menu Sheet'!E17 -> SAM | H17: TRUE | I17: 5 | K17: 5 | L17: 5 | N17: SAM | P17: SAM Stock Price | Q17: SAM Income St | R17: SAM Balance Sheet | S17: SAM Cash Flow | T17: SAM Summary | U17: SAM Mktw Sum | V17: SAM Mkwt Basic | W17: SAM Yahoo Gr | X17: SAM Mktwth Gr | Y17: SAM Income Qtr | Z17: SAM Balance Qtr | AA17: SAM Cash Qtr
B18: Constellation Brands | D18: STZ | E18: STZ | F18: STZ | G18: ='Menu Sheet'!E18 -> STZ | H18: TRUE | I18: 6 | K18: 6 | L18: 6 | N18: STZ | P18: STZ Stock Price | Q18: STZ Income St | R18: STZ Balance Sheet | S18: STZ Cash Flow | T18: STZ Summary | U18: STZ Mktw Sum | V18: STZ Mkwt Basic | W18: STZ Yahoo Gr | X18: STZ Mktwth Gr | Y18: STZ Income Qtr | Z18: STZ Balance Qtr | AA18: STZ Cash Qtr
B19: Craft Brew Alliance | D19: BREW | E19: BREW | F19: BREW | G19: ='Menu Sheet'!E19 -> BREW | H19: TRUE | I19: =I18+H19 -> 7 | K19: 7 | L19: =MATCH(K19,$I$13:$I$33,0) -> 7 | N19: =INDEX($G$13:$G$33,L19) -> BREW | P19: =D19&" "&$E$44 -> BREW Stock Price | Q19: BREW Income St | R19: BREW Balance Sheet | S19: BREW Cash Flow | T19: BREW Summary | U19: BREW Mktw Sum | V19: BREW Mkwt Basic | W19: BREW Yahoo Gr | X19: BREW Mktwth Gr | Y19: BREW Income Qtr | Z19: BREW Balance Qtr | AA19: BREW Cash Qtr
B20: Willamett Valley | D20: WVVI | E20: WVVI | F20: WVVI | G20: ='Menu Sheet'!E20 -> WVVI | H20: TRUE | I20: 8 | K20: 8 | L20: 8 | N20: WVVI | P20: WVVI Stock Price | Q20: WVVI Income St | R20: WVVI Balance Sheet | S20: WVVI Cash Flow | T20: WVVI Summary | U20: WVVI Mktw Sum | V20: WVVI Mkwt Basic | W20: WVVI Yahoo Gr | X20: WVVI Mktwth Gr | Y20: WVVI Income Qtr | Z20: WVVI Balance Qtr | AA20: WVVI Cash Qtr
B21: Heineken | D21: HEIA.AS | E21: HINKF | F21: HEIA.AS | G21: ='Menu Sheet'!E21 -> HINKF | H21: TRUE | I21: 9 | K21: 9 | L21: 9 | N21: HINKF | P21: HEIA.AS Stock Price | Q21: HINKF Income St | R21: HINKF Balance Sheet | S21: HINKF Cash Flow | T21: =F21&" "&$E$48 -> HEIA.AS Summary | U21: HINKF Mktw Sum | V21: HINKF Mkwt Basic | W21: HEIA.AS Yahoo Gr | X21: HINKF Mktwth Gr | Y21: HINKF Income Qtr | Z21: HINKF Balance Qtr | AA21: HINKF Cash Qtr
B22: Cott | D22: COT | E22: COT | F22: COT | G22: ='Menu Sheet'!E22 -> COT | H22: TRUE | I22: 10 | K22: 10 | L22: 10 | N22: COT | P22: COT Stock Price | Q22: COT Income St | R22: COT Balance Sheet | S22: COT Cash Flow | T22: COT Summary | U22: COT Mktw Sum | V22: COT Mkwt Basic | W22: COT Yahoo Gr | X22: COT Mktwth Gr | Y22: COT Income Qtr | Z22: COT Balance Qtr | AA22: COT Cash Qtr
B23: Fomento Economico Mexicano SAB de CV (USD,MXN) | D23: FCC.MC | E23: FMOCY | F23: FCC.MC | G23: ='Menu Sheet'!E23 -> FMOCY | H23: TRUE | I23: 11 | K23: 11 | L23: 11 | N23: FMOCY | P23: FCC.MC Stock Price | Q23: FMOCY Income St | R23: FMOCY Balance Sheet | S23: FMOCY Cash Flow | T23: FCC.MC Summary | U23: FMOCY Mktw Sum | V23: FMOCY Mkwt Basic | W23: FCC.MC Yahoo Gr | X23: FMOCY Mktwth Gr | Y23: FMOCY Income Qtr | Z23: FMOCY Balance Qtr | AA23: FMOCY Cash Qtr
B24: Tsingtao Brewery Company Limited | D24: 0168.HK | E24: TSGTF | F24: 0168.HK | G24: ='Menu Sheet'!E24 -> TSGTF | H24: TRUE | I24: 12 | K24: 12 | L24: 12 | N24: TSGTF | P24: 0168.HK Stock Price | Q24: TSGTF Income St | R24: TSGTF Balance Sheet | S24: TSGTF Cash Flow | T24: 0168.HK Summary | U24: TSGTF Mktw Sum | V24: TSGTF Mkwt Basic | W24: 0168.HK Yahoo Gr | X24: TSGTF Mktwth Gr | Y24: TSGTF Income Qtr | Z24: TSGTF Balance Qtr | AA24: TSGTF Cash Qtr
B25: Monster Beverage | D25: MNST | E25: MNST | F25: MNST | G25: ='Menu Sheet'!E25 -> MNST | H25: TRUE | I25: 13 | K25: 13 | L25: 13 | N25: MNST | P25: MNST Stock Price | Q25: MNST Income St | R25: MNST Balance Sheet | S25: MNST Cash Flow | T25: MNST Summary | U25: MNST Mktw Sum | V25: MNST Mkwt Basic | W25: MNST Yahoo Gr | X25: MNST Mktwth Gr | Y25: MNST Income Qtr | Z25: MNST Balance Qtr | AA25: MNST Cash Qtr
B26: Castle Brands Inc (USD) | D26: ROX | E26: ROX | F26: ROX | G26: ='Menu Sheet'!E26 -> ROX | H26: TRUE | I26: 14 | K26: 14 | L26: 14 | N26: ROX | P26: ROX Stock Price | Q26: ROX Income St | R26: ROX Balance Sheet | S26: ROX Cash Flow | T26: ROX Summary | U26: ROX Mktw Sum | V26: ROX Mkwt Basic | W26: ROX Yahoo Gr | X26: ROX Mktwth Gr | Y26: ROX Income Qtr | Z26: ROX Balance Qtr | AA26: ROX Cash Qtr
B27: Pernod Ricard SA (USD,EUR) | D27: RI.PA | E27: PDRDY | F27: RI.PA | G27: ='Menu Sheet'!E27 -> PDRDY | H27: TRUE | I27: 15 | K27: 15 | L27: 15 | N27: PDRDY | P27: RI.PA Stock Price | Q27: PDRDY Income St | R27: PDRDY Balance Sheet | S27: PDRDY Cash Flow | T27: RI.PA Summary | U27: PDRDY Mktw Sum | V27: PDRDY Mkwt Basic | W27: RI.PA Yahoo Gr | X27: PDRDY Mktwth Gr | Y27: PDRDY Income Qtr | Z27: PDRDY Balance Qtr | AA27: PDRDY Cash Qtr
B28: Thai Beverage PLC (USD,THB) | D28: Y92.SI | E28: TBVPY | F28: Y92.SI | G28: ='Menu Sheet'!E28 -> TBVPY | H28: TRUE | I28: 16 | K28: 16 | L28: 16 | N28: TBVPY | P28: Y92.SI Stock Price | Q28: TBVPY Income St | R28: TBVPY Balance Sheet | S28: TBVPY Cash Flow | T28: Y92.SI Summary | U28: TBVPY Mktw Sum | V28: TBVPY Mkwt Basic | W28: Y92.SI Yahoo Gr | X28: TBVPY Mktwth Gr | Y28: TBVPY Income Qtr | Z28: TBVPY Balance Qtr | AA28: TBVPY Cash Qtr
B29: Brown-Forman Corp (USD) | D29: BF-A | E29: BF.A | F29: BF-A | G29: ='Menu Sheet'!E29 -> BF.A | H29: TRUE | I29: 17 | K29: 17 | L29: 17 | N29: BF.A | P29: BF-A Stock Price | Q29: BF.A Income St | R29: BF.A Balance Sheet | S29: BF.A Cash Flow | T29: BF-A Summary | U29: BF.A Mktw Sum | V29: BF.A Mkwt Basic | W29: BF-A Yahoo Gr | X29: BF.A Mktwth Gr | Y29: BF.A Income Qtr | Z29: BF.A Balance Qtr | AA29: BF.A Cash Qtr
B30: Treasury Wine Estates Ltd. | D30: TWE.AX | E30: TSRYY | F30: TWE.AX | G30: ='Menu Sheet'!E30 -> TSRYY | H30: TRUE | I30: 18 | K30: 18 | L30: 18 | N30: TSRYY | P30: TWE.AX Stock Price | Q30: TSRYY Income St | R30: TSRYY Balance Sheet | S30: TSRYY Cash Flow | T30: TWE.AX Summary | U30: TSRYY Mktw Sum | V30: TSRYY Mkwt Basic | W30: TWE.AX Yahoo Gr | X30: TSRYY Mktwth Gr | Y30: TSRYY Income Qtr | Z30: TSRYY Balance Qtr | AA30: TSRYY Cash Qtr
B31: Pepsi Co | D31: PEP | E31: PEP | F31: PEP | G31: ='Menu Sheet'!E31 -> PEP | H31: TRUE | I31: 19 | K31: 19 | L31: 19 | N31: PEP | P31: PEP Stock Price | Q31: PEP Income St | R31: PEP Balance Sheet | S31: PEP Cash Flow | T31: PEP Summary | U31: PEP Mktw Sum | V31: PEP Mkwt Basic | W31: PEP Yahoo Gr | X31: PEP Mktwth Gr | Y31: PEP Income Qtr | Z31: PEP Balance Qtr | AA31: PEP Cash Qtr
B32: Coca Cola Botteling | D32: COKE | E32: COKE | F32: COKE | G32: ='Menu Sheet'!E32 -> COKE | H32: TRUE | I32: 20 | K32: 20 | L32: 20 | N32: COKE | P32: COKE Stock Price | Q32: COKE Income St | R32: COKE Balance Sheet | S32: COKE Cash Flow | T32: COKE Summary | U32: COKE Mktw Sum | V32: COKE Mkwt Basic | W32: COKE Yahoo Gr | X32: COKE Mktwth Gr | Y32: COKE Income Qtr | Z32: COKE Balance Qtr | AA32: COKE Cash Qtr
B33: Dr Pepper | D33: DPS | E33: DPS | F33: DPS | G33: ='Menu Sheet'!E33 -> DPS | H33: TRUE | I33: 21 | K33: 21 | L33: 21 | N33: DPS | P33: DPS Stock Price | Q33: DPS Income St | R33: DPS Balance Sheet | S33: DPS Cash Flow | T33: DPS Summary | U33: DPS Mktw Sum | V33: DPS Mkwt Basic | W33: DPS Yahoo Gr | X33: DPS Mktwth Gr | Y33: DPS Income Qtr | Z33: DPS Balance Qtr | AA33: DPS Cash Qtr
B34: Ebay | D34: EBAY | E34: =D34 -> EBAY | F34: =D34 -> EBAY | G34: ='Menu Sheet'!E34 -> EBAY | H34: FALSE | I34: =I33+H34 -> 21 | K34: 22 | L34: =MATCH(K34,$I$13:$I$34,0) ->  | N34: =INDEX($G$13:$G$34,L34) ->  | P34: =D34&" "&$E$44 -> EBAY Stock Price | Q34: =N34&" "&$E$45 ->  | R34: =N34&" "&$E$46 ->  | S34: =N34&" "&$E$47 ->  | T34: =F34&" "&$E$48 -> EBAY Summary | U34: =N34&" "&$E$49 ->  | V34: =N34&" "&$E$50 ->  | W34: =F34&" "&$E$51 -> EBAY Yahoo Gr
E40: Total Check | F40: =IFERROR(SUM(I13:I33)," Make Sure that the Totals are Copied") -> 231
P41: Construction of URL's
A42: URL's for Companies
I43: Re-Combined Ticker | P43: Part 1 | T43: Part 2 | X43: Example
C44: 1 | E44: Stock Price | F44: Stock Prices from Yahoo | I44: =yahoo_url -> https://query1.finance.yahoo.com/v7/finance/download/CARL-B.CO?period1=-631152000&period2=1518566400&interval=1wk&events=history&crumb=Z8ypP.JqFfe | P44: http://real-chart.finance.yahoo.com/table.csv?s= | T44: &a=11&b=28&c=1950&d=01&e=17&f=2020&g=m&ignore=.csv | X44: https://query1.finance.yahoo.com/v7/finance/download/GE?period1=-631152000&period2=1510444800&interval=1wk&events=history&crumb=z9oVYd3qdiN
C45: 2 | E45: Income St | F45: Income St from Mkt Watch | I45: =P45&mw_tick&T45 -> http://www.marketwatch.com/investing/stock/CABGY/financials | P45: http://www.marketwatch.com/investing/stock/ | T45: /financials | X45: http://www.marketwatch.com/investing/stock/AJSB/financials
C46: 3 | E46: Balance Sheet | F46: B/S from Mkt Watch | I46: =P46&mw_tick&T46 -> http://www.marketwatch.com/investing/stock/CABGY/financials/balance-sheet | P46: http://www.marketwatch.com/investing/stock/ | T46: /financials/balance-sheet | X46: http://www.marketwatch.com/investing/stock/AJSB/financials/balance-sheet
C47: 4 | E47: Cash Flow | F47: CF from Mkt Watch | I47: =P47&mw_tick&T47 -> http://www.marketwatch.com/investing/stock/CABGY/financials/cash-flow | P47: http://www.marketwatch.com/investing/stock/ | T47: /financials/cash-flow | X47: http://www.marketwatch.com/investing/stock/AJSB/financials/cash-flow
C48: 5 | E48: Summary | F48: Summary from Yahoo | I48: =P48&ticker&T48&ticker -> https://finance.yahoo.com/quote/CARL-B.CO/key-statistics?p=CARL-B.CO | P48: https://finance.yahoo.com/quote/ | T48: /key-statistics?p= | X48: http://finance.yahoo.com/q/ks?s=UAL+Key+Statistics
C49: 6 | E49: Mktw Sum | F49: Summary from Mkt Watch | I49: =P49&mw_tick&T49 -> http://www.marketwatch.com/investing/stock/CABGY/profile | P49: http://www.marketwatch.com/investing/stock/ | T49: /profile | X49: http://www.marketwatch.com/investing/stock/exc/profile
C50: 7 | E50: Mkwt Basic | F50: Basic from Mkt Watch | I50: =P50&mw_tick&T50 -> http://www.marketwatch.com/investing/stock/CABGY | P50: http://www.marketwatch.com/investing/stock/ | X50: http://www.marketwatch.com/investing/stock/exc
C51: 8 | E51: Yahoo Gr | F51: Analyst Est from Yahoo | I51: =P51&ticker&T51&ticker -> https://finance.yahoo.com/quote/CARL-B.CO/analysts?p=CARL-B.CO | P51: https://finance.yahoo.com/quote/ | T51: /analysts?p= | X51: http://finance.yahoo.com/q/ae?s=EXC+Analyst+Estimates
C52: 9 | E52: Mktwth Gr | F52: Analyst from Mkt Watch | I52: =P52&mw_tick&T52 -> https://www.marketwatch.com/investing/stock/CABGY/analystestimates | P52: https://www.marketwatch.com/investing/stock/ | T52: /analystestimates | X52: https://www.marketwatch.com/investing/stock/MMM/analystestimates
C53: 10 | E53: Income Qtr | F53: Qtly Income Mkt Watch | I53: =P53&mw_tick&T53 -> https://www.marketwatch.com/investing/stock/CABGY/financials/income/quarter | P53: https://www.marketwatch.com/investing/stock/ | T53: /financials/income/quarter
C54: 11 | E54: Balance Qtr | F54: Qtly Balance Mkt Watch | I54: =P54&mw_tick&T54 -> https://www.marketwatch.com/investing/stock/CABGY/financials/balance-sheet/quarter | P54: https://www.marketwatch.com/investing/stock/ | T54: /financials/balance-sheet/quarter
C55: 12 | E55: Cash Qtr | F55: Qtly Cash Mkt Watch | I55: =P55&mw_tick&T55 -> https://www.marketwatch.com/investing/stock/CABGY/financials/cash-flow/quarter | P55: https://www.marketwatch.com/investing/stock/ | T55: /financials/cash-flow/quarter
A59: URL's for Economic Data
F60: Code for Economic Data | G60: 5
E62: 10 year Treasury | F62: 10-year U.S. Treasury FRED | I62: https://research.stlouisfed.org/fred2/data/DGS10.txt
E63: 30 year Treasury | F63: 30-year U.S. Treasury FRED | I63: https://research.stlouisfed.org/fred2/data/DGS30.txt
E64: 10 year Infl Index | F64: 10-year Inflation Index FRED | I64: https://research.stlouisfed.org/fred2/data/DFII10.txt
E65: 30 year Infl Index | F65: 30-year Inflation Index FRED | I65: https://research.stlouisfed.org/fred2/data/DFII30.txt
O66: EXDNUS
B68: Applied in Index | E68: =INDEX(E62:E66,$G$60) -> 0 | F68: =INDEX(F62:F66,$G$60) -> 0 | I68: =INDEX(I62:I66,$G$60) -> 0
P69: EV
A70: Enter Ticker Definitions for finance.yahoo.com and for marketwatch (DO NOT INSERT OR DELETE ROWS) -- JUST CLEAR THE DATA OR ENTER NEW TICKERS
B75: URL to read Yahoo stock with WEBREQUEST
C77: yahoo url | D77: =Part_1&D81&Part_2&Part_3&Part4&Crumb_String -> https://query1.finance.yahoo.com/v7/finance/download/CARL-B.CO?period1=-631152000&period2=1518566400&interval=1wk&events=history&crumb=Z8ypP.JqFfe
BA78: 3 | BB78: z3DhW7hRCwX | BD78: B=dbvosklcocrl7&b=3&s=fq
B79: Parts to URL for WEBREQUEST | BA79: 4 | BB79: 0DogTmPS.ad
C80: Part 1 | D80: https://query1.finance.yahoo.com/v7/finance/download/ | BA80: 5 | BB80: YR4DTj5nWxK
C81: Part 2 | D81: =ticker -> CARL-B.CO | BA81: 6 | BB81: .lxRRFrSiBH
C82: Part 2 | D82: ?period1=-631152000&period2= | BA82: 7 | BB82: ayso2ZErQOf
C83: Part 3 | D83: =TEXT(D91,0) -> 1518566400 | BA83: 8 | BB83: aTX22e7zn34
C84: Part4 | D84: &interval=1wk&events=history&crumb= | K84: Can read week of month | BA84: 9 | BB84: VI5Xh7BcvmY
C85: Crumb String | D85: Z8ypP.JqFfe
C86: Cookie String | D86: B=46g3rhtd7ue4i&b=3&s=j5 | BA86: 10 | BB86: Apevnkl89Do
BA87: 11 | BB87: UEsp04Vhq1V
C88: response wait | D88: 3
D90: =(A1-DATE(1970,1,1))*86400
B91: =TODAY() -> 43145 | D91: =(B91-DATE(1970,1,1))*86400 -> 1518566400
C93: Cookie num | D93: 1
C94: Cookie in VBA | D94: B=bt97nr5d0h3e6&b=3&s=t2
A100: List to Copy | D100: Beer
D102: Yahoo | E102: Market Watch | I102: Selected | P102: Utilities | T102: Dow Stocks | X102: Renewable Companies | AC102: Yield Cos
B104: Carlesberg | D104: CARL-B.CO | E104: CABGY | H104: Google | J104: GOOG | P104: ITC Holdings | R104: ITC | S104: ITC | T104: 3M | V104: MMM | W104: MMM | X104: Ibdrola | Z104: IBDRY | AA104: IBDRY | AC104: Hannanon Armstrong | AE104: HASI | AF104: HASI
B105: Diageo | D105: DGE.L | E105: DEO | H105: Amazon | J105: AMZN | P105: Allete Inc | R105: ALE | S105: ALE | T105: Apple | V105: AAPL | W105: AAPL | X105: NextEra | Z105: NEE | AA105: NEE | AC105: NRG Yield | AE105: NYLD | AF105: NYLD
B106: Ambev SA (USD,BRL) | D106: ABEV3.SA | E106: ABEV | H106: Facebook | J106: FB | P106: Con Edison | R106: ED | S106: ED | T106: Boeing | V106: BA | W106: BA | X106: Abgona | Z106: ABGOF | AA106: ABGOF | AC106: TransAlta Renewables | AE106: RNW.TO | AF106: CA:RNW
B107: Molson Coors Brewing Company | D107: TAP | E107: TAP | H107: Blackberry | J107: BBRY | P107: WEC Energy Group | R107: WEC | S107: WEC | T107: Caterpillar | V107: CAT | W107: CAT | X107: Enbridge | Z107: ENB | AA107: ENB | AC107: Pattern Energy Group | AE107: PEGI | AF107: PEGI
B108: Boston Beer | D108: SAM | E108: SAM | H108: HP | J108: HPQ | P108: PG&E | R108: PGC | S108: PGC | T108: Chevron | V108: CVX | W108: CVX | X108: Transalta | Z108: TAC | AA108: TAC | AC108: Brookfield Renewable | AE108: BEP | AF108: BEP
B109: Constellation Brands | D109: STZ | E109: STZ | H109: Apple | J109: AAPL | P109: AGL Resources | R109: GAS | S109: GAS | T109: Cisco | V109: CSCO | W109: CSCO | X109: Sempra | Z109: SRE | AA109: SRE | AC109: Abengoa Yield | AE109: ABY | AF109: ABY
B110: Craft Brew Alliance | D110: BREW | E110: BREW | H110: Home Depot | J110: HD | P110: MGE Energy Inc. | R110: MGEE | S110: MGEE | T110: Coca-Cola | V110: KO | W110: KO | X110: Enrl | Z110: ENEL.MI | AA110: IT:ENEL | AC110: NextEra Partners | AE110: NEP | AF110: NEP
B111: Willamett Valley | D111: WVVI | E111: WVVI | H111: US Cellular | J111: USM | P111: Ameren | R111: AEE | S111: AEE | T111: Disney | V111: DIS | W111: DIS | X111: Renewable Energy | Z111: REGI | AA111: REGI | AC111: TerraForm Power | AE111: TERP | AF111: TERP
B112: Heineken | D112: HEIA.AS | E112: HINKF | H112: Vodaphone | J112: VOD | P112: Entergy | R112: ETR | S112: ETR | T112: E I du Pont de Nemours and Co | V112: DWDP | W112: DWDP | X112: Edison International | Z112: EIX | AA112: EIX | AC112: 8point3 | AE112: CAFD | AF112: CAFD
B113: Cott | D113: COT | E113: COT | H113: Sprint | J113: S | P113: Southern Company | R113: SO | S113: SO | T113: Exxon Mobil | V113: XOM | W113: XOM
B114: Fomento Economico Mexicano SAB de CV (USD,MXN) | D114: FCC.MC | E114: FMOCY | H114: JP Morgan | J114: JPM | P114: Great Plains Energy | R114: GXP | S114: GXP | T114: General Electric | V114: GE | W114: GE
B115: Tsingtao Brewery Company Limited | D115: 0168.HK | E115: TSGTF | H115: Wall Mart | J115: WMT | P115: Xcel Energy | R115: XEL | S115: XEL | T115: Home Depot | V115: HD | W115: HD
B116: Monster Beverage | D116: MNST | E116: MNST | H116: Exelon | J116: EXC | P116: Centerpoint Energy | R116: CNP | S116: CNP | T116: IBM | V116: IBM | W116: IBM
B117: Castle Brands Inc (USD) | D117: ROX | E117: ROX | H117: Consolidated Edison | J117: ED | P117: Alliant Energy | R117: LNT | S117: LNT | T117: Intel | V117: INTC | W117: INTC
B118: Pernod Ricard SA (USD,EUR) | D118: RI.PA | E118: PDRDY | H118: AES | J118: AES | T118: Johnson & Johnson | V118: JNJ | W118: JNJ
B119: Thai Beverage PLC (USD,THB) | D119: Y92.SI | E119: TBVPY | H119: NRG Energy | J119: NRG | T119: McDonald's | V119: MCD | W119: MCD
B120: Brown-Forman Corp (USD) | D120: BF-A | E120: BF.A | H120: First Solar | J120: FSLR | T120: Merck | V120: MRK | W120: MRK
B121: Treasury Wine Estates Ltd. | D121: TWE.AX | E121: TSRYY | H121: Cheasapeak Energy | J121: CHK | T121: Microsoft | V121: MSFT | W121: MSFT
B122: Pepsi Co | D122: PEP | E122: PEP | H122: Range Resources | J122: RRC | T122: Nike | V122: NKE | W122: NKE
B123: Coca Cola Botteling | D123: COKE | E123: COKE | H123: Paypal | J123: PYPL | T123: Pfizer | V123: PFE | W123: PFE
B124: Dr Pepper | D124: DPS | E124: DPS | H124: Priceline | J124: PCLN | T124: Procter & Gamble | V124: PG | W124: PG
H125: Ebay | J125: EBAY
I131: https://finance.yahoo.com/quote/ge/analysts?p=ge
I132: https://www.marketwatch.com/investing/stock/mmm/analystestimates
I133: https://www.marketwatch.com/investing/stock/mmm/financials
I134: https://www.marketwatch.com/investing/stock/ge/financials/income/quarter | P134: https://www.marketwatch.com/investing/stock/ | S134: /financials/income/quarter
I135: https://finance.yahoo.com/quote/MMM/key-statistics?p=MMM | P135: https://finance.yahoo.com/quote/ | S135: /key-statistics?p=
I136: https://www.marketwatch.com/investing/stock/ge/financials/cash-flow/quarter | P136: https://www.marketwatch.com/investing/stock/ | S136: /financials/cash-flow/quarter
I137: https://www.marketwatch.com/investing/stock/ge/financials/balance-sheet/quarter | P137: https://www.marketwatch.com/investing/stock/ | S137: /financials/balance-sheet/quarter
I138: https://finance.yahoo.com/quote/GE/analysts?p=GE | P138: https://finance.yahoo.com/quote/ | S138: /analysts?p=
I139: https://www.marketwatch.com/investing/stock/MMM/analystestimates | P139: https://www.marketwatch.com/investing/stock/ | S139: /analystestimates

Sheet Equity Trend Analysis
H1: =I46 -> 6
A3: P/E Summary
Y4: ="Note: Years after "&'Menu Sheet'!L3&" From Analyst Reports" -> Note: Years after 2016 From Analyst Reports
E5: =C64 -> Forward P/E - Average Price | P5: TRUE
P6: Counter | T6: =C64 -> Forward P/E - Average Price
B7: Raw Data Before Adjustments | E7: ='EV to EBITDA Analysis'!C6 -> 2011 | F7: ='EV to EBITDA Analysis'!D6 -> 2012 | G7: ='EV to EBITDA Analysis'!E6 -> 2013 | H7: ='EV to EBITDA Analysis'!F6 -> 2014 | I7: ='EV to EBITDA Analysis'!G6 -> 2015 | J7: ='EV to EBITDA Analysis'!H6 -> 2016 | K7: ='EV to EBITDA Analysis'!I6 -> 2017 | L7: ='EV to EBITDA Analysis'!J6 -> 2018 | M7: ='EV to EBITDA Analysis'!K6 -> 2019 | N7: ='EV to EBITDA Analysis'!L6 -> Current | O7: Include | P7: 0 | V7: =E7 -> 2011 | W7: 2012 | X7: 2013 | Y7: 2014 | Z7: 2015 | AA7: 2016 | AB7: 2017 | AC7: 2018 | AD7: 2019 | AE7: Current
C8: ='Data Cost of Capital'!D11 -> Carlesberg | E8: =IFERROR(CHOOSE($I$46, 'PE Analysis'!C149,'PE Analysis'!C202,'PE Analysis'!C229, 'PE Analysis'!P5, 'PE Analysis'!C34, 'PE Analysis'!P34, 'PE Analysis'!C61, 'PE Analysis'!P61, 'PE Analysis'!C175, 'Data Extract Balance Sheet'!K260, 'Data Extract Balance Sheet'!K290), FALSE) -> 13.34988645 | F8: =IFERROR(CHOOSE($I$46, 'PE Analysis'!D149,'PE Analysis'!D202,'PE Analysis'!D229, 'PE Analysis'!Q5, 'PE Analysis'!D34, 'PE Analysis'!Q34, 'PE Analysis'!D61, 'PE Analysis'!Q61, 'PE Analysis'!D175, 'Data Extract Balance Sheet'!L260, 'Data Extract Balance Sheet'!L290), FALSE) -> 13.66223158 | G8: =IFERROR(CHOOSE($I$46, 'PE Analysis'!E149,'PE Analysis'!E202,'PE Analysis'!E229, 'PE Analysis'!R5, 'PE Analysis'!E34, 'PE Analysis'!R34, 'PE Analysis'!E61, 'PE Analysis'!R61, 'PE Analysis'!E175, 'Data Extract Balance Sheet'!M260, 'Data Extract Balance Sheet'!M290), FALSE) -> 19.62254051 | H8: =IFERROR(CHOOSE($I$46, 'PE Analysis'!F149,'PE Analysis'!F202,'PE Analysis'!F229, 'PE Analysis'!S5, 'PE Analysis'!F34, 'PE Analysis'!S34, 'PE Analysis'!F61, 'PE Analysis'!S61, 'PE Analysis'!F175, 'Data Extract Balance Sheet'!N260, 'Data Extract Balance Sheet'!N290), FALSE) -> -28.12391493 | I8: =IFERROR(CHOOSE($I$46, 'PE Analysis'!G149,'PE Analysis'!G202,'PE Analysis'!G229, 'PE Analysis'!T5, 'PE Analysis'!G34, 'PE Analysis'!T34, 'PE Analysis'!G61, 'PE Analysis'!T61, 'PE Analysis'!G175, 'Data Extract Balance Sheet'!O260, 'Data Extract Balance Sheet'!O290), FALSE) -> 19.33142006 | J8: =IFERROR(CHOOSE($I$46, 'PE Analysis'!H149,'PE Analysis'!H202,'PE Analysis'!H229, 'PE Analysis'!U5, 'PE Analysis'!H34, 'PE Analysis'!U34, 'PE Analysis'!H61, 'PE Analysis'!U61, 'PE Analysis'!H175, 'Data Extract Balance Sheet'!P260, 'Data Extract Balance Sheet'!P290), FALSE) -> 19.33 | K8: =IFERROR(CHOOSE($I$46, 'PE Analysis'!I149,'PE Analysis'!I202,'PE Analysis'!I229, 'PE Analysis'!V5, 'PE Analysis'!I34, 'PE Analysis'!V34, 'PE Analysis'!I61, 'PE Analysis'!V61, 'PE Analysis'!I175, 'Data Extract Balance Sheet'!Q260, 'Data Extract Balance Sheet'!Q290), FALSE) -> 19.33 | L8: =IFERROR(CHOOSE($I$46, 'PE Analysis'!J149,'PE Analysis'!J202,'PE Analysis'!J229, 'PE Analysis'!W5, 'PE Analysis'!J34, 'PE Analysis'!W34, 'PE Analysis'!J61, 'PE Analysis'!W61, 'PE Analysis'!J175, 'Data Extract Balance Sheet'!R260, 'Data Extract Balance Sheet'!R290), FALSE) -> 19.33 | M8: =IFERROR(CHOOSE($I$46, 'PE Analysis'!K149,'PE Analysis'!K202,'PE Analysis'!K229, 'PE Analysis'!X5, 'PE Analysis'!K34, 'PE Analysis'!X34, 'PE Analysis'!K61, 'PE Analysis'!X61, 'PE Analysis'!K175, 'Data Extract Balance Sheet'!S260, 'Data Extract Balance Sheet'!S290), FALSE) -> 0 | N8: =IFERROR(CHOOSE($I$46, 'PE Analysis'!L149,'PE Analysis'!L202,'PE Analysis'!L229, 'PE Analysis'!Y5, 'PE Analysis'!L34, 'PE Analysis'!Y34, 'PE Analysis'!L61, 'PE Analysis'!Y61, 'PE Analysis'!L175, 'Data Extract Balance Sheet'!T260, 'Data Extract Balance Sheet'!T290), FALSE) -> 19.33 | O8: TRUE | P8: =O8+P7 -> 1
C9: ='Data Cost of Capital'!D12 -> Diageo | E9: =IFERROR(CHOOSE($I$46, 'PE Analysis'!C150,'PE Analysis'!C203,'PE Analysis'!C230, 'PE Analysis'!P6, 'PE Analysis'!C35, 'PE Analysis'!P35, 'PE Analysis'!C62, 'PE Analysis'!P62, 'PE Analysis'!C176, 'Data Extract Balance Sheet'!K261, 'Data Extract Balance Sheet'!K291), FALSE) -> 12.89325601 | F9: =IFERROR(CHOOSE($I$46, 'PE Analysis'!D150,'PE Analysis'!D203,'PE Analysis'!D230, 'PE Analysis'!Q6, 'PE Analysis'!D35, 'PE Analysis'!Q35, 'PE Analysis'!D62, 'PE Analysis'!Q62, 'PE Analysis'!D176, 'Data Extract Balance Sheet'!L261, 'Data Extract Balance Sheet'!L291), FALSE) -> 18.42968165 | G9: =IFERROR(CHOOSE($I$46, 'PE Analysis'!E150,'PE Analysis'!E203,'PE Analysis'!E230, 'PE Analysis'!R6, 'PE Analysis'!E35, 'PE Analysis'!R35, 'PE Analysis'!E62, 'PE Analysis'!R62, 'PE Analysis'!E176, 'Data Extract Balance Sheet'!M261, 'Data Extract Balance Sheet'!M291), FALSE) -> 20.74561404 | H9: =IFERROR(CHOOSE($I$46, 'PE Analysis'!F150,'PE Analysis'!F203,'PE Analysis'!F230, 'PE Analysis'!S6, 'PE Analysis'!F35, 'PE Analysis'!S35, 'PE Analysis'!F62, 'PE Analysis'!S62, 'PE Analysis'!F176, 'Data Extract Balance Sheet'!N261, 'Data Extract Balance Sheet'!N291), FALSE) -> 20.7082397 | I9: =IFERROR(CHOOSE($I$46, 'PE Analysis'!G150,'PE Analysis'!G203,'PE Analysis'!G230, 'PE Analysis'!T6, 'PE Analysis'!G35, 'PE Analysis'!T35, 'PE Analysis'!G62, 'PE Analysis'!T62, 'PE Analysis'!G176, 'Data Extract Balance Sheet'!O261, 'Data Extract Balance Sheet'!O291), FALSE) -> 17.46619497 | J9: =IFERROR(CHOOSE($I$46, 'PE Analysis'!H150,'PE Analysis'!H203,'PE Analysis'!H230, 'PE Analysis'!U6, 'PE Analysis'!H35, 'PE Analysis'!U35, 'PE Analysis'!H62, 'PE Analysis'!U62, 'PE Analysis'!H176, 'Data Extract Balance Sheet'!P261, 'Data Extract Balance Sheet'!P291), FALSE) -> 17.25477562 | K9: =IFERROR(CHOOSE($I$46, 'PE Analysis'!I150,'PE Analysis'!I203,'PE Analysis'!I230, 'PE Analysis'!V6, 'PE Analysis'!I35, 'PE Analysis'!V35, 'PE Analysis'!I62, 'PE Analysis'!V62, 'PE Analysis'!I176, 'Data Extract Balance Sheet'!Q261, 'Data Extract Balance Sheet'!Q291), FALSE) -> 19.2948448 | L9: =IFERROR(CHOOSE($I$46, 'PE Analysis'!J150,'PE Analysis'!J203,'PE Analysis'!J230, 'PE Analysis'!W6, 'PE Analysis'!J35, 'PE Analysis'!W35, 'PE Analysis'!J62, 'PE Analysis'!W62, 'PE Analysis'!J176, 'Data Extract Balance Sheet'!R261, 'Data Extract Balance Sheet'!R291), FALSE) -> 19.13 | M9: =IFERROR(CHOOSE($I$46, 'PE Analysis'!K150,'PE Analysis'!K203,'PE Analysis'!K230, 'PE Analysis'!X6, 'PE Analysis'!K35, 'PE Analysis'!X35, 'PE Analysis'!K62, 'PE Analysis'!X62, 'PE Analysis'!K176, 'Data Extract Balance Sheet'!S261, 'Data Extract Balance Sheet'!S291), FALSE) -> 0 | N9: =IFERROR(CHOOSE($I$46, 'PE Analysis'!L150,'PE Analysis'!L203,'PE Analysis'!L230, 'PE Analysis'!Y6, 'PE Analysis'!L35, 'PE Analysis'!Y35, 'PE Analysis'!L62, 'PE Analysis'!Y62, 'PE Analysis'!L176, 'Data Extract Balance Sheet'!T261, 'Data Extract Balance Sheet'!T291), FALSE) -> 19.13 | O9: TRUE | P9: 2 | T9: Average | V9: =IFERROR(AVERAGE(V14:V46),"") -> 19.53967986 | W9: =IFERROR(AVERAGE(W14:W46),"") -> 16.34037083 | X9: 25.73900527 | Y9: -27.63198513 | Z9: 21.71104394 | AA9: 30.73515758 | AB9: 27.20829227 | AC9: =IFERROR(AVERAGE(AC14:AC46),"") -> 29.535625 | AD9: =IFERROR(AVERAGE(AD14:AD46),"") -> 0 | AE9: =IFERROR(AVERAGE(AE14:AE46),"") -> 29.535625
C10: ='Data Cost of Capital'!D13 -> Ambev SA (USD,BRL) | E10: =IFERROR(CHOOSE($I$46, 'PE Analysis'!C151,'PE Analysis'!C204,'PE Analysis'!C231, 'PE Analysis'!P7, 'PE Analysis'!C36, 'PE Analysis'!P36, 'PE Analysis'!C63, 'PE Analysis'!P63, 'PE Analysis'!C177, 'Data Extract Balance Sheet'!K262, 'Data Extract Balance Sheet'!K292), FALSE) -> 20.86894035 | F10: =IFERROR(CHOOSE($I$46, 'PE Analysis'!D151,'PE Analysis'!D204,'PE Analysis'!D231, 'PE Analysis'!Q7, 'PE Analysis'!D36, 'PE Analysis'!Q36, 'PE Analysis'!D63, 'PE Analysis'!Q63, 'PE Analysis'!D177, 'Data Extract Balance Sheet'!L262, 'Data Extract Balance Sheet'!L292), FALSE) -> 17.18820449 | G10: =IFERROR(CHOOSE($I$46, 'PE Analysis'!E151,'PE Analysis'!E204,'PE Analysis'!E231, 'PE Analysis'!R7, 'PE Analysis'!E36, 'PE Analysis'!R36, 'PE Analysis'!E63, 'PE Analysis'!R63, 'PE Analysis'!E177, 'Data Extract Balance Sheet'!M262, 'Data Extract Balance Sheet'!M292), FALSE) -> 22.22710787 | H10: =IFERROR(CHOOSE($I$46, 'PE Analysis'!F151,'PE Analysis'!F204,'PE Analysis'!F231, 'PE Analysis'!S7, 'PE Analysis'!F36, 'PE Analysis'!S36, 'PE Analysis'!F63, 'PE Analysis'!S63, 'PE Analysis'!F177, 'Data Extract Balance Sheet'!N262, 'Data Extract Balance Sheet'!N292), FALSE) -> 20.94970663 | I10: =IFERROR(CHOOSE($I$46, 'PE Analysis'!G151,'PE Analysis'!G204,'PE Analysis'!G231, 'PE Analysis'!T7, 'PE Analysis'!G36, 'PE Analysis'!T36, 'PE Analysis'!G63, 'PE Analysis'!T63, 'PE Analysis'!G177, 'Data Extract Balance Sheet'!O262, 'Data Extract Balance Sheet'!O292), FALSE) -> 23.74077007 | J10: =IFERROR(CHOOSE($I$46, 'PE Analysis'!H151,'PE Analysis'!H204,'PE Analysis'!H231, 'PE Analysis'!U7, 'PE Analysis'!H36, 'PE Analysis'!U36, 'PE Analysis'!H63, 'PE Analysis'!U63, 'PE Analysis'!H177, 'Data Extract Balance Sheet'!P262, 'Data Extract Balance Sheet'!P292), FALSE) -> 31.35932186 | K10: =IFERROR(CHOOSE($I$46, 'PE Analysis'!I151,'PE Analysis'!I204,'PE Analysis'!I231, 'PE Analysis'!V7, 'PE Analysis'!I36, 'PE Analysis'!V36, 'PE Analysis'!I63, 'PE Analysis'!V63, 'PE Analysis'!I177, 'Data Extract Balance Sheet'!Q262, 'Data Extract Balance Sheet'!Q292), FALSE) -> 21.74867426 | L10: =IFERROR(CHOOSE($I$46, 'PE Analysis'!J151,'PE Analysis'!J204,'PE Analysis'!J231, 'PE Analysis'!W7, 'PE Analysis'!J36, 'PE Analysis'!W36, 'PE Analysis'!J63, 'PE Analysis'!W63, 'PE Analysis'!J177, 'Data Extract Balance Sheet'!R262, 'Data Extract Balance Sheet'!R292), FALSE) -> 23.52 | M10: =IFERROR(CHOOSE($I$46, 'PE Analysis'!K151,'PE Analysis'!K204,'PE Analysis'!K231, 'PE Analysis'!X7, 'PE Analysis'!K36, 'PE Analysis'!X36, 'PE Analysis'!K63, 'PE Analysis'!X63, 'PE Analysis'!K177, 'Data Extract Balance Sheet'!S262, 'Data Extract Balance Sheet'!S292), FALSE) -> 0 | N10: =IFERROR(CHOOSE($I$46, 'PE Analysis'!L151,'PE Analysis'!L204,'PE Analysis'!L231, 'PE Analysis'!Y7, 'PE Analysis'!L36, 'PE Analysis'!Y36, 'PE Analysis'!L63, 'PE Analysis'!Y63, 'PE Analysis'!L177, 'Data Extract Balance Sheet'!T262, 'Data Extract Balance Sheet'!T292), FALSE) -> 23.52 | O10: TRUE | P10: 3 | T10: Median | V10: =IFERROR(MEDIAN(V14:V46),"") -> 15.3609328 | W10: =IFERROR(MEDIAN(W14:W46),"") -> 16.50534841 | X10: 19.82606748 | Y10: 18.32868697 | Z10: 19.64862275 | AA10: 22.66110139 | AB10: 21.6534539 | AC10: =IFERROR(MEDIAN(AC14:AC46),"") -> 23.005 | AD10: =IFERROR(MEDIAN(AD14:AD46),"") -> 0 | AE10: =IFERROR(MEDIAN(AE14:AE46),"") -> 23.005
C11: ='Data Cost of Capital'!D14 -> Molson Coors Brewing Company | E11: =IFERROR(CHOOSE($I$46, 'PE Analysis'!C152,'PE Analysis'!C205,'PE Analysis'!C232, 'PE Analysis'!P8, 'PE Analysis'!C37, 'PE Analysis'!P37, 'PE Analysis'!C64, 'PE Analysis'!P64, 'PE Analysis'!C178, 'Data Extract Balance Sheet'!K263, 'Data Extract Balance Sheet'!K293), FALSE) -> 18.04774584 | F11: =IFERROR(CHOOSE($I$46, 'PE Analysis'!D152,'PE Analysis'!D205,'PE Analysis'!D232, 'PE Analysis'!Q8, 'PE Analysis'!D37, 'PE Analysis'!Q37, 'PE Analysis'!D64, 'PE Analysis'!Q64, 'PE Analysis'!D178, 'Data Extract Balance Sheet'!L263, 'Data Extract Balance Sheet'!L293), FALSE) -> 13.83733759 | G11: =IFERROR(CHOOSE($I$46, 'PE Analysis'!E152,'PE Analysis'!E205,'PE Analysis'!E232, 'PE Analysis'!R8, 'PE Analysis'!E37, 'PE Analysis'!R37, 'PE Analysis'!E64, 'PE Analysis'!R64, 'PE Analysis'!E178, 'Data Extract Balance Sheet'!M263, 'Data Extract Balance Sheet'!M293), FALSE) -> 18.1687047 | H11: =IFERROR(CHOOSE($I$46, 'PE Analysis'!F152,'PE Analysis'!F205,'PE Analysis'!F232, 'PE Analysis'!S8, 'PE Analysis'!F37, 'PE Analysis'!S37, 'PE Analysis'!F64, 'PE Analysis'!S64, 'PE Analysis'!F178, 'Data Extract Balance Sheet'!N263, 'Data Extract Balance Sheet'!N293), FALSE) -> 34.80125256 | I11: =IFERROR(CHOOSE($I$46, 'PE Analysis'!G152,'PE Analysis'!G205,'PE Analysis'!G232, 'PE Analysis'!T8, 'PE Analysis'!G37, 'PE Analysis'!T37, 'PE Analysis'!G64, 'PE Analysis'!T64, 'PE Analysis'!G178, 'Data Extract Balance Sheet'!O263, 'Data Extract Balance Sheet'!O293), FALSE) -> 8.48090802 | J11: =IFERROR(CHOOSE($I$46, 'PE Analysis'!H152,'PE Analysis'!H205,'PE Analysis'!H232, 'PE Analysis'!U8, 'PE Analysis'!H37, 'PE Analysis'!U37, 'PE Analysis'!H64, 'PE Analysis'!U64, 'PE Analysis'!H178, 'Data Extract Balance Sheet'!P263, 'Data Extract Balance Sheet'!P293), FALSE) -> 22.66110139 | K11: =IFERROR(CHOOSE($I$46, 'PE Analysis'!I152,'PE Analysis'!I205,'PE Analysis'!I232, 'PE Analysis'!V8, 'PE Analysis'!I37, 'PE Analysis'!V37, 'PE Analysis'!I64, 'PE Analysis'!V64, 'PE Analysis'!I178, 'Data Extract Balance Sheet'!Q263, 'Data Extract Balance Sheet'!Q293), FALSE) -> 18.27135085 | L11: =IFERROR(CHOOSE($I$46, 'PE Analysis'!J152,'PE Analysis'!J205,'PE Analysis'!J232, 'PE Analysis'!W8, 'PE Analysis'!J37, 'PE Analysis'!W37, 'PE Analysis'!J64, 'PE Analysis'!W64, 'PE Analysis'!J178, 'Data Extract Balance Sheet'!R263, 'Data Extract Balance Sheet'!R293), FALSE) -> 15.7 | M11: =IFERROR(CHOOSE($I$46, 'PE Analysis'!K152,'PE Analysis'!K205,'PE Analysis'!K232, 'PE Analysis'!X8, 'PE Analysis'!K37, 'PE Analysis'!X37, 'PE Analysis'!K64, 'PE Analysis'!X64, 'PE Analysis'!K178, 'Data Extract Balance Sheet'!S263, 'Data Extract Balance Sheet'!S293), FALSE) -> 0 | N11: =IFERROR(CHOOSE($I$46, 'PE Analysis'!L152,'PE Analysis'!L205,'PE Analysis'!L232, 'PE Analysis'!Y8, 'PE Analysis'!L37, 'PE Analysis'!Y37, 'PE Analysis'!L64, 'PE Analysis'!Y64, 'PE Analysis'!L178, 'Data Extract Balance Sheet'!T263, 'Data Extract Balance Sheet'!T293), FALSE) -> 15.7 | O11: TRUE | P11: 4
C12: ='Data Cost of Capital'!D15 -> Boston Beer | E12: =IFERROR(CHOOSE($I$46, 'PE Analysis'!C153,'PE Analysis'!C206,'PE Analysis'!C233, 'PE Analysis'!P9, 'PE Analysis'!C38, 'PE Analysis'!P38, 'PE Analysis'!C65, 'PE Analysis'!P65, 'PE Analysis'!C179, 'Data Extract Balance Sheet'!K264, 'Data Extract Balance Sheet'!K294), FALSE) -> 20.43944589 | F12: =IFERROR(CHOOSE($I$46, 'PE Analysis'!D153,'PE Analysis'!D206,'PE Analysis'!D233, 'PE Analysis'!Q9, 'PE Analysis'!D38, 'PE Analysis'!Q38, 'PE Analysis'!D65, 'PE Analysis'!Q65, 'PE Analysis'!D179, 'Data Extract Balance Sheet'!L264, 'Data Extract Balance Sheet'!L294), FALSE) -> 21.05908145 | G12: =IFERROR(CHOOSE($I$46, 'PE Analysis'!E153,'PE Analysis'!E206,'PE Analysis'!E233, 'PE Analysis'!R9, 'PE Analysis'!E38, 'PE Analysis'!R38, 'PE Analysis'!E65, 'PE Analysis'!R65, 'PE Analysis'!E179, 'Data Extract Balance Sheet'!M264, 'Data Extract Balance Sheet'!M294), FALSE) -> 28.34111241 | H12: =IFERROR(CHOOSE($I$46, 'PE Analysis'!F153,'PE Analysis'!F206,'PE Analysis'!F233, 'PE Analysis'!S9, 'PE Analysis'!F38, 'PE Analysis'!S38, 'PE Analysis'!F65, 'PE Analysis'!S65, 'PE Analysis'!F179, 'Data Extract Balance Sheet'!N264, 'Data Extract Balance Sheet'!N294), FALSE) -> 32.1973619 | I12: =IFERROR(CHOOSE($I$46, 'PE Analysis'!G153,'PE Analysis'!G206,'PE Analysis'!G233, 'PE Analysis'!T9, 'PE Analysis'!G38, 'PE Analysis'!T38, 'PE Analysis'!G65, 'PE Analysis'!T65, 'PE Analysis'!G179, 'Data Extract Balance Sheet'!O264, 'Data Extract Balance Sheet'!O294), FALSE) -> 36.28014861 | J12: =IFERROR(CHOOSE($I$46, 'PE Analysis'!H153,'PE Analysis'!H206,'PE Analysis'!H233, 'PE Analysis'!U9, 'PE Analysis'!H38, 'PE Analysis'!U38, 'PE Analysis'!H65, 'PE Analysis'!U65, 'PE Analysis'!H179, 'Data Extract Balance Sheet'!P264, 'Data Extract Balance Sheet'!P294), FALSE) -> 26.60418623 | K12: =IFERROR(CHOOSE($I$46, 'PE Analysis'!I153,'PE Analysis'!I206,'PE Analysis'!I233, 'PE Analysis'!V9, 'PE Analysis'!I38, 'PE Analysis'!V38, 'PE Analysis'!I65, 'PE Analysis'!V65, 'PE Analysis'!I179, 'Data Extract Balance Sheet'!Q264, 'Data Extract Balance Sheet'!Q294), FALSE) -> 21.6534539 | L12: =IFERROR(CHOOSE($I$46, 'PE Analysis'!J153,'PE Analysis'!J206,'PE Analysis'!J233, 'PE Analysis'!W9, 'PE Analysis'!J38, 'PE Analysis'!W38, 'PE Analysis'!J65, 'PE Analysis'!W65, 'PE Analysis'!J179, 'Data Extract Balance Sheet'!R264, 'Data Extract Balance Sheet'!R294), FALSE) -> 23.79 | M12: =IFERROR(CHOOSE($I$46, 'PE Analysis'!K153,'PE Analysis'!K206,'PE Analysis'!K233, 'PE Analysis'!X9, 'PE Analysis'!K38, 'PE Analysis'!X38, 'PE Analysis'!K65, 'PE Analysis'!X65, 'PE Analysis'!K179, 'Data Extract Balance Sheet'!S264, 'Data Extract Balance Sheet'!S294), FALSE) -> 0 | N12: =IFERROR(CHOOSE($I$46, 'PE Analysis'!L153,'PE Analysis'!L206,'PE Analysis'!L233, 'PE Analysis'!Y9, 'PE Analysis'!L38, 'PE Analysis'!Y38, 'PE Analysis'!L65, 'PE Analysis'!Y65, 'PE Analysis'!L179, 'Data Extract Balance Sheet'!T264, 'Data Extract Balance Sheet'!T294), FALSE) -> 23.79 | O12: TRUE | P12: 5 | R12: No in | S12: Source
C13: ='Data Cost of Capital'!D16 -> Constellation Brands | E13: =IFERROR(CHOOSE($I$46, 'PE Analysis'!C154,'PE Analysis'!C207,'PE Analysis'!C234, 'PE Analysis'!P10, 'PE Analysis'!C39, 'PE Analysis'!P39, 'PE Analysis'!C66, 'PE Analysis'!P66, 'PE Analysis'!C180, 'Data Extract Balance Sheet'!K265, 'Data Extract Balance Sheet'!K295), FALSE) -> 11.02101548 | F13: =IFERROR(CHOOSE($I$46, 'PE Analysis'!D154,'PE Analysis'!D207,'PE Analysis'!D234, 'PE Analysis'!Q10, 'PE Analysis'!D39, 'PE Analysis'!Q39, 'PE Analysis'!D66, 'PE Analysis'!Q66, 'PE Analysis'!D180, 'Data Extract Balance Sheet'!L265, 'Data Extract Balance Sheet'!L295), FALSE) -> 3.073697049 | G13: =IFERROR(CHOOSE($I$46, 'PE Analysis'!E154,'PE Analysis'!E207,'PE Analysis'!E234, 'PE Analysis'!R10, 'PE Analysis'!E39, 'PE Analysis'!R39, 'PE Analysis'!E66, 'PE Analysis'!R66, 'PE Analysis'!E180, 'Data Extract Balance Sheet'!M265, 'Data Extract Balance Sheet'!M295), FALSE) -> 14.19346342 | H13: =IFERROR(CHOOSE($I$46, 'PE Analysis'!F154,'PE Analysis'!F207,'PE Analysis'!F234, 'PE Analysis'!S10, 'PE Analysis'!F39, 'PE Analysis'!S39, 'PE Analysis'!F66, 'PE Analysis'!S66, 'PE Analysis'!F180, 'Data Extract Balance Sheet'!N265, 'Data Extract Balance Sheet'!N295), FALSE) -> 18.24380779 | I13: =IFERROR(CHOOSE($I$46, 'PE Analysis'!G154,'PE Analysis'!G207,'PE Analysis'!G234, 'PE Analysis'!T10, 'PE Analysis'!G39, 'PE Analysis'!T39, 'PE Analysis'!G66, 'PE Analysis'!T66, 'PE Analysis'!G180, 'Data Extract Balance Sheet'!O265, 'Data Extract Balance Sheet'!O295), FALSE) -> 18.08564879 | J13: =IFERROR(CHOOSE($I$46, 'PE Analysis'!H154,'PE Analysis'!H207,'PE Analysis'!H234, 'PE Analysis'!U10, 'PE Analysis'!H39, 'PE Analysis'!U39, 'PE Analysis'!H66, 'PE Analysis'!U66, 'PE Analysis'!H180, 'Data Extract Balance Sheet'!P265, 'Data Extract Balance Sheet'!P295), FALSE) -> 18.26433722 | K13: =IFERROR(CHOOSE($I$46, 'PE Analysis'!I154,'PE Analysis'!I207,'PE Analysis'!I234, 'PE Analysis'!V10, 'PE Analysis'!I39, 'PE Analysis'!V39, 'PE Analysis'!I66, 'PE Analysis'!V66, 'PE Analysis'!I180, 'Data Extract Balance Sheet'!Q265, 'Data Extract Balance Sheet'!Q295), FALSE) -> 19.66642262 | L13: =IFERROR(CHOOSE($I$46, 'PE Analysis'!J154,'PE Analysis'!J207,'PE Analysis'!J234, 'PE Analysis'!W10, 'PE Analysis'!J39, 'PE Analysis'!W39, 'PE Analysis'!J66, 'PE Analysis'!W66, 'PE Analysis'!J180, 'Data Extract Balance Sheet'!R265, 'Data Extract Balance Sheet'!R295), FALSE) -> 22.49 | M13: =IFERROR(CHOOSE($I$46, 'PE Analysis'!K154,'PE Analysis'!K207,'PE Analysis'!K234, 'PE Analysis'!X10, 'PE Analysis'!K39, 'PE Analysis'!X39, 'PE Analysis'!K66, 'PE Analysis'!X66, 'PE Analysis'!K180, 'Data Extract Balance Sheet'!S265, 'Data Extract Balance Sheet'!S295), FALSE) -> 0 | N13: =IFERROR(CHOOSE($I$46, 'PE Analysis'!L154,'PE Analysis'!L207,'PE Analysis'!L234, 'PE Analysis'!Y10, 'PE Analysis'!L39, 'PE Analysis'!Y39, 'PE Analysis'!L66, 'PE Analysis'!Y66, 'PE Analysis'!L180, 'Data Extract Balance Sheet'!T265, 'Data Extract Balance Sheet'!T295), FALSE) -> 22.49 | O13: TRUE | P13: 6 | R13: Table | S13: Row #
C14: ='Data Cost of Capital'!D17 -> Craft Brew Alliance | E14: =IFERROR(CHOOSE($I$46, 'PE Analysis'!C155,'PE Analysis'!C208,'PE Analysis'!C235, 'PE Analysis'!P11, 'PE Analysis'!C40, 'PE Analysis'!P40, 'PE Analysis'!C67, 'PE Analysis'!P67, 'PE Analysis'!C181, 'Data Extract Balance Sheet'!K266, 'Data Extract Balance Sheet'!K296), FALSE) -> 74.38333333 | F14: =IFERROR(CHOOSE($I$46, 'PE Analysis'!D155,'PE Analysis'!D208,'PE Analysis'!D235, 'PE Analysis'!Q11, 'PE Analysis'!D40, 'PE Analysis'!Q40, 'PE Analysis'!D67, 'PE Analysis'!Q67, 'PE Analysis'!D181, 'Data Extract Balance Sheet'!L266, 'Data Extract Balance Sheet'!L296), FALSE) -> 45.45703125 | G14: =IFERROR(CHOOSE($I$46, 'PE Analysis'!E155,'PE Analysis'!E208,'PE Analysis'!E235, 'PE Analysis'!R11, 'PE Analysis'!E40, 'PE Analysis'!R40, 'PE Analysis'!E67, 'PE Analysis'!R67, 'PE Analysis'!E181, 'Data Extract Balance Sheet'!M266, 'Data Extract Balance Sheet'!M296), FALSE) -> 86.54548594 | H14: =IFERROR(CHOOSE($I$46, 'PE Analysis'!F155,'PE Analysis'!F208,'PE Analysis'!F235, 'PE Analysis'!S11, 'PE Analysis'!F40, 'PE Analysis'!S40, 'PE Analysis'!F67, 'PE Analysis'!S67, 'PE Analysis'!F181, 'Data Extract Balance Sheet'!N266, 'Data Extract Balance Sheet'!N296), FALSE) -> -687.8958312 | I14: =IFERROR(CHOOSE($I$46, 'PE Analysis'!G155,'PE Analysis'!G208,'PE Analysis'!G235, 'PE Analysis'!T11, 'PE Analysis'!G40, 'PE Analysis'!T40, 'PE Analysis'!G67, 'PE Analysis'!T67, 'PE Analysis'!G181, 'Data Extract Balance Sheet'!O266, 'Data Extract Balance Sheet'!O296), FALSE) -> 56.57 | J14: =IFERROR(CHOOSE($I$46, 'PE Analysis'!H155,'PE Analysis'!H208,'PE Analysis'!H235, 'PE Analysis'!U11, 'PE Analysis'!H40, 'PE Analysis'!U40, 'PE Analysis'!H67, 'PE Analysis'!U67, 'PE Analysis'!H181, 'Data Extract Balance Sheet'!P266, 'Data Extract Balance Sheet'!P296), FALSE) -> 82.79999978 | K14: =IFERROR(CHOOSE($I$46, 'PE Analysis'!I155,'PE Analysis'!I208,'PE Analysis'!I235, 'PE Analysis'!V11, 'PE Analysis'!I40, 'PE Analysis'!V40, 'PE Analysis'!I67, 'PE Analysis'!V67, 'PE Analysis'!I181, 'Data Extract Balance Sheet'!Q266, 'Data Extract Balance Sheet'!Q296), FALSE) -> 46.52199112 | L14: =IFERROR(CHOOSE($I$46, 'PE Analysis'!J155,'PE Analysis'!J208,'PE Analysis'!J235, 'PE Analysis'!W11, 'PE Analysis'!J40, 'PE Analysis'!W40, 'PE Analysis'!J67, 'PE Analysis'!W67, 'PE Analysis'!J181, 'Data Extract Balance Sheet'!R266, 'Data Extract Balance Sheet'!R296), FALSE) -> 56.57 | M14: =IFERROR(CHOOSE($I$46, 'PE Analysis'!K155,'PE Analysis'!K208,'PE Analysis'!K235, 'PE Analysis'!X11, 'PE Analysis'!K40, 'PE Analysis'!X40, 'PE Analysis'!K67, 'PE Analysis'!X67, 'PE Analysis'!K181, 'Data Extract Balance Sheet'!S266, 'Data Extract Balance Sheet'!S296), FALSE) -> 0 | N14: =IFERROR(CHOOSE($I$46, 'PE Analysis'!L155,'PE Analysis'!L208,'PE Analysis'!L235, 'PE Analysis'!Y11, 'PE Analysis'!L40, 'PE Analysis'!Y40, 'PE Analysis'!L67, 'PE Analysis'!Y67, 'PE Analysis'!L181, 'Data Extract Balance Sheet'!T266, 'Data Extract Balance Sheet'!T296), FALSE) -> 56.57 | O14: TRUE | P14: =O14+P13 -> 7 | R14: 1 | S14: =IFERROR(MATCH(R14,P:P,0),"") -> 8 | T14: =IFERROR(INDEX(C:C,S14),"") -> Carlesberg | V14: =IFERROR(INDEX(E:E,$S14),"") -> 13.34988645 | W14: =IFERROR(INDEX(F:F,$S14),"") -> 13.66223158 | X14: =IFERROR(INDEX(G:G,$S14),"") -> 19.62254051 | Y14: =IFERROR(INDEX(H:H,$S14),"") -> -28.12391493 | Z14: =IFERROR(INDEX(I:I,$S14),"") -> 19.33142006 | AA14: =IFERROR(INDEX(J:J,$S14),"") -> 19.33 | AB14: =IFERROR(INDEX(K:K,$S14),"") -> 19.33 | AC14: =IFERROR(INDEX(L:L,$S14),"") -> 19.33 | AD14: =IFERROR(INDEX(M:M,$S14),"") -> 0 | AE14: =IFERROR(INDEX(N:N,$S14),"") -> 19.33
C15: ='Data Cost of Capital'!D18 -> Willamett Valley | E15: =IFERROR(CHOOSE($I$46, 'PE Analysis'!C156,'PE Analysis'!C209,'PE Analysis'!C236, 'PE Analysis'!P12, 'PE Analysis'!C41, 'PE Analysis'!P41, 'PE Analysis'!C68, 'PE Analysis'!P68, 'PE Analysis'!C182, 'Data Extract Balance Sheet'!K267, 'Data Extract Balance Sheet'!K297), FALSE) -> 12.60783333 | F15: =IFERROR(CHOOSE($I$46, 'PE Analysis'!D156,'PE Analysis'!D209,'PE Analysis'!D236, 'PE Analysis'!Q12, 'PE Analysis'!D41, 'PE Analysis'!Q41, 'PE Analysis'!D68, 'PE Analysis'!Q68, 'PE Analysis'!D182, 'Data Extract Balance Sheet'!L267, 'Data Extract Balance Sheet'!L297), FALSE) -> 12.01206897 | G15: =IFERROR(CHOOSE($I$46, 'PE Analysis'!E156,'PE Analysis'!E209,'PE Analysis'!E236, 'PE Analysis'!R12, 'PE Analysis'!E41, 'PE Analysis'!R41, 'PE Analysis'!E68, 'PE Analysis'!R68, 'PE Analysis'!E182, 'Data Extract Balance Sheet'!M267, 'Data Extract Balance Sheet'!M297), FALSE) -> 11.2094697 | H15: =IFERROR(CHOOSE($I$46, 'PE Analysis'!F156,'PE Analysis'!F209,'PE Analysis'!F236, 'PE Analysis'!S12, 'PE Analysis'!F41, 'PE Analysis'!S41, 'PE Analysis'!F68, 'PE Analysis'!S68, 'PE Analysis'!F182, 'Data Extract Balance Sheet'!N267, 'Data Extract Balance Sheet'!N297), FALSE) -> 15.77939189 | I15: =IFERROR(CHOOSE($I$46, 'PE Analysis'!G156,'PE Analysis'!G209,'PE Analysis'!G236, 'PE Analysis'!T12, 'PE Analysis'!G41, 'PE Analysis'!T41, 'PE Analysis'!G68, 'PE Analysis'!T68, 'PE Analysis'!G182, 'Data Extract Balance Sheet'!O267, 'Data Extract Balance Sheet'!O297), FALSE) -> 15.59098837 | J15: =IFERROR(CHOOSE($I$46, 'PE Analysis'!H156,'PE Analysis'!H209,'PE Analysis'!H236, 'PE Analysis'!U12, 'PE Analysis'!H41, 'PE Analysis'!U41, 'PE Analysis'!H68, 'PE Analysis'!U68, 'PE Analysis'!H182, 'Data Extract Balance Sheet'!P267, 'Data Extract Balance Sheet'!P297), FALSE) -> FALSE | K15: =IFERROR(CHOOSE($I$46, 'PE Analysis'!I156,'PE Analysis'!I209,'PE Analysis'!I236, 'PE Analysis'!V12, 'PE Analysis'!I41, 'PE Analysis'!V41, 'PE Analysis'!I68, 'PE Analysis'!V68, 'PE Analysis'!I182, 'Data Extract Balance Sheet'!Q267, 'Data Extract Balance Sheet'!Q297), FALSE) -> FALSE | L15: =IFERROR(CHOOSE($I$46, 'PE Analysis'!J156,'PE Analysis'!J209,'PE Analysis'!J236, 'PE Analysis'!W12, 'PE Analysis'!J41, 'PE Analysis'!W41, 'PE Analysis'!J68, 'PE Analysis'!W68, 'PE Analysis'!J182, 'Data Extract Balance Sheet'!R267, 'Data Extract Balance Sheet'!R297), FALSE) -> FALSE | M15: =IFERROR(CHOOSE($I$46, 'PE Analysis'!K156,'PE Analysis'!K209,'PE Analysis'!K236, 'PE Analysis'!X12, 'PE Analysis'!K41, 'PE Analysis'!X41, 'PE Analysis'!K68, 'PE Analysis'!X68, 'PE Analysis'!K182, 'Data Extract Balance Sheet'!S267, 'Data Extract Balance Sheet'!S297), FALSE) -> 0 | N15: =IFERROR(CHOOSE($I$46, 'PE Analysis'!L156,'PE Analysis'!L209,'PE Analysis'!L236, 'PE Analysis'!Y12, 'PE Analysis'!L41, 'PE Analysis'!Y41, 'PE Analysis'!L68, 'PE Analysis'!Y68, 'PE Analysis'!L182, 'Data Extract Balance Sheet'!T267, 'Data Extract Balance Sheet'!T297), FALSE) -> FALSE | O15: TRUE | P15: 8 | R15: =R14+1 -> 2 | S15: =IFERROR(MATCH(R15,P:P,0),"") -> 9 | T15: Diageo | V15: 12.89325601 | W15: 18.42968165 | X15: 20.74561404 | Y15: 20.7082397 | Z15: 17.46619497 | AA15: 17.25477562 | AB15: 19.2948448 | AC15: 19.13 | AD15: 0 | AE15: 19.13
C16: ='Data Cost of Capital'!D19 -> Heineken | E16: =IFERROR(CHOOSE($I$46, 'PE Analysis'!C157,'PE Analysis'!C210,'PE Analysis'!C237, 'PE Analysis'!P13, 'PE Analysis'!C42, 'PE Analysis'!P42, 'PE Analysis'!C69, 'PE Analysis'!P69, 'PE Analysis'!C183, 'Data Extract Balance Sheet'!K268, 'Data Extract Balance Sheet'!K298), FALSE) -> 7.359745542 | F16: =IFERROR(CHOOSE($I$46, 'PE Analysis'!D157,'PE Analysis'!D210,'PE Analysis'!D237, 'PE Analysis'!Q13, 'PE Analysis'!D42, 'PE Analysis'!Q42, 'PE Analysis'!D69, 'PE Analysis'!Q69, 'PE Analysis'!D183, 'Data Extract Balance Sheet'!L268, 'Data Extract Balance Sheet'!L298), FALSE) -> 18.19518279 | G16: =IFERROR(CHOOSE($I$46, 'PE Analysis'!E157,'PE Analysis'!E210,'PE Analysis'!E237, 'PE Analysis'!R13, 'PE Analysis'!E42, 'PE Analysis'!R42, 'PE Analysis'!E69, 'PE Analysis'!R69, 'PE Analysis'!E183, 'Data Extract Balance Sheet'!M268, 'Data Extract Balance Sheet'!M298), FALSE) -> 20.02959445 | H16: =IFERROR(CHOOSE($I$46, 'PE Analysis'!F157,'PE Analysis'!F210,'PE Analysis'!F237, 'PE Analysis'!S13, 'PE Analysis'!F42, 'PE Analysis'!S42, 'PE Analysis'!F69, 'PE Analysis'!S69, 'PE Analysis'!F183, 'Data Extract Balance Sheet'!N268, 'Data Extract Balance Sheet'!N298), FALSE) -> 16.23660356 | I16: =IFERROR(CHOOSE($I$46, 'PE Analysis'!G157,'PE Analysis'!G210,'PE Analysis'!G237, 'PE Analysis'!T13, 'PE Analysis'!G42, 'PE Analysis'!T42, 'PE Analysis'!G69, 'PE Analysis'!T69, 'PE Analysis'!G183, 'Data Extract Balance Sheet'!O268, 'Data Extract Balance Sheet'!O298), FALSE) -> 26.88666665 | J16: =IFERROR(CHOOSE($I$46, 'PE Analysis'!H157,'PE Analysis'!H210,'PE Analysis'!H237, 'PE Analysis'!U13, 'PE Analysis'!H42, 'PE Analysis'!U42, 'PE Analysis'!H69, 'PE Analysis'!U69, 'PE Analysis'!H183, 'Data Extract Balance Sheet'!P268, 'Data Extract Balance Sheet'!P298), FALSE) -> 20.0866924 | K16: =IFERROR(CHOOSE($I$46, 'PE Analysis'!I157,'PE Analysis'!I210,'PE Analysis'!I237, 'PE Analysis'!V13, 'PE Analysis'!I42, 'PE Analysis'!V42, 'PE Analysis'!I69, 'PE Analysis'!V69, 'PE Analysis'!I183, 'Data Extract Balance Sheet'!Q268, 'Data Extract Balance Sheet'!Q298), FALSE) -> 19.67131607 | L16: =IFERROR(CHOOSE($I$46, 'PE Analysis'!J157,'PE Analysis'!J210,'PE Analysis'!J237, 'PE Analysis'!W13, 'PE Analysis'!J42, 'PE Analysis'!W42, 'PE Analysis'!J69, 'PE Analysis'!W69, 'PE Analysis'!J183, 'Data Extract Balance Sheet'!R268, 'Data Extract Balance Sheet'!R298), FALSE) -> 19.93 | M16: =IFERROR(CHOOSE($I$46, 'PE Analysis'!K157,'PE Analysis'!K210,'PE Analysis'!K237, 'PE Analysis'!X13, 'PE Analysis'!K42, 'PE Analysis'!X42, 'PE Analysis'!K69, 'PE Analysis'!X69, 'PE Analysis'!K183, 'Data Extract Balance Sheet'!S268, 'Data Extract Balance Sheet'!S298), FALSE) -> 0 | N16: =IFERROR(CHOOSE($I$46, 'PE Analysis'!L157,'PE Analysis'!L210,'PE Analysis'!L237, 'PE Analysis'!Y13, 'PE Analysis'!L42, 'PE Analysis'!Y42, 'PE Analysis'!L69, 'PE Analysis'!Y69, 'PE Analysis'!L183, 'Data Extract Balance Sheet'!T268, 'Data Extract Balance Sheet'!T298), FALSE) -> 19.93 | O16: TRUE | P16: 9 | R16: =R15+1 -> 3 | S16: =IFERROR(MATCH(R16,P:P,0),"") -> 10 | T16: Ambev SA (USD,BRL) | V16: =IFERROR(INDEX(E:E,$S16),"") -> 20.86894035 | W16: 17.18820449 | X16: 22.22710787 | Y16: 20.94970663 | Z16: 23.74077007 | AA16: 31.35932186 | AB16: 21.74867426 | AC16: 23.52 | AD16: 0 | AE16: 23.52
C17: ='Data Cost of Capital'!D20 -> Cott | E17: =IFERROR(CHOOSE($I$46, 'PE Analysis'!C158,'PE Analysis'!C211,'PE Analysis'!C238, 'PE Analysis'!P14, 'PE Analysis'!C43, 'PE Analysis'!P43, 'PE Analysis'!C70, 'PE Analysis'!P70, 'PE Analysis'!C184, 'Data Extract Balance Sheet'!K269, 'Data Extract Balance Sheet'!K299), FALSE) -> 15.64208333 | F17: =IFERROR(CHOOSE($I$46, 'PE Analysis'!D158,'PE Analysis'!D211,'PE Analysis'!D238, 'PE Analysis'!Q14, 'PE Analysis'!D43, 'PE Analysis'!Q43, 'PE Analysis'!D70, 'PE Analysis'!Q70, 'PE Analysis'!D184, 'Data Extract Balance Sheet'!L269, 'Data Extract Balance Sheet'!L299), FALSE) -> 40.1004386 | G17: =IFERROR(CHOOSE($I$46, 'PE Analysis'!E158,'PE Analysis'!E211,'PE Analysis'!E238, 'PE Analysis'!R14, 'PE Analysis'!E43, 'PE Analysis'!R43, 'PE Analysis'!E70, 'PE Analysis'!R70, 'PE Analysis'!E184, 'Data Extract Balance Sheet'!M269, 'Data Extract Balance Sheet'!M299), FALSE) -> 71.88854167 | H17: =IFERROR(CHOOSE($I$46, 'PE Analysis'!F158,'PE Analysis'!F211,'PE Analysis'!F238, 'PE Analysis'!S14, 'PE Analysis'!F43, 'PE Analysis'!S43, 'PE Analysis'!F70, 'PE Analysis'!S70, 'PE Analysis'!F184, 'Data Extract Balance Sheet'!N269, 'Data Extract Balance Sheet'!N299), FALSE) -> -183.2447917 | I17: =IFERROR(CHOOSE($I$46, 'PE Analysis'!G158,'PE Analysis'!G211,'PE Analysis'!G238, 'PE Analysis'!T14, 'PE Analysis'!G43, 'PE Analysis'!T43, 'PE Analysis'!G70, 'PE Analysis'!T70, 'PE Analysis'!G184, 'Data Extract Balance Sheet'!O269, 'Data Extract Balance Sheet'!O299), FALSE) -> -12.15617284 | J17: =IFERROR(CHOOSE($I$46, 'PE Analysis'!H158,'PE Analysis'!H211,'PE Analysis'!H238, 'PE Analysis'!U14, 'PE Analysis'!H43, 'PE Analysis'!U43, 'PE Analysis'!H70, 'PE Analysis'!U70, 'PE Analysis'!H184, 'Data Extract Balance Sheet'!P269, 'Data Extract Balance Sheet'!P299), FALSE) -> 59.96 | K17: =IFERROR(CHOOSE($I$46, 'PE Analysis'!I158,'PE Analysis'!I211,'PE Analysis'!I238, 'PE Analysis'!V14, 'PE Analysis'!I43, 'PE Analysis'!V43, 'PE Analysis'!I70, 'PE Analysis'!V70, 'PE Analysis'!I184, 'Data Extract Balance Sheet'!Q269, 'Data Extract Balance Sheet'!Q299), FALSE) -> 42.52866162 | L17: =IFERROR(CHOOSE($I$46, 'PE Analysis'!J158,'PE Analysis'!J211,'PE Analysis'!J238, 'PE Analysis'!W14, 'PE Analysis'!J43, 'PE Analysis'!W43, 'PE Analysis'!J70, 'PE Analysis'!W70, 'PE Analysis'!J184, 'Data Extract Balance Sheet'!R269, 'Data Extract Balance Sheet'!R299), FALSE) -> 59.96 | M17: =IFERROR(CHOOSE($I$46, 'PE Analysis'!K158,'PE Analysis'!K211,'PE Analysis'!K238, 'PE Analysis'!X14, 'PE Analysis'!K43, 'PE Analysis'!X43, 'PE Analysis'!K70, 'PE Analysis'!X70, 'PE Analysis'!K184, 'Data Extract Balance Sheet'!S269, 'Data Extract Balance Sheet'!S299), FALSE) -> 0 | N17: =IFERROR(CHOOSE($I$46, 'PE Analysis'!L158,'PE Analysis'!L211,'PE Analysis'!L238, 'PE Analysis'!Y14, 'PE Analysis'!L43, 'PE Analysis'!Y43, 'PE Analysis'!L70, 'PE Analysis'!Y70, 'PE Analysis'!L184, 'Data Extract Balance Sheet'!T269, 'Data Extract Balance Sheet'!T299), FALSE) -> 59.96 | O17: TRUE | P17: 10 | R17: 4 | S17: 11 | T17: Molson Coors Brewing Company | V17: 18.04774584 | W17: 13.83733759 | X17: 18.1687047 | Y17: 34.80125256 | Z17: 8.48090802 | AA17: 22.66110139 | AB17: 18.27135085 | AC17: 15.7 | AD17: 0 | AE17: 15.7
C18: ='Data Cost of Capital'!D21 -> Fomento Economico Mexicano SAB de CV (USD,MXN) | E18: =IFERROR(CHOOSE($I$46, 'PE Analysis'!C159,'PE Analysis'!C212,'PE Analysis'!C239, 'PE Analysis'!P15, 'PE Analysis'!C44, 'PE Analysis'!P44, 'PE Analysis'!C71, 'PE Analysis'!P71, 'PE Analysis'!C185, 'Data Extract Balance Sheet'!K270, 'Data Extract Balance Sheet'!K300), FALSE) -> -2.227064977 | F18: =IFERROR(CHOOSE($I$46, 'PE Analysis'!D159,'PE Analysis'!D212,'PE Analysis'!D239, 'PE Analysis'!Q15, 'PE Analysis'!D44, 'PE Analysis'!Q44, 'PE Analysis'!D71, 'PE Analysis'!Q71, 'PE Analysis'!D185, 'Data Extract Balance Sheet'!L270, 'Data Extract Balance Sheet'!L300), FALSE) -> -1.036370208 | G18: =IFERROR(CHOOSE($I$46, 'PE Analysis'!E159,'PE Analysis'!E212,'PE Analysis'!E239, 'PE Analysis'!R15, 'PE Analysis'!E44, 'PE Analysis'!R44, 'PE Analysis'!E71, 'PE Analysis'!R71, 'PE Analysis'!E185, 'Data Extract Balance Sheet'!M270, 'Data Extract Balance Sheet'!M300), FALSE) -> -2.971696602 | H18: =IFERROR(CHOOSE($I$46, 'PE Analysis'!F159,'PE Analysis'!F212,'PE Analysis'!F239, 'PE Analysis'!S15, 'PE Analysis'!F44, 'PE Analysis'!S44, 'PE Analysis'!F71, 'PE Analysis'!S71, 'PE Analysis'!F185, 'Data Extract Balance Sheet'!N270, 'Data Extract Balance Sheet'!N300), FALSE) -> -63.70397616 | I18: =IFERROR(CHOOSE($I$46, 'PE Analysis'!G159,'PE Analysis'!G212,'PE Analysis'!G239, 'PE Analysis'!T15, 'PE Analysis'!G44, 'PE Analysis'!T44, 'PE Analysis'!G71, 'PE Analysis'!T71, 'PE Analysis'!G185, 'Data Extract Balance Sheet'!O270, 'Data Extract Balance Sheet'!O300), FALSE) -> -20.63070262 | J18: =IFERROR(CHOOSE($I$46, 'PE Analysis'!H159,'PE Analysis'!H212,'PE Analysis'!H239, 'PE Analysis'!U15, 'PE Analysis'!H44, 'PE Analysis'!U44, 'PE Analysis'!H71, 'PE Analysis'!U71, 'PE Analysis'!H185, 'Data Extract Balance Sheet'!P270, 'Data Extract Balance Sheet'!P300), FALSE) -> FALSE | K18: =IFERROR(CHOOSE($I$46, 'PE Analysis'!I159,'PE Analysis'!I212,'PE Analysis'!I239, 'PE Analysis'!V15, 'PE Analysis'!I44, 'PE Analysis'!V44, 'PE Analysis'!I71, 'PE Analysis'!V71, 'PE Analysis'!I185, 'Data Extract Balance Sheet'!Q270, 'Data Extract Balance Sheet'!Q300), FALSE) -> FALSE | L18: =IFERROR(CHOOSE($I$46, 'PE Analysis'!J159,'PE Analysis'!J212,'PE Analysis'!J239, 'PE Analysis'!W15, 'PE Analysis'!J44, 'PE Analysis'!W44, 'PE Analysis'!J71, 'PE Analysis'!W71, 'PE Analysis'!J185, 'Data Extract Balance Sheet'!R270, 'Data Extract Balance Sheet'!R300), FALSE) -> FALSE | M18: =IFERROR(CHOOSE($I$46, 'PE Analysis'!K159,'PE Analysis'!K212,'PE Analysis'!K239, 'PE Analysis'!X15, 'PE Analysis'!K44, 'PE Analysis'!X44, 'PE Analysis'!K71, 'PE Analysis'!X71, 'PE Analysis'!K185, 'Data Extract Balance Sheet'!S270, 'Data Extract Balance Sheet'!S300), FALSE) -> 0 | N18: =IFERROR(CHOOSE($I$46, 'PE Analysis'!L159,'PE Analysis'!L212,'PE Analysis'!L239, 'PE Analysis'!Y15, 'PE Analysis'!L44, 'PE Analysis'!Y44, 'PE Analysis'!L71, 'PE Analysis'!Y71, 'PE Analysis'!L185, 'Data Extract Balance Sheet'!T270, 'Data Extract Balance Sheet'!T300), FALSE) -> FALSE | O18: FALSE | P18: 10 | R18: 5 | S18: =IFERROR(MATCH(R18,P:P,0),"") -> 12 | T18: Boston Beer | V18: 20.43944589 | W18: 21.05908145 | X18: 28.34111241 | Y18: 32.1973619 | Z18: 36.28014861 | AA18: 26.60418623 | AB18: 21.6534539 | AC18: 23.79 | AD18: 0 | AE18: 23.79
C19: ='Data Cost of Capital'!D22 -> Tsingtao Brewery Company Limited | E19: =IFERROR(CHOOSE($I$46, 'PE Analysis'!C160,'PE Analysis'!C213,'PE Analysis'!C240, 'PE Analysis'!P16, 'PE Analysis'!C45, 'PE Analysis'!P45, 'PE Analysis'!C72, 'PE Analysis'!P72, 'PE Analysis'!C186, 'Data Extract Balance Sheet'!K271, 'Data Extract Balance Sheet'!K301), FALSE) -> 26.1615887 | F19: =IFERROR(CHOOSE($I$46, 'PE Analysis'!D160,'PE Analysis'!D213,'PE Analysis'!D240, 'PE Analysis'!Q16, 'PE Analysis'!D45, 'PE Analysis'!Q45, 'PE Analysis'!D72, 'PE Analysis'!Q72, 'PE Analysis'!D186, 'Data Extract Balance Sheet'!L271, 'Data Extract Balance Sheet'!L301), FALSE) -> 23.98007233 | G19: =IFERROR(CHOOSE($I$46, 'PE Analysis'!E160,'PE Analysis'!E213,'PE Analysis'!E240, 'PE Analysis'!R16, 'PE Analysis'!E45, 'PE Analysis'!R45, 'PE Analysis'!E72, 'PE Analysis'!R72, 'PE Analysis'!E186, 'Data Extract Balance Sheet'!M271, 'Data Extract Balance Sheet'!M301), FALSE) -> 30.07984234 | H19: =IFERROR(CHOOSE($I$46, 'PE Analysis'!F160,'PE Analysis'!F213,'PE Analysis'!F240, 'PE Analysis'!S16, 'PE Analysis'!F45, 'PE Analysis'!S45, 'PE Analysis'!F72, 'PE Analysis'!S72, 'PE Analysis'!F186, 'Data Extract Balance Sheet'!N271, 'Data Extract Balance Sheet'!N301), FALSE) -> 36.98143693 | I19: =IFERROR(CHOOSE($I$46, 'PE Analysis'!G160,'PE Analysis'!G213,'PE Analysis'!G240, 'PE Analysis'!T16, 'PE Analysis'!G45, 'PE Analysis'!T45, 'PE Analysis'!G72, 'PE Analysis'!T72, 'PE Analysis'!G186, 'Data Extract Balance Sheet'!O271, 'Data Extract Balance Sheet'!O301), FALSE) -> 48.85370325 | J19: =IFERROR(CHOOSE($I$46, 'PE Analysis'!H160,'PE Analysis'!H213,'PE Analysis'!H240, 'PE Analysis'!U16, 'PE Analysis'!H45, 'PE Analysis'!U45, 'PE Analysis'!H72, 'PE Analysis'!U72, 'PE Analysis'!H186, 'Data Extract Balance Sheet'!P271, 'Data Extract Balance Sheet'!P301), FALSE) -> 28.29 | K19: =IFERROR(CHOOSE($I$46, 'PE Analysis'!I160,'PE Analysis'!I213,'PE Analysis'!I240, 'PE Analysis'!V16, 'PE Analysis'!I45, 'PE Analysis'!V45, 'PE Analysis'!I72, 'PE Analysis'!V72, 'PE Analysis'!I186, 'Data Extract Balance Sheet'!Q271, 'Data Extract Balance Sheet'!Q301), FALSE) -> 28.29 | L19: =IFERROR(CHOOSE($I$46, 'PE Analysis'!J160,'PE Analysis'!J213,'PE Analysis'!J240, 'PE Analysis'!W16, 'PE Analysis'!J45, 'PE Analysis'!W45, 'PE Analysis'!J72, 'PE Analysis'!W72, 'PE Analysis'!J186, 'Data Extract Balance Sheet'!R271, 'Data Extract Balance Sheet'!R301), FALSE) -> 28.29 | M19: =IFERROR(CHOOSE($I$46, 'PE Analysis'!K160,'PE Analysis'!K213,'PE Analysis'!K240, 'PE Analysis'!X16, 'PE Analysis'!K45, 'PE Analysis'!X45, 'PE Analysis'!K72, 'PE Analysis'!X72, 'PE Analysis'!K186, 'Data Extract Balance Sheet'!S271, 'Data Extract Balance Sheet'!S301), FALSE) -> 0 | N19: =IFERROR(CHOOSE($I$46, 'PE Analysis'!L160,'PE Analysis'!L213,'PE Analysis'!L240, 'PE Analysis'!Y16, 'PE Analysis'!L45, 'PE Analysis'!Y45, 'PE Analysis'!L72, 'PE Analysis'!Y72, 'PE Analysis'!L186, 'Data Extract Balance Sheet'!T271, 'Data Extract Balance Sheet'!T301), FALSE) -> 28.29 | O19: TRUE | P19: 11 | R19: 6 | S19: 13 | T19: Constellation Brands | V19: 11.02101548 | W19: 3.073697049 | X19: 14.19346342 | Y19: 18.24380779 | Z19: 18.08564879 | AA19: 18.26433722 | AB19: 19.66642262 | AC19: 22.49 | AD19: 0 | AE19: 22.49
C20: ='Data Cost of Capital'!D23 -> Monster Beverage | E20: =IFERROR(CHOOSE($I$46, 'PE Analysis'!C161,'PE Analysis'!C214,'PE Analysis'!C241, 'PE Analysis'!P17, 'PE Analysis'!C46, 'PE Analysis'!P46, 'PE Analysis'!C73, 'PE Analysis'!P73, 'PE Analysis'!C187, 'Data Extract Balance Sheet'!K272, 'Data Extract Balance Sheet'!K302), FALSE) -> 20.27161732 | F20: =IFERROR(CHOOSE($I$46, 'PE Analysis'!D161,'PE Analysis'!D214,'PE Analysis'!D241, 'PE Analysis'!Q17, 'PE Analysis'!D46, 'PE Analysis'!Q46, 'PE Analysis'!D73, 'PE Analysis'!Q73, 'PE Analysis'!D187, 'Data Extract Balance Sheet'!L272, 'Data Extract Balance Sheet'!L302), FALSE) -> 30.39584425 | G20: =IFERROR(CHOOSE($I$46, 'PE Analysis'!E161,'PE Analysis'!E214,'PE Analysis'!E241, 'PE Analysis'!R17, 'PE Analysis'!E46, 'PE Analysis'!R46, 'PE Analysis'!E73, 'PE Analysis'!R73, 'PE Analysis'!E187, 'Data Extract Balance Sheet'!M272, 'Data Extract Balance Sheet'!M302), FALSE) -> 20.26554949 | H20: =IFERROR(CHOOSE($I$46, 'PE Analysis'!F161,'PE Analysis'!F214,'PE Analysis'!F241, 'PE Analysis'!S17, 'PE Analysis'!F46, 'PE Analysis'!S46, 'PE Analysis'!F73, 'PE Analysis'!S73, 'PE Analysis'!F187, 'Data Extract Balance Sheet'!N272, 'Data Extract Balance Sheet'!N302), FALSE) -> 28.43200273 | I20: =IFERROR(CHOOSE($I$46, 'PE Analysis'!G161,'PE Analysis'!G214,'PE Analysis'!G241, 'PE Analysis'!T17, 'PE Analysis'!G46, 'PE Analysis'!T46, 'PE Analysis'!G73, 'PE Analysis'!T73, 'PE Analysis'!G187, 'Data Extract Balance Sheet'!O272, 'Data Extract Balance Sheet'!O302), FALSE) -> 38.24983659 | J20: =IFERROR(CHOOSE($I$46, 'PE Analysis'!H161,'PE Analysis'!H214,'PE Analysis'!H241, 'PE Analysis'!U17, 'PE Analysis'!H46, 'PE Analysis'!U46, 'PE Analysis'!H73, 'PE Analysis'!U73, 'PE Analysis'!H187, 'Data Extract Balance Sheet'!P272, 'Data Extract Balance Sheet'!P302), FALSE) -> 31.94203013 | K20: =IFERROR(CHOOSE($I$46, 'PE Analysis'!I161,'PE Analysis'!I214,'PE Analysis'!I241, 'PE Analysis'!V17, 'PE Analysis'!I46, 'PE Analysis'!V46, 'PE Analysis'!I73, 'PE Analysis'!V73, 'PE Analysis'!I187, 'Data Extract Balance Sheet'!Q272, 'Data Extract Balance Sheet'!Q302), FALSE) -> 27.99650533 | L20: =IFERROR(CHOOSE($I$46, 'PE Analysis'!J161,'PE Analysis'!J214,'PE Analysis'!J241, 'PE Analysis'!W17, 'PE Analysis'!J46, 'PE Analysis'!W46, 'PE Analysis'!J73, 'PE Analysis'!W73, 'PE Analysis'!J187, 'Data Extract Balance Sheet'!R272, 'Data Extract Balance Sheet'!R302), FALSE) -> 34.15 | M20: =IFERROR(CHOOSE($I$46, 'PE Analysis'!K161,'PE Analysis'!K214,'PE Analysis'!K241, 'PE Analysis'!X17, 'PE Analysis'!K46, 'PE Analysis'!X46, 'PE Analysis'!K73, 'PE Analysis'!X73, 'PE Analysis'!K187, 'Data Extract Balance Sheet'!S272, 'Data Extract Balance Sheet'!S302), FALSE) -> 0 | N20: =IFERROR(CHOOSE($I$46, 'PE Analysis'!L161,'PE Analysis'!L214,'PE Analysis'!L241, 'PE Analysis'!Y17, 'PE Analysis'!L46, 'PE Analysis'!Y46, 'PE Analysis'!L73, 'PE Analysis'!Y73, 'PE Analysis'!L187, 'Data Extract Balance Sheet'!T272, 'Data Extract Balance Sheet'!T302), FALSE) -> 34.15 | O20: TRUE | P20: 12 | R20: 7 | S20: 14 | T20: Craft Brew Alliance | V20: 74.38333333 | W20: 45.45703125 | X20: 86.54548594 | Y20: -687.8958312 | Z20: 56.57 | AA20: 82.79999978 | AB20: 46.52199112 | AC20: 56.57 | AD20: 0 | AE20: 56.57
C21: ='Data Cost of Capital'!D24 -> Castle Brands Inc (USD) | E21: =IFERROR(CHOOSE($I$46, 'PE Analysis'!C162,'PE Analysis'!C215,'PE Analysis'!C242, 'PE Analysis'!P18, 'PE Analysis'!C47, 'PE Analysis'!P47, 'PE Analysis'!C74, 'PE Analysis'!P74, 'PE Analysis'!C188, 'Data Extract Balance Sheet'!K273, 'Data Extract Balance Sheet'!K303), FALSE) -> -0.04927777778 | F21: =IFERROR(CHOOSE($I$46, 'PE Analysis'!D162,'PE Analysis'!D215,'PE Analysis'!D242, 'PE Analysis'!Q18, 'PE Analysis'!D47, 'PE Analysis'!Q47, 'PE Analysis'!D74, 'PE Analysis'!Q74, 'PE Analysis'!D188, 'Data Extract Balance Sheet'!L273, 'Data Extract Balance Sheet'!L303), FALSE) -> -0.03557291667 | G21: =IFERROR(CHOOSE($I$46, 'PE Analysis'!E162,'PE Analysis'!E215,'PE Analysis'!E242, 'PE Analysis'!R18, 'PE Analysis'!E47, 'PE Analysis'!R47, 'PE Analysis'!E74, 'PE Analysis'!R74, 'PE Analysis'!E188, 'Data Extract Balance Sheet'!M273, 'Data Extract Balance Sheet'!M303), FALSE) -> -0.23925 | H21: =IFERROR(CHOOSE($I$46, 'PE Analysis'!F162,'PE Analysis'!F215,'PE Analysis'!F242, 'PE Analysis'!S18, 'PE Analysis'!F47, 'PE Analysis'!S47, 'PE Analysis'!F74, 'PE Analysis'!S74, 'PE Analysis'!F188, 'Data Extract Balance Sheet'!N273, 'Data Extract Balance Sheet'!N303), FALSE) -> -0.5767916667 | I21: =IFERROR(CHOOSE($I$46, 'PE Analysis'!G162,'PE Analysis'!G215,'PE Analysis'!G242, 'PE Analysis'!T18, 'PE Analysis'!G47, 'PE Analysis'!T47, 'PE Analysis'!G74, 'PE Analysis'!T74, 'PE Analysis'!G188, 'Data Extract Balance Sheet'!O273, 'Data Extract Balance Sheet'!O303), FALSE) -> -1.39825 | J21: =IFERROR(CHOOSE($I$46, 'PE Analysis'!H162,'PE Analysis'!H215,'PE Analysis'!H242, 'PE Analysis'!U18, 'PE Analysis'!H47, 'PE Analysis'!U47, 'PE Analysis'!H74, 'PE Analysis'!U74, 'PE Analysis'!H188, 'Data Extract Balance Sheet'!P273, 'Data Extract Balance Sheet'!P303), FALSE) -> 57 | K21: =IFERROR(CHOOSE($I$46, 'PE Analysis'!I162,'PE Analysis'!I215,'PE Analysis'!I242, 'PE Analysis'!V18, 'PE Analysis'!I47, 'PE Analysis'!V47, 'PE Analysis'!I74, 'PE Analysis'!V74, 'PE Analysis'!I188, 'Data Extract Balance Sheet'!Q273, 'Data Extract Balance Sheet'!Q303), FALSE) -> 68.77291667 | L21: =IFERROR(CHOOSE($I$46, 'PE Analysis'!J162,'PE Analysis'!J215,'PE Analysis'!J242, 'PE Analysis'!W18, 'PE Analysis'!J47, 'PE Analysis'!W47, 'PE Analysis'!J74, 'PE Analysis'!W74, 'PE Analysis'!J188, 'Data Extract Balance Sheet'!R273, 'Data Extract Balance Sheet'!R303), FALSE) -> 57 | M21: =IFERROR(CHOOSE($I$46, 'PE Analysis'!K162,'PE Analysis'!K215,'PE Analysis'!K242, 'PE Analysis'!X18, 'PE Analysis'!K47, 'PE Analysis'!X47, 'PE Analysis'!K74, 'PE Analysis'!X74, 'PE Analysis'!K188, 'Data Extract Balance Sheet'!S273, 'Data Extract Balance Sheet'!S303), FALSE) -> 0 | N21: =IFERROR(CHOOSE($I$46, 'PE Analysis'!L162,'PE Analysis'!L215,'PE Analysis'!L242, 'PE Analysis'!Y18, 'PE Analysis'!L47, 'PE Analysis'!Y47, 'PE Analysis'!L74, 'PE Analysis'!Y74, 'PE Analysis'!L188, 'Data Extract Balance Sheet'!T273, 'Data Extract Balance Sheet'!T303), FALSE) -> 57 | O21: TRUE | P21: 13 | R21: 8 | S21: 15 | T21: Willamett Valley | V21: 12.60783333 | W21: 12.01206897 | X21: 11.2094697 | Y21: 15.77939189 | Z21: 15.59098837 | AA21: FALSE | AB21: FALSE | AC21: FALSE | AD21: 0 | AE21: FALSE
C22: ='Data Cost of Capital'!D25 -> Pernod Ricard SA (USD,EUR) | E22: =IFERROR(CHOOSE($I$46, 'PE Analysis'!C163,'PE Analysis'!C216,'PE Analysis'!C243, 'PE Analysis'!P19, 'PE Analysis'!C48, 'PE Analysis'!P48, 'PE Analysis'!C75, 'PE Analysis'!P75, 'PE Analysis'!C189, 'Data Extract Balance Sheet'!K274, 'Data Extract Balance Sheet'!K304), FALSE) -> 15.07978226 | F22: =IFERROR(CHOOSE($I$46, 'PE Analysis'!D163,'PE Analysis'!D216,'PE Analysis'!D243, 'PE Analysis'!Q19, 'PE Analysis'!D48, 'PE Analysis'!Q48, 'PE Analysis'!D75, 'PE Analysis'!Q75, 'PE Analysis'!D189, 'Data Extract Balance Sheet'!L274, 'Data Extract Balance Sheet'!L304), FALSE) -> 21.46118249 | G22: =IFERROR(CHOOSE($I$46, 'PE Analysis'!E163,'PE Analysis'!E216,'PE Analysis'!E243, 'PE Analysis'!R19, 'PE Analysis'!E48, 'PE Analysis'!R48, 'PE Analysis'!E75, 'PE Analysis'!R75, 'PE Analysis'!E189, 'Data Extract Balance Sheet'!M274, 'Data Extract Balance Sheet'!M304), FALSE) -> 28.04770383 | H22: =IFERROR(CHOOSE($I$46, 'PE Analysis'!F163,'PE Analysis'!F216,'PE Analysis'!F243, 'PE Analysis'!S19, 'PE Analysis'!F48, 'PE Analysis'!S48, 'PE Analysis'!F75, 'PE Analysis'!S75, 'PE Analysis'!F189, 'Data Extract Balance Sheet'!N274, 'Data Extract Balance Sheet'!N304), FALSE) -> 18.71112905 | I22: =IFERROR(CHOOSE($I$46, 'PE Analysis'!G163,'PE Analysis'!G216,'PE Analysis'!G243, 'PE Analysis'!T19, 'PE Analysis'!G48, 'PE Analysis'!T48, 'PE Analysis'!G75, 'PE Analysis'!T75, 'PE Analysis'!G189, 'Data Extract Balance Sheet'!O274, 'Data Extract Balance Sheet'!O304), FALSE) -> 19.96582543 | J22: =IFERROR(CHOOSE($I$46, 'PE Analysis'!H163,'PE Analysis'!H216,'PE Analysis'!H243, 'PE Analysis'!U19, 'PE Analysis'!H48, 'PE Analysis'!U48, 'PE Analysis'!H75, 'PE Analysis'!U75, 'PE Analysis'!H189, 'Data Extract Balance Sheet'!P274, 'Data Extract Balance Sheet'!P304), FALSE) -> FALSE | K22: =IFERROR(CHOOSE($I$46, 'PE Analysis'!I163,'PE Analysis'!I216,'PE Analysis'!I243, 'PE Analysis'!V19, 'PE Analysis'!I48, 'PE Analysis'!V48, 'PE Analysis'!I75, 'PE Analysis'!V75, 'PE Analysis'!I189, 'Data Extract Balance Sheet'!Q274, 'Data Extract Balance Sheet'!Q304), FALSE) -> FALSE | L22: =IFERROR(CHOOSE($I$46, 'PE Analysis'!J163,'PE Analysis'!J216,'PE Analysis'!J243, 'PE Analysis'!W19, 'PE Analysis'!J48, 'PE Analysis'!W48, 'PE Analysis'!J75, 'PE Analysis'!W75, 'PE Analysis'!J189, 'Data Extract Balance Sheet'!R274, 'Data Extract Balance Sheet'!R304), FALSE) -> FALSE | M22: =IFERROR(CHOOSE($I$46, 'PE Analysis'!K163,'PE Analysis'!K216,'PE Analysis'!K243, 'PE Analysis'!X19, 'PE Analysis'!K48, 'PE Analysis'!X48, 'PE Analysis'!K75, 'PE Analysis'!X75, 'PE Analysis'!K189, 'Data Extract Balance Sheet'!S274, 'Data Extract Balance Sheet'!S304), FALSE) -> 0 | N22: =IFERROR(CHOOSE($I$46, 'PE Analysis'!L163,'PE Analysis'!L216,'PE Analysis'!L243, 'PE Analysis'!Y19, 'PE Analysis'!L48, 'PE Analysis'!Y48, 'PE Analysis'!L75, 'PE Analysis'!Y75, 'PE Analysis'!L189, 'Data Extract Balance Sheet'!T274, 'Data Extract Balance Sheet'!T304), FALSE) -> FALSE | O22: TRUE | P22: 14 | R22: 9 | S22: 16 | T22: Heineken | V22: 7.359745542 | W22: 18.19518279 | X22: 20.02959445 | Y22: 16.23660356 | Z22: 26.88666665 | AA22: 20.0866924 | AB22: 19.67131607 | AC22: 19.93 | AD22: 0 | AE22: 19.93
C23: ='Data Cost of Capital'!D26 -> Thai Beverage PLC (USD,THB) | E23: =IFERROR(CHOOSE($I$46, 'PE Analysis'!C164,'PE Analysis'!C217,'PE Analysis'!C244, 'PE Analysis'!P20, 'PE Analysis'!C49, 'PE Analysis'!P49, 'PE Analysis'!C76, 'PE Analysis'!P76, 'PE Analysis'!C190, 'Data Extract Balance Sheet'!K275, 'Data Extract Balance Sheet'!K305), FALSE) -> 9.127083333 | F23: =IFERROR(CHOOSE($I$46, 'PE Analysis'!D164,'PE Analysis'!D217,'PE Analysis'!D244, 'PE Analysis'!Q20, 'PE Analysis'!D49, 'PE Analysis'!Q49, 'PE Analysis'!D76, 'PE Analysis'!Q76, 'PE Analysis'!D190, 'Data Extract Balance Sheet'!L275, 'Data Extract Balance Sheet'!L305), FALSE) -> 11.54930556 | G23: =IFERROR(CHOOSE($I$46, 'PE Analysis'!E164,'PE Analysis'!E217,'PE Analysis'!E244, 'PE Analysis'!R20, 'PE Analysis'!E49, 'PE Analysis'!R49, 'PE Analysis'!E76, 'PE Analysis'!R76, 'PE Analysis'!E190, 'Data Extract Balance Sheet'!M275, 'Data Extract Balance Sheet'!M305), FALSE) -> 13.87291667 | H23: =IFERROR(CHOOSE($I$46, 'PE Analysis'!F164,'PE Analysis'!F217,'PE Analysis'!F244, 'PE Analysis'!S20, 'PE Analysis'!F49, 'PE Analysis'!S49, 'PE Analysis'!F76, 'PE Analysis'!S76, 'PE Analysis'!F190, 'Data Extract Balance Sheet'!N275, 'Data Extract Balance Sheet'!N305), FALSE) -> 21.43194444 | I23: =IFERROR(CHOOSE($I$46, 'PE Analysis'!G164,'PE Analysis'!G217,'PE Analysis'!G244, 'PE Analysis'!T20, 'PE Analysis'!G49, 'PE Analysis'!T49, 'PE Analysis'!G76, 'PE Analysis'!T76, 'PE Analysis'!G190, 'Data Extract Balance Sheet'!O275, 'Data Extract Balance Sheet'!O305), FALSE) -> 12.04652778 | J23: =IFERROR(CHOOSE($I$46, 'PE Analysis'!H164,'PE Analysis'!H217,'PE Analysis'!H244, 'PE Analysis'!U20, 'PE Analysis'!H49, 'PE Analysis'!U49, 'PE Analysis'!H76, 'PE Analysis'!U76, 'PE Analysis'!H190, 'Data Extract Balance Sheet'!P275, 'Data Extract Balance Sheet'!P305), FALSE) -> 17.08708333 | K23: =IFERROR(CHOOSE($I$46, 'PE Analysis'!I164,'PE Analysis'!I217,'PE Analysis'!I244, 'PE Analysis'!V20, 'PE Analysis'!I49, 'PE Analysis'!V49, 'PE Analysis'!I76, 'PE Analysis'!V76, 'PE Analysis'!I190, 'Data Extract Balance Sheet'!Q275, 'Data Extract Balance Sheet'!Q305), FALSE) -> 18.36416667 | L23: =IFERROR(CHOOSE($I$46, 'PE Analysis'!J164,'PE Analysis'!J217,'PE Analysis'!J244, 'PE Analysis'!W20, 'PE Analysis'!J49, 'PE Analysis'!W49, 'PE Analysis'!J76, 'PE Analysis'!W76, 'PE Analysis'!J190, 'Data Extract Balance Sheet'!R275, 'Data Extract Balance Sheet'!R305), FALSE) -> FALSE | M23: =IFERROR(CHOOSE($I$46, 'PE Analysis'!K164,'PE Analysis'!K217,'PE Analysis'!K244, 'PE Analysis'!X20, 'PE Analysis'!K49, 'PE Analysis'!X49, 'PE Analysis'!K76, 'PE Analysis'!X76, 'PE Analysis'!K190, 'Data Extract Balance Sheet'!S275, 'Data Extract Balance Sheet'!S305), FALSE) -> 0 | N23: =IFERROR(CHOOSE($I$46, 'PE Analysis'!L164,'PE Analysis'!L217,'PE Analysis'!L244, 'PE Analysis'!Y20, 'PE Analysis'!L49, 'PE Analysis'!Y49, 'PE Analysis'!L76, 'PE Analysis'!Y76, 'PE Analysis'!L190, 'Data Extract Balance Sheet'!T275, 'Data Extract Balance Sheet'!T305), FALSE) -> FALSE | O23: TRUE | P23: 15 | R23: 10 | S23: 17 | T23: Cott | V23: 15.64208333 | W23: 40.1004386 | X23: 71.88854167 | Y23: -183.2447917 | Z23: -12.15617284 | AA23: 59.96 | AB23: 42.52866162 | AC23: 59.96 | AD23: 0 | AE23: 59.96
C24: ='Data Cost of Capital'!D27 -> Brown-Forman Corp (USD) | E24: =IFERROR(CHOOSE($I$46, 'PE Analysis'!C165,'PE Analysis'!C218,'PE Analysis'!C245, 'PE Analysis'!P21, 'PE Analysis'!C50, 'PE Analysis'!P50, 'PE Analysis'!C77, 'PE Analysis'!P77, 'PE Analysis'!C191, 'Data Extract Balance Sheet'!K276, 'Data Extract Balance Sheet'!K306), FALSE) -> 12.74142563 | F24: =IFERROR(CHOOSE($I$46, 'PE Analysis'!D165,'PE Analysis'!D218,'PE Analysis'!D245, 'PE Analysis'!Q21, 'PE Analysis'!D50, 'PE Analysis'!Q50, 'PE Analysis'!D77, 'PE Analysis'!Q77, 'PE Analysis'!D191, 'Data Extract Balance Sheet'!L276, 'Data Extract Balance Sheet'!L306), FALSE) -> 14.30670065 | G24: =IFERROR(CHOOSE($I$46, 'PE Analysis'!E165,'PE Analysis'!E218,'PE Analysis'!E245, 'PE Analysis'!R21, 'PE Analysis'!E50, 'PE Analysis'!R50, 'PE Analysis'!E77, 'PE Analysis'!R77, 'PE Analysis'!E191, 'Data Extract Balance Sheet'!M276, 'Data Extract Balance Sheet'!M306), FALSE) -> 16.34011391 | H24: =IFERROR(CHOOSE($I$46, 'PE Analysis'!F165,'PE Analysis'!F218,'PE Analysis'!F245, 'PE Analysis'!S21, 'PE Analysis'!F50, 'PE Analysis'!S50, 'PE Analysis'!F77, 'PE Analysis'!S77, 'PE Analysis'!F191, 'Data Extract Balance Sheet'!N276, 'Data Extract Balance Sheet'!N306), FALSE) -> 12.61938604 | I24: =IFERROR(CHOOSE($I$46, 'PE Analysis'!G165,'PE Analysis'!G218,'PE Analysis'!G245, 'PE Analysis'!T21, 'PE Analysis'!G50, 'PE Analysis'!T50, 'PE Analysis'!G77, 'PE Analysis'!T77, 'PE Analysis'!G191, 'Data Extract Balance Sheet'!O276, 'Data Extract Balance Sheet'!O306), FALSE) -> 22.72511047 | J24: =IFERROR(CHOOSE($I$46, 'PE Analysis'!H165,'PE Analysis'!H218,'PE Analysis'!H245, 'PE Analysis'!U21, 'PE Analysis'!H50, 'PE Analysis'!U50, 'PE Analysis'!H77, 'PE Analysis'!U77, 'PE Analysis'!H191, 'Data Extract Balance Sheet'!P276, 'Data Extract Balance Sheet'!P306), FALSE) -> 29.19 | K24: =IFERROR(CHOOSE($I$46, 'PE Analysis'!I165,'PE Analysis'!I218,'PE Analysis'!I245, 'PE Analysis'!V21, 'PE Analysis'!I50, 'PE Analysis'!V50, 'PE Analysis'!I77, 'PE Analysis'!V77, 'PE Analysis'!I191, 'Data Extract Balance Sheet'!Q276, 'Data Extract Balance Sheet'!Q306), FALSE) -> 29.19 | L24: =IFERROR(CHOOSE($I$46, 'PE Analysis'!J165,'PE Analysis'!J218,'PE Analysis'!J245, 'PE Analysis'!W21, 'PE Analysis'!J50, 'PE Analysis'!W50, 'PE Analysis'!J77, 'PE Analysis'!W77, 'PE Analysis'!J191, 'Data Extract Balance Sheet'!R276, 'Data Extract Balance Sheet'!R306), FALSE) -> 29.19 | M24: =IFERROR(CHOOSE($I$46, 'PE Analysis'!K165,'PE Analysis'!K218,'PE Analysis'!K245, 'PE Analysis'!X21, 'PE Analysis'!K50, 'PE Analysis'!X50, 'PE Analysis'!K77, 'PE Analysis'!X77, 'PE Analysis'!K191, 'Data Extract Balance Sheet'!S276, 'Data Extract Balance Sheet'!S306), FALSE) -> 0 | N24: =IFERROR(CHOOSE($I$46, 'PE Analysis'!L165,'PE Analysis'!L218,'PE Analysis'!L245, 'PE Analysis'!Y21, 'PE Analysis'!L50, 'PE Analysis'!Y50, 'PE Analysis'!L77, 'PE Analysis'!Y77, 'PE Analysis'!L191, 'Data Extract Balance Sheet'!T276, 'Data Extract Balance Sheet'!T306), FALSE) -> 29.19 | O24: TRUE | P24: 16 | R24: 11 | S24: 19 | T24: Tsingtao Brewery Company Limited | V24: 26.1615887 | W24: 23.98007233 | X24: 30.07984234 | Y24: 36.98143693 | Z24: 48.85370325 | AA24: 28.29 | AB24: 28.29 | AC24: 28.29 | AD24: 0 | AE24: 28.29
C25: ='Data Cost of Capital'!D28 -> Treasury Wine Estates Ltd. | E25: =IFERROR(CHOOSE($I$46, 'PE Analysis'!C166,'PE Analysis'!C219,'PE Analysis'!C246, 'PE Analysis'!P22, 'PE Analysis'!C51, 'PE Analysis'!P51, 'PE Analysis'!C78, 'PE Analysis'!P78, 'PE Analysis'!C192, 'Data Extract Balance Sheet'!K277, 'Data Extract Balance Sheet'!K307), FALSE) -> 50.07728393 | F25: =IFERROR(CHOOSE($I$46, 'PE Analysis'!D166,'PE Analysis'!D219,'PE Analysis'!D246, 'PE Analysis'!Q22, 'PE Analysis'!D51, 'PE Analysis'!Q51, 'PE Analysis'!D78, 'PE Analysis'!Q78, 'PE Analysis'!D192, 'Data Extract Balance Sheet'!L277, 'Data Extract Balance Sheet'!L307), FALSE) -> -29.23160444 | G25: =IFERROR(CHOOSE($I$46, 'PE Analysis'!E166,'PE Analysis'!E219,'PE Analysis'!E246, 'PE Analysis'!R22, 'PE Analysis'!E51, 'PE Analysis'!R51, 'PE Analysis'!E78, 'PE Analysis'!R78, 'PE Analysis'!E192, 'Data Extract Balance Sheet'!M277, 'Data Extract Balance Sheet'!M307), FALSE) -> 42.67070833 | H25: =IFERROR(CHOOSE($I$46, 'PE Analysis'!F166,'PE Analysis'!F219,'PE Analysis'!F246, 'PE Analysis'!S22, 'PE Analysis'!F51, 'PE Analysis'!S51, 'PE Analysis'!F78, 'PE Analysis'!S78, 'PE Analysis'!F192, 'Data Extract Balance Sheet'!N277, 'Data Extract Balance Sheet'!N307), FALSE) -> 18.41356615 | I25: =IFERROR(CHOOSE($I$46, 'PE Analysis'!G166,'PE Analysis'!G219,'PE Analysis'!G246, 'PE Analysis'!T22, 'PE Analysis'!G51, 'PE Analysis'!T51, 'PE Analysis'!G78, 'PE Analysis'!T78, 'PE Analysis'!G192, 'Data Extract Balance Sheet'!O277, 'Data Extract Balance Sheet'!O307), FALSE) -> 16.3402478 | J25: =IFERROR(CHOOSE($I$46, 'PE Analysis'!H166,'PE Analysis'!H219,'PE Analysis'!H246, 'PE Analysis'!U22, 'PE Analysis'!H51, 'PE Analysis'!U51, 'PE Analysis'!H78, 'PE Analysis'!U78, 'PE Analysis'!H192, 'Data Extract Balance Sheet'!P277, 'Data Extract Balance Sheet'!P307), FALSE) -> FALSE | K25: =IFERROR(CHOOSE($I$46, 'PE Analysis'!I166,'PE Analysis'!I219,'PE Analysis'!I246, 'PE Analysis'!V22, 'PE Analysis'!I51, 'PE Analysis'!V51, 'PE Analysis'!I78, 'PE Analysis'!V78, 'PE Analysis'!I192, 'Data Extract Balance Sheet'!Q277, 'Data Extract Balance Sheet'!Q307), FALSE) -> FALSE | L25: =IFERROR(CHOOSE($I$46, 'PE Analysis'!J166,'PE Analysis'!J219,'PE Analysis'!J246, 'PE Analysis'!W22, 'PE Analysis'!J51, 'PE Analysis'!W51, 'PE Analysis'!J78, 'PE Analysis'!W78, 'PE Analysis'!J192, 'Data Extract Balance Sheet'!R277, 'Data Extract Balance Sheet'!R307), FALSE) -> FALSE | M25: =IFERROR(CHOOSE($I$46, 'PE Analysis'!K166,'PE Analysis'!K219,'PE Analysis'!K246, 'PE Analysis'!X22, 'PE Analysis'!K51, 'PE Analysis'!X51, 'PE Analysis'!K78, 'PE Analysis'!X78, 'PE Analysis'!K192, 'Data Extract Balance Sheet'!S277, 'Data Extract Balance Sheet'!S307), FALSE) -> 0 | N25: =IFERROR(CHOOSE($I$46, 'PE Analysis'!L166,'PE Analysis'!L219,'PE Analysis'!L246, 'PE Analysis'!Y22, 'PE Analysis'!L51, 'PE Analysis'!Y51, 'PE Analysis'!L78, 'PE Analysis'!Y78, 'PE Analysis'!L192, 'Data Extract Balance Sheet'!T277, 'Data Extract Balance Sheet'!T307), FALSE) -> FALSE | O25: TRUE | P25: 17 | R25: 12 | S25: 20 | T25: Monster Beverage | V25: 20.27161732 | W25: 30.39584425 | X25: 20.26554949 | Y25: 28.43200273 | Z25: 38.24983659 | AA25: 31.94203013 | AB25: 27.99650533 | AC25: 34.15 | AD25: 0 | AE25: 34.15
C26: ='Data Cost of Capital'!D29 -> Pepsi Co | E26: =IFERROR(CHOOSE($I$46, 'PE Analysis'!C167,'PE Analysis'!C220,'PE Analysis'!C247, 'PE Analysis'!P23, 'PE Analysis'!C52, 'PE Analysis'!P52, 'PE Analysis'!C79, 'PE Analysis'!P79, 'PE Analysis'!C193, 'Data Extract Balance Sheet'!K278, 'Data Extract Balance Sheet'!K308), FALSE) -> 16.63356728 | F26: =IFERROR(CHOOSE($I$46, 'PE Analysis'!D167,'PE Analysis'!D220,'PE Analysis'!D247, 'PE Analysis'!Q23, 'PE Analysis'!D52, 'PE Analysis'!Q52, 'PE Analysis'!D79, 'PE Analysis'!Q79, 'PE Analysis'!D193, 'Data Extract Balance Sheet'!L278, 'Data Extract Balance Sheet'!L308), FALSE) -> 15.82249234 | G26: =IFERROR(CHOOSE($I$46, 'PE Analysis'!E167,'PE Analysis'!E220,'PE Analysis'!E247, 'PE Analysis'!R23, 'PE Analysis'!E52, 'PE Analysis'!R52, 'PE Analysis'!E79, 'PE Analysis'!R79, 'PE Analysis'!E193, 'Data Extract Balance Sheet'!M278, 'Data Extract Balance Sheet'!M308), FALSE) -> 18.85621575 | H26: =IFERROR(CHOOSE($I$46, 'PE Analysis'!F167,'PE Analysis'!F220,'PE Analysis'!F247, 'PE Analysis'!S23, 'PE Analysis'!F52, 'PE Analysis'!S52, 'PE Analysis'!F79, 'PE Analysis'!S79, 'PE Analysis'!F193, 'Data Extract Balance Sheet'!N278, 'Data Extract Balance Sheet'!N308), FALSE) -> 24.20669843 | I26: =IFERROR(CHOOSE($I$46, 'PE Analysis'!G167,'PE Analysis'!G220,'PE Analysis'!G247, 'PE Analysis'!T23, 'PE Analysis'!G52, 'PE Analysis'!T52, 'PE Analysis'!G79, 'PE Analysis'!T79, 'PE Analysis'!G193, 'Data Extract Balance Sheet'!O278, 'Data Extract Balance Sheet'!O308), FALSE) -> 22.21661889 | J26: =IFERROR(CHOOSE($I$46, 'PE Analysis'!H167,'PE Analysis'!H220,'PE Analysis'!H247, 'PE Analysis'!U23, 'PE Analysis'!H52, 'PE Analysis'!U52, 'PE Analysis'!H79, 'PE Analysis'!U79, 'PE Analysis'!H193, 'Data Extract Balance Sheet'!P278, 'Data Extract Balance Sheet'!P308), FALSE) -> 19.84758934 | K26: =IFERROR(CHOOSE($I$46, 'PE Analysis'!I167,'PE Analysis'!I220,'PE Analysis'!I247, 'PE Analysis'!V23, 'PE Analysis'!I52, 'PE Analysis'!V52, 'PE Analysis'!I79, 'PE Analysis'!V79, 'PE Analysis'!I193, 'Data Extract Balance Sheet'!Q278, 'Data Extract Balance Sheet'!Q308), FALSE) -> 19.95999414 | L26: =IFERROR(CHOOSE($I$46, 'PE Analysis'!J167,'PE Analysis'!J220,'PE Analysis'!J247, 'PE Analysis'!W23, 'PE Analysis'!J52, 'PE Analysis'!W52, 'PE Analysis'!J79, 'PE Analysis'!W79, 'PE Analysis'!J193, 'Data Extract Balance Sheet'!R278, 'Data Extract Balance Sheet'!R308), FALSE) -> 20.12 | M26: =IFERROR(CHOOSE($I$46, 'PE Analysis'!K167,'PE Analysis'!K220,'PE Analysis'!K247, 'PE Analysis'!X23, 'PE Analysis'!K52, 'PE Analysis'!X52, 'PE Analysis'!K79, 'PE Analysis'!X79, 'PE Analysis'!K193, 'Data Extract Balance Sheet'!S278, 'Data Extract Balance Sheet'!S308), FALSE) -> 0 | N26: =IFERROR(CHOOSE($I$46, 'PE Analysis'!L167,'PE Analysis'!L220,'PE Analysis'!L247, 'PE Analysis'!Y23, 'PE Analysis'!L52, 'PE Analysis'!Y52, 'PE Analysis'!L79, 'PE Analysis'!Y79, 'PE Analysis'!L193, 'Data Extract Balance Sheet'!T278, 'Data Extract Balance Sheet'!T308), FALSE) -> 20.12 | O26: TRUE | P26: 18 | R26: 13 | S26: 21 | T26: Castle Brands Inc (USD) | V26: -0.04927777778 | W26: -0.03557291667 | X26: -0.23925 | Y26: -0.5767916667 | Z26: -1.39825 | AA26: 57 | AB26: 68.77291667 | AC26: 57 | AD26: 0 | AE26: 57
C27: ='Data Cost of Capital'!D30 -> Coca Cola Botteling | E27: =IFERROR(CHOOSE($I$46, 'PE Analysis'!C168,'PE Analysis'!C221,'PE Analysis'!C248, 'PE Analysis'!P24, 'PE Analysis'!C53, 'PE Analysis'!P53, 'PE Analysis'!C80, 'PE Analysis'!P80, 'PE Analysis'!C194, 'Data Extract Balance Sheet'!K279, 'Data Extract Balance Sheet'!K309), FALSE) -> 21.24 | F27: =IFERROR(CHOOSE($I$46, 'PE Analysis'!D168,'PE Analysis'!D221,'PE Analysis'!D248, 'PE Analysis'!Q24, 'PE Analysis'!D53, 'PE Analysis'!Q53, 'PE Analysis'!D80, 'PE Analysis'!Q80, 'PE Analysis'!D194, 'Data Extract Balance Sheet'!L279, 'Data Extract Balance Sheet'!L309), FALSE) -> 21.72488809 | G27: =IFERROR(CHOOSE($I$46, 'PE Analysis'!E168,'PE Analysis'!E221,'PE Analysis'!E248, 'PE Analysis'!R24, 'PE Analysis'!E53, 'PE Analysis'!R53, 'PE Analysis'!E80, 'PE Analysis'!R80, 'PE Analysis'!E194, 'Data Extract Balance Sheet'!M279, 'Data Extract Balance Sheet'!M309), FALSE) -> 18.89483189 | H27: =IFERROR(CHOOSE($I$46, 'PE Analysis'!F168,'PE Analysis'!F221,'PE Analysis'!F248, 'PE Analysis'!S24, 'PE Analysis'!F53, 'PE Analysis'!S53, 'PE Analysis'!F80, 'PE Analysis'!S80, 'PE Analysis'!F194, 'Data Extract Balance Sheet'!N279, 'Data Extract Balance Sheet'!N309), FALSE) -> 12.48903611 | I27: =IFERROR(CHOOSE($I$46, 'PE Analysis'!G168,'PE Analysis'!G221,'PE Analysis'!G248, 'PE Analysis'!T24, 'PE Analysis'!G53, 'PE Analysis'!T53, 'PE Analysis'!G80, 'PE Analysis'!T80, 'PE Analysis'!G194, 'Data Extract Balance Sheet'!O279, 'Data Extract Balance Sheet'!O309), FALSE) -> 27.23795867 | J27: =IFERROR(CHOOSE($I$46, 'PE Analysis'!H168,'PE Analysis'!H221,'PE Analysis'!H248, 'PE Analysis'!U24, 'PE Analysis'!H53, 'PE Analysis'!U53, 'PE Analysis'!H80, 'PE Analysis'!U80, 'PE Analysis'!H194, 'Data Extract Balance Sheet'!P279, 'Data Extract Balance Sheet'!P309), FALSE) -> 20.59221709 | K27: =IFERROR(CHOOSE($I$46, 'PE Analysis'!I168,'PE Analysis'!I221,'PE Analysis'!I248, 'PE Analysis'!V24, 'PE Analysis'!I53, 'PE Analysis'!V53, 'PE Analysis'!I80, 'PE Analysis'!V80, 'PE Analysis'!I194, 'Data Extract Balance Sheet'!Q279, 'Data Extract Balance Sheet'!Q309), FALSE) -> 23.5377973 | L27: =IFERROR(CHOOSE($I$46, 'PE Analysis'!J168,'PE Analysis'!J221,'PE Analysis'!J248, 'PE Analysis'!W24, 'PE Analysis'!J53, 'PE Analysis'!W53, 'PE Analysis'!J80, 'PE Analysis'!W80, 'PE Analysis'!J194, 'Data Extract Balance Sheet'!R279, 'Data Extract Balance Sheet'!R309), FALSE) -> 21.24 | M27: =IFERROR(CHOOSE($I$46, 'PE Analysis'!K168,'PE Analysis'!K221,'PE Analysis'!K248, 'PE Analysis'!X24, 'PE Analysis'!K53, 'PE Analysis'!X53, 'PE Analysis'!K80, 'PE Analysis'!X80, 'PE Analysis'!K194, 'Data Extract Balance Sheet'!S279, 'Data Extract Balance Sheet'!S309), FALSE) -> 0 | N27: =IFERROR(CHOOSE($I$46, 'PE Analysis'!L168,'PE Analysis'!L221,'PE Analysis'!L248, 'PE Analysis'!Y24, 'PE Analysis'!L53, 'PE Analysis'!Y53, 'PE Analysis'!L80, 'PE Analysis'!Y80, 'PE Analysis'!L194, 'Data Extract Balance Sheet'!T279, 'Data Extract Balance Sheet'!T309), FALSE) -> 21.24 | O27: TRUE | P27: 19 | R27: 14 | S27: 22 | T27: Pernod Ricard SA (USD,EUR) | V27: 15.07978226 | W27: 21.46118249 | X27: 28.04770383 | Y27: 18.71112905 | Z27: 19.96582543 | AA27: FALSE | AB27: FALSE | AC27: FALSE | AD27: 0 | AE27: FALSE
C28: ='Data Cost of Capital'!D31 -> Dr Pepper | E28: =IFERROR(CHOOSE($I$46, 'PE Analysis'!C169,'PE Analysis'!C222,'PE Analysis'!C249, 'PE Analysis'!P25, 'PE Analysis'!C54, 'PE Analysis'!P54, 'PE Analysis'!C81, 'PE Analysis'!P81, 'PE Analysis'!C195, 'Data Extract Balance Sheet'!K280, 'Data Extract Balance Sheet'!K310), FALSE) -> 12.89724098 | F28: =IFERROR(CHOOSE($I$46, 'PE Analysis'!D169,'PE Analysis'!D222,'PE Analysis'!D249, 'PE Analysis'!Q25, 'PE Analysis'!D54, 'PE Analysis'!Q54, 'PE Analysis'!D81, 'PE Analysis'!Q81, 'PE Analysis'!D195, 'Data Extract Balance Sheet'!L280, 'Data Extract Balance Sheet'!L310), FALSE) -> 13.81915287 | G28: =IFERROR(CHOOSE($I$46, 'PE Analysis'!E169,'PE Analysis'!E222,'PE Analysis'!E249, 'PE Analysis'!R25, 'PE Analysis'!E54, 'PE Analysis'!R54, 'PE Analysis'!E81, 'PE Analysis'!R81, 'PE Analysis'!E195, 'Data Extract Balance Sheet'!M280, 'Data Extract Balance Sheet'!M310), FALSE) -> 13.01983845 | H28: =IFERROR(CHOOSE($I$46, 'PE Analysis'!F169,'PE Analysis'!F222,'PE Analysis'!F249, 'PE Analysis'!S25, 'PE Analysis'!F54, 'PE Analysis'!S54, 'PE Analysis'!F81, 'PE Analysis'!S81, 'PE Analysis'!F195, 'Data Extract Balance Sheet'!N280, 'Data Extract Balance Sheet'!N310), FALSE) -> 15.00006307 | I28: =IFERROR(CHOOSE($I$46, 'PE Analysis'!G169,'PE Analysis'!G222,'PE Analysis'!G249, 'PE Analysis'!T25, 'PE Analysis'!G54, 'PE Analysis'!T54, 'PE Analysis'!G81, 'PE Analysis'!T81, 'PE Analysis'!G195, 'Data Extract Balance Sheet'!O280, 'Data Extract Balance Sheet'!O310), FALSE) -> 17.7067272 | J28: =IFERROR(CHOOSE($I$46, 'PE Analysis'!H169,'PE Analysis'!H222,'PE Analysis'!H249, 'PE Analysis'!U25, 'PE Analysis'!H54, 'PE Analysis'!U54, 'PE Analysis'!H81, 'PE Analysis'!U81, 'PE Analysis'!H195, 'Data Extract Balance Sheet'!P280, 'Data Extract Balance Sheet'!P310), FALSE) -> 20.2283444 | K28: =IFERROR(CHOOSE($I$46, 'PE Analysis'!I169,'PE Analysis'!I222,'PE Analysis'!I249, 'PE Analysis'!V25, 'PE Analysis'!I54, 'PE Analysis'!V54, 'PE Analysis'!I81, 'PE Analysis'!V81, 'PE Analysis'!I195, 'Data Extract Balance Sheet'!Q280, 'Data Extract Balance Sheet'!Q310), FALSE) -> 17.74287324 | L28: =IFERROR(CHOOSE($I$46, 'PE Analysis'!J169,'PE Analysis'!J222,'PE Analysis'!J249, 'PE Analysis'!W25, 'PE Analysis'!J54, 'PE Analysis'!W54, 'PE Analysis'!J81, 'PE Analysis'!W81, 'PE Analysis'!J195, 'Data Extract Balance Sheet'!R280, 'Data Extract Balance Sheet'!R310), FALSE) -> 22.16 | M28: =IFERROR(CHOOSE($I$46, 'PE Analysis'!K169,'PE Analysis'!K222,'PE Analysis'!K249, 'PE Analysis'!X25, 'PE Analysis'!K54, 'PE Analysis'!X54, 'PE Analysis'!K81, 'PE Analysis'!X81, 'PE Analysis'!K195, 'Data Extract Balance Sheet'!S280, 'Data Extract Balance Sheet'!S310), FALSE) -> 0 | N28: =IFERROR(CHOOSE($I$46, 'PE Analysis'!L169,'PE Analysis'!L222,'PE Analysis'!L249, 'PE Analysis'!Y25, 'PE Analysis'!L54, 'PE Analysis'!Y54, 'PE Analysis'!L81, 'PE Analysis'!Y81, 'PE Analysis'!L195, 'Data Extract Balance Sheet'!T280, 'Data Extract Balance Sheet'!T310), FALSE) -> 22.16 | O28: TRUE | P28: 20 | R28: 15 | S28: 23 | T28: Thai Beverage PLC (USD,THB) | V28: 9.127083333 | W28: 11.54930556 | X28: 13.87291667 | Y28: 21.43194444 | Z28: 12.04652778 | AA28: 17.08708333 | AB28: 18.36416667 | AC28: FALSE | AD28: 0 | AE28: FALSE
C29: ='Data Cost of Capital'!D32 -> Ebay | E29: =IFERROR(CHOOSE($I$46, 'PE Analysis'!C170,'PE Analysis'!C223,'PE Analysis'!C250, 'PE Analysis'!P26, 'PE Analysis'!C55, 'PE Analysis'!P55, 'PE Analysis'!C82, 'PE Analysis'!P82, 'PE Analysis'!C196, 'Data Extract Balance Sheet'!K281, 'Data Extract Balance Sheet'!K311), FALSE) -> 19.33 | F29: =IFERROR(CHOOSE($I$46, 'PE Analysis'!D170,'PE Analysis'!D223,'PE Analysis'!D250, 'PE Analysis'!Q26, 'PE Analysis'!D55, 'PE Analysis'!Q55, 'PE Analysis'!D82, 'PE Analysis'!Q82, 'PE Analysis'!D196, 'Data Extract Balance Sheet'!L281, 'Data Extract Balance Sheet'!L311), FALSE) -> 0 | G29: =IFERROR(CHOOSE($I$46, 'PE Analysis'!E170,'PE Analysis'!E223,'PE Analysis'!E250, 'PE Analysis'!R26, 'PE Analysis'!E55, 'PE Analysis'!R55, 'PE Analysis'!E82, 'PE Analysis'!R82, 'PE Analysis'!E196, 'Data Extract Balance Sheet'!M281, 'Data Extract Balance Sheet'!M311), FALSE) -> 0 | H29: =IFERROR(CHOOSE($I$46, 'PE Analysis'!F170,'PE Analysis'!F223,'PE Analysis'!F250, 'PE Analysis'!S26, 'PE Analysis'!F55, 'PE Analysis'!S55, 'PE Analysis'!F82, 'PE Analysis'!S82, 'PE Analysis'!F196, 'Data Extract Balance Sheet'!N281, 'Data Extract Balance Sheet'!N311), FALSE) -> 0 | I29: =IFERROR(CHOOSE($I$46, 'PE Analysis'!G170,'PE Analysis'!G223,'PE Analysis'!G250, 'PE Analysis'!T26, 'PE Analysis'!G55, 'PE Analysis'!T55, 'PE Analysis'!G82, 'PE Analysis'!T82, 'PE Analysis'!G196, 'Data Extract Balance Sheet'!O281, 'Data Extract Balance Sheet'!O311), FALSE) -> 0 | J29: =IFERROR(CHOOSE($I$46, 'PE Analysis'!H170,'PE Analysis'!H223,'PE Analysis'!H250, 'PE Analysis'!U26, 'PE Analysis'!H55, 'PE Analysis'!U55, 'PE Analysis'!H82, 'PE Analysis'!U82, 'PE Analysis'!H196, 'Data Extract Balance Sheet'!P281, 'Data Extract Balance Sheet'!P311), FALSE) -> 0 | K29: =IFERROR(CHOOSE($I$46, 'PE Analysis'!I170,'PE Analysis'!I223,'PE Analysis'!I250, 'PE Analysis'!V26, 'PE Analysis'!I55, 'PE Analysis'!V55, 'PE Analysis'!I82, 'PE Analysis'!V82, 'PE Analysis'!I196, 'Data Extract Balance Sheet'!Q281, 'Data Extract Balance Sheet'!Q311), FALSE) -> 0 | L29: =IFERROR(CHOOSE($I$46, 'PE Analysis'!J170,'PE Analysis'!J223,'PE Analysis'!J250, 'PE Analysis'!W26, 'PE Analysis'!J55, 'PE Analysis'!W55, 'PE Analysis'!J82, 'PE Analysis'!W82, 'PE Analysis'!J196, 'Data Extract Balance Sheet'!R281, 'Data Extract Balance Sheet'!R311), FALSE) -> 0 | M29: =IFERROR(CHOOSE($I$46, 'PE Analysis'!K170,'PE Analysis'!K223,'PE Analysis'!K250, 'PE Analysis'!X26, 'PE Analysis'!K55, 'PE Analysis'!X55, 'PE Analysis'!K82, 'PE Analysis'!X82, 'PE Analysis'!K196, 'Data Extract Balance Sheet'!S281, 'Data Extract Balance Sheet'!S311), FALSE) -> 0 | N29: =IFERROR(CHOOSE($I$46, 'PE Analysis'!L170,'PE Analysis'!L223,'PE Analysis'!L250, 'PE Analysis'!Y26, 'PE Analysis'!L55, 'PE Analysis'!Y55, 'PE Analysis'!L82, 'PE Analysis'!Y82, 'PE Analysis'!L196, 'Data Extract Balance Sheet'!T281, 'Data Extract Balance Sheet'!T311), FALSE) -> FALSE | O29: FALSE | P29: 20 | R29: 16 | S29: 24 | T29: Brown-Forman Corp (USD) | V29: 12.74142563 | W29: 14.30670065 | X29: 16.34011391 | Y29: 12.61938604 | Z29: 22.72511047 | AA29: 29.19 | AB29: 29.19 | AC29: 29.19 | AD29: 0 | AE29: 29.19
C30: ='Data Cost of Capital'!D33 -> 0 | E30: =IFERROR(CHOOSE($I$46, 'PE Analysis'!C171,'PE Analysis'!C224,'PE Analysis'!C251, 'PE Analysis'!P27, 'PE Analysis'!C56, 'PE Analysis'!P56, 'PE Analysis'!C83, 'PE Analysis'!P83, 'PE Analysis'!C197, 'Data Extract Balance Sheet'!K282, 'Data Extract Balance Sheet'!K312), FALSE) -> 19.33 | F30: =IFERROR(CHOOSE($I$46, 'PE Analysis'!D171,'PE Analysis'!D224,'PE Analysis'!D251, 'PE Analysis'!Q27, 'PE Analysis'!D56, 'PE Analysis'!Q56, 'PE Analysis'!D83, 'PE Analysis'!Q83, 'PE Analysis'!D197, 'Data Extract Balance Sheet'!L282, 'Data Extract Balance Sheet'!L312), FALSE) -> 0 | G30: =IFERROR(CHOOSE($I$46, 'PE Analysis'!E171,'PE Analysis'!E224,'PE Analysis'!E251, 'PE Analysis'!R27, 'PE Analysis'!E56, 'PE Analysis'!R56, 'PE Analysis'!E83, 'PE Analysis'!R83, 'PE Analysis'!E197, 'Data Extract Balance Sheet'!M282, 'Data Extract Balance Sheet'!M312), FALSE) -> 0 | H30: =IFERROR(CHOOSE($I$46, 'PE Analysis'!F171,'PE Analysis'!F224,'PE Analysis'!F251, 'PE Analysis'!S27, 'PE Analysis'!F56, 'PE Analysis'!S56, 'PE Analysis'!F83, 'PE Analysis'!S83, 'PE Analysis'!F197, 'Data Extract Balance Sheet'!N282, 'Data Extract Balance Sheet'!N312), FALSE) -> 0 | I30: =IFERROR(CHOOSE($I$46, 'PE Analysis'!G171,'PE Analysis'!G224,'PE Analysis'!G251, 'PE Analysis'!T27, 'PE Analysis'!G56, 'PE Analysis'!T56, 'PE Analysis'!G83, 'PE Analysis'!T83, 'PE Analysis'!G197, 'Data Extract Balance Sheet'!O282, 'Data Extract Balance Sheet'!O312), FALSE) -> 0 | J30: =IFERROR(CHOOSE($I$46, 'PE Analysis'!H171,'PE Analysis'!H224,'PE Analysis'!H251, 'PE Analysis'!U27, 'PE Analysis'!H56, 'PE Analysis'!U56, 'PE Analysis'!H83, 'PE Analysis'!U83, 'PE Analysis'!H197, 'Data Extract Balance Sheet'!P282, 'Data Extract Balance Sheet'!P312), FALSE) -> 0 | K30: =IFERROR(CHOOSE($I$46, 'PE Analysis'!I171,'PE Analysis'!I224,'PE Analysis'!I251, 'PE Analysis'!V27, 'PE Analysis'!I56, 'PE Analysis'!V56, 'PE Analysis'!I83, 'PE Analysis'!V83, 'PE Analysis'!I197, 'Data Extract Balance Sheet'!Q282, 'Data Extract Balance Sheet'!Q312), FALSE) -> 0 | L30: =IFERROR(CHOOSE($I$46, 'PE Analysis'!J171,'PE Analysis'!J224,'PE Analysis'!J251, 'PE Analysis'!W27, 'PE Analysis'!J56, 'PE Analysis'!W56, 'PE Analysis'!J83, 'PE Analysis'!W83, 'PE Analysis'!J197, 'Data Extract Balance Sheet'!R282, 'Data Extract Balance Sheet'!R312), FALSE) -> 0 | M30: =IFERROR(CHOOSE($I$46, 'PE Analysis'!K171,'PE Analysis'!K224,'PE Analysis'!K251, 'PE Analysis'!X27, 'PE Analysis'!K56, 'PE Analysis'!X56, 'PE Analysis'!K83, 'PE Analysis'!X83, 'PE Analysis'!K197, 'Data Extract Balance Sheet'!S282, 'Data Extract Balance Sheet'!S312), FALSE) -> 0 | N30: =IFERROR(CHOOSE($I$46, 'PE Analysis'!L171,'PE Analysis'!L224,'PE Analysis'!L251, 'PE Analysis'!Y27, 'PE Analysis'!L56, 'PE Analysis'!Y56, 'PE Analysis'!L83, 'PE Analysis'!Y83, 'PE Analysis'!L197, 'Data Extract Balance Sheet'!T282, 'Data Extract Balance Sheet'!T312), FALSE) -> FALSE | O30: FALSE | P30: 20 | R30: 17 | S30: 25 | T30: Treasury Wine Estates Ltd. | V30: 50.07728393 | W30: -29.23160444 | X30: 42.67070833 | Y30: 18.41356615 | Z30: 16.3402478 | AA30: FALSE | AB30: FALSE | AC30: FALSE | AD30: 0 | AE30: FALSE
P31: 20 | R31: 18 | S31: 26 | T31: Pepsi Co | V31: 16.63356728 | W31: 15.82249234 | X31: 18.85621575 | Y31: 24.20669843 | Z31: 22.21661889 | AA31: 19.84758934 | AB31: 19.95999414 | AC31: 20.12 | AD31: 0 | AE31: 20.12
R32: 19 | S32: 27 | T32: Coca Cola Botteling | V32: 21.24 | W32: 21.72488809 | X32: 18.89483189 | Y32: 12.48903611 | Z32: 27.23795867 | AA32: 20.59221709 | AB32: 23.5377973 | AC32: 21.24 | AD32: 0 | AE32: 21.24
R33: 20 | S33: 28 | T33: Dr Pepper | V33: 12.89724098 | W33: 13.81915287 | X33: 13.01983845 | Y33: 15.00006307 | Z33: 17.7067272 | AA33: 20.2283444 | AB33: 17.74287324 | AC33: 22.16 | AD33: 0 | AE33: 22.16
R34: 21
E35: 9 | R35: 22
R36: 23
R37: 24
I46: 6
E50: Single Value to Find Data
C51: EPS - Basic | E51: ='PE Analysis'!G149 -> -19.2 | F51: 1
C52: Earnings Growth | E52: ='PE Analysis'!C202 -> 0 | F52: 2 | G52: Earnings Growth
C53: Book Value Growth | E53: ='PE Analysis'!C229 -> 0 | F53: 3 | G53: Book Value Growth
C54: Trailing P/E - Average Stock Price | F54: 4
C55: Forward P/E - Ending Stock Price | E55: ='PE Analysis'!G34 -> 20.40391156 | F55: 5
C56: Forward P/E - Average Price | E56: ='PE Analysis'!T34 -> 19.33142006 | F56: 6
C57: Average Stock Price | F57: 7
C58: Ending Stock Price | F58: 8
C59: Book Value per Share | E59: ='Data Extract Balance Sheet'!P232 -> 333.0711242 | F59: 9
C60: Price to Book Ratio | F60: 10
C61: Return on Ending Equity | F61: 11
C64: =INDEX(C51:C61,I46) -> Forward P/E - Average Price

Sheet EBITDA Trend Analysis
G1: =E35 -> 12
A3: EV/EBITDA Analysis
T4: =B58 -> ROIC - Detailed Invested Capital
E5: =B58 -> ROIC - Detailed Invested Capital | P5: TRUE
P6: Counter | V6: =E7 -> 2011 | W6: 2012 | X6: 2013 | Y6: 2014 | Z6: 2015 | AA6: 2016 | AB6: 2017 | AC6: 2018 | AD6: 2019 | AE6: Current
B7: Raw Data Before Adjustments | E7: ='EV to EBITDA Analysis'!C6 -> 2011 | F7: ='EV to EBITDA Analysis'!D6 -> 2012 | G7: ='EV to EBITDA Analysis'!E6 -> 2013 | H7: ='EV to EBITDA Analysis'!F6 -> 2014 | I7: ='EV to EBITDA Analysis'!G6 -> 2015 | J7: ='EV to EBITDA Analysis'!H6 -> 2016 | K7: ='EV to EBITDA Analysis'!I6 -> 2017 | L7: ='EV to EBITDA Analysis'!J6 -> 2018 | M7: ='EV to EBITDA Analysis'!K6 -> 2019 | N7: ='EV to EBITDA Analysis'!L6 -> Current | O7: Include | P7: 0
C8: ='Data Cost of Capital'!D11 -> Carlesberg | E8: =CHOOSE($E$35,'EV to EBITDA Analysis'!C462,'EV to EBITDA Analysis'!P200,'EV to EBITDA Analysis'!C7,'EV to EBITDA Analysis'!C36,'EV to EBITDA Analysis'!P333,'EV to EBITDA Analysis'!P252,'EV to EBITDA Analysis'!P306,'EV to EBITDA Analysis'!P359,'EV to EBITDA Analysis'!C146,'EV to EBITDA Analysis'!P36,'EV to EBITDA Analysis'!P7,'EV to EBITDA Analysis'!P280,'EV to EBITDA Analysis'!C280,'EV to EBITDA Analysis'!C409,'EV to EBITDA Analysis'!P462,'EV to EBITDA Analysis'!P384,'EV to EBITDA Analysis'!P434,'EV to EBITDA Analysis'!P409,'EV to EBITDA Analysis'!C434) -> FALSE | F8: =CHOOSE($E$35,'EV to EBITDA Analysis'!D462,'EV to EBITDA Analysis'!Q200,'EV to EBITDA Analysis'!D7,'EV to EBITDA Analysis'!D36,'EV to EBITDA Analysis'!Q333,'EV to EBITDA Analysis'!Q252,'EV to EBITDA Analysis'!Q306,'EV to EBITDA Analysis'!Q359,'EV to EBITDA Analysis'!D146,'EV to EBITDA Analysis'!Q36,'EV to EBITDA Analysis'!Q7,'EV to EBITDA Analysis'!Q280,'EV to EBITDA Analysis'!D280,'EV to EBITDA Analysis'!D409,'EV to EBITDA Analysis'!Q462,'EV to EBITDA Analysis'!Q384,'EV to EBITDA Analysis'!Q434,'EV to EBITDA Analysis'!Q409,'EV to EBITDA Analysis'!D434) -> 0.06877925661 | G8: =CHOOSE($E$35,'EV to EBITDA Analysis'!E462,'EV to EBITDA Analysis'!R200,'EV to EBITDA Analysis'!E7,'EV to EBITDA Analysis'!E36,'EV to EBITDA Analysis'!R333,'EV to EBITDA Analysis'!R252,'EV to EBITDA Analysis'!R306,'EV to EBITDA Analysis'!R359,'EV to EBITDA Analysis'!E146,'EV to EBITDA Analysis'!R36,'EV to EBITDA Analysis'!R7,'EV to EBITDA Analysis'!R280,'EV to EBITDA Analysis'!E280,'EV to EBITDA Analysis'!E409,'EV to EBITDA Analysis'!R462,'EV to EBITDA Analysis'!R384,'EV to EBITDA Analysis'!R434,'EV to EBITDA Analysis'!R409,'EV to EBITDA Analysis'!E434) -> 0.06834354857 | H8: =CHOOSE($E$35,'EV to EBITDA Analysis'!F462,'EV to EBITDA Analysis'!S200,'EV to EBITDA Analysis'!F7,'EV to EBITDA Analysis'!F36,'EV to EBITDA Analysis'!S333,'EV to EBITDA Analysis'!S252,'EV to EBITDA Analysis'!S306,'EV to EBITDA Analysis'!S359,'EV to EBITDA Analysis'!F146,'EV to EBITDA Analysis'!S36,'EV to EBITDA Analysis'!S7,'EV to EBITDA Analysis'!S280,'EV to EBITDA Analysis'!F280,'EV to EBITDA Analysis'!F409,'EV to EBITDA Analysis'!S462,'EV to EBITDA Analysis'!S384,'EV to EBITDA Analysis'!S434,'EV to EBITDA Analysis'!S409,'EV to EBITDA Analysis'!F434) -> 0.06820156261 | I8: =CHOOSE($E$35,'EV to EBITDA Analysis'!G462,'EV to EBITDA Analysis'!T200,'EV to EBITDA Analysis'!G7,'EV to EBITDA Analysis'!G36,'EV to EBITDA Analysis'!T333,'EV to EBITDA Analysis'!T252,'EV to EBITDA Analysis'!T306,'EV to EBITDA Analysis'!T359,'EV to EBITDA Analysis'!G146,'EV to EBITDA Analysis'!T36,'EV to EBITDA Analysis'!T7,'EV to EBITDA Analysis'!T280,'EV to EBITDA Analysis'!G280,'EV to EBITDA Analysis'!G409,'EV to EBITDA Analysis'!T462,'EV to EBITDA Analysis'!T384,'EV to EBITDA Analysis'!T434,'EV to EBITDA Analysis'!T409,'EV to EBITDA Analysis'!G434) -> 0.1488309249 | J8: =CHOOSE($E$35,'EV to EBITDA Analysis'!H462,'EV to EBITDA Analysis'!U200,'EV to EBITDA Analysis'!H7,'EV to EBITDA Analysis'!H36,'EV to EBITDA Analysis'!U333,'EV to EBITDA Analysis'!U252,'EV to EBITDA Analysis'!U306,'EV to EBITDA Analysis'!U359,'EV to EBITDA Analysis'!H146,'EV to EBITDA Analysis'!U36,'EV to EBITDA Analysis'!U7,'EV to EBITDA Analysis'!U280,'EV to EBITDA Analysis'!H280,'EV to EBITDA Analysis'!H409,'EV to EBITDA Analysis'!U462,'EV to EBITDA Analysis'!U384,'EV to EBITDA Analysis'!U434,'EV to EBITDA Analysis'!U409,'EV to EBITDA Analysis'!H434) -> 0.06564080495 | K8: =CHOOSE($E$35,'EV to EBITDA Analysis'!I462,'EV to EBITDA Analysis'!V200,'EV to EBITDA Analysis'!I7,'EV to EBITDA Analysis'!I36,'EV to EBITDA Analysis'!V333,'EV to EBITDA Analysis'!V252,'EV to EBITDA Analysis'!V306,'EV to EBITDA Analysis'!V359,'EV to EBITDA Analysis'!I146,'EV to EBITDA Analysis'!V36,'EV to EBITDA Analysis'!V7,'EV to EBITDA Analysis'!V280,'EV to EBITDA Analysis'!I280,'EV to EBITDA Analysis'!I409,'EV to EBITDA Analysis'!V462,'EV to EBITDA Analysis'!V384,'EV to EBITDA Analysis'!V434,'EV to EBITDA Analysis'!V409,'EV to EBITDA Analysis'!I434) -> 0.06473477217 | L8: =CHOOSE($E$35,'EV to EBITDA Analysis'!J462,'EV to EBITDA Analysis'!W200,'EV to EBITDA Analysis'!J7,'EV to EBITDA Analysis'!J36,'EV to EBITDA Analysis'!W333,'EV to EBITDA Analysis'!W252,'EV to EBITDA Analysis'!W306,'EV to EBITDA Analysis'!W359,'EV to EBITDA Analysis'!J146,'EV to EBITDA Analysis'!W36,'EV to EBITDA Analysis'!W7,'EV to EBITDA Analysis'!W280,'EV to EBITDA Analysis'!J280,'EV to EBITDA Analysis'!J409,'EV to EBITDA Analysis'!W462,'EV to EBITDA Analysis'!W384,'EV to EBITDA Analysis'!W434,'EV to EBITDA Analysis'!W409,'EV to EBITDA Analysis'!J434) -> FALSE | M8: =CHOOSE($E$35,'EV to EBITDA Analysis'!K462,'EV to EBITDA Analysis'!X200,'EV to EBITDA Analysis'!K7,'EV to EBITDA Analysis'!K36,'EV to EBITDA Analysis'!X333,'EV to EBITDA Analysis'!X252,'EV to EBITDA Analysis'!X306,'EV to EBITDA Analysis'!X359,'EV to EBITDA Analysis'!K146,'EV to EBITDA Analysis'!X36,'EV to EBITDA Analysis'!X7,'EV to EBITDA Analysis'!X280,'EV to EBITDA Analysis'!K280,'EV to EBITDA Analysis'!K409,'EV to EBITDA Analysis'!X462,'EV to EBITDA Analysis'!X384,'EV to EBITDA Analysis'!X434,'EV to EBITDA Analysis'!X409,'EV to EBITDA Analysis'!K434) -> FALSE | N8: =CHOOSE($E$35,'EV to EBITDA Analysis'!L462,'EV to EBITDA Analysis'!Y200,'EV to EBITDA Analysis'!L7,'EV to EBITDA Analysis'!L36,'EV to EBITDA Analysis'!Y333,'EV to EBITDA Analysis'!Y252,'EV to EBITDA Analysis'!Y306,'EV to EBITDA Analysis'!Y359,'EV to EBITDA Analysis'!L146,'EV to EBITDA Analysis'!Y36,'EV to EBITDA Analysis'!Y7,'EV to EBITDA Analysis'!Y280,'EV to EBITDA Analysis'!L280,'EV to EBITDA Analysis'!L409,'EV to EBITDA Analysis'!Y462,'EV to EBITDA Analysis'!Y384,'EV to EBITDA Analysis'!Y434,'EV to EBITDA Analysis'!Y409,'EV to EBITDA Analysis'!L434) -> 0 | O8: TRUE | P8: =O8+P7 -> 1 | T8: Average | V8: =IFERROR(AVERAGE(V12:V34),"") ->  | W8: =IFERROR(AVERAGE(W12:W34),"") -> -528.4964691 | X8: -16.09777993 | Y8: 0.695704548 | Z8: 0.2377444244 | AA8: 0.1277782911 | AB8: 0.1264677975 | AE8: =IFERROR(AVERAGE(AE12:AE34),"") -> 0
C9: ='Data Cost of Capital'!D12 -> Diageo | E9: =CHOOSE($E$35,'EV to EBITDA Analysis'!C463,'EV to EBITDA Analysis'!P201,'EV to EBITDA Analysis'!C8,'EV to EBITDA Analysis'!C37,'EV to EBITDA Analysis'!P334,'EV to EBITDA Analysis'!P253,'EV to EBITDA Analysis'!P307,'EV to EBITDA Analysis'!P360,'EV to EBITDA Analysis'!C147,'EV to EBITDA Analysis'!P37,'EV to EBITDA Analysis'!P8,'EV to EBITDA Analysis'!P281,'EV to EBITDA Analysis'!C281,'EV to EBITDA Analysis'!C410,'EV to EBITDA Analysis'!P463,'EV to EBITDA Analysis'!P385,'EV to EBITDA Analysis'!P435,'EV to EBITDA Analysis'!P410,'EV to EBITDA Analysis'!C435) -> FALSE | F9: =CHOOSE($E$35,'EV to EBITDA Analysis'!D463,'EV to EBITDA Analysis'!Q201,'EV to EBITDA Analysis'!D8,'EV to EBITDA Analysis'!D37,'EV to EBITDA Analysis'!Q334,'EV to EBITDA Analysis'!Q253,'EV to EBITDA Analysis'!Q307,'EV to EBITDA Analysis'!Q360,'EV to EBITDA Analysis'!D147,'EV to EBITDA Analysis'!Q37,'EV to EBITDA Analysis'!Q8,'EV to EBITDA Analysis'!Q281,'EV to EBITDA Analysis'!D281,'EV to EBITDA Analysis'!D410,'EV to EBITDA Analysis'!Q463,'EV to EBITDA Analysis'!Q385,'EV to EBITDA Analysis'!Q435,'EV to EBITDA Analysis'!Q410,'EV to EBITDA Analysis'!D435) -> 0.1936343058 | G9: =CHOOSE($E$35,'EV to EBITDA Analysis'!E463,'EV to EBITDA Analysis'!R201,'EV to EBITDA Analysis'!E8,'EV to EBITDA Analysis'!E37,'EV to EBITDA Analysis'!R334,'EV to EBITDA Analysis'!R253,'EV to EBITDA Analysis'!R307,'EV to EBITDA Analysis'!R360,'EV to EBITDA Analysis'!E147,'EV to EBITDA Analysis'!R37,'EV to EBITDA Analysis'!R8,'EV to EBITDA Analysis'!R281,'EV to EBITDA Analysis'!E281,'EV to EBITDA Analysis'!E410,'EV to EBITDA Analysis'!R463,'EV to EBITDA Analysis'!R385,'EV to EBITDA Analysis'!R435,'EV to EBITDA Analysis'!R410,'EV to EBITDA Analysis'!E435) -> 0.1675736067 | H9: =CHOOSE($E$35,'EV to EBITDA Analysis'!F463,'EV to EBITDA Analysis'!S201,'EV to EBITDA Analysis'!F8,'EV to EBITDA Analysis'!F37,'EV to EBITDA Analysis'!S334,'EV to EBITDA Analysis'!S253,'EV to EBITDA Analysis'!S307,'EV to EBITDA Analysis'!S360,'EV to EBITDA Analysis'!F147,'EV to EBITDA Analysis'!S37,'EV to EBITDA Analysis'!S8,'EV to EBITDA Analysis'!S281,'EV to EBITDA Analysis'!F281,'EV to EBITDA Analysis'!F410,'EV to EBITDA Analysis'!S463,'EV to EBITDA Analysis'!S385,'EV to EBITDA Analysis'!S435,'EV to EBITDA Analysis'!S410,'EV to EBITDA Analysis'!F435) -> 0.1490829209 | I9: =CHOOSE($E$35,'EV to EBITDA Analysis'!G463,'EV to EBITDA Analysis'!T201,'EV to EBITDA Analysis'!G8,'EV to EBITDA Analysis'!G37,'EV to EBITDA Analysis'!T334,'EV to EBITDA Analysis'!T253,'EV to EBITDA Analysis'!T307,'EV to EBITDA Analysis'!T360,'EV to EBITDA Analysis'!G147,'EV to EBITDA Analysis'!T37,'EV to EBITDA Analysis'!T8,'EV to EBITDA Analysis'!T281,'EV to EBITDA Analysis'!G281,'EV to EBITDA Analysis'!G410,'EV to EBITDA Analysis'!T463,'EV to EBITDA Analysis'!T385,'EV to EBITDA Analysis'!T435,'EV to EBITDA Analysis'!T410,'EV to EBITDA Analysis'!G435) -> 0.1411105283 | J9: =CHOOSE($E$35,'EV to EBITDA Analysis'!H463,'EV to EBITDA Analysis'!U201,'EV to EBITDA Analysis'!H8,'EV to EBITDA Analysis'!H37,'EV to EBITDA Analysis'!U334,'EV to EBITDA Analysis'!U253,'EV to EBITDA Analysis'!U307,'EV to EBITDA Analysis'!U360,'EV to EBITDA Analysis'!H147,'EV to EBITDA Analysis'!U37,'EV to EBITDA Analysis'!U8,'EV to EBITDA Analysis'!U281,'EV to EBITDA Analysis'!H281,'EV to EBITDA Analysis'!H410,'EV to EBITDA Analysis'!U463,'EV to EBITDA Analysis'!U385,'EV to EBITDA Analysis'!U435,'EV to EBITDA Analysis'!U410,'EV to EBITDA Analysis'!H435) -> 0.1537871552 | K9: =CHOOSE($E$35,'EV to EBITDA Analysis'!I463,'EV to EBITDA Analysis'!V201,'EV to EBITDA Analysis'!I8,'EV to EBITDA Analysis'!I37,'EV to EBITDA Analysis'!V334,'EV to EBITDA Analysis'!V253,'EV to EBITDA Analysis'!V307,'EV to EBITDA Analysis'!V360,'EV to EBITDA Analysis'!I147,'EV to EBITDA Analysis'!V37,'EV to EBITDA Analysis'!V8,'EV to EBITDA Analysis'!V281,'EV to EBITDA Analysis'!I281,'EV to EBITDA Analysis'!I410,'EV to EBITDA Analysis'!V463,'EV to EBITDA Analysis'!V385,'EV to EBITDA Analysis'!V435,'EV to EBITDA Analysis'!V410,'EV to EBITDA Analysis'!I435) -> 0.1532486907 | L9: =CHOOSE($E$35,'EV to EBITDA Analysis'!J463,'EV to EBITDA Analysis'!W201,'EV to EBITDA Analysis'!J8,'EV to EBITDA Analysis'!J37,'EV to EBITDA Analysis'!W334,'EV to EBITDA Analysis'!W253,'EV to EBITDA Analysis'!W307,'EV to EBITDA Analysis'!W360,'EV to EBITDA Analysis'!J147,'EV to EBITDA Analysis'!W37,'EV to EBITDA Analysis'!W8,'EV to EBITDA Analysis'!W281,'EV to EBITDA Analysis'!J281,'EV to EBITDA Analysis'!J410,'EV to EBITDA Analysis'!W463,'EV to EBITDA Analysis'!W385,'EV to EBITDA Analysis'!W435,'EV to EBITDA Analysis'!W410,'EV to EBITDA Analysis'!J435) -> FALSE | M9: =CHOOSE($E$35,'EV to EBITDA Analysis'!K463,'EV to EBITDA Analysis'!X201,'EV to EBITDA Analysis'!K8,'EV to EBITDA Analysis'!K37,'EV to EBITDA Analysis'!X334,'EV to EBITDA Analysis'!X253,'EV to EBITDA Analysis'!X307,'EV to EBITDA Analysis'!X360,'EV to EBITDA Analysis'!K147,'EV to EBITDA Analysis'!X37,'EV to EBITDA Analysis'!X8,'EV to EBITDA Analysis'!X281,'EV to EBITDA Analysis'!K281,'EV to EBITDA Analysis'!K410,'EV to EBITDA Analysis'!X463,'EV to EBITDA Analysis'!X385,'EV to EBITDA Analysis'!X435,'EV to EBITDA Analysis'!X410,'EV to EBITDA Analysis'!K435) -> FALSE | N9: =CHOOSE($E$35,'EV to EBITDA Analysis'!L463,'EV to EBITDA Analysis'!Y201,'EV to EBITDA Analysis'!L8,'EV to EBITDA Analysis'!L37,'EV to EBITDA Analysis'!Y334,'EV to EBITDA Analysis'!Y253,'EV to EBITDA Analysis'!Y307,'EV to EBITDA Analysis'!Y360,'EV to EBITDA Analysis'!L147,'EV to EBITDA Analysis'!Y37,'EV to EBITDA Analysis'!Y8,'EV to EBITDA Analysis'!Y281,'EV to EBITDA Analysis'!L281,'EV to EBITDA Analysis'!L410,'EV to EBITDA Analysis'!Y463,'EV to EBITDA Analysis'!Y385,'EV to EBITDA Analysis'!Y435,'EV to EBITDA Analysis'!Y410,'EV to EBITDA Analysis'!L435) -> 0 | O9: TRUE | P9: =O9+P8 -> 2 | T9: Median | V9: =IFERROR(MEDIAN(V12:V34),"") ->  | W9: =IFERROR(MEDIAN(W12:W34),"") -> 0.09925948447 | X9: 0.08676410866 | Y9: 0.1227616927 | Z9: 0.09255662266 | AA9: 0.09634754945 | AB9: 0.09634754945 | AE9: =IFERROR(MEDIAN(AE12:AE33),"") -> 0
C10: ='Data Cost of Capital'!D13 -> Ambev SA (USD,BRL) | E10: =CHOOSE($E$35,'EV to EBITDA Analysis'!C464,'EV to EBITDA Analysis'!P202,'EV to EBITDA Analysis'!C9,'EV to EBITDA Analysis'!C38,'EV to EBITDA Analysis'!P335,'EV to EBITDA Analysis'!P254,'EV to EBITDA Analysis'!P308,'EV to EBITDA Analysis'!P361,'EV to EBITDA Analysis'!C148,'EV to EBITDA Analysis'!P38,'EV to EBITDA Analysis'!P9,'EV to EBITDA Analysis'!P282,'EV to EBITDA Analysis'!C282,'EV to EBITDA Analysis'!C411,'EV to EBITDA Analysis'!P464,'EV to EBITDA Analysis'!P386,'EV to EBITDA Analysis'!P436,'EV to EBITDA Analysis'!P411,'EV to EBITDA Analysis'!C436) -> FALSE | F10: =CHOOSE($E$35,'EV to EBITDA Analysis'!D464,'EV to EBITDA Analysis'!Q202,'EV to EBITDA Analysis'!D9,'EV to EBITDA Analysis'!D38,'EV to EBITDA Analysis'!Q335,'EV to EBITDA Analysis'!Q254,'EV to EBITDA Analysis'!Q308,'EV to EBITDA Analysis'!Q361,'EV to EBITDA Analysis'!D148,'EV to EBITDA Analysis'!Q38,'EV to EBITDA Analysis'!Q9,'EV to EBITDA Analysis'!Q282,'EV to EBITDA Analysis'!D282,'EV to EBITDA Analysis'!D411,'EV to EBITDA Analysis'!Q464,'EV to EBITDA Analysis'!Q386,'EV to EBITDA Analysis'!Q436,'EV to EBITDA Analysis'!Q411,'EV to EBITDA Analysis'!D436) -> 0.6198905896 | G10: =CHOOSE($E$35,'EV to EBITDA Analysis'!E464,'EV to EBITDA Analysis'!R202,'EV to EBITDA Analysis'!E9,'EV to EBITDA Analysis'!E38,'EV to EBITDA Analysis'!R335,'EV to EBITDA Analysis'!R254,'EV to EBITDA Analysis'!R308,'EV to EBITDA Analysis'!R361,'EV to EBITDA Analysis'!E148,'EV to EBITDA Analysis'!R38,'EV to EBITDA Analysis'!R9,'EV to EBITDA Analysis'!R282,'EV to EBITDA Analysis'!E282,'EV to EBITDA Analysis'!E411,'EV to EBITDA Analysis'!R464,'EV to EBITDA Analysis'!R386,'EV to EBITDA Analysis'!R436,'EV to EBITDA Analysis'!R411,'EV to EBITDA Analysis'!E436) -> 0.3536268689 | H10: =CHOOSE($E$35,'EV to EBITDA Analysis'!F464,'EV to EBITDA Analysis'!S202,'EV to EBITDA Analysis'!F9,'EV to EBITDA Analysis'!F38,'EV to EBITDA Analysis'!S335,'EV to EBITDA Analysis'!S254,'EV to EBITDA Analysis'!S308,'EV to EBITDA Analysis'!S361,'EV to EBITDA Analysis'!F148,'EV to EBITDA Analysis'!S38,'EV to EBITDA Analysis'!S9,'EV to EBITDA Analysis'!S282,'EV to EBITDA Analysis'!F282,'EV to EBITDA Analysis'!F411,'EV to EBITDA Analysis'!S464,'EV to EBITDA Analysis'!S386,'EV to EBITDA Analysis'!S436,'EV to EBITDA Analysis'!S411,'EV to EBITDA Analysis'!F436) -> 0.3958236602 | I10: =CHOOSE($E$35,'EV to EBITDA Analysis'!G464,'EV to EBITDA Analysis'!T202,'EV to EBITDA Analysis'!G9,'EV to EBITDA Analysis'!G38,'EV to EBITDA Analysis'!T335,'EV to EBITDA Analysis'!T254,'EV to EBITDA Analysis'!T308,'EV to EBITDA Analysis'!T361,'EV to EBITDA Analysis'!G148,'EV to EBITDA Analysis'!T38,'EV to EBITDA Analysis'!T9,'EV to EBITDA Analysis'!T282,'EV to EBITDA Analysis'!G282,'EV to EBITDA Analysis'!G411,'EV to EBITDA Analysis'!T464,'EV to EBITDA Analysis'!T386,'EV to EBITDA Analysis'!T436,'EV to EBITDA Analysis'!T411,'EV to EBITDA Analysis'!G436) -> 0.4025581859 | J10: =CHOOSE($E$35,'EV to EBITDA Analysis'!H464,'EV to EBITDA Analysis'!U202,'EV to EBITDA Analysis'!H9,'EV to EBITDA Analysis'!H38,'EV to EBITDA Analysis'!U335,'EV to EBITDA Analysis'!U254,'EV to EBITDA Analysis'!U308,'EV to EBITDA Analysis'!U361,'EV to EBITDA Analysis'!H148,'EV to EBITDA Analysis'!U38,'EV to EBITDA Analysis'!U9,'EV to EBITDA Analysis'!U282,'EV to EBITDA Analysis'!H282,'EV to EBITDA Analysis'!H411,'EV to EBITDA Analysis'!U464,'EV to EBITDA Analysis'!U386,'EV to EBITDA Analysis'!U436,'EV to EBITDA Analysis'!U411,'EV to EBITDA Analysis'!H436) -> 0.3854319451 | K10: =CHOOSE($E$35,'EV to EBITDA Analysis'!I464,'EV to EBITDA Analysis'!V202,'EV to EBITDA Analysis'!I9,'EV to EBITDA Analysis'!I38,'EV to EBITDA Analysis'!V335,'EV to EBITDA Analysis'!V254,'EV to EBITDA Analysis'!V308,'EV to EBITDA Analysis'!V361,'EV to EBITDA Analysis'!I148,'EV to EBITDA Analysis'!V38,'EV to EBITDA Analysis'!V9,'EV to EBITDA Analysis'!V282,'EV to EBITDA Analysis'!I282,'EV to EBITDA Analysis'!I411,'EV to EBITDA Analysis'!V464,'EV to EBITDA Analysis'!V386,'EV to EBITDA Analysis'!V436,'EV to EBITDA Analysis'!V411,'EV to EBITDA Analysis'!I436) -> 0.3769538946 | L10: =CHOOSE($E$35,'EV to EBITDA Analysis'!J464,'EV to EBITDA Analysis'!W202,'EV to EBITDA Analysis'!J9,'EV to EBITDA Analysis'!J38,'EV to EBITDA Analysis'!W335,'EV to EBITDA Analysis'!W254,'EV to EBITDA Analysis'!W308,'EV to EBITDA Analysis'!W361,'EV to EBITDA Analysis'!J148,'EV to EBITDA Analysis'!W38,'EV to EBITDA Analysis'!W9,'EV to EBITDA Analysis'!W282,'EV to EBITDA Analysis'!J282,'EV to EBITDA Analysis'!J411,'EV to EBITDA Analysis'!W464,'EV to EBITDA Analysis'!W386,'EV to EBITDA Analysis'!W436,'EV to EBITDA Analysis'!W411,'EV to EBITDA Analysis'!J436) -> FALSE | M10: =CHOOSE($E$35,'EV to EBITDA Analysis'!K464,'EV to EBITDA Analysis'!X202,'EV to EBITDA Analysis'!K9,'EV to EBITDA Analysis'!K38,'EV to EBITDA Analysis'!X335,'EV to EBITDA Analysis'!X254,'EV to EBITDA Analysis'!X308,'EV to EBITDA Analysis'!X361,'EV to EBITDA Analysis'!K148,'EV to EBITDA Analysis'!X38,'EV to EBITDA Analysis'!X9,'EV to EBITDA Analysis'!X282,'EV to EBITDA Analysis'!K282,'EV to EBITDA Analysis'!K411,'EV to EBITDA Analysis'!X464,'EV to EBITDA Analysis'!X386,'EV to EBITDA Analysis'!X436,'EV to EBITDA Analysis'!X411,'EV to EBITDA Analysis'!K436) -> FALSE | N10: =CHOOSE($E$35,'EV to EBITDA Analysis'!L464,'EV to EBITDA Analysis'!Y202,'EV to EBITDA Analysis'!L9,'EV to EBITDA Analysis'!L38,'EV to EBITDA Analysis'!Y335,'EV to EBITDA Analysis'!Y254,'EV to EBITDA Analysis'!Y308,'EV to EBITDA Analysis'!Y361,'EV to EBITDA Analysis'!L148,'EV to EBITDA Analysis'!Y38,'EV to EBITDA Analysis'!Y9,'EV to EBITDA Analysis'!Y282,'EV to EBITDA Analysis'!L282,'EV to EBITDA Analysis'!L411,'EV to EBITDA Analysis'!Y464,'EV to EBITDA Analysis'!Y386,'EV to EBITDA Analysis'!Y436,'EV to EBITDA Analysis'!Y411,'EV to EBITDA Analysis'!L436) -> 0 | O10: TRUE | P10: 3
C11: ='Data Cost of Capital'!D14 -> Molson Coors Brewing Company | E11: =CHOOSE($E$35,'EV to EBITDA Analysis'!C465,'EV to EBITDA Analysis'!P203,'EV to EBITDA Analysis'!C10,'EV to EBITDA Analysis'!C39,'EV to EBITDA Analysis'!P336,'EV to EBITDA Analysis'!P255,'EV to EBITDA Analysis'!P309,'EV to EBITDA Analysis'!P362,'EV to EBITDA Analysis'!C149,'EV to EBITDA Analysis'!P39,'EV to EBITDA Analysis'!P10,'EV to EBITDA Analysis'!P283,'EV to EBITDA Analysis'!C283,'EV to EBITDA Analysis'!C412,'EV to EBITDA Analysis'!P465,'EV to EBITDA Analysis'!P387,'EV to EBITDA Analysis'!P437,'EV to EBITDA Analysis'!P412,'EV to EBITDA Analysis'!C437) -> FALSE | F11: =CHOOSE($E$35,'EV to EBITDA Analysis'!D465,'EV to EBITDA Analysis'!Q203,'EV to EBITDA Analysis'!D10,'EV to EBITDA Analysis'!D39,'EV to EBITDA Analysis'!Q336,'EV to EBITDA Analysis'!Q255,'EV to EBITDA Analysis'!Q309,'EV to EBITDA Analysis'!Q362,'EV to EBITDA Analysis'!D149,'EV to EBITDA Analysis'!Q39,'EV to EBITDA Analysis'!Q10,'EV to EBITDA Analysis'!Q283,'EV to EBITDA Analysis'!D283,'EV to EBITDA Analysis'!D412,'EV to EBITDA Analysis'!Q465,'EV to EBITDA Analysis'!Q387,'EV to EBITDA Analysis'!Q437,'EV to EBITDA Analysis'!Q412,'EV to EBITDA Analysis'!D437) -> 0.02986535745 | G11: =CHOOSE($E$35,'EV to EBITDA Analysis'!E465,'EV to EBITDA Analysis'!R203,'EV to EBITDA Analysis'!E10,'EV to EBITDA Analysis'!E39,'EV to EBITDA Analysis'!R336,'EV to EBITDA Analysis'!R255,'EV to EBITDA Analysis'!R309,'EV to EBITDA Analysis'!R362,'EV to EBITDA Analysis'!E149,'EV to EBITDA Analysis'!R39,'EV to EBITDA Analysis'!R10,'EV to EBITDA Analysis'!R283,'EV to EBITDA Analysis'!E283,'EV to EBITDA Analysis'!E412,'EV to EBITDA Analysis'!R465,'EV to EBITDA Analysis'!R387,'EV to EBITDA Analysis'!R437,'EV to EBITDA Analysis'!R412,'EV to EBITDA Analysis'!E437) -> 0.03477602066 | H11: =CHOOSE($E$35,'EV to EBITDA Analysis'!F465,'EV to EBITDA Analysis'!S203,'EV to EBITDA Analysis'!F10,'EV to EBITDA Analysis'!F39,'EV to EBITDA Analysis'!S336,'EV to EBITDA Analysis'!S255,'EV to EBITDA Analysis'!S309,'EV to EBITDA Analysis'!S362,'EV to EBITDA Analysis'!F149,'EV to EBITDA Analysis'!S39,'EV to EBITDA Analysis'!S10,'EV to EBITDA Analysis'!S283,'EV to EBITDA Analysis'!F283,'EV to EBITDA Analysis'!F412,'EV to EBITDA Analysis'!S465,'EV to EBITDA Analysis'!S387,'EV to EBITDA Analysis'!S437,'EV to EBITDA Analysis'!S412,'EV to EBITDA Analysis'!F437) -> 0.04189696706 | I11: =CHOOSE($E$35,'EV to EBITDA Analysis'!G465,'EV to EBITDA Analysis'!T203,'EV to EBITDA Analysis'!G10,'EV to EBITDA Analysis'!G39,'EV to EBITDA Analysis'!T336,'EV to EBITDA Analysis'!T255,'EV to EBITDA Analysis'!T309,'EV to EBITDA Analysis'!T362,'EV to EBITDA Analysis'!G149,'EV to EBITDA Analysis'!T39,'EV to EBITDA Analysis'!T10,'EV to EBITDA Analysis'!T283,'EV to EBITDA Analysis'!G283,'EV to EBITDA Analysis'!G412,'EV to EBITDA Analysis'!T465,'EV to EBITDA Analysis'!T387,'EV to EBITDA Analysis'!T437,'EV to EBITDA Analysis'!T412,'EV to EBITDA Analysis'!G437) -> 0.03220196655 | J11: =CHOOSE($E$35,'EV to EBITDA Analysis'!H465,'EV to EBITDA Analysis'!U203,'EV to EBITDA Analysis'!H10,'EV to EBITDA Analysis'!H39,'EV to EBITDA Analysis'!U336,'EV to EBITDA Analysis'!U255,'EV to EBITDA Analysis'!U309,'EV to EBITDA Analysis'!U362,'EV to EBITDA Analysis'!H149,'EV to EBITDA Analysis'!U39,'EV to EBITDA Analysis'!U10,'EV to EBITDA Analysis'!U283,'EV to EBITDA Analysis'!H283,'EV to EBITDA Analysis'!H412,'EV to EBITDA Analysis'!U465,'EV to EBITDA Analysis'!U387,'EV to EBITDA Analysis'!U437,'EV to EBITDA Analysis'!U412,'EV to EBITDA Analysis'!H437) -> 0.01279588467 | K11: =CHOOSE($E$35,'EV to EBITDA Analysis'!I465,'EV to EBITDA Analysis'!V203,'EV to EBITDA Analysis'!I10,'EV to EBITDA Analysis'!I39,'EV to EBITDA Analysis'!V336,'EV to EBITDA Analysis'!V255,'EV to EBITDA Analysis'!V309,'EV to EBITDA Analysis'!V362,'EV to EBITDA Analysis'!I149,'EV to EBITDA Analysis'!V39,'EV to EBITDA Analysis'!V10,'EV to EBITDA Analysis'!V283,'EV to EBITDA Analysis'!I283,'EV to EBITDA Analysis'!I412,'EV to EBITDA Analysis'!V465,'EV to EBITDA Analysis'!V387,'EV to EBITDA Analysis'!V437,'EV to EBITDA Analysis'!V412,'EV to EBITDA Analysis'!I437) -> 0.01279588467 | L11: =CHOOSE($E$35,'EV to EBITDA Analysis'!J465,'EV to EBITDA Analysis'!W203,'EV to EBITDA Analysis'!J10,'EV to EBITDA Analysis'!J39,'EV to EBITDA Analysis'!W336,'EV to EBITDA Analysis'!W255,'EV to EBITDA Analysis'!W309,'EV to EBITDA Analysis'!W362,'EV to EBITDA Analysis'!J149,'EV to EBITDA Analysis'!W39,'EV to EBITDA Analysis'!W10,'EV to EBITDA Analysis'!W283,'EV to EBITDA Analysis'!J283,'EV to EBITDA Analysis'!J412,'EV to EBITDA Analysis'!W465,'EV to EBITDA Analysis'!W387,'EV to EBITDA Analysis'!W437,'EV to EBITDA Analysis'!W412,'EV to EBITDA Analysis'!J437) -> FALSE | M11: =CHOOSE($E$35,'EV to EBITDA Analysis'!K465,'EV to EBITDA Analysis'!X203,'EV to EBITDA Analysis'!K10,'EV to EBITDA Analysis'!K39,'EV to EBITDA Analysis'!X336,'EV to EBITDA Analysis'!X255,'EV to EBITDA Analysis'!X309,'EV to EBITDA Analysis'!X362,'EV to EBITDA Analysis'!K149,'EV to EBITDA Analysis'!X39,'EV to EBITDA Analysis'!X10,'EV to EBITDA Analysis'!X283,'EV to EBITDA Analysis'!K283,'EV to EBITDA Analysis'!K412,'EV to EBITDA Analysis'!X465,'EV to EBITDA Analysis'!X387,'EV to EBITDA Analysis'!X437,'EV to EBITDA Analysis'!X412,'EV to EBITDA Analysis'!K437) -> FALSE | N11: =CHOOSE($E$35,'EV to EBITDA Analysis'!L465,'EV to EBITDA Analysis'!Y203,'EV to EBITDA Analysis'!L10,'EV to EBITDA Analysis'!L39,'EV to EBITDA Analysis'!Y336,'EV to EBITDA Analysis'!Y255,'EV to EBITDA Analysis'!Y309,'EV to EBITDA Analysis'!Y362,'EV to EBITDA Analysis'!L149,'EV to EBITDA Analysis'!Y39,'EV to EBITDA Analysis'!Y10,'EV to EBITDA Analysis'!Y283,'EV to EBITDA Analysis'!L283,'EV to EBITDA Analysis'!L412,'EV to EBITDA Analysis'!Y465,'EV to EBITDA Analysis'!Y387,'EV to EBITDA Analysis'!Y437,'EV to EBITDA Analysis'!Y412,'EV to EBITDA Analysis'!L437) -> 0 | O11: TRUE | P11: 4
C12: ='Data Cost of Capital'!D15 -> Boston Beer | E12: =CHOOSE($E$35,'EV to EBITDA Analysis'!C466,'EV to EBITDA Analysis'!P204,'EV to EBITDA Analysis'!C11,'EV to EBITDA Analysis'!C40,'EV to EBITDA Analysis'!P337,'EV to EBITDA Analysis'!P256,'EV to EBITDA Analysis'!P310,'EV to EBITDA Analysis'!P363,'EV to EBITDA Analysis'!C150,'EV to EBITDA Analysis'!P40,'EV to EBITDA Analysis'!P11,'EV to EBITDA Analysis'!P284,'EV to EBITDA Analysis'!C284,'EV to EBITDA Analysis'!C413,'EV to EBITDA Analysis'!P466,'EV to EBITDA Analysis'!P388,'EV to EBITDA Analysis'!P438,'EV to EBITDA Analysis'!P413,'EV to EBITDA Analysis'!C438) -> FALSE | F12: =CHOOSE($E$35,'EV to EBITDA Analysis'!D466,'EV to EBITDA Analysis'!Q204,'EV to EBITDA Analysis'!D11,'EV to EBITDA Analysis'!D40,'EV to EBITDA Analysis'!Q337,'EV to EBITDA Analysis'!Q256,'EV to EBITDA Analysis'!Q310,'EV to EBITDA Analysis'!Q363,'EV to EBITDA Analysis'!D150,'EV to EBITDA Analysis'!Q40,'EV to EBITDA Analysis'!Q11,'EV to EBITDA Analysis'!Q284,'EV to EBITDA Analysis'!D284,'EV to EBITDA Analysis'!D413,'EV to EBITDA Analysis'!Q466,'EV to EBITDA Analysis'!Q388,'EV to EBITDA Analysis'!Q438,'EV to EBITDA Analysis'!Q413,'EV to EBITDA Analysis'!D438) -> 0.3492981559 | G12: =CHOOSE($E$35,'EV to EBITDA Analysis'!E466,'EV to EBITDA Analysis'!R204,'EV to EBITDA Analysis'!E11,'EV to EBITDA Analysis'!E40,'EV to EBITDA Analysis'!R337,'EV to EBITDA Analysis'!R256,'EV to EBITDA Analysis'!R310,'EV to EBITDA Analysis'!R363,'EV to EBITDA Analysis'!E150,'EV to EBITDA Analysis'!R40,'EV to EBITDA Analysis'!R11,'EV to EBITDA Analysis'!R284,'EV to EBITDA Analysis'!E284,'EV to EBITDA Analysis'!E413,'EV to EBITDA Analysis'!R466,'EV to EBITDA Analysis'!R388,'EV to EBITDA Analysis'!R438,'EV to EBITDA Analysis'!R413,'EV to EBITDA Analysis'!E438) -> 0.2223269026 | H12: =CHOOSE($E$35,'EV to EBITDA Analysis'!F466,'EV to EBITDA Analysis'!S204,'EV to EBITDA Analysis'!F11,'EV to EBITDA Analysis'!F40,'EV to EBITDA Analysis'!S337,'EV to EBITDA Analysis'!S256,'EV to EBITDA Analysis'!S310,'EV to EBITDA Analysis'!S363,'EV to EBITDA Analysis'!F150,'EV to EBITDA Analysis'!S40,'EV to EBITDA Analysis'!S11,'EV to EBITDA Analysis'!S284,'EV to EBITDA Analysis'!F284,'EV to EBITDA Analysis'!F413,'EV to EBITDA Analysis'!S466,'EV to EBITDA Analysis'!S388,'EV to EBITDA Analysis'!S438,'EV to EBITDA Analysis'!S413,'EV to EBITDA Analysis'!F438) -> 0.2151392866 | I12: =CHOOSE($E$35,'EV to EBITDA Analysis'!G466,'EV to EBITDA Analysis'!T204,'EV to EBITDA Analysis'!G11,'EV to EBITDA Analysis'!G40,'EV to EBITDA Analysis'!T337,'EV to EBITDA Analysis'!T256,'EV to EBITDA Analysis'!T310,'EV to EBITDA Analysis'!T363,'EV to EBITDA Analysis'!G150,'EV to EBITDA Analysis'!T40,'EV to EBITDA Analysis'!T11,'EV to EBITDA Analysis'!T284,'EV to EBITDA Analysis'!G284,'EV to EBITDA Analysis'!G413,'EV to EBITDA Analysis'!T466,'EV to EBITDA Analysis'!T388,'EV to EBITDA Analysis'!T438,'EV to EBITDA Analysis'!T413,'EV to EBITDA Analysis'!G438) -> 0.2256925765 | J12: =CHOOSE($E$35,'EV to EBITDA Analysis'!H466,'EV to EBITDA Analysis'!U204,'EV to EBITDA Analysis'!H11,'EV to EBITDA Analysis'!H40,'EV to EBITDA Analysis'!U337,'EV to EBITDA Analysis'!U256,'EV to EBITDA Analysis'!U310,'EV to EBITDA Analysis'!U363,'EV to EBITDA Analysis'!H150,'EV to EBITDA Analysis'!U40,'EV to EBITDA Analysis'!U11,'EV to EBITDA Analysis'!U284,'EV to EBITDA Analysis'!H284,'EV to EBITDA Analysis'!H413,'EV to EBITDA Analysis'!U466,'EV to EBITDA Analysis'!U388,'EV to EBITDA Analysis'!U438,'EV to EBITDA Analysis'!U413,'EV to EBITDA Analysis'!H438) -> 0.2052354058 | K12: =CHOOSE($E$35,'EV to EBITDA Analysis'!I466,'EV to EBITDA Analysis'!V204,'EV to EBITDA Analysis'!I11,'EV to EBITDA Analysis'!I40,'EV to EBITDA Analysis'!V337,'EV to EBITDA Analysis'!V256,'EV to EBITDA Analysis'!V310,'EV to EBITDA Analysis'!V363,'EV to EBITDA Analysis'!I150,'EV to EBITDA Analysis'!V40,'EV to EBITDA Analysis'!V11,'EV to EBITDA Analysis'!V284,'EV to EBITDA Analysis'!I284,'EV to EBITDA Analysis'!I413,'EV to EBITDA Analysis'!V466,'EV to EBITDA Analysis'!V388,'EV to EBITDA Analysis'!V438,'EV to EBITDA Analysis'!V413,'EV to EBITDA Analysis'!I438) -> 0.2052354058 | L12: =CHOOSE($E$35,'EV to EBITDA Analysis'!J466,'EV to EBITDA Analysis'!W204,'EV to EBITDA Analysis'!J11,'EV to EBITDA Analysis'!J40,'EV to EBITDA Analysis'!W337,'EV to EBITDA Analysis'!W256,'EV to EBITDA Analysis'!W310,'EV to EBITDA Analysis'!W363,'EV to EBITDA Analysis'!J150,'EV to EBITDA Analysis'!W40,'EV to EBITDA Analysis'!W11,'EV to EBITDA Analysis'!W284,'EV to EBITDA Analysis'!J284,'EV to EBITDA Analysis'!J413,'EV to EBITDA Analysis'!W466,'EV to EBITDA Analysis'!W388,'EV to EBITDA Analysis'!W438,'EV to EBITDA Analysis'!W413,'EV to EBITDA Analysis'!J438) -> FALSE | M12: =CHOOSE($E$35,'EV to EBITDA Analysis'!K466,'EV to EBITDA Analysis'!X204,'EV to EBITDA Analysis'!K11,'EV to EBITDA Analysis'!K40,'EV to EBITDA Analysis'!X337,'EV to EBITDA Analysis'!X256,'EV to EBITDA Analysis'!X310,'EV to EBITDA Analysis'!X363,'EV to EBITDA Analysis'!K150,'EV to EBITDA Analysis'!X40,'EV to EBITDA Analysis'!X11,'EV to EBITDA Analysis'!X284,'EV to EBITDA Analysis'!K284,'EV to EBITDA Analysis'!K413,'EV to EBITDA Analysis'!X466,'EV to EBITDA Analysis'!X388,'EV to EBITDA Analysis'!X438,'EV to EBITDA Analysis'!X413,'EV to EBITDA Analysis'!K438) -> FALSE | N12: =CHOOSE($E$35,'EV to EBITDA Analysis'!L466,'EV to EBITDA Analysis'!Y204,'EV to EBITDA Analysis'!L11,'EV to EBITDA Analysis'!L40,'EV to EBITDA Analysis'!Y337,'EV to EBITDA Analysis'!Y256,'EV to EBITDA Analysis'!Y310,'EV to EBITDA Analysis'!Y363,'EV to EBITDA Analysis'!L150,'EV to EBITDA Analysis'!Y40,'EV to EBITDA Analysis'!Y11,'EV to EBITDA Analysis'!Y284,'EV to EBITDA Analysis'!L284,'EV to EBITDA Analysis'!L413,'EV to EBITDA Analysis'!Y466,'EV to EBITDA Analysis'!Y388,'EV to EBITDA Analysis'!Y438,'EV to EBITDA Analysis'!Y413,'EV to EBITDA Analysis'!L438) -> 0 | O12: TRUE | P12: 5 | R12: 1 | S12: =IFERROR(MATCH(R12,P:P,0),"") -> 8 | T12: =IFERROR(INDEX(C:C,S12),"") -> Carlesberg | V12: =IFERROR(INDEX(E:E,$S12),"") -> FALSE | W12: =IFERROR(INDEX(F:F,$S12),"") -> 0.06877925661 | X12: =IFERROR(INDEX(G:G,$S12),"") -> 0.06834354857 | Y12: =IFERROR(INDEX(H:H,$S12),"") -> 0.06820156261 | Z12: =IFERROR(INDEX(I:I,$S12),"") -> 0.1488309249 | AA12: =IFERROR(INDEX(J:J,$S12),"") -> 0.06564080495 | AB12: =IFERROR(INDEX(K:K,$S12),"") -> 0.06473477217 | AC12: =IFERROR(INDEX(L:L,$S12),"") -> FALSE | AD12: =IFERROR(INDEX(M:M,$S12),"") -> FALSE | AE12: =IFERROR(INDEX(N:N,$S12),"") -> 0 | AF12: =IFERROR(IRR(AH12:BG12),"") -> 
C13: ='Data Cost of Capital'!D16 -> Constellation Brands | E13: =CHOOSE($E$35,'EV to EBITDA Analysis'!C467,'EV to EBITDA Analysis'!P205,'EV to EBITDA Analysis'!C12,'EV to EBITDA Analysis'!C41,'EV to EBITDA Analysis'!P338,'EV to EBITDA Analysis'!P257,'EV to EBITDA Analysis'!P311,'EV to EBITDA Analysis'!P364,'EV to EBITDA Analysis'!C151,'EV to EBITDA Analysis'!P41,'EV to EBITDA Analysis'!P12,'EV to EBITDA Analysis'!P285,'EV to EBITDA Analysis'!C285,'EV to EBITDA Analysis'!C414,'EV to EBITDA Analysis'!P467,'EV to EBITDA Analysis'!P389,'EV to EBITDA Analysis'!P439,'EV to EBITDA Analysis'!P414,'EV to EBITDA Analysis'!C439) -> FALSE | F13: =CHOOSE($E$35,'EV to EBITDA Analysis'!D467,'EV to EBITDA Analysis'!Q205,'EV to EBITDA Analysis'!D12,'EV to EBITDA Analysis'!D41,'EV to EBITDA Analysis'!Q338,'EV to EBITDA Analysis'!Q257,'EV to EBITDA Analysis'!Q311,'EV to EBITDA Analysis'!Q364,'EV to EBITDA Analysis'!D151,'EV to EBITDA Analysis'!Q41,'EV to EBITDA Analysis'!Q12,'EV to EBITDA Analysis'!Q285,'EV to EBITDA Analysis'!D285,'EV to EBITDA Analysis'!D414,'EV to EBITDA Analysis'!Q467,'EV to EBITDA Analysis'!Q389,'EV to EBITDA Analysis'!Q439,'EV to EBITDA Analysis'!Q414,'EV to EBITDA Analysis'!D439) -> 0.07149259866 | G13: =CHOOSE($E$35,'EV to EBITDA Analysis'!E467,'EV to EBITDA Analysis'!R205,'EV to EBITDA Analysis'!E12,'EV to EBITDA Analysis'!E41,'EV to EBITDA Analysis'!R338,'EV to EBITDA Analysis'!R257,'EV to EBITDA Analysis'!R311,'EV to EBITDA Analysis'!R364,'EV to EBITDA Analysis'!E151,'EV to EBITDA Analysis'!R41,'EV to EBITDA Analysis'!R12,'EV to EBITDA Analysis'!R285,'EV to EBITDA Analysis'!E285,'EV to EBITDA Analysis'!E414,'EV to EBITDA Analysis'!R467,'EV to EBITDA Analysis'!R389,'EV to EBITDA Analysis'!R439,'EV to EBITDA Analysis'!R414,'EV to EBITDA Analysis'!E439) -> 0.08536241754 | H13: =CHOOSE($E$35,'EV to EBITDA Analysis'!F467,'EV to EBITDA Analysis'!S205,'EV to EBITDA Analysis'!F12,'EV to EBITDA Analysis'!F41,'EV to EBITDA Analysis'!S338,'EV to EBITDA Analysis'!S257,'EV to EBITDA Analysis'!S311,'EV to EBITDA Analysis'!S364,'EV to EBITDA Analysis'!F151,'EV to EBITDA Analysis'!S41,'EV to EBITDA Analysis'!S12,'EV to EBITDA Analysis'!S285,'EV to EBITDA Analysis'!F285,'EV to EBITDA Analysis'!F414,'EV to EBITDA Analysis'!S467,'EV to EBITDA Analysis'!S389,'EV to EBITDA Analysis'!S439,'EV to EBITDA Analysis'!S414,'EV to EBITDA Analysis'!F439) -> 0.084681473 | I13: =CHOOSE($E$35,'EV to EBITDA Analysis'!G467,'EV to EBITDA Analysis'!T205,'EV to EBITDA Analysis'!G12,'EV to EBITDA Analysis'!G41,'EV to EBITDA Analysis'!T338,'EV to EBITDA Analysis'!T257,'EV to EBITDA Analysis'!T311,'EV to EBITDA Analysis'!T364,'EV to EBITDA Analysis'!G151,'EV to EBITDA Analysis'!T41,'EV to EBITDA Analysis'!T12,'EV to EBITDA Analysis'!T285,'EV to EBITDA Analysis'!G285,'EV to EBITDA Analysis'!G414,'EV to EBITDA Analysis'!T467,'EV to EBITDA Analysis'!T389,'EV to EBITDA Analysis'!T439,'EV to EBITDA Analysis'!T414,'EV to EBITDA Analysis'!G439) -> 0.09255662266 | J13: =CHOOSE($E$35,'EV to EBITDA Analysis'!H467,'EV to EBITDA Analysis'!U205,'EV to EBITDA Analysis'!H12,'EV to EBITDA Analysis'!H41,'EV to EBITDA Analysis'!U338,'EV to EBITDA Analysis'!U257,'EV to EBITDA Analysis'!U311,'EV to EBITDA Analysis'!U364,'EV to EBITDA Analysis'!H151,'EV to EBITDA Analysis'!U41,'EV to EBITDA Analysis'!U12,'EV to EBITDA Analysis'!U285,'EV to EBITDA Analysis'!H285,'EV to EBITDA Analysis'!H414,'EV to EBITDA Analysis'!U467,'EV to EBITDA Analysis'!U389,'EV to EBITDA Analysis'!U439,'EV to EBITDA Analysis'!U414,'EV to EBITDA Analysis'!H439) -> 0.1034632175 | K13: =CHOOSE($E$35,'EV to EBITDA Analysis'!I467,'EV to EBITDA Analysis'!V205,'EV to EBITDA Analysis'!I12,'EV to EBITDA Analysis'!I41,'EV to EBITDA Analysis'!V338,'EV to EBITDA Analysis'!V257,'EV to EBITDA Analysis'!V311,'EV to EBITDA Analysis'!V364,'EV to EBITDA Analysis'!I151,'EV to EBITDA Analysis'!V41,'EV to EBITDA Analysis'!V12,'EV to EBITDA Analysis'!V285,'EV to EBITDA Analysis'!I285,'EV to EBITDA Analysis'!I414,'EV to EBITDA Analysis'!V467,'EV to EBITDA Analysis'!V389,'EV to EBITDA Analysis'!V439,'EV to EBITDA Analysis'!V414,'EV to EBITDA Analysis'!I439) -> 0.1034632175 | L13: =CHOOSE($E$35,'EV to EBITDA Analysis'!J467,'EV to EBITDA Analysis'!W205,'EV to EBITDA Analysis'!J12,'EV to EBITDA Analysis'!J41,'EV to EBITDA Analysis'!W338,'EV to EBITDA Analysis'!W257,'EV to EBITDA Analysis'!W311,'EV to EBITDA Analysis'!W364,'EV to EBITDA Analysis'!J151,'EV to EBITDA Analysis'!W41,'EV to EBITDA Analysis'!W12,'EV to EBITDA Analysis'!W285,'EV to EBITDA Analysis'!J285,'EV to EBITDA Analysis'!J414,'EV to EBITDA Analysis'!W467,'EV to EBITDA Analysis'!W389,'EV to EBITDA Analysis'!W439,'EV to EBITDA Analysis'!W414,'EV to EBITDA Analysis'!J439) -> FALSE | M13: =CHOOSE($E$35,'EV to EBITDA Analysis'!K467,'EV to EBITDA Analysis'!X205,'EV to EBITDA Analysis'!K12,'EV to EBITDA Analysis'!K41,'EV to EBITDA Analysis'!X338,'EV to EBITDA Analysis'!X257,'EV to EBITDA Analysis'!X311,'EV to EBITDA Analysis'!X364,'EV to EBITDA Analysis'!K151,'EV to EBITDA Analysis'!X41,'EV to EBITDA Analysis'!X12,'EV to EBITDA Analysis'!X285,'EV to EBITDA Analysis'!K285,'EV to EBITDA Analysis'!K414,'EV to EBITDA Analysis'!X467,'EV to EBITDA Analysis'!X389,'EV to EBITDA Analysis'!X439,'EV to EBITDA Analysis'!X414,'EV to EBITDA Analysis'!K439) -> FALSE | N13: =CHOOSE($E$35,'EV to EBITDA Analysis'!L467,'EV to EBITDA Analysis'!Y205,'EV to EBITDA Analysis'!L12,'EV to EBITDA Analysis'!L41,'EV to EBITDA Analysis'!Y338,'EV to EBITDA Analysis'!Y257,'EV to EBITDA Analysis'!Y311,'EV to EBITDA Analysis'!Y364,'EV to EBITDA Analysis'!L151,'EV to EBITDA Analysis'!Y41,'EV to EBITDA Analysis'!Y12,'EV to EBITDA Analysis'!Y285,'EV to EBITDA Analysis'!L285,'EV to EBITDA Analysis'!L414,'EV to EBITDA Analysis'!Y467,'EV to EBITDA Analysis'!Y389,'EV to EBITDA Analysis'!Y439,'EV to EBITDA Analysis'!Y414,'EV to EBITDA Analysis'!L439) -> 0 | O13: TRUE | P13: 6 | R13: =R12+1 -> 2 | S13: 9 | T13: =IFERROR(INDEX(C:C,S13),"") -> Diageo | V13: FALSE | W13: =IFERROR(INDEX(F:F,$S13),"") -> 0.1936343058 | X13: 0.1675736067 | Y13: 0.1490829209 | Z13: 0.1411105283 | AA13: 0.1537871552 | AB13: 0.1532486907 | AC13: FALSE | AD13: FALSE | AE13: 0 | AF13: =IFERROR(IRR(AH13:BG13),"") -> 
C14: ='Data Cost of Capital'!D17 -> Craft Brew Alliance | E14: =CHOOSE($E$35,'EV to EBITDA Analysis'!C468,'EV to EBITDA Analysis'!P206,'EV to EBITDA Analysis'!C13,'EV to EBITDA Analysis'!C42,'EV to EBITDA Analysis'!P339,'EV to EBITDA Analysis'!P258,'EV to EBITDA Analysis'!P312,'EV to EBITDA Analysis'!P365,'EV to EBITDA Analysis'!C152,'EV to EBITDA Analysis'!P42,'EV to EBITDA Analysis'!P13,'EV to EBITDA Analysis'!P286,'EV to EBITDA Analysis'!C286,'EV to EBITDA Analysis'!C415,'EV to EBITDA Analysis'!P468,'EV to EBITDA Analysis'!P390,'EV to EBITDA Analysis'!P440,'EV to EBITDA Analysis'!P415,'EV to EBITDA Analysis'!C440) -> FALSE | F14: =CHOOSE($E$35,'EV to EBITDA Analysis'!D468,'EV to EBITDA Analysis'!Q206,'EV to EBITDA Analysis'!D13,'EV to EBITDA Analysis'!D42,'EV to EBITDA Analysis'!Q339,'EV to EBITDA Analysis'!Q258,'EV to EBITDA Analysis'!Q312,'EV to EBITDA Analysis'!Q365,'EV to EBITDA Analysis'!D152,'EV to EBITDA Analysis'!Q42,'EV to EBITDA Analysis'!Q13,'EV to EBITDA Analysis'!Q286,'EV to EBITDA Analysis'!D286,'EV to EBITDA Analysis'!D415,'EV to EBITDA Analysis'!Q468,'EV to EBITDA Analysis'!Q390,'EV to EBITDA Analysis'!Q440,'EV to EBITDA Analysis'!Q415,'EV to EBITDA Analysis'!D440) -> 0.01888775278 | G14: =CHOOSE($E$35,'EV to EBITDA Analysis'!E468,'EV to EBITDA Analysis'!R206,'EV to EBITDA Analysis'!E13,'EV to EBITDA Analysis'!E42,'EV to EBITDA Analysis'!R339,'EV to EBITDA Analysis'!R258,'EV to EBITDA Analysis'!R312,'EV to EBITDA Analysis'!R365,'EV to EBITDA Analysis'!E152,'EV to EBITDA Analysis'!R42,'EV to EBITDA Analysis'!R13,'EV to EBITDA Analysis'!R286,'EV to EBITDA Analysis'!E286,'EV to EBITDA Analysis'!E415,'EV to EBITDA Analysis'!R468,'EV to EBITDA Analysis'!R390,'EV to EBITDA Analysis'!R440,'EV to EBITDA Analysis'!R415,'EV to EBITDA Analysis'!E440) -> -0.004053593696 | H14: =CHOOSE($E$35,'EV to EBITDA Analysis'!F468,'EV to EBITDA Analysis'!S206,'EV to EBITDA Analysis'!F13,'EV to EBITDA Analysis'!F42,'EV to EBITDA Analysis'!S339,'EV to EBITDA Analysis'!S258,'EV to EBITDA Analysis'!S312,'EV to EBITDA Analysis'!S365,'EV to EBITDA Analysis'!F152,'EV to EBITDA Analysis'!S42,'EV to EBITDA Analysis'!S13,'EV to EBITDA Analysis'!S286,'EV to EBITDA Analysis'!F286,'EV to EBITDA Analysis'!F415,'EV to EBITDA Analysis'!S468,'EV to EBITDA Analysis'!S390,'EV to EBITDA Analysis'!S440,'EV to EBITDA Analysis'!S415,'EV to EBITDA Analysis'!F440) -> -0.003306979089 | I14: =CHOOSE($E$35,'EV to EBITDA Analysis'!G468,'EV to EBITDA Analysis'!T206,'EV to EBITDA Analysis'!G13,'EV to EBITDA Analysis'!G42,'EV to EBITDA Analysis'!T339,'EV to EBITDA Analysis'!T258,'EV to EBITDA Analysis'!T312,'EV to EBITDA Analysis'!T365,'EV to EBITDA Analysis'!G152,'EV to EBITDA Analysis'!T42,'EV to EBITDA Analysis'!T13,'EV to EBITDA Analysis'!T286,'EV to EBITDA Analysis'!G286,'EV to EBITDA Analysis'!G415,'EV to EBITDA Analysis'!T468,'EV to EBITDA Analysis'!T390,'EV to EBITDA Analysis'!T440,'EV to EBITDA Analysis'!T415,'EV to EBITDA Analysis'!G440) -> -0.001361049495 | J14: =CHOOSE($E$35,'EV to EBITDA Analysis'!H468,'EV to EBITDA Analysis'!U206,'EV to EBITDA Analysis'!H13,'EV to EBITDA Analysis'!H42,'EV to EBITDA Analysis'!U339,'EV to EBITDA Analysis'!U258,'EV to EBITDA Analysis'!U312,'EV to EBITDA Analysis'!U365,'EV to EBITDA Analysis'!H152,'EV to EBITDA Analysis'!U42,'EV to EBITDA Analysis'!U13,'EV to EBITDA Analysis'!U286,'EV to EBITDA Analysis'!H286,'EV to EBITDA Analysis'!H415,'EV to EBITDA Analysis'!U468,'EV to EBITDA Analysis'!U390,'EV to EBITDA Analysis'!U440,'EV to EBITDA Analysis'!U415,'EV to EBITDA Analysis'!H440) -> FALSE | K14: =CHOOSE($E$35,'EV to EBITDA Analysis'!I468,'EV to EBITDA Analysis'!V206,'EV to EBITDA Analysis'!I13,'EV to EBITDA Analysis'!I42,'EV to EBITDA Analysis'!V339,'EV to EBITDA Analysis'!V258,'EV to EBITDA Analysis'!V312,'EV to EBITDA Analysis'!V365,'EV to EBITDA Analysis'!I152,'EV to EBITDA Analysis'!V42,'EV to EBITDA Analysis'!V13,'EV to EBITDA Analysis'!V286,'EV to EBITDA Analysis'!I286,'EV to EBITDA Analysis'!I415,'EV to EBITDA Analysis'!V468,'EV to EBITDA Analysis'!V390,'EV to EBITDA Analysis'!V440,'EV to EBITDA Analysis'!V415,'EV to EBITDA Analysis'!I440) -> FALSE | L14: =CHOOSE($E$35,'EV to EBITDA Analysis'!J468,'EV to EBITDA Analysis'!W206,'EV to EBITDA Analysis'!J13,'EV to EBITDA Analysis'!J42,'EV to EBITDA Analysis'!W339,'EV to EBITDA Analysis'!W258,'EV to EBITDA Analysis'!W312,'EV to EBITDA Analysis'!W365,'EV to EBITDA Analysis'!J152,'EV to EBITDA Analysis'!W42,'EV to EBITDA Analysis'!W13,'EV to EBITDA Analysis'!W286,'EV to EBITDA Analysis'!J286,'EV to EBITDA Analysis'!J415,'EV to EBITDA Analysis'!W468,'EV to EBITDA Analysis'!W390,'EV to EBITDA Analysis'!W440,'EV to EBITDA Analysis'!W415,'EV to EBITDA Analysis'!J440) -> FALSE | M14: =CHOOSE($E$35,'EV to EBITDA Analysis'!K468,'EV to EBITDA Analysis'!X206,'EV to EBITDA Analysis'!K13,'EV to EBITDA Analysis'!K42,'EV to EBITDA Analysis'!X339,'EV to EBITDA Analysis'!X258,'EV to EBITDA Analysis'!X312,'EV to EBITDA Analysis'!X365,'EV to EBITDA Analysis'!K152,'EV to EBITDA Analysis'!X42,'EV to EBITDA Analysis'!X13,'EV to EBITDA Analysis'!X286,'EV to EBITDA Analysis'!K286,'EV to EBITDA Analysis'!K415,'EV to EBITDA Analysis'!X468,'EV to EBITDA Analysis'!X390,'EV to EBITDA Analysis'!X440,'EV to EBITDA Analysis'!X415,'EV to EBITDA Analysis'!K440) -> FALSE | N14: =CHOOSE($E$35,'EV to EBITDA Analysis'!L468,'EV to EBITDA Analysis'!Y206,'EV to EBITDA Analysis'!L13,'EV to EBITDA Analysis'!L42,'EV to EBITDA Analysis'!Y339,'EV to EBITDA Analysis'!Y258,'EV to EBITDA Analysis'!Y312,'EV to EBITDA Analysis'!Y365,'EV to EBITDA Analysis'!L152,'EV to EBITDA Analysis'!Y42,'EV to EBITDA Analysis'!Y13,'EV to EBITDA Analysis'!Y286,'EV to EBITDA Analysis'!L286,'EV to EBITDA Analysis'!L415,'EV to EBITDA Analysis'!Y468,'EV to EBITDA Analysis'!Y390,'EV to EBITDA Analysis'!Y440,'EV to EBITDA Analysis'!Y415,'EV to EBITDA Analysis'!L440) -> 0 | O14: TRUE | P14: 7 | R14: =R13+1 -> 3 | S14: 10 | T14: Ambev SA (USD,BRL) | V14: FALSE | W14: 0.6198905896 | X14: 0.3536268689 | Y14: 0.3958236602 | Z14: 0.4025581859 | AA14: 0.3854319451 | AB14: 0.3769538946 | AC14: FALSE | AD14: FALSE | AE14: 0
C15: ='Data Cost of Capital'!D18 -> Willamett Valley | E15: =CHOOSE($E$35,'EV to EBITDA Analysis'!C469,'EV to EBITDA Analysis'!P207,'EV to EBITDA Analysis'!C14,'EV to EBITDA Analysis'!C43,'EV to EBITDA Analysis'!P340,'EV to EBITDA Analysis'!P259,'EV to EBITDA Analysis'!P313,'EV to EBITDA Analysis'!P366,'EV to EBITDA Analysis'!C153,'EV to EBITDA Analysis'!P43,'EV to EBITDA Analysis'!P14,'EV to EBITDA Analysis'!P287,'EV to EBITDA Analysis'!C287,'EV to EBITDA Analysis'!C416,'EV to EBITDA Analysis'!P469,'EV to EBITDA Analysis'!P391,'EV to EBITDA Analysis'!P441,'EV to EBITDA Analysis'!P416,'EV to EBITDA Analysis'!C441) -> FALSE | F15: =CHOOSE($E$35,'EV to EBITDA Analysis'!D469,'EV to EBITDA Analysis'!Q207,'EV to EBITDA Analysis'!D14,'EV to EBITDA Analysis'!D43,'EV to EBITDA Analysis'!Q340,'EV to EBITDA Analysis'!Q259,'EV to EBITDA Analysis'!Q313,'EV to EBITDA Analysis'!Q366,'EV to EBITDA Analysis'!D153,'EV to EBITDA Analysis'!Q43,'EV to EBITDA Analysis'!Q14,'EV to EBITDA Analysis'!Q287,'EV to EBITDA Analysis'!D287,'EV to EBITDA Analysis'!D416,'EV to EBITDA Analysis'!Q469,'EV to EBITDA Analysis'!Q391,'EV to EBITDA Analysis'!Q441,'EV to EBITDA Analysis'!Q416,'EV to EBITDA Analysis'!D441) -> -10540.28834 | G15: =CHOOSE($E$35,'EV to EBITDA Analysis'!E469,'EV to EBITDA Analysis'!R207,'EV to EBITDA Analysis'!E14,'EV to EBITDA Analysis'!E43,'EV to EBITDA Analysis'!R340,'EV to EBITDA Analysis'!R259,'EV to EBITDA Analysis'!R313,'EV to EBITDA Analysis'!R366,'EV to EBITDA Analysis'!E153,'EV to EBITDA Analysis'!R43,'EV to EBITDA Analysis'!R14,'EV to EBITDA Analysis'!R287,'EV to EBITDA Analysis'!E287,'EV to EBITDA Analysis'!E416,'EV to EBITDA Analysis'!R469,'EV to EBITDA Analysis'!R391,'EV to EBITDA Analysis'!R441,'EV to EBITDA Analysis'!R416,'EV to EBITDA Analysis'!E441) -> -271.1882664 | H15: =CHOOSE($E$35,'EV to EBITDA Analysis'!F469,'EV to EBITDA Analysis'!S207,'EV to EBITDA Analysis'!F14,'EV to EBITDA Analysis'!F43,'EV to EBITDA Analysis'!S340,'EV to EBITDA Analysis'!S259,'EV to EBITDA Analysis'!S313,'EV to EBITDA Analysis'!S366,'EV to EBITDA Analysis'!F153,'EV to EBITDA Analysis'!S43,'EV to EBITDA Analysis'!S14,'EV to EBITDA Analysis'!S287,'EV to EBITDA Analysis'!F287,'EV to EBITDA Analysis'!F416,'EV to EBITDA Analysis'!S469,'EV to EBITDA Analysis'!S391,'EV to EBITDA Analysis'!S441,'EV to EBITDA Analysis'!S416,'EV to EBITDA Analysis'!F441) -> 4.501334903 | I15: =CHOOSE($E$35,'EV to EBITDA Analysis'!G469,'EV to EBITDA Analysis'!T207,'EV to EBITDA Analysis'!G14,'EV to EBITDA Analysis'!G43,'EV to EBITDA Analysis'!T340,'EV to EBITDA Analysis'!T259,'EV to EBITDA Analysis'!T313,'EV to EBITDA Analysis'!T366,'EV to EBITDA Analysis'!G153,'EV to EBITDA Analysis'!T43,'EV to EBITDA Analysis'!T14,'EV to EBITDA Analysis'!T287,'EV to EBITDA Analysis'!G287,'EV to EBITDA Analysis'!G416,'EV to EBITDA Analysis'!T469,'EV to EBITDA Analysis'!T391,'EV to EBITDA Analysis'!T441,'EV to EBITDA Analysis'!T416,'EV to EBITDA Analysis'!G441) -> 0.003516000624 | J15: =CHOOSE($E$35,'EV to EBITDA Analysis'!H469,'EV to EBITDA Analysis'!U207,'EV to EBITDA Analysis'!H14,'EV to EBITDA Analysis'!H43,'EV to EBITDA Analysis'!U340,'EV to EBITDA Analysis'!U259,'EV to EBITDA Analysis'!U313,'EV to EBITDA Analysis'!U366,'EV to EBITDA Analysis'!H153,'EV to EBITDA Analysis'!U43,'EV to EBITDA Analysis'!U14,'EV to EBITDA Analysis'!U287,'EV to EBITDA Analysis'!H287,'EV to EBITDA Analysis'!H416,'EV to EBITDA Analysis'!U469,'EV to EBITDA Analysis'!U391,'EV to EBITDA Analysis'!U441,'EV to EBITDA Analysis'!U416,'EV to EBITDA Analysis'!H441) -> 0.004504206642 | K15: =CHOOSE($E$35,'EV to EBITDA Analysis'!I469,'EV to EBITDA Analysis'!V207,'EV to EBITDA Analysis'!I14,'EV to EBITDA Analysis'!I43,'EV to EBITDA Analysis'!V340,'EV to EBITDA Analysis'!V259,'EV to EBITDA Analysis'!V313,'EV to EBITDA Analysis'!V366,'EV to EBITDA Analysis'!I153,'EV to EBITDA Analysis'!V43,'EV to EBITDA Analysis'!V14,'EV to EBITDA Analysis'!V287,'EV to EBITDA Analysis'!I287,'EV to EBITDA Analysis'!I416,'EV to EBITDA Analysis'!V469,'EV to EBITDA Analysis'!V391,'EV to EBITDA Analysis'!V441,'EV to EBITDA Analysis'!V416,'EV to EBITDA Analysis'!I441) -> 0.004504206642 | L15: =CHOOSE($E$35,'EV to EBITDA Analysis'!J469,'EV to EBITDA Analysis'!W207,'EV to EBITDA Analysis'!J14,'EV to EBITDA Analysis'!J43,'EV to EBITDA Analysis'!W340,'EV to EBITDA Analysis'!W259,'EV to EBITDA Analysis'!W313,'EV to EBITDA Analysis'!W366,'EV to EBITDA Analysis'!J153,'EV to EBITDA Analysis'!W43,'EV to EBITDA Analysis'!W14,'EV to EBITDA Analysis'!W287,'EV to EBITDA Analysis'!J287,'EV to EBITDA Analysis'!J416,'EV to EBITDA Analysis'!W469,'EV to EBITDA Analysis'!W391,'EV to EBITDA Analysis'!W441,'EV to EBITDA Analysis'!W416,'EV to EBITDA Analysis'!J441) -> FALSE | M15: =CHOOSE($E$35,'EV to EBITDA Analysis'!K469,'EV to EBITDA Analysis'!X207,'EV to EBITDA Analysis'!K14,'EV to EBITDA Analysis'!K43,'EV to EBITDA Analysis'!X340,'EV to EBITDA Analysis'!X259,'EV to EBITDA Analysis'!X313,'EV to EBITDA Analysis'!X366,'EV to EBITDA Analysis'!K153,'EV to EBITDA Analysis'!X43,'EV to EBITDA Analysis'!X14,'EV to EBITDA Analysis'!X287,'EV to EBITDA Analysis'!K287,'EV to EBITDA Analysis'!K416,'EV to EBITDA Analysis'!X469,'EV to EBITDA Analysis'!X391,'EV to EBITDA Analysis'!X441,'EV to EBITDA Analysis'!X416,'EV to EBITDA Analysis'!K441) -> FALSE | N15: =CHOOSE($E$35,'EV to EBITDA Analysis'!L469,'EV to EBITDA Analysis'!Y207,'EV to EBITDA Analysis'!L14,'EV to EBITDA Analysis'!L43,'EV to EBITDA Analysis'!Y340,'EV to EBITDA Analysis'!Y259,'EV to EBITDA Analysis'!Y313,'EV to EBITDA Analysis'!Y366,'EV to EBITDA Analysis'!L153,'EV to EBITDA Analysis'!Y43,'EV to EBITDA Analysis'!Y14,'EV to EBITDA Analysis'!Y287,'EV to EBITDA Analysis'!L287,'EV to EBITDA Analysis'!L416,'EV to EBITDA Analysis'!Y469,'EV to EBITDA Analysis'!Y391,'EV to EBITDA Analysis'!Y441,'EV to EBITDA Analysis'!Y416,'EV to EBITDA Analysis'!L441) -> 0 | O15: TRUE | P15: 8 | R15: 4 | S15: 11 | T15: Molson Coors Brewing Company | V15: FALSE | W15: 0.02986535745 | X15: 0.03477602066 | Y15: 0.04189696706 | Z15: 0.03220196655 | AA15: 0.01279588467 | AB15: 0.01279588467 | AC15: FALSE | AD15: FALSE | AE15: 0
C16: ='Data Cost of Capital'!D19 -> Heineken | E16: =CHOOSE($E$35,'EV to EBITDA Analysis'!C470,'EV to EBITDA Analysis'!P208,'EV to EBITDA Analysis'!C15,'EV to EBITDA Analysis'!C44,'EV to EBITDA Analysis'!P341,'EV to EBITDA Analysis'!P260,'EV to EBITDA Analysis'!P314,'EV to EBITDA Analysis'!P367,'EV to EBITDA Analysis'!C154,'EV to EBITDA Analysis'!P44,'EV to EBITDA Analysis'!P15,'EV to EBITDA Analysis'!P288,'EV to EBITDA Analysis'!C288,'EV to EBITDA Analysis'!C417,'EV to EBITDA Analysis'!P470,'EV to EBITDA Analysis'!P392,'EV to EBITDA Analysis'!P442,'EV to EBITDA Analysis'!P417,'EV to EBITDA Analysis'!C442) -> FALSE | F16: =CHOOSE($E$35,'EV to EBITDA Analysis'!D470,'EV to EBITDA Analysis'!Q208,'EV to EBITDA Analysis'!D15,'EV to EBITDA Analysis'!D44,'EV to EBITDA Analysis'!Q341,'EV to EBITDA Analysis'!Q260,'EV to EBITDA Analysis'!Q314,'EV to EBITDA Analysis'!Q367,'EV to EBITDA Analysis'!D154,'EV to EBITDA Analysis'!Q44,'EV to EBITDA Analysis'!Q15,'EV to EBITDA Analysis'!Q288,'EV to EBITDA Analysis'!D288,'EV to EBITDA Analysis'!D417,'EV to EBITDA Analysis'!Q470,'EV to EBITDA Analysis'!Q392,'EV to EBITDA Analysis'!Q442,'EV to EBITDA Analysis'!Q417,'EV to EBITDA Analysis'!D442) -> 0.08276440542 | G16: =CHOOSE($E$35,'EV to EBITDA Analysis'!E470,'EV to EBITDA Analysis'!R208,'EV to EBITDA Analysis'!E15,'EV to EBITDA Analysis'!E44,'EV to EBITDA Analysis'!R341,'EV to EBITDA Analysis'!R260,'EV to EBITDA Analysis'!R314,'EV to EBITDA Analysis'!R367,'EV to EBITDA Analysis'!E154,'EV to EBITDA Analysis'!R44,'EV to EBITDA Analysis'!R15,'EV to EBITDA Analysis'!R288,'EV to EBITDA Analysis'!E288,'EV to EBITDA Analysis'!E417,'EV to EBITDA Analysis'!R470,'EV to EBITDA Analysis'!R392,'EV to EBITDA Analysis'!R442,'EV to EBITDA Analysis'!R417,'EV to EBITDA Analysis'!E442) -> 0.08676410866 | H16: =CHOOSE($E$35,'EV to EBITDA Analysis'!F470,'EV to EBITDA Analysis'!S208,'EV to EBITDA Analysis'!F15,'EV to EBITDA Analysis'!F44,'EV to EBITDA Analysis'!S341,'EV to EBITDA Analysis'!S260,'EV to EBITDA Analysis'!S314,'EV to EBITDA Analysis'!S367,'EV to EBITDA Analysis'!F154,'EV to EBITDA Analysis'!S44,'EV to EBITDA Analysis'!S15,'EV to EBITDA Analysis'!S288,'EV to EBITDA Analysis'!F288,'EV to EBITDA Analysis'!F417,'EV to EBITDA Analysis'!S470,'EV to EBITDA Analysis'!S392,'EV to EBITDA Analysis'!S442,'EV to EBITDA Analysis'!S417,'EV to EBITDA Analysis'!F442) -> 0.08397904022 | I16: =CHOOSE($E$35,'EV to EBITDA Analysis'!G470,'EV to EBITDA Analysis'!T208,'EV to EBITDA Analysis'!G15,'EV to EBITDA Analysis'!G44,'EV to EBITDA Analysis'!T341,'EV to EBITDA Analysis'!T260,'EV to EBITDA Analysis'!T314,'EV to EBITDA Analysis'!T367,'EV to EBITDA Analysis'!G154,'EV to EBITDA Analysis'!T44,'EV to EBITDA Analysis'!T15,'EV to EBITDA Analysis'!T288,'EV to EBITDA Analysis'!G288,'EV to EBITDA Analysis'!G417,'EV to EBITDA Analysis'!T470,'EV to EBITDA Analysis'!T392,'EV to EBITDA Analysis'!T442,'EV to EBITDA Analysis'!T417,'EV to EBITDA Analysis'!G442) -> 0.08507514787 | J16: =CHOOSE($E$35,'EV to EBITDA Analysis'!H470,'EV to EBITDA Analysis'!U208,'EV to EBITDA Analysis'!H15,'EV to EBITDA Analysis'!H44,'EV to EBITDA Analysis'!U341,'EV to EBITDA Analysis'!U260,'EV to EBITDA Analysis'!U314,'EV to EBITDA Analysis'!U367,'EV to EBITDA Analysis'!H154,'EV to EBITDA Analysis'!U44,'EV to EBITDA Analysis'!U15,'EV to EBITDA Analysis'!U288,'EV to EBITDA Analysis'!H288,'EV to EBITDA Analysis'!H417,'EV to EBITDA Analysis'!U470,'EV to EBITDA Analysis'!U392,'EV to EBITDA Analysis'!U442,'EV to EBITDA Analysis'!U417,'EV to EBITDA Analysis'!H442) -> 0.08907743196 | K16: =CHOOSE($E$35,'EV to EBITDA Analysis'!I470,'EV to EBITDA Analysis'!V208,'EV to EBITDA Analysis'!I15,'EV to EBITDA Analysis'!I44,'EV to EBITDA Analysis'!V341,'EV to EBITDA Analysis'!V260,'EV to EBITDA Analysis'!V314,'EV to EBITDA Analysis'!V367,'EV to EBITDA Analysis'!I154,'EV to EBITDA Analysis'!V44,'EV to EBITDA Analysis'!V15,'EV to EBITDA Analysis'!V288,'EV to EBITDA Analysis'!I288,'EV to EBITDA Analysis'!I417,'EV to EBITDA Analysis'!V470,'EV to EBITDA Analysis'!V392,'EV to EBITDA Analysis'!V442,'EV to EBITDA Analysis'!V417,'EV to EBITDA Analysis'!I442) -> 0.08822056306 | L16: =CHOOSE($E$35,'EV to EBITDA Analysis'!J470,'EV to EBITDA Analysis'!W208,'EV to EBITDA Analysis'!J15,'EV to EBITDA Analysis'!J44,'EV to EBITDA Analysis'!W341,'EV to EBITDA Analysis'!W260,'EV to EBITDA Analysis'!W314,'EV to EBITDA Analysis'!W367,'EV to EBITDA Analysis'!J154,'EV to EBITDA Analysis'!W44,'EV to EBITDA Analysis'!W15,'EV to EBITDA Analysis'!W288,'EV to EBITDA Analysis'!J288,'EV to EBITDA Analysis'!J417,'EV to EBITDA Analysis'!W470,'EV to EBITDA Analysis'!W392,'EV to EBITDA Analysis'!W442,'EV to EBITDA Analysis'!W417,'EV to EBITDA Analysis'!J442) -> FALSE | M16: =CHOOSE($E$35,'EV to EBITDA Analysis'!K470,'EV to EBITDA Analysis'!X208,'EV to EBITDA Analysis'!K15,'EV to EBITDA Analysis'!K44,'EV to EBITDA Analysis'!X341,'EV to EBITDA Analysis'!X260,'EV to EBITDA Analysis'!X314,'EV to EBITDA Analysis'!X367,'EV to EBITDA Analysis'!K154,'EV to EBITDA Analysis'!X44,'EV to EBITDA Analysis'!X15,'EV to EBITDA Analysis'!X288,'EV to EBITDA Analysis'!K288,'EV to EBITDA Analysis'!K417,'EV to EBITDA Analysis'!X470,'EV to EBITDA Analysis'!X392,'EV to EBITDA Analysis'!X442,'EV to EBITDA Analysis'!X417,'EV to EBITDA Analysis'!K442) -> FALSE | N16: =CHOOSE($E$35,'EV to EBITDA Analysis'!L470,'EV to EBITDA Analysis'!Y208,'EV to EBITDA Analysis'!L15,'EV to EBITDA Analysis'!L44,'EV to EBITDA Analysis'!Y341,'EV to EBITDA Analysis'!Y260,'EV to EBITDA Analysis'!Y314,'EV to EBITDA Analysis'!Y367,'EV to EBITDA Analysis'!L154,'EV to EBITDA Analysis'!Y44,'EV to EBITDA Analysis'!Y15,'EV to EBITDA Analysis'!Y288,'EV to EBITDA Analysis'!L288,'EV to EBITDA Analysis'!L417,'EV to EBITDA Analysis'!Y470,'EV to EBITDA Analysis'!Y392,'EV to EBITDA Analysis'!Y442,'EV to EBITDA Analysis'!Y417,'EV to EBITDA Analysis'!L442) -> 0 | O16: TRUE | P16: 9 | R16: 5 | S16: 12 | T16: Boston Beer | V16: FALSE | W16: 0.3492981559 | X16: 0.2223269026 | Y16: 0.2151392866 | Z16: 0.2256925765 | AA16: 0.2052354058 | AB16: 0.2052354058 | AC16: FALSE | AD16: FALSE | AE16: 0
C17: ='Data Cost of Capital'!D20 -> Cott | E17: =CHOOSE($E$35,'EV to EBITDA Analysis'!C471,'EV to EBITDA Analysis'!P209,'EV to EBITDA Analysis'!C16,'EV to EBITDA Analysis'!C45,'EV to EBITDA Analysis'!P342,'EV to EBITDA Analysis'!P261,'EV to EBITDA Analysis'!P315,'EV to EBITDA Analysis'!P368,'EV to EBITDA Analysis'!C155,'EV to EBITDA Analysis'!P45,'EV to EBITDA Analysis'!P16,'EV to EBITDA Analysis'!P289,'EV to EBITDA Analysis'!C289,'EV to EBITDA Analysis'!C418,'EV to EBITDA Analysis'!P471,'EV to EBITDA Analysis'!P393,'EV to EBITDA Analysis'!P443,'EV to EBITDA Analysis'!P418,'EV to EBITDA Analysis'!C443) -> FALSE | F17: =CHOOSE($E$35,'EV to EBITDA Analysis'!D471,'EV to EBITDA Analysis'!Q209,'EV to EBITDA Analysis'!D16,'EV to EBITDA Analysis'!D45,'EV to EBITDA Analysis'!Q342,'EV to EBITDA Analysis'!Q261,'EV to EBITDA Analysis'!Q315,'EV to EBITDA Analysis'!Q368,'EV to EBITDA Analysis'!D155,'EV to EBITDA Analysis'!Q45,'EV to EBITDA Analysis'!Q16,'EV to EBITDA Analysis'!Q289,'EV to EBITDA Analysis'!D289,'EV to EBITDA Analysis'!D418,'EV to EBITDA Analysis'!Q471,'EV to EBITDA Analysis'!Q393,'EV to EBITDA Analysis'!Q443,'EV to EBITDA Analysis'!Q418,'EV to EBITDA Analysis'!D443) -> 0.7601407549 | G17: =CHOOSE($E$35,'EV to EBITDA Analysis'!E471,'EV to EBITDA Analysis'!R209,'EV to EBITDA Analysis'!E16,'EV to EBITDA Analysis'!E45,'EV to EBITDA Analysis'!R342,'EV to EBITDA Analysis'!R261,'EV to EBITDA Analysis'!R315,'EV to EBITDA Analysis'!R368,'EV to EBITDA Analysis'!E155,'EV to EBITDA Analysis'!R45,'EV to EBITDA Analysis'!R16,'EV to EBITDA Analysis'!R289,'EV to EBITDA Analysis'!E289,'EV to EBITDA Analysis'!E418,'EV to EBITDA Analysis'!R471,'EV to EBITDA Analysis'!R393,'EV to EBITDA Analysis'!R443,'EV to EBITDA Analysis'!R418,'EV to EBITDA Analysis'!E443) -> 0.1025143268 | H17: =CHOOSE($E$35,'EV to EBITDA Analysis'!F471,'EV to EBITDA Analysis'!S209,'EV to EBITDA Analysis'!F16,'EV to EBITDA Analysis'!F45,'EV to EBITDA Analysis'!S342,'EV to EBITDA Analysis'!S261,'EV to EBITDA Analysis'!S315,'EV to EBITDA Analysis'!S368,'EV to EBITDA Analysis'!F155,'EV to EBITDA Analysis'!S45,'EV to EBITDA Analysis'!S16,'EV to EBITDA Analysis'!S289,'EV to EBITDA Analysis'!F289,'EV to EBITDA Analysis'!F418,'EV to EBITDA Analysis'!S471,'EV to EBITDA Analysis'!S393,'EV to EBITDA Analysis'!S443,'EV to EBITDA Analysis'!S418,'EV to EBITDA Analysis'!F443) -> -0.01033129484 | I17: =CHOOSE($E$35,'EV to EBITDA Analysis'!G471,'EV to EBITDA Analysis'!T209,'EV to EBITDA Analysis'!G16,'EV to EBITDA Analysis'!G45,'EV to EBITDA Analysis'!T342,'EV to EBITDA Analysis'!T261,'EV to EBITDA Analysis'!T315,'EV to EBITDA Analysis'!T368,'EV to EBITDA Analysis'!G155,'EV to EBITDA Analysis'!T45,'EV to EBITDA Analysis'!T16,'EV to EBITDA Analysis'!T289,'EV to EBITDA Analysis'!G289,'EV to EBITDA Analysis'!G418,'EV to EBITDA Analysis'!T471,'EV to EBITDA Analysis'!T393,'EV to EBITDA Analysis'!T443,'EV to EBITDA Analysis'!T418,'EV to EBITDA Analysis'!G443) -> -0.5232968751 | J17: =CHOOSE($E$35,'EV to EBITDA Analysis'!H471,'EV to EBITDA Analysis'!U209,'EV to EBITDA Analysis'!H16,'EV to EBITDA Analysis'!H45,'EV to EBITDA Analysis'!U342,'EV to EBITDA Analysis'!U261,'EV to EBITDA Analysis'!U315,'EV to EBITDA Analysis'!U368,'EV to EBITDA Analysis'!H155,'EV to EBITDA Analysis'!U45,'EV to EBITDA Analysis'!U16,'EV to EBITDA Analysis'!U289,'EV to EBITDA Analysis'!H289,'EV to EBITDA Analysis'!H418,'EV to EBITDA Analysis'!U471,'EV to EBITDA Analysis'!U393,'EV to EBITDA Analysis'!U443,'EV to EBITDA Analysis'!U418,'EV to EBITDA Analysis'!H443) -> 0.05721988824 | K17: =CHOOSE($E$35,'EV to EBITDA Analysis'!I471,'EV to EBITDA Analysis'!V209,'EV to EBITDA Analysis'!I16,'EV to EBITDA Analysis'!I45,'EV to EBITDA Analysis'!V342,'EV to EBITDA Analysis'!V261,'EV to EBITDA Analysis'!V315,'EV to EBITDA Analysis'!V368,'EV to EBITDA Analysis'!I155,'EV to EBITDA Analysis'!V45,'EV to EBITDA Analysis'!V16,'EV to EBITDA Analysis'!V289,'EV to EBITDA Analysis'!I289,'EV to EBITDA Analysis'!I418,'EV to EBITDA Analysis'!V471,'EV to EBITDA Analysis'!V393,'EV to EBITDA Analysis'!V443,'EV to EBITDA Analysis'!V418,'EV to EBITDA Analysis'!I443) -> 0.05721988824 | L17: =CHOOSE($E$35,'EV to EBITDA Analysis'!J471,'EV to EBITDA Analysis'!W209,'EV to EBITDA Analysis'!J16,'EV to EBITDA Analysis'!J45,'EV to EBITDA Analysis'!W342,'EV to EBITDA Analysis'!W261,'EV to EBITDA Analysis'!W315,'EV to EBITDA Analysis'!W368,'EV to EBITDA Analysis'!J155,'EV to EBITDA Analysis'!W45,'EV to EBITDA Analysis'!W16,'EV to EBITDA Analysis'!W289,'EV to EBITDA Analysis'!J289,'EV to EBITDA Analysis'!J418,'EV to EBITDA Analysis'!W471,'EV to EBITDA Analysis'!W393,'EV to EBITDA Analysis'!W443,'EV to EBITDA Analysis'!W418,'EV to EBITDA Analysis'!J443) -> FALSE | M17: =CHOOSE($E$35,'EV to EBITDA Analysis'!K471,'EV to EBITDA Analysis'!X209,'EV to EBITDA Analysis'!K16,'EV to EBITDA Analysis'!K45,'EV to EBITDA Analysis'!X342,'EV to EBITDA Analysis'!X261,'EV to EBITDA Analysis'!X315,'EV to EBITDA Analysis'!X368,'EV to EBITDA Analysis'!K155,'EV to EBITDA Analysis'!X45,'EV to EBITDA Analysis'!X16,'EV to EBITDA Analysis'!X289,'EV to EBITDA Analysis'!K289,'EV to EBITDA Analysis'!K418,'EV to EBITDA Analysis'!X471,'EV to EBITDA Analysis'!X393,'EV to EBITDA Analysis'!X443,'EV to EBITDA Analysis'!X418,'EV to EBITDA Analysis'!K443) -> FALSE | N17: =CHOOSE($E$35,'EV to EBITDA Analysis'!L471,'EV to EBITDA Analysis'!Y209,'EV to EBITDA Analysis'!L16,'EV to EBITDA Analysis'!L45,'EV to EBITDA Analysis'!Y342,'EV to EBITDA Analysis'!Y261,'EV to EBITDA Analysis'!Y315,'EV to EBITDA Analysis'!Y368,'EV to EBITDA Analysis'!L155,'EV to EBITDA Analysis'!Y45,'EV to EBITDA Analysis'!Y16,'EV to EBITDA Analysis'!Y289,'EV to EBITDA Analysis'!L289,'EV to EBITDA Analysis'!L418,'EV to EBITDA Analysis'!Y471,'EV to EBITDA Analysis'!Y393,'EV to EBITDA Analysis'!Y443,'EV to EBITDA Analysis'!Y418,'EV to EBITDA Analysis'!L443) -> 0 | O17: TRUE | P17: 10 | R17: 6 | S17: 13 | T17: Constellation Brands | V17: FALSE | W17: 0.07149259866 | X17: 0.08536241754 | Y17: 0.084681473 | Z17: 0.09255662266 | AA17: 0.1034632175 | AB17: 0.1034632175 | AC17: FALSE | AD17: FALSE | AE17: 0
C18: ='Data Cost of Capital'!D21 -> Fomento Economico Mexicano SAB de CV (USD,MXN) | E18: =CHOOSE($E$35,'EV to EBITDA Analysis'!C472,'EV to EBITDA Analysis'!P210,'EV to EBITDA Analysis'!C17,'EV to EBITDA Analysis'!C46,'EV to EBITDA Analysis'!P343,'EV to EBITDA Analysis'!P262,'EV to EBITDA Analysis'!P316,'EV to EBITDA Analysis'!P369,'EV to EBITDA Analysis'!C156,'EV to EBITDA Analysis'!P46,'EV to EBITDA Analysis'!P17,'EV to EBITDA Analysis'!P290,'EV to EBITDA Analysis'!C290,'EV to EBITDA Analysis'!C419,'EV to EBITDA Analysis'!P472,'EV to EBITDA Analysis'!P394,'EV to EBITDA Analysis'!P444,'EV to EBITDA Analysis'!P419,'EV to EBITDA Analysis'!C444) -> FALSE | F18: =CHOOSE($E$35,'EV to EBITDA Analysis'!D472,'EV to EBITDA Analysis'!Q210,'EV to EBITDA Analysis'!D17,'EV to EBITDA Analysis'!D46,'EV to EBITDA Analysis'!Q343,'EV to EBITDA Analysis'!Q262,'EV to EBITDA Analysis'!Q316,'EV to EBITDA Analysis'!Q369,'EV to EBITDA Analysis'!D156,'EV to EBITDA Analysis'!Q46,'EV to EBITDA Analysis'!Q17,'EV to EBITDA Analysis'!Q290,'EV to EBITDA Analysis'!D290,'EV to EBITDA Analysis'!D419,'EV to EBITDA Analysis'!Q472,'EV to EBITDA Analysis'!Q394,'EV to EBITDA Analysis'!Q444,'EV to EBITDA Analysis'!Q419,'EV to EBITDA Analysis'!D444) -> -0.03205799154 | G18: =CHOOSE($E$35,'EV to EBITDA Analysis'!E472,'EV to EBITDA Analysis'!R210,'EV to EBITDA Analysis'!E17,'EV to EBITDA Analysis'!E46,'EV to EBITDA Analysis'!R343,'EV to EBITDA Analysis'!R262,'EV to EBITDA Analysis'!R316,'EV to EBITDA Analysis'!R369,'EV to EBITDA Analysis'!E156,'EV to EBITDA Analysis'!R46,'EV to EBITDA Analysis'!R17,'EV to EBITDA Analysis'!R290,'EV to EBITDA Analysis'!E290,'EV to EBITDA Analysis'!E419,'EV to EBITDA Analysis'!R472,'EV to EBITDA Analysis'!R394,'EV to EBITDA Analysis'!R444,'EV to EBITDA Analysis'!R419,'EV to EBITDA Analysis'!E444) -> -0.01984661882 | H18: =CHOOSE($E$35,'EV to EBITDA Analysis'!F472,'EV to EBITDA Analysis'!S210,'EV to EBITDA Analysis'!F17,'EV to EBITDA Analysis'!F46,'EV to EBITDA Analysis'!S343,'EV to EBITDA Analysis'!S262,'EV to EBITDA Analysis'!S316,'EV to EBITDA Analysis'!S369,'EV to EBITDA Analysis'!F156,'EV to EBITDA Analysis'!S46,'EV to EBITDA Analysis'!S17,'EV to EBITDA Analysis'!S290,'EV to EBITDA Analysis'!F290,'EV to EBITDA Analysis'!F419,'EV to EBITDA Analysis'!S472,'EV to EBITDA Analysis'!S394,'EV to EBITDA Analysis'!S444,'EV to EBITDA Analysis'!S419,'EV to EBITDA Analysis'!F444) -> 0.04862459922 | I18: =CHOOSE($E$35,'EV to EBITDA Analysis'!G472,'EV to EBITDA Analysis'!T210,'EV to EBITDA Analysis'!G17,'EV to EBITDA Analysis'!G46,'EV to EBITDA Analysis'!T343,'EV to EBITDA Analysis'!T262,'EV to EBITDA Analysis'!T316,'EV to EBITDA Analysis'!T369,'EV to EBITDA Analysis'!G156,'EV to EBITDA Analysis'!T46,'EV to EBITDA Analysis'!T17,'EV to EBITDA Analysis'!T290,'EV to EBITDA Analysis'!G290,'EV to EBITDA Analysis'!G419,'EV to EBITDA Analysis'!T472,'EV to EBITDA Analysis'!T394,'EV to EBITDA Analysis'!T444,'EV to EBITDA Analysis'!T419,'EV to EBITDA Analysis'!G444) -> 0.0001642158732 | J18: =CHOOSE($E$35,'EV to EBITDA Analysis'!H472,'EV to EBITDA Analysis'!U210,'EV to EBITDA Analysis'!H17,'EV to EBITDA Analysis'!H46,'EV to EBITDA Analysis'!U343,'EV to EBITDA Analysis'!U262,'EV to EBITDA Analysis'!U316,'EV to EBITDA Analysis'!U369,'EV to EBITDA Analysis'!H156,'EV to EBITDA Analysis'!U46,'EV to EBITDA Analysis'!U17,'EV to EBITDA Analysis'!U290,'EV to EBITDA Analysis'!H290,'EV to EBITDA Analysis'!H419,'EV to EBITDA Analysis'!U472,'EV to EBITDA Analysis'!U394,'EV to EBITDA Analysis'!U444,'EV to EBITDA Analysis'!U419,'EV to EBITDA Analysis'!H444) -> 0.1243867867 | K18: =CHOOSE($E$35,'EV to EBITDA Analysis'!I472,'EV to EBITDA Analysis'!V210,'EV to EBITDA Analysis'!I17,'EV to EBITDA Analysis'!I46,'EV to EBITDA Analysis'!V343,'EV to EBITDA Analysis'!V262,'EV to EBITDA Analysis'!V316,'EV to EBITDA Analysis'!V369,'EV to EBITDA Analysis'!I156,'EV to EBITDA Analysis'!V46,'EV to EBITDA Analysis'!V17,'EV to EBITDA Analysis'!V290,'EV to EBITDA Analysis'!I290,'EV to EBITDA Analysis'!I419,'EV to EBITDA Analysis'!V472,'EV to EBITDA Analysis'!V394,'EV to EBITDA Analysis'!V444,'EV to EBITDA Analysis'!V419,'EV to EBITDA Analysis'!I444) -> 0.1099040429 | L18: =CHOOSE($E$35,'EV to EBITDA Analysis'!J472,'EV to EBITDA Analysis'!W210,'EV to EBITDA Analysis'!J17,'EV to EBITDA Analysis'!J46,'EV to EBITDA Analysis'!W343,'EV to EBITDA Analysis'!W262,'EV to EBITDA Analysis'!W316,'EV to EBITDA Analysis'!W369,'EV to EBITDA Analysis'!J156,'EV to EBITDA Analysis'!W46,'EV to EBITDA Analysis'!W17,'EV to EBITDA Analysis'!W290,'EV to EBITDA Analysis'!J290,'EV to EBITDA Analysis'!J419,'EV to EBITDA Analysis'!W472,'EV to EBITDA Analysis'!W394,'EV to EBITDA Analysis'!W444,'EV to EBITDA Analysis'!W419,'EV to EBITDA Analysis'!J444) -> FALSE | M18: =CHOOSE($E$35,'EV to EBITDA Analysis'!K472,'EV to EBITDA Analysis'!X210,'EV to EBITDA Analysis'!K17,'EV to EBITDA Analysis'!K46,'EV to EBITDA Analysis'!X343,'EV to EBITDA Analysis'!X262,'EV to EBITDA Analysis'!X316,'EV to EBITDA Analysis'!X369,'EV to EBITDA Analysis'!K156,'EV to EBITDA Analysis'!X46,'EV to EBITDA Analysis'!X17,'EV to EBITDA Analysis'!X290,'EV to EBITDA Analysis'!K290,'EV to EBITDA Analysis'!K419,'EV to EBITDA Analysis'!X472,'EV to EBITDA Analysis'!X394,'EV to EBITDA Analysis'!X444,'EV to EBITDA Analysis'!X419,'EV to EBITDA Analysis'!K444) -> FALSE | N18: =CHOOSE($E$35,'EV to EBITDA Analysis'!L472,'EV to EBITDA Analysis'!Y210,'EV to EBITDA Analysis'!L17,'EV to EBITDA Analysis'!L46,'EV to EBITDA Analysis'!Y343,'EV to EBITDA Analysis'!Y262,'EV to EBITDA Analysis'!Y316,'EV to EBITDA Analysis'!Y369,'EV to EBITDA Analysis'!L156,'EV to EBITDA Analysis'!Y46,'EV to EBITDA Analysis'!Y17,'EV to EBITDA Analysis'!Y290,'EV to EBITDA Analysis'!L290,'EV to EBITDA Analysis'!L419,'EV to EBITDA Analysis'!Y472,'EV to EBITDA Analysis'!Y394,'EV to EBITDA Analysis'!Y444,'EV to EBITDA Analysis'!Y419,'EV to EBITDA Analysis'!L444) -> 0 | O18: TRUE | P18: 11 | R18: 7 | S18: 14 | T18: Craft Brew Alliance | V18: FALSE | W18: 0.01888775278 | X18: -0.004053593696 | Y18: -0.003306979089 | Z18: -0.001361049495 | AA18: FALSE | AB18: FALSE | AC18: FALSE | AD18: FALSE | AE18: 0
C19: ='Data Cost of Capital'!D22 -> Tsingtao Brewery Company Limited | E19: =CHOOSE($E$35,'EV to EBITDA Analysis'!C473,'EV to EBITDA Analysis'!P211,'EV to EBITDA Analysis'!C18,'EV to EBITDA Analysis'!C47,'EV to EBITDA Analysis'!P344,'EV to EBITDA Analysis'!P263,'EV to EBITDA Analysis'!P317,'EV to EBITDA Analysis'!P370,'EV to EBITDA Analysis'!C157,'EV to EBITDA Analysis'!P47,'EV to EBITDA Analysis'!P18,'EV to EBITDA Analysis'!P291,'EV to EBITDA Analysis'!C291,'EV to EBITDA Analysis'!C420,'EV to EBITDA Analysis'!P473,'EV to EBITDA Analysis'!P395,'EV to EBITDA Analysis'!P445,'EV to EBITDA Analysis'!P420,'EV to EBITDA Analysis'!C445) -> FALSE | F19: =CHOOSE($E$35,'EV to EBITDA Analysis'!D473,'EV to EBITDA Analysis'!Q211,'EV to EBITDA Analysis'!D18,'EV to EBITDA Analysis'!D47,'EV to EBITDA Analysis'!Q344,'EV to EBITDA Analysis'!Q263,'EV to EBITDA Analysis'!Q317,'EV to EBITDA Analysis'!Q370,'EV to EBITDA Analysis'!D157,'EV to EBITDA Analysis'!Q47,'EV to EBITDA Analysis'!Q18,'EV to EBITDA Analysis'!Q291,'EV to EBITDA Analysis'!D291,'EV to EBITDA Analysis'!D420,'EV to EBITDA Analysis'!Q473,'EV to EBITDA Analysis'!Q395,'EV to EBITDA Analysis'!Q445,'EV to EBITDA Analysis'!Q420,'EV to EBITDA Analysis'!D445) -> 0.1923981027 | G19: =CHOOSE($E$35,'EV to EBITDA Analysis'!E473,'EV to EBITDA Analysis'!R211,'EV to EBITDA Analysis'!E18,'EV to EBITDA Analysis'!E47,'EV to EBITDA Analysis'!R344,'EV to EBITDA Analysis'!R263,'EV to EBITDA Analysis'!R317,'EV to EBITDA Analysis'!R370,'EV to EBITDA Analysis'!E157,'EV to EBITDA Analysis'!R47,'EV to EBITDA Analysis'!R18,'EV to EBITDA Analysis'!R291,'EV to EBITDA Analysis'!E291,'EV to EBITDA Analysis'!E420,'EV to EBITDA Analysis'!R473,'EV to EBITDA Analysis'!R395,'EV to EBITDA Analysis'!R445,'EV to EBITDA Analysis'!R420,'EV to EBITDA Analysis'!E445) -> 0.1826476435 | H19: =CHOOSE($E$35,'EV to EBITDA Analysis'!F473,'EV to EBITDA Analysis'!S211,'EV to EBITDA Analysis'!F18,'EV to EBITDA Analysis'!F47,'EV to EBITDA Analysis'!S344,'EV to EBITDA Analysis'!S263,'EV to EBITDA Analysis'!S317,'EV to EBITDA Analysis'!S370,'EV to EBITDA Analysis'!F157,'EV to EBITDA Analysis'!S47,'EV to EBITDA Analysis'!S18,'EV to EBITDA Analysis'!S291,'EV to EBITDA Analysis'!F291,'EV to EBITDA Analysis'!F420,'EV to EBITDA Analysis'!S473,'EV to EBITDA Analysis'!S395,'EV to EBITDA Analysis'!S445,'EV to EBITDA Analysis'!S420,'EV to EBITDA Analysis'!F445) -> 0.1542478935 | I19: =CHOOSE($E$35,'EV to EBITDA Analysis'!G473,'EV to EBITDA Analysis'!T211,'EV to EBITDA Analysis'!G18,'EV to EBITDA Analysis'!G47,'EV to EBITDA Analysis'!T344,'EV to EBITDA Analysis'!T263,'EV to EBITDA Analysis'!T317,'EV to EBITDA Analysis'!T370,'EV to EBITDA Analysis'!G157,'EV to EBITDA Analysis'!T47,'EV to EBITDA Analysis'!T18,'EV to EBITDA Analysis'!T291,'EV to EBITDA Analysis'!G291,'EV to EBITDA Analysis'!G420,'EV to EBITDA Analysis'!T473,'EV to EBITDA Analysis'!T395,'EV to EBITDA Analysis'!T445,'EV to EBITDA Analysis'!T420,'EV to EBITDA Analysis'!G445) -> 0.08970610439 | J19: =CHOOSE($E$35,'EV to EBITDA Analysis'!H473,'EV to EBITDA Analysis'!U211,'EV to EBITDA Analysis'!H18,'EV to EBITDA Analysis'!H47,'EV to EBITDA Analysis'!U344,'EV to EBITDA Analysis'!U263,'EV to EBITDA Analysis'!U317,'EV to EBITDA Analysis'!U370,'EV to EBITDA Analysis'!H157,'EV to EBITDA Analysis'!U47,'EV to EBITDA Analysis'!U18,'EV to EBITDA Analysis'!U291,'EV to EBITDA Analysis'!H291,'EV to EBITDA Analysis'!H420,'EV to EBITDA Analysis'!U473,'EV to EBITDA Analysis'!U395,'EV to EBITDA Analysis'!U445,'EV to EBITDA Analysis'!U420,'EV to EBITDA Analysis'!H445) -> 0.08923188141 | K19: =CHOOSE($E$35,'EV to EBITDA Analysis'!I473,'EV to EBITDA Analysis'!V211,'EV to EBITDA Analysis'!I18,'EV to EBITDA Analysis'!I47,'EV to EBITDA Analysis'!V344,'EV to EBITDA Analysis'!V263,'EV to EBITDA Analysis'!V317,'EV to EBITDA Analysis'!V370,'EV to EBITDA Analysis'!I157,'EV to EBITDA Analysis'!V47,'EV to EBITDA Analysis'!V18,'EV to EBITDA Analysis'!V291,'EV to EBITDA Analysis'!I291,'EV to EBITDA Analysis'!I420,'EV to EBITDA Analysis'!V473,'EV to EBITDA Analysis'!V395,'EV to EBITDA Analysis'!V445,'EV to EBITDA Analysis'!V420,'EV to EBITDA Analysis'!I445) -> 0.08923188141 | L19: =CHOOSE($E$35,'EV to EBITDA Analysis'!J473,'EV to EBITDA Analysis'!W211,'EV to EBITDA Analysis'!J18,'EV to EBITDA Analysis'!J47,'EV to EBITDA Analysis'!W344,'EV to EBITDA Analysis'!W263,'EV to EBITDA Analysis'!W317,'EV to EBITDA Analysis'!W370,'EV to EBITDA Analysis'!J157,'EV to EBITDA Analysis'!W47,'EV to EBITDA Analysis'!W18,'EV to EBITDA Analysis'!W291,'EV to EBITDA Analysis'!J291,'EV to EBITDA Analysis'!J420,'EV to EBITDA Analysis'!W473,'EV to EBITDA Analysis'!W395,'EV to EBITDA Analysis'!W445,'EV to EBITDA Analysis'!W420,'EV to EBITDA Analysis'!J445) -> FALSE | M19: =CHOOSE($E$35,'EV to EBITDA Analysis'!K473,'EV to EBITDA Analysis'!X211,'EV to EBITDA Analysis'!K18,'EV to EBITDA Analysis'!K47,'EV to EBITDA Analysis'!X344,'EV to EBITDA Analysis'!X263,'EV to EBITDA Analysis'!X317,'EV to EBITDA Analysis'!X370,'EV to EBITDA Analysis'!K157,'EV to EBITDA Analysis'!X47,'EV to EBITDA Analysis'!X18,'EV to EBITDA Analysis'!X291,'EV to EBITDA Analysis'!K291,'EV to EBITDA Analysis'!K420,'EV to EBITDA Analysis'!X473,'EV to EBITDA Analysis'!X395,'EV to EBITDA Analysis'!X445,'EV to EBITDA Analysis'!X420,'EV to EBITDA Analysis'!K445) -> FALSE | N19: =CHOOSE($E$35,'EV to EBITDA Analysis'!L473,'EV to EBITDA Analysis'!Y211,'EV to EBITDA Analysis'!L18,'EV to EBITDA Analysis'!L47,'EV to EBITDA Analysis'!Y344,'EV to EBITDA Analysis'!Y263,'EV to EBITDA Analysis'!Y317,'EV to EBITDA Analysis'!Y370,'EV to EBITDA Analysis'!L157,'EV to EBITDA Analysis'!Y47,'EV to EBITDA Analysis'!Y18,'EV to EBITDA Analysis'!Y291,'EV to EBITDA Analysis'!L291,'EV to EBITDA Analysis'!L420,'EV to EBITDA Analysis'!Y473,'EV to EBITDA Analysis'!Y395,'EV to EBITDA Analysis'!Y445,'EV to EBITDA Analysis'!Y420,'EV to EBITDA Analysis'!L445) -> 0 | O19: TRUE | P19: 12 | R19: 8 | S19: 15 | T19: Willamett Valley | V19: FALSE | W19: -10540.28834 | X19: -271.1882664 | Y19: 4.501334903 | Z19: 0.003516000624 | AA19: 0.004504206642 | AB19: 0.004504206642 | AC19: FALSE | AD19: FALSE | AE19: 0
C20: ='Data Cost of Capital'!D23 -> Monster Beverage | E20: =CHOOSE($E$35,'EV to EBITDA Analysis'!C474,'EV to EBITDA Analysis'!P212,'EV to EBITDA Analysis'!C19,'EV to EBITDA Analysis'!C48,'EV to EBITDA Analysis'!P345,'EV to EBITDA Analysis'!P264,'EV to EBITDA Analysis'!P318,'EV to EBITDA Analysis'!P371,'EV to EBITDA Analysis'!C158,'EV to EBITDA Analysis'!P48,'EV to EBITDA Analysis'!P19,'EV to EBITDA Analysis'!P292,'EV to EBITDA Analysis'!C292,'EV to EBITDA Analysis'!C421,'EV to EBITDA Analysis'!P474,'EV to EBITDA Analysis'!P396,'EV to EBITDA Analysis'!P446,'EV to EBITDA Analysis'!P421,'EV to EBITDA Analysis'!C446) -> FALSE | F20: =CHOOSE($E$35,'EV to EBITDA Analysis'!D474,'EV to EBITDA Analysis'!Q212,'EV to EBITDA Analysis'!D19,'EV to EBITDA Analysis'!D48,'EV to EBITDA Analysis'!Q345,'EV to EBITDA Analysis'!Q264,'EV to EBITDA Analysis'!Q318,'EV to EBITDA Analysis'!Q371,'EV to EBITDA Analysis'!D158,'EV to EBITDA Analysis'!Q48,'EV to EBITDA Analysis'!Q19,'EV to EBITDA Analysis'!Q292,'EV to EBITDA Analysis'!D292,'EV to EBITDA Analysis'!D421,'EV to EBITDA Analysis'!Q474,'EV to EBITDA Analysis'!Q396,'EV to EBITDA Analysis'!Q446,'EV to EBITDA Analysis'!Q421,'EV to EBITDA Analysis'!D446) -> 1.123533957 | G20: =CHOOSE($E$35,'EV to EBITDA Analysis'!E474,'EV to EBITDA Analysis'!R212,'EV to EBITDA Analysis'!E19,'EV to EBITDA Analysis'!E48,'EV to EBITDA Analysis'!R345,'EV to EBITDA Analysis'!R264,'EV to EBITDA Analysis'!R318,'EV to EBITDA Analysis'!R371,'EV to EBITDA Analysis'!E158,'EV to EBITDA Analysis'!R48,'EV to EBITDA Analysis'!R19,'EV to EBITDA Analysis'!R292,'EV to EBITDA Analysis'!E292,'EV to EBITDA Analysis'!E421,'EV to EBITDA Analysis'!R474,'EV to EBITDA Analysis'!R396,'EV to EBITDA Analysis'!R446,'EV to EBITDA Analysis'!R421,'EV to EBITDA Analysis'!E446) -> 0.9762223331 | H20: =CHOOSE($E$35,'EV to EBITDA Analysis'!F474,'EV to EBITDA Analysis'!S212,'EV to EBITDA Analysis'!F19,'EV to EBITDA Analysis'!F48,'EV to EBITDA Analysis'!S345,'EV to EBITDA Analysis'!S264,'EV to EBITDA Analysis'!S318,'EV to EBITDA Analysis'!S371,'EV to EBITDA Analysis'!F158,'EV to EBITDA Analysis'!S48,'EV to EBITDA Analysis'!S19,'EV to EBITDA Analysis'!S292,'EV to EBITDA Analysis'!F292,'EV to EBITDA Analysis'!F421,'EV to EBITDA Analysis'!S474,'EV to EBITDA Analysis'!S396,'EV to EBITDA Analysis'!S446,'EV to EBITDA Analysis'!S421,'EV to EBITDA Analysis'!F446) -> 1.489893799 | I20: =CHOOSE($E$35,'EV to EBITDA Analysis'!G474,'EV to EBITDA Analysis'!T212,'EV to EBITDA Analysis'!G19,'EV to EBITDA Analysis'!G48,'EV to EBITDA Analysis'!T345,'EV to EBITDA Analysis'!T264,'EV to EBITDA Analysis'!T318,'EV to EBITDA Analysis'!T371,'EV to EBITDA Analysis'!G158,'EV to EBITDA Analysis'!T48,'EV to EBITDA Analysis'!T19,'EV to EBITDA Analysis'!T292,'EV to EBITDA Analysis'!G292,'EV to EBITDA Analysis'!G421,'EV to EBITDA Analysis'!T474,'EV to EBITDA Analysis'!T396,'EV to EBITDA Analysis'!T446,'EV to EBITDA Analysis'!T421,'EV to EBITDA Analysis'!G446) -> 0.3048496051 | J20: =CHOOSE($E$35,'EV to EBITDA Analysis'!H474,'EV to EBITDA Analysis'!U212,'EV to EBITDA Analysis'!H19,'EV to EBITDA Analysis'!H48,'EV to EBITDA Analysis'!U345,'EV to EBITDA Analysis'!U264,'EV to EBITDA Analysis'!U318,'EV to EBITDA Analysis'!U371,'EV to EBITDA Analysis'!H158,'EV to EBITDA Analysis'!U48,'EV to EBITDA Analysis'!U19,'EV to EBITDA Analysis'!U292,'EV to EBITDA Analysis'!H292,'EV to EBITDA Analysis'!H421,'EV to EBITDA Analysis'!U474,'EV to EBITDA Analysis'!U396,'EV to EBITDA Analysis'!U446,'EV to EBITDA Analysis'!U421,'EV to EBITDA Analysis'!H446) -> 0.2803671253 | K20: =CHOOSE($E$35,'EV to EBITDA Analysis'!I474,'EV to EBITDA Analysis'!V212,'EV to EBITDA Analysis'!I19,'EV to EBITDA Analysis'!I48,'EV to EBITDA Analysis'!V345,'EV to EBITDA Analysis'!V264,'EV to EBITDA Analysis'!V318,'EV to EBITDA Analysis'!V371,'EV to EBITDA Analysis'!I158,'EV to EBITDA Analysis'!V48,'EV to EBITDA Analysis'!V19,'EV to EBITDA Analysis'!V292,'EV to EBITDA Analysis'!I292,'EV to EBITDA Analysis'!I421,'EV to EBITDA Analysis'!V474,'EV to EBITDA Analysis'!V396,'EV to EBITDA Analysis'!V446,'EV to EBITDA Analysis'!V421,'EV to EBITDA Analysis'!I446) -> 0.2803671253 | L20: =CHOOSE($E$35,'EV to EBITDA Analysis'!J474,'EV to EBITDA Analysis'!W212,'EV to EBITDA Analysis'!J19,'EV to EBITDA Analysis'!J48,'EV to EBITDA Analysis'!W345,'EV to EBITDA Analysis'!W264,'EV to EBITDA Analysis'!W318,'EV to EBITDA Analysis'!W371,'EV to EBITDA Analysis'!J158,'EV to EBITDA Analysis'!W48,'EV to EBITDA Analysis'!W19,'EV to EBITDA Analysis'!W292,'EV to EBITDA Analysis'!J292,'EV to EBITDA Analysis'!J421,'EV to EBITDA Analysis'!W474,'EV to EBITDA Analysis'!W396,'EV to EBITDA Analysis'!W446,'EV to EBITDA Analysis'!W421,'EV to EBITDA Analysis'!J446) -> FALSE | M20: =CHOOSE($E$35,'EV to EBITDA Analysis'!K474,'EV to EBITDA Analysis'!X212,'EV to EBITDA Analysis'!K19,'EV to EBITDA Analysis'!K48,'EV to EBITDA Analysis'!X345,'EV to EBITDA Analysis'!X264,'EV to EBITDA Analysis'!X318,'EV to EBITDA Analysis'!X371,'EV to EBITDA Analysis'!K158,'EV to EBITDA Analysis'!X48,'EV to EBITDA Analysis'!X19,'EV to EBITDA Analysis'!X292,'EV to EBITDA Analysis'!K292,'EV to EBITDA Analysis'!K421,'EV to EBITDA Analysis'!X474,'EV to EBITDA Analysis'!X396,'EV to EBITDA Analysis'!X446,'EV to EBITDA Analysis'!X421,'EV to EBITDA Analysis'!K446) -> FALSE | N20: =CHOOSE($E$35,'EV to EBITDA Analysis'!L474,'EV to EBITDA Analysis'!Y212,'EV to EBITDA Analysis'!L19,'EV to EBITDA Analysis'!L48,'EV to EBITDA Analysis'!Y345,'EV to EBITDA Analysis'!Y264,'EV to EBITDA Analysis'!Y318,'EV to EBITDA Analysis'!Y371,'EV to EBITDA Analysis'!L158,'EV to EBITDA Analysis'!Y48,'EV to EBITDA Analysis'!Y19,'EV to EBITDA Analysis'!Y292,'EV to EBITDA Analysis'!L292,'EV to EBITDA Analysis'!L421,'EV to EBITDA Analysis'!Y474,'EV to EBITDA Analysis'!Y396,'EV to EBITDA Analysis'!Y446,'EV to EBITDA Analysis'!Y421,'EV to EBITDA Analysis'!L446) -> 0 | O20: TRUE | P20: 13 | R20: 9 | S20: 16 | T20: Heineken | V20: FALSE | W20: 0.08276440542 | X20: 0.08676410866 | Y20: 0.08397904022 | Z20: 0.08507514787 | AA20: 0.08907743196 | AB20: 0.08822056306 | AC20: FALSE | AD20: FALSE | AE20: 0 | AF20: =IFERROR(IRR(AH20:BG20),"") -> 
C21: ='Data Cost of Capital'!D24 -> Castle Brands Inc (USD) | E21: =CHOOSE($E$35,'EV to EBITDA Analysis'!C475,'EV to EBITDA Analysis'!P213,'EV to EBITDA Analysis'!C20,'EV to EBITDA Analysis'!C49,'EV to EBITDA Analysis'!P346,'EV to EBITDA Analysis'!P265,'EV to EBITDA Analysis'!P319,'EV to EBITDA Analysis'!P372,'EV to EBITDA Analysis'!C159,'EV to EBITDA Analysis'!P49,'EV to EBITDA Analysis'!P20,'EV to EBITDA Analysis'!P293,'EV to EBITDA Analysis'!C293,'EV to EBITDA Analysis'!C422,'EV to EBITDA Analysis'!P475,'EV to EBITDA Analysis'!P397,'EV to EBITDA Analysis'!P447,'EV to EBITDA Analysis'!P422,'EV to EBITDA Analysis'!C447) -> FALSE | F21: =CHOOSE($E$35,'EV to EBITDA Analysis'!D475,'EV to EBITDA Analysis'!Q213,'EV to EBITDA Analysis'!D20,'EV to EBITDA Analysis'!D49,'EV to EBITDA Analysis'!Q346,'EV to EBITDA Analysis'!Q265,'EV to EBITDA Analysis'!Q319,'EV to EBITDA Analysis'!Q372,'EV to EBITDA Analysis'!D159,'EV to EBITDA Analysis'!Q49,'EV to EBITDA Analysis'!Q20,'EV to EBITDA Analysis'!Q293,'EV to EBITDA Analysis'!D293,'EV to EBITDA Analysis'!D422,'EV to EBITDA Analysis'!Q475,'EV to EBITDA Analysis'!Q397,'EV to EBITDA Analysis'!Q447,'EV to EBITDA Analysis'!Q422,'EV to EBITDA Analysis'!D447) -> -33.8952727 | G21: =CHOOSE($E$35,'EV to EBITDA Analysis'!E475,'EV to EBITDA Analysis'!R213,'EV to EBITDA Analysis'!E20,'EV to EBITDA Analysis'!E49,'EV to EBITDA Analysis'!R346,'EV to EBITDA Analysis'!R265,'EV to EBITDA Analysis'!R319,'EV to EBITDA Analysis'!R372,'EV to EBITDA Analysis'!E159,'EV to EBITDA Analysis'!R49,'EV to EBITDA Analysis'!R20,'EV to EBITDA Analysis'!R293,'EV to EBITDA Analysis'!E293,'EV to EBITDA Analysis'!E422,'EV to EBITDA Analysis'!R475,'EV to EBITDA Analysis'!R397,'EV to EBITDA Analysis'!R447,'EV to EBITDA Analysis'!R422,'EV to EBITDA Analysis'!E447) -> -70.1113074 | H21: =CHOOSE($E$35,'EV to EBITDA Analysis'!F475,'EV to EBITDA Analysis'!S213,'EV to EBITDA Analysis'!F20,'EV to EBITDA Analysis'!F49,'EV to EBITDA Analysis'!S346,'EV to EBITDA Analysis'!S265,'EV to EBITDA Analysis'!S319,'EV to EBITDA Analysis'!S372,'EV to EBITDA Analysis'!F159,'EV to EBITDA Analysis'!S49,'EV to EBITDA Analysis'!S20,'EV to EBITDA Analysis'!S293,'EV to EBITDA Analysis'!F293,'EV to EBITDA Analysis'!F422,'EV to EBITDA Analysis'!S475,'EV to EBITDA Analysis'!S397,'EV to EBITDA Analysis'!S447,'EV to EBITDA Analysis'!S422,'EV to EBITDA Analysis'!F447) -> 6.439852954 | I21: =CHOOSE($E$35,'EV to EBITDA Analysis'!G475,'EV to EBITDA Analysis'!T213,'EV to EBITDA Analysis'!G20,'EV to EBITDA Analysis'!G49,'EV to EBITDA Analysis'!T346,'EV to EBITDA Analysis'!T265,'EV to EBITDA Analysis'!T319,'EV to EBITDA Analysis'!T372,'EV to EBITDA Analysis'!G159,'EV to EBITDA Analysis'!T49,'EV to EBITDA Analysis'!T20,'EV to EBITDA Analysis'!T293,'EV to EBITDA Analysis'!G293,'EV to EBITDA Analysis'!G422,'EV to EBITDA Analysis'!T475,'EV to EBITDA Analysis'!T397,'EV to EBITDA Analysis'!T447,'EV to EBITDA Analysis'!T422,'EV to EBITDA Analysis'!G447) -> 3.00474309 | J21: =CHOOSE($E$35,'EV to EBITDA Analysis'!H475,'EV to EBITDA Analysis'!U213,'EV to EBITDA Analysis'!H20,'EV to EBITDA Analysis'!H49,'EV to EBITDA Analysis'!U346,'EV to EBITDA Analysis'!U265,'EV to EBITDA Analysis'!U319,'EV to EBITDA Analysis'!U372,'EV to EBITDA Analysis'!H159,'EV to EBITDA Analysis'!U49,'EV to EBITDA Analysis'!U20,'EV to EBITDA Analysis'!U293,'EV to EBITDA Analysis'!H293,'EV to EBITDA Analysis'!H422,'EV to EBITDA Analysis'!U475,'EV to EBITDA Analysis'!U397,'EV to EBITDA Analysis'!U447,'EV to EBITDA Analysis'!U422,'EV to EBITDA Analysis'!H447) -> -0.00153886782 | K21: =CHOOSE($E$35,'EV to EBITDA Analysis'!I475,'EV to EBITDA Analysis'!V213,'EV to EBITDA Analysis'!I20,'EV to EBITDA Analysis'!I49,'EV to EBITDA Analysis'!V346,'EV to EBITDA Analysis'!V265,'EV to EBITDA Analysis'!V319,'EV to EBITDA Analysis'!V372,'EV to EBITDA Analysis'!I159,'EV to EBITDA Analysis'!V49,'EV to EBITDA Analysis'!V20,'EV to EBITDA Analysis'!V293,'EV to EBITDA Analysis'!I293,'EV to EBITDA Analysis'!I422,'EV to EBITDA Analysis'!V475,'EV to EBITDA Analysis'!V397,'EV to EBITDA Analysis'!V447,'EV to EBITDA Analysis'!V422,'EV to EBITDA Analysis'!I447) -> -0.00153886782 | L21: =CHOOSE($E$35,'EV to EBITDA Analysis'!J475,'EV to EBITDA Analysis'!W213,'EV to EBITDA Analysis'!J20,'EV to EBITDA Analysis'!J49,'EV to EBITDA Analysis'!W346,'EV to EBITDA Analysis'!W265,'EV to EBITDA Analysis'!W319,'EV to EBITDA Analysis'!W372,'EV to EBITDA Analysis'!J159,'EV to EBITDA Analysis'!W49,'EV to EBITDA Analysis'!W20,'EV to EBITDA Analysis'!W293,'EV to EBITDA Analysis'!J293,'EV to EBITDA Analysis'!J422,'EV to EBITDA Analysis'!W475,'EV to EBITDA Analysis'!W397,'EV to EBITDA Analysis'!W447,'EV to EBITDA Analysis'!W422,'EV to EBITDA Analysis'!J447) -> FALSE | M21: =CHOOSE($E$35,'EV to EBITDA Analysis'!K475,'EV to EBITDA Analysis'!X213,'EV to EBITDA Analysis'!K20,'EV to EBITDA Analysis'!K49,'EV to EBITDA Analysis'!X346,'EV to EBITDA Analysis'!X265,'EV to EBITDA Analysis'!X319,'EV to EBITDA Analysis'!X372,'EV to EBITDA Analysis'!K159,'EV to EBITDA Analysis'!X49,'EV to EBITDA Analysis'!X20,'EV to EBITDA Analysis'!X293,'EV to EBITDA Analysis'!K293,'EV to EBITDA Analysis'!K422,'EV to EBITDA Analysis'!X475,'EV to EBITDA Analysis'!X397,'EV to EBITDA Analysis'!X447,'EV to EBITDA Analysis'!X422,'EV to EBITDA Analysis'!K447) -> FALSE | N21: =CHOOSE($E$35,'EV to EBITDA Analysis'!L475,'EV to EBITDA Analysis'!Y213,'EV to EBITDA Analysis'!L20,'EV to EBITDA Analysis'!L49,'EV to EBITDA Analysis'!Y346,'EV to EBITDA Analysis'!Y265,'EV to EBITDA Analysis'!Y319,'EV to EBITDA Analysis'!Y372,'EV to EBITDA Analysis'!L159,'EV to EBITDA Analysis'!Y49,'EV to EBITDA Analysis'!Y20,'EV to EBITDA Analysis'!Y293,'EV to EBITDA Analysis'!L293,'EV to EBITDA Analysis'!L422,'EV to EBITDA Analysis'!Y475,'EV to EBITDA Analysis'!Y397,'EV to EBITDA Analysis'!Y447,'EV to EBITDA Analysis'!Y422,'EV to EBITDA Analysis'!L447) -> 0 | O21: TRUE | P21: 14 | R21: 10 | S21: 17 | T21: Cott | V21: FALSE | W21: 0.7601407549 | X21: 0.1025143268 | Y21: -0.01033129484 | Z21: -0.5232968751 | AA21: 0.05721988824 | AB21: 0.05721988824 | AC21: FALSE | AD21: FALSE | AE21: 0
C22: ='Data Cost of Capital'!D25 -> Pernod Ricard SA (USD,EUR) | E22: =CHOOSE($E$35,'EV to EBITDA Analysis'!C476,'EV to EBITDA Analysis'!P214,'EV to EBITDA Analysis'!C21,'EV to EBITDA Analysis'!C50,'EV to EBITDA Analysis'!P347,'EV to EBITDA Analysis'!P266,'EV to EBITDA Analysis'!P320,'EV to EBITDA Analysis'!P373,'EV to EBITDA Analysis'!C160,'EV to EBITDA Analysis'!P50,'EV to EBITDA Analysis'!P21,'EV to EBITDA Analysis'!P294,'EV to EBITDA Analysis'!C294,'EV to EBITDA Analysis'!C423,'EV to EBITDA Analysis'!P476,'EV to EBITDA Analysis'!P398,'EV to EBITDA Analysis'!P448,'EV to EBITDA Analysis'!P423,'EV to EBITDA Analysis'!C448) -> FALSE | F22: =CHOOSE($E$35,'EV to EBITDA Analysis'!D476,'EV to EBITDA Analysis'!Q214,'EV to EBITDA Analysis'!D21,'EV to EBITDA Analysis'!D50,'EV to EBITDA Analysis'!Q347,'EV to EBITDA Analysis'!Q266,'EV to EBITDA Analysis'!Q320,'EV to EBITDA Analysis'!Q373,'EV to EBITDA Analysis'!D160,'EV to EBITDA Analysis'!Q50,'EV to EBITDA Analysis'!Q21,'EV to EBITDA Analysis'!Q294,'EV to EBITDA Analysis'!D294,'EV to EBITDA Analysis'!D423,'EV to EBITDA Analysis'!Q476,'EV to EBITDA Analysis'!Q398,'EV to EBITDA Analysis'!Q448,'EV to EBITDA Analysis'!Q423,'EV to EBITDA Analysis'!D448) -> 0.08568189033 | G22: =CHOOSE($E$35,'EV to EBITDA Analysis'!E476,'EV to EBITDA Analysis'!R214,'EV to EBITDA Analysis'!E21,'EV to EBITDA Analysis'!E50,'EV to EBITDA Analysis'!R347,'EV to EBITDA Analysis'!R266,'EV to EBITDA Analysis'!R320,'EV to EBITDA Analysis'!R373,'EV to EBITDA Analysis'!E160,'EV to EBITDA Analysis'!R50,'EV to EBITDA Analysis'!R21,'EV to EBITDA Analysis'!R294,'EV to EBITDA Analysis'!E294,'EV to EBITDA Analysis'!E423,'EV to EBITDA Analysis'!R476,'EV to EBITDA Analysis'!R398,'EV to EBITDA Analysis'!R448,'EV to EBITDA Analysis'!R423,'EV to EBITDA Analysis'!E448) -> 0.07729226594 | H22: =CHOOSE($E$35,'EV to EBITDA Analysis'!F476,'EV to EBITDA Analysis'!S214,'EV to EBITDA Analysis'!F21,'EV to EBITDA Analysis'!F50,'EV to EBITDA Analysis'!S347,'EV to EBITDA Analysis'!S266,'EV to EBITDA Analysis'!S320,'EV to EBITDA Analysis'!S373,'EV to EBITDA Analysis'!F160,'EV to EBITDA Analysis'!S50,'EV to EBITDA Analysis'!S21,'EV to EBITDA Analysis'!S294,'EV to EBITDA Analysis'!F294,'EV to EBITDA Analysis'!F423,'EV to EBITDA Analysis'!S476,'EV to EBITDA Analysis'!S398,'EV to EBITDA Analysis'!S448,'EV to EBITDA Analysis'!S423,'EV to EBITDA Analysis'!F448) -> 0.08049890651 | I22: =CHOOSE($E$35,'EV to EBITDA Analysis'!G476,'EV to EBITDA Analysis'!T214,'EV to EBITDA Analysis'!G21,'EV to EBITDA Analysis'!G50,'EV to EBITDA Analysis'!T347,'EV to EBITDA Analysis'!T266,'EV to EBITDA Analysis'!T320,'EV to EBITDA Analysis'!T373,'EV to EBITDA Analysis'!G160,'EV to EBITDA Analysis'!T50,'EV to EBITDA Analysis'!T21,'EV to EBITDA Analysis'!T294,'EV to EBITDA Analysis'!G294,'EV to EBITDA Analysis'!G423,'EV to EBITDA Analysis'!T476,'EV to EBITDA Analysis'!T398,'EV to EBITDA Analysis'!T448,'EV to EBITDA Analysis'!T423,'EV to EBITDA Analysis'!G448) -> 0.07822702231 | J22: =CHOOSE($E$35,'EV to EBITDA Analysis'!H476,'EV to EBITDA Analysis'!U214,'EV to EBITDA Analysis'!H21,'EV to EBITDA Analysis'!H50,'EV to EBITDA Analysis'!U347,'EV to EBITDA Analysis'!U266,'EV to EBITDA Analysis'!U320,'EV to EBITDA Analysis'!U373,'EV to EBITDA Analysis'!H160,'EV to EBITDA Analysis'!U50,'EV to EBITDA Analysis'!U21,'EV to EBITDA Analysis'!U294,'EV to EBITDA Analysis'!H294,'EV to EBITDA Analysis'!H423,'EV to EBITDA Analysis'!U476,'EV to EBITDA Analysis'!U398,'EV to EBITDA Analysis'!U448,'EV to EBITDA Analysis'!U423,'EV to EBITDA Analysis'!H448) -> 0.08527815041 | K22: =CHOOSE($E$35,'EV to EBITDA Analysis'!I476,'EV to EBITDA Analysis'!V214,'EV to EBITDA Analysis'!I21,'EV to EBITDA Analysis'!I50,'EV to EBITDA Analysis'!V347,'EV to EBITDA Analysis'!V266,'EV to EBITDA Analysis'!V320,'EV to EBITDA Analysis'!V373,'EV to EBITDA Analysis'!I160,'EV to EBITDA Analysis'!V50,'EV to EBITDA Analysis'!V21,'EV to EBITDA Analysis'!V294,'EV to EBITDA Analysis'!I294,'EV to EBITDA Analysis'!I423,'EV to EBITDA Analysis'!V476,'EV to EBITDA Analysis'!V398,'EV to EBITDA Analysis'!V448,'EV to EBITDA Analysis'!V423,'EV to EBITDA Analysis'!I448) -> 0.08521472889 | L22: =CHOOSE($E$35,'EV to EBITDA Analysis'!J476,'EV to EBITDA Analysis'!W214,'EV to EBITDA Analysis'!J21,'EV to EBITDA Analysis'!J50,'EV to EBITDA Analysis'!W347,'EV to EBITDA Analysis'!W266,'EV to EBITDA Analysis'!W320,'EV to EBITDA Analysis'!W373,'EV to EBITDA Analysis'!J160,'EV to EBITDA Analysis'!W50,'EV to EBITDA Analysis'!W21,'EV to EBITDA Analysis'!W294,'EV to EBITDA Analysis'!J294,'EV to EBITDA Analysis'!J423,'EV to EBITDA Analysis'!W476,'EV to EBITDA Analysis'!W398,'EV to EBITDA Analysis'!W448,'EV to EBITDA Analysis'!W423,'EV to EBITDA Analysis'!J448) -> FALSE | M22: =CHOOSE($E$35,'EV to EBITDA Analysis'!K476,'EV to EBITDA Analysis'!X214,'EV to EBITDA Analysis'!K21,'EV to EBITDA Analysis'!K50,'EV to EBITDA Analysis'!X347,'EV to EBITDA Analysis'!X266,'EV to EBITDA Analysis'!X320,'EV to EBITDA Analysis'!X373,'EV to EBITDA Analysis'!K160,'EV to EBITDA Analysis'!X50,'EV to EBITDA Analysis'!X21,'EV to EBITDA Analysis'!X294,'EV to EBITDA Analysis'!K294,'EV to EBITDA Analysis'!K423,'EV to EBITDA Analysis'!X476,'EV to EBITDA Analysis'!X398,'EV to EBITDA Analysis'!X448,'EV to EBITDA Analysis'!X423,'EV to EBITDA Analysis'!K448) -> FALSE | N22: =CHOOSE($E$35,'EV to EBITDA Analysis'!L476,'EV to EBITDA Analysis'!Y214,'EV to EBITDA Analysis'!L21,'EV to EBITDA Analysis'!L50,'EV to EBITDA Analysis'!Y347,'EV to EBITDA Analysis'!Y266,'EV to EBITDA Analysis'!Y320,'EV to EBITDA Analysis'!Y373,'EV to EBITDA Analysis'!L160,'EV to EBITDA Analysis'!Y50,'EV to EBITDA Analysis'!Y21,'EV to EBITDA Analysis'!Y294,'EV to EBITDA Analysis'!L294,'EV to EBITDA Analysis'!L423,'EV to EBITDA Analysis'!Y476,'EV to EBITDA Analysis'!Y398,'EV to EBITDA Analysis'!Y448,'EV to EBITDA Analysis'!Y423,'EV to EBITDA Analysis'!L448) -> 0 | O22: TRUE | P22: 15 | R22: 11 | S22: 18 | T22: Fomento Economico Mexicano SAB de CV (USD,MXN) | V22: FALSE | W22: -0.03205799154 | X22: -0.01984661882 | Y22: 0.04862459922 | Z22: 0.0001642158732 | AA22: 0.1243867867 | AB22: 0.1099040429 | AC22: FALSE | AD22: FALSE | AE22: 0
C23: ='Data Cost of Capital'!D26 -> Thai Beverage PLC (USD,THB) | E23: =CHOOSE($E$35,'EV to EBITDA Analysis'!C477,'EV to EBITDA Analysis'!P215,'EV to EBITDA Analysis'!C22,'EV to EBITDA Analysis'!C51,'EV to EBITDA Analysis'!P348,'EV to EBITDA Analysis'!P267,'EV to EBITDA Analysis'!P321,'EV to EBITDA Analysis'!P374,'EV to EBITDA Analysis'!C161,'EV to EBITDA Analysis'!P51,'EV to EBITDA Analysis'!P22,'EV to EBITDA Analysis'!P295,'EV to EBITDA Analysis'!C295,'EV to EBITDA Analysis'!C424,'EV to EBITDA Analysis'!P477,'EV to EBITDA Analysis'!P399,'EV to EBITDA Analysis'!P449,'EV to EBITDA Analysis'!P424,'EV to EBITDA Analysis'!C449) -> FALSE | F23: =CHOOSE($E$35,'EV to EBITDA Analysis'!D477,'EV to EBITDA Analysis'!Q215,'EV to EBITDA Analysis'!D22,'EV to EBITDA Analysis'!D51,'EV to EBITDA Analysis'!Q348,'EV to EBITDA Analysis'!Q267,'EV to EBITDA Analysis'!Q321,'EV to EBITDA Analysis'!Q374,'EV to EBITDA Analysis'!D161,'EV to EBITDA Analysis'!Q51,'EV to EBITDA Analysis'!Q22,'EV to EBITDA Analysis'!Q295,'EV to EBITDA Analysis'!D295,'EV to EBITDA Analysis'!D424,'EV to EBITDA Analysis'!Q477,'EV to EBITDA Analysis'!Q399,'EV to EBITDA Analysis'!Q449,'EV to EBITDA Analysis'!Q424,'EV to EBITDA Analysis'!D449) -> 0.1128370786 | G23: =CHOOSE($E$35,'EV to EBITDA Analysis'!E477,'EV to EBITDA Analysis'!R215,'EV to EBITDA Analysis'!E22,'EV to EBITDA Analysis'!E51,'EV to EBITDA Analysis'!R348,'EV to EBITDA Analysis'!R267,'EV to EBITDA Analysis'!R321,'EV to EBITDA Analysis'!R374,'EV to EBITDA Analysis'!E161,'EV to EBITDA Analysis'!R51,'EV to EBITDA Analysis'!R22,'EV to EBITDA Analysis'!R295,'EV to EBITDA Analysis'!E295,'EV to EBITDA Analysis'!E424,'EV to EBITDA Analysis'!R477,'EV to EBITDA Analysis'!R399,'EV to EBITDA Analysis'!R449,'EV to EBITDA Analysis'!R424,'EV to EBITDA Analysis'!E449) -> 0.1227695301 | H23: =CHOOSE($E$35,'EV to EBITDA Analysis'!F477,'EV to EBITDA Analysis'!S215,'EV to EBITDA Analysis'!F22,'EV to EBITDA Analysis'!F51,'EV to EBITDA Analysis'!S348,'EV to EBITDA Analysis'!S267,'EV to EBITDA Analysis'!S321,'EV to EBITDA Analysis'!S374,'EV to EBITDA Analysis'!F161,'EV to EBITDA Analysis'!S51,'EV to EBITDA Analysis'!S22,'EV to EBITDA Analysis'!S295,'EV to EBITDA Analysis'!F295,'EV to EBITDA Analysis'!F424,'EV to EBITDA Analysis'!S477,'EV to EBITDA Analysis'!S399,'EV to EBITDA Analysis'!S449,'EV to EBITDA Analysis'!S424,'EV to EBITDA Analysis'!F449) -> 0.1227616927 | I23: =CHOOSE($E$35,'EV to EBITDA Analysis'!G477,'EV to EBITDA Analysis'!T215,'EV to EBITDA Analysis'!G22,'EV to EBITDA Analysis'!G51,'EV to EBITDA Analysis'!T348,'EV to EBITDA Analysis'!T267,'EV to EBITDA Analysis'!T321,'EV to EBITDA Analysis'!T374,'EV to EBITDA Analysis'!G161,'EV to EBITDA Analysis'!T51,'EV to EBITDA Analysis'!T22,'EV to EBITDA Analysis'!T295,'EV to EBITDA Analysis'!G295,'EV to EBITDA Analysis'!G424,'EV to EBITDA Analysis'!T477,'EV to EBITDA Analysis'!T399,'EV to EBITDA Analysis'!T449,'EV to EBITDA Analysis'!T424,'EV to EBITDA Analysis'!G449) -> 0.1302952964 | J23: =CHOOSE($E$35,'EV to EBITDA Analysis'!H477,'EV to EBITDA Analysis'!U215,'EV to EBITDA Analysis'!H22,'EV to EBITDA Analysis'!H51,'EV to EBITDA Analysis'!U348,'EV to EBITDA Analysis'!U267,'EV to EBITDA Analysis'!U321,'EV to EBITDA Analysis'!U374,'EV to EBITDA Analysis'!H161,'EV to EBITDA Analysis'!U51,'EV to EBITDA Analysis'!U22,'EV to EBITDA Analysis'!U295,'EV to EBITDA Analysis'!H295,'EV to EBITDA Analysis'!H424,'EV to EBITDA Analysis'!U477,'EV to EBITDA Analysis'!U399,'EV to EBITDA Analysis'!U449,'EV to EBITDA Analysis'!U424,'EV to EBITDA Analysis'!H449) -> 0.1411413723 | K23: =CHOOSE($E$35,'EV to EBITDA Analysis'!I477,'EV to EBITDA Analysis'!V215,'EV to EBITDA Analysis'!I22,'EV to EBITDA Analysis'!I51,'EV to EBITDA Analysis'!V348,'EV to EBITDA Analysis'!V267,'EV to EBITDA Analysis'!V321,'EV to EBITDA Analysis'!V374,'EV to EBITDA Analysis'!I161,'EV to EBITDA Analysis'!V51,'EV to EBITDA Analysis'!V22,'EV to EBITDA Analysis'!V295,'EV to EBITDA Analysis'!I295,'EV to EBITDA Analysis'!I424,'EV to EBITDA Analysis'!V477,'EV to EBITDA Analysis'!V399,'EV to EBITDA Analysis'!V449,'EV to EBITDA Analysis'!V424,'EV to EBITDA Analysis'!I449) -> 0.1410455796 | L23: =CHOOSE($E$35,'EV to EBITDA Analysis'!J477,'EV to EBITDA Analysis'!W215,'EV to EBITDA Analysis'!J22,'EV to EBITDA Analysis'!J51,'EV to EBITDA Analysis'!W348,'EV to EBITDA Analysis'!W267,'EV to EBITDA Analysis'!W321,'EV to EBITDA Analysis'!W374,'EV to EBITDA Analysis'!J161,'EV to EBITDA Analysis'!W51,'EV to EBITDA Analysis'!W22,'EV to EBITDA Analysis'!W295,'EV to EBITDA Analysis'!J295,'EV to EBITDA Analysis'!J424,'EV to EBITDA Analysis'!W477,'EV to EBITDA Analysis'!W399,'EV to EBITDA Analysis'!W449,'EV to EBITDA Analysis'!W424,'EV to EBITDA Analysis'!J449) -> FALSE | M23: =CHOOSE($E$35,'EV to EBITDA Analysis'!K477,'EV to EBITDA Analysis'!X215,'EV to EBITDA Analysis'!K22,'EV to EBITDA Analysis'!K51,'EV to EBITDA Analysis'!X348,'EV to EBITDA Analysis'!X267,'EV to EBITDA Analysis'!X321,'EV to EBITDA Analysis'!X374,'EV to EBITDA Analysis'!K161,'EV to EBITDA Analysis'!X51,'EV to EBITDA Analysis'!X22,'EV to EBITDA Analysis'!X295,'EV to EBITDA Analysis'!K295,'EV to EBITDA Analysis'!K424,'EV to EBITDA Analysis'!X477,'EV to EBITDA Analysis'!X399,'EV to EBITDA Analysis'!X449,'EV to EBITDA Analysis'!X424,'EV to EBITDA Analysis'!K449) -> FALSE | N23: =CHOOSE($E$35,'EV to EBITDA Analysis'!L477,'EV to EBITDA Analysis'!Y215,'EV to EBITDA Analysis'!L22,'EV to EBITDA Analysis'!L51,'EV to EBITDA Analysis'!Y348,'EV to EBITDA Analysis'!Y267,'EV to EBITDA Analysis'!Y321,'EV to EBITDA Analysis'!Y374,'EV to EBITDA Analysis'!L161,'EV to EBITDA Analysis'!Y51,'EV to EBITDA Analysis'!Y22,'EV to EBITDA Analysis'!Y295,'EV to EBITDA Analysis'!L295,'EV to EBITDA Analysis'!L424,'EV to EBITDA Analysis'!Y477,'EV to EBITDA Analysis'!Y399,'EV to EBITDA Analysis'!Y449,'EV to EBITDA Analysis'!Y424,'EV to EBITDA Analysis'!L449) -> 0 | O23: TRUE | P23: 16 | R23: 12 | S23: 19 | T23: Tsingtao Brewery Company Limited | V23: FALSE | W23: 0.1923981027 | X23: 0.1826476435 | Y23: 0.1542478935 | Z23: 0.08970610439 | AA23: 0.08923188141 | AB23: 0.08923188141 | AC23: FALSE | AD23: FALSE | AE23: 0
C24: ='Data Cost of Capital'!D27 -> Brown-Forman Corp (USD) | E24: =CHOOSE($E$35,'EV to EBITDA Analysis'!C478,'EV to EBITDA Analysis'!P216,'EV to EBITDA Analysis'!C23,'EV to EBITDA Analysis'!C52,'EV to EBITDA Analysis'!P349,'EV to EBITDA Analysis'!P268,'EV to EBITDA Analysis'!P322,'EV to EBITDA Analysis'!P375,'EV to EBITDA Analysis'!C162,'EV to EBITDA Analysis'!P52,'EV to EBITDA Analysis'!P23,'EV to EBITDA Analysis'!P296,'EV to EBITDA Analysis'!C296,'EV to EBITDA Analysis'!C425,'EV to EBITDA Analysis'!P478,'EV to EBITDA Analysis'!P400,'EV to EBITDA Analysis'!P450,'EV to EBITDA Analysis'!P425,'EV to EBITDA Analysis'!C450) -> FALSE | F24: =CHOOSE($E$35,'EV to EBITDA Analysis'!D478,'EV to EBITDA Analysis'!Q216,'EV to EBITDA Analysis'!D23,'EV to EBITDA Analysis'!D52,'EV to EBITDA Analysis'!Q349,'EV to EBITDA Analysis'!Q268,'EV to EBITDA Analysis'!Q322,'EV to EBITDA Analysis'!Q375,'EV to EBITDA Analysis'!D162,'EV to EBITDA Analysis'!Q52,'EV to EBITDA Analysis'!Q23,'EV to EBITDA Analysis'!Q296,'EV to EBITDA Analysis'!D296,'EV to EBITDA Analysis'!D425,'EV to EBITDA Analysis'!Q478,'EV to EBITDA Analysis'!Q400,'EV to EBITDA Analysis'!Q450,'EV to EBITDA Analysis'!Q425,'EV to EBITDA Analysis'!D450) -> 0.2510079896 | G24: =CHOOSE($E$35,'EV to EBITDA Analysis'!E478,'EV to EBITDA Analysis'!R216,'EV to EBITDA Analysis'!E23,'EV to EBITDA Analysis'!E52,'EV to EBITDA Analysis'!R349,'EV to EBITDA Analysis'!R268,'EV to EBITDA Analysis'!R322,'EV to EBITDA Analysis'!R375,'EV to EBITDA Analysis'!E162,'EV to EBITDA Analysis'!R52,'EV to EBITDA Analysis'!R23,'EV to EBITDA Analysis'!R296,'EV to EBITDA Analysis'!E296,'EV to EBITDA Analysis'!E425,'EV to EBITDA Analysis'!R478,'EV to EBITDA Analysis'!R400,'EV to EBITDA Analysis'!R450,'EV to EBITDA Analysis'!R425,'EV to EBITDA Analysis'!E450) -> 0.2571387462 | H24: =CHOOSE($E$35,'EV to EBITDA Analysis'!F478,'EV to EBITDA Analysis'!S216,'EV to EBITDA Analysis'!F23,'EV to EBITDA Analysis'!F52,'EV to EBITDA Analysis'!S349,'EV to EBITDA Analysis'!S268,'EV to EBITDA Analysis'!S322,'EV to EBITDA Analysis'!S375,'EV to EBITDA Analysis'!F162,'EV to EBITDA Analysis'!S52,'EV to EBITDA Analysis'!S23,'EV to EBITDA Analysis'!S296,'EV to EBITDA Analysis'!F296,'EV to EBITDA Analysis'!F425,'EV to EBITDA Analysis'!S478,'EV to EBITDA Analysis'!S400,'EV to EBITDA Analysis'!S450,'EV to EBITDA Analysis'!S425,'EV to EBITDA Analysis'!F450) -> 0.24475 | I24: =CHOOSE($E$35,'EV to EBITDA Analysis'!G478,'EV to EBITDA Analysis'!T216,'EV to EBITDA Analysis'!G23,'EV to EBITDA Analysis'!G52,'EV to EBITDA Analysis'!T349,'EV to EBITDA Analysis'!T268,'EV to EBITDA Analysis'!T322,'EV to EBITDA Analysis'!T375,'EV to EBITDA Analysis'!G162,'EV to EBITDA Analysis'!T52,'EV to EBITDA Analysis'!T23,'EV to EBITDA Analysis'!T296,'EV to EBITDA Analysis'!G296,'EV to EBITDA Analysis'!G425,'EV to EBITDA Analysis'!T478,'EV to EBITDA Analysis'!T400,'EV to EBITDA Analysis'!T450,'EV to EBITDA Analysis'!T425,'EV to EBITDA Analysis'!G450) -> 0.2495147541 | J24: =CHOOSE($E$35,'EV to EBITDA Analysis'!H478,'EV to EBITDA Analysis'!U216,'EV to EBITDA Analysis'!H23,'EV to EBITDA Analysis'!H52,'EV to EBITDA Analysis'!U349,'EV to EBITDA Analysis'!U268,'EV to EBITDA Analysis'!U322,'EV to EBITDA Analysis'!U375,'EV to EBITDA Analysis'!H162,'EV to EBITDA Analysis'!U52,'EV to EBITDA Analysis'!U23,'EV to EBITDA Analysis'!U296,'EV to EBITDA Analysis'!H296,'EV to EBITDA Analysis'!H425,'EV to EBITDA Analysis'!U478,'EV to EBITDA Analysis'!U400,'EV to EBITDA Analysis'!U450,'EV to EBITDA Analysis'!U425,'EV to EBITDA Analysis'!H450) -> 0.1995601656 | K24: =CHOOSE($E$35,'EV to EBITDA Analysis'!I478,'EV to EBITDA Analysis'!V216,'EV to EBITDA Analysis'!I23,'EV to EBITDA Analysis'!I52,'EV to EBITDA Analysis'!V349,'EV to EBITDA Analysis'!V268,'EV to EBITDA Analysis'!V322,'EV to EBITDA Analysis'!V375,'EV to EBITDA Analysis'!I162,'EV to EBITDA Analysis'!V52,'EV to EBITDA Analysis'!V23,'EV to EBITDA Analysis'!V296,'EV to EBITDA Analysis'!I296,'EV to EBITDA Analysis'!I425,'EV to EBITDA Analysis'!V478,'EV to EBITDA Analysis'!V400,'EV to EBITDA Analysis'!V450,'EV to EBITDA Analysis'!V425,'EV to EBITDA Analysis'!I450) -> 0.1995601656 | L24: =CHOOSE($E$35,'EV to EBITDA Analysis'!J478,'EV to EBITDA Analysis'!W216,'EV to EBITDA Analysis'!J23,'EV to EBITDA Analysis'!J52,'EV to EBITDA Analysis'!W349,'EV to EBITDA Analysis'!W268,'EV to EBITDA Analysis'!W322,'EV to EBITDA Analysis'!W375,'EV to EBITDA Analysis'!J162,'EV to EBITDA Analysis'!W52,'EV to EBITDA Analysis'!W23,'EV to EBITDA Analysis'!W296,'EV to EBITDA Analysis'!J296,'EV to EBITDA Analysis'!J425,'EV to EBITDA Analysis'!W478,'EV to EBITDA Analysis'!W400,'EV to EBITDA Analysis'!W450,'EV to EBITDA Analysis'!W425,'EV to EBITDA Analysis'!J450) -> FALSE | M24: =CHOOSE($E$35,'EV to EBITDA Analysis'!K478,'EV to EBITDA Analysis'!X216,'EV to EBITDA Analysis'!K23,'EV to EBITDA Analysis'!K52,'EV to EBITDA Analysis'!X349,'EV to EBITDA Analysis'!X268,'EV to EBITDA Analysis'!X322,'EV to EBITDA Analysis'!X375,'EV to EBITDA Analysis'!K162,'EV to EBITDA Analysis'!X52,'EV to EBITDA Analysis'!X23,'EV to EBITDA Analysis'!X296,'EV to EBITDA Analysis'!K296,'EV to EBITDA Analysis'!K425,'EV to EBITDA Analysis'!X478,'EV to EBITDA Analysis'!X400,'EV to EBITDA Analysis'!X450,'EV to EBITDA Analysis'!X425,'EV to EBITDA Analysis'!K450) -> FALSE | N24: =CHOOSE($E$35,'EV to EBITDA Analysis'!L478,'EV to EBITDA Analysis'!Y216,'EV to EBITDA Analysis'!L23,'EV to EBITDA Analysis'!L52,'EV to EBITDA Analysis'!Y349,'EV to EBITDA Analysis'!Y268,'EV to EBITDA Analysis'!Y322,'EV to EBITDA Analysis'!Y375,'EV to EBITDA Analysis'!L162,'EV to EBITDA Analysis'!Y52,'EV to EBITDA Analysis'!Y23,'EV to EBITDA Analysis'!Y296,'EV to EBITDA Analysis'!L296,'EV to EBITDA Analysis'!L425,'EV to EBITDA Analysis'!Y478,'EV to EBITDA Analysis'!Y400,'EV to EBITDA Analysis'!Y450,'EV to EBITDA Analysis'!Y425,'EV to EBITDA Analysis'!L450) -> 0 | O24: TRUE | P24: 17 | R24: 13 | S24: 20 | T24: Monster Beverage | V24: FALSE | W24: 1.123533957 | X24: 0.9762223331 | Y24: 1.489893799 | Z24: 0.3048496051 | AA24: 0.2803671253 | AB24: 0.2803671253 | AC24: FALSE | AD24: FALSE | AE24: 0
C25: ='Data Cost of Capital'!D28 -> Treasury Wine Estates Ltd. | E25: =CHOOSE($E$35,'EV to EBITDA Analysis'!C479,'EV to EBITDA Analysis'!P217,'EV to EBITDA Analysis'!C24,'EV to EBITDA Analysis'!C53,'EV to EBITDA Analysis'!P350,'EV to EBITDA Analysis'!P269,'EV to EBITDA Analysis'!P323,'EV to EBITDA Analysis'!P376,'EV to EBITDA Analysis'!C163,'EV to EBITDA Analysis'!P53,'EV to EBITDA Analysis'!P24,'EV to EBITDA Analysis'!P297,'EV to EBITDA Analysis'!C297,'EV to EBITDA Analysis'!C426,'EV to EBITDA Analysis'!P479,'EV to EBITDA Analysis'!P401,'EV to EBITDA Analysis'!P451,'EV to EBITDA Analysis'!P426,'EV to EBITDA Analysis'!C451) -> FALSE | F25: =CHOOSE($E$35,'EV to EBITDA Analysis'!D479,'EV to EBITDA Analysis'!Q217,'EV to EBITDA Analysis'!D24,'EV to EBITDA Analysis'!D53,'EV to EBITDA Analysis'!Q350,'EV to EBITDA Analysis'!Q269,'EV to EBITDA Analysis'!Q323,'EV to EBITDA Analysis'!Q376,'EV to EBITDA Analysis'!D163,'EV to EBITDA Analysis'!Q53,'EV to EBITDA Analysis'!Q24,'EV to EBITDA Analysis'!Q297,'EV to EBITDA Analysis'!D297,'EV to EBITDA Analysis'!D426,'EV to EBITDA Analysis'!Q479,'EV to EBITDA Analysis'!Q401,'EV to EBITDA Analysis'!Q451,'EV to EBITDA Analysis'!Q426,'EV to EBITDA Analysis'!D451) -> -0.003525264458 | G25: =CHOOSE($E$35,'EV to EBITDA Analysis'!E479,'EV to EBITDA Analysis'!R217,'EV to EBITDA Analysis'!E24,'EV to EBITDA Analysis'!E53,'EV to EBITDA Analysis'!R350,'EV to EBITDA Analysis'!R269,'EV to EBITDA Analysis'!R323,'EV to EBITDA Analysis'!R376,'EV to EBITDA Analysis'!E163,'EV to EBITDA Analysis'!R53,'EV to EBITDA Analysis'!R24,'EV to EBITDA Analysis'!R297,'EV to EBITDA Analysis'!E297,'EV to EBITDA Analysis'!E426,'EV to EBITDA Analysis'!R479,'EV to EBITDA Analysis'!R401,'EV to EBITDA Analysis'!R451,'EV to EBITDA Analysis'!R426,'EV to EBITDA Analysis'!E451) -> 0.009442874661 | H25: =CHOOSE($E$35,'EV to EBITDA Analysis'!F479,'EV to EBITDA Analysis'!S217,'EV to EBITDA Analysis'!F24,'EV to EBITDA Analysis'!F53,'EV to EBITDA Analysis'!S350,'EV to EBITDA Analysis'!S269,'EV to EBITDA Analysis'!S323,'EV to EBITDA Analysis'!S376,'EV to EBITDA Analysis'!F163,'EV to EBITDA Analysis'!S53,'EV to EBITDA Analysis'!S24,'EV to EBITDA Analysis'!S297,'EV to EBITDA Analysis'!F297,'EV to EBITDA Analysis'!F426,'EV to EBITDA Analysis'!S479,'EV to EBITDA Analysis'!S401,'EV to EBITDA Analysis'!S451,'EV to EBITDA Analysis'!S426,'EV to EBITDA Analysis'!F451) -> 0.04819144431 | I25: =CHOOSE($E$35,'EV to EBITDA Analysis'!G479,'EV to EBITDA Analysis'!T217,'EV to EBITDA Analysis'!G24,'EV to EBITDA Analysis'!G53,'EV to EBITDA Analysis'!T350,'EV to EBITDA Analysis'!T269,'EV to EBITDA Analysis'!T323,'EV to EBITDA Analysis'!T376,'EV to EBITDA Analysis'!G163,'EV to EBITDA Analysis'!T53,'EV to EBITDA Analysis'!T24,'EV to EBITDA Analysis'!T297,'EV to EBITDA Analysis'!G297,'EV to EBITDA Analysis'!G426,'EV to EBITDA Analysis'!T479,'EV to EBITDA Analysis'!T401,'EV to EBITDA Analysis'!T451,'EV to EBITDA Analysis'!T426,'EV to EBITDA Analysis'!G451) -> 0.03365622834 | J25: =CHOOSE($E$35,'EV to EBITDA Analysis'!H479,'EV to EBITDA Analysis'!U217,'EV to EBITDA Analysis'!H24,'EV to EBITDA Analysis'!H53,'EV to EBITDA Analysis'!U350,'EV to EBITDA Analysis'!U269,'EV to EBITDA Analysis'!U323,'EV to EBITDA Analysis'!U376,'EV to EBITDA Analysis'!H163,'EV to EBITDA Analysis'!U53,'EV to EBITDA Analysis'!U24,'EV to EBITDA Analysis'!U297,'EV to EBITDA Analysis'!H297,'EV to EBITDA Analysis'!H426,'EV to EBITDA Analysis'!U479,'EV to EBITDA Analysis'!U401,'EV to EBITDA Analysis'!U451,'EV to EBITDA Analysis'!U426,'EV to EBITDA Analysis'!H451) -> 0.06569481158 | K25: =CHOOSE($E$35,'EV to EBITDA Analysis'!I479,'EV to EBITDA Analysis'!V217,'EV to EBITDA Analysis'!I24,'EV to EBITDA Analysis'!I53,'EV to EBITDA Analysis'!V350,'EV to EBITDA Analysis'!V269,'EV to EBITDA Analysis'!V323,'EV to EBITDA Analysis'!V376,'EV to EBITDA Analysis'!I163,'EV to EBITDA Analysis'!V53,'EV to EBITDA Analysis'!V24,'EV to EBITDA Analysis'!V297,'EV to EBITDA Analysis'!I297,'EV to EBITDA Analysis'!I426,'EV to EBITDA Analysis'!V479,'EV to EBITDA Analysis'!V401,'EV to EBITDA Analysis'!V451,'EV to EBITDA Analysis'!V426,'EV to EBITDA Analysis'!I451) -> 0.06569481158 | L25: =CHOOSE($E$35,'EV to EBITDA Analysis'!J479,'EV to EBITDA Analysis'!W217,'EV to EBITDA Analysis'!J24,'EV to EBITDA Analysis'!J53,'EV to EBITDA Analysis'!W350,'EV to EBITDA Analysis'!W269,'EV to EBITDA Analysis'!W323,'EV to EBITDA Analysis'!W376,'EV to EBITDA Analysis'!J163,'EV to EBITDA Analysis'!W53,'EV to EBITDA Analysis'!W24,'EV to EBITDA Analysis'!W297,'EV to EBITDA Analysis'!J297,'EV to EBITDA Analysis'!J426,'EV to EBITDA Analysis'!W479,'EV to EBITDA Analysis'!W401,'EV to EBITDA Analysis'!W451,'EV to EBITDA Analysis'!W426,'EV to EBITDA Analysis'!J451) -> FALSE | M25: =CHOOSE($E$35,'EV to EBITDA Analysis'!K479,'EV to EBITDA Analysis'!X217,'EV to EBITDA Analysis'!K24,'EV to EBITDA Analysis'!K53,'EV to EBITDA Analysis'!X350,'EV to EBITDA Analysis'!X269,'EV to EBITDA Analysis'!X323,'EV to EBITDA Analysis'!X376,'EV to EBITDA Analysis'!K163,'EV to EBITDA Analysis'!X53,'EV to EBITDA Analysis'!X24,'EV to EBITDA Analysis'!X297,'EV to EBITDA Analysis'!K297,'EV to EBITDA Analysis'!K426,'EV to EBITDA Analysis'!X479,'EV to EBITDA Analysis'!X401,'EV to EBITDA Analysis'!X451,'EV to EBITDA Analysis'!X426,'EV to EBITDA Analysis'!K451) -> FALSE | N25: =CHOOSE($E$35,'EV to EBITDA Analysis'!L479,'EV to EBITDA Analysis'!Y217,'EV to EBITDA Analysis'!L24,'EV to EBITDA Analysis'!L53,'EV to EBITDA Analysis'!Y350,'EV to EBITDA Analysis'!Y269,'EV to EBITDA Analysis'!Y323,'EV to EBITDA Analysis'!Y376,'EV to EBITDA Analysis'!L163,'EV to EBITDA Analysis'!Y53,'EV to EBITDA Analysis'!Y24,'EV to EBITDA Analysis'!Y297,'EV to EBITDA Analysis'!L297,'EV to EBITDA Analysis'!L426,'EV to EBITDA Analysis'!Y479,'EV to EBITDA Analysis'!Y401,'EV to EBITDA Analysis'!Y451,'EV to EBITDA Analysis'!Y426,'EV to EBITDA Analysis'!L451) -> 0 | O25: TRUE | P25: 18 | R25: 14 | S25: 21 | T25: Castle Brands Inc (USD) | V25: FALSE | W25: -33.8952727 | X25: -70.1113074 | Y25: 6.439852954 | Z25: 3.00474309 | AA25: -0.00153886782 | AB25: -0.00153886782 | AC25: FALSE | AD25: FALSE | AE25: 0
C26: ='Data Cost of Capital'!D29 -> Pepsi Co | E26: =CHOOSE($E$35,'EV to EBITDA Analysis'!C480,'EV to EBITDA Analysis'!P218,'EV to EBITDA Analysis'!C25,'EV to EBITDA Analysis'!C54,'EV to EBITDA Analysis'!P351,'EV to EBITDA Analysis'!P270,'EV to EBITDA Analysis'!P324,'EV to EBITDA Analysis'!P377,'EV to EBITDA Analysis'!C164,'EV to EBITDA Analysis'!P54,'EV to EBITDA Analysis'!P25,'EV to EBITDA Analysis'!P298,'EV to EBITDA Analysis'!C298,'EV to EBITDA Analysis'!C427,'EV to EBITDA Analysis'!P480,'EV to EBITDA Analysis'!P402,'EV to EBITDA Analysis'!P452,'EV to EBITDA Analysis'!P427,'EV to EBITDA Analysis'!C452) -> FALSE | F26: =CHOOSE($E$35,'EV to EBITDA Analysis'!D480,'EV to EBITDA Analysis'!Q218,'EV to EBITDA Analysis'!D25,'EV to EBITDA Analysis'!D54,'EV to EBITDA Analysis'!Q351,'EV to EBITDA Analysis'!Q270,'EV to EBITDA Analysis'!Q324,'EV to EBITDA Analysis'!Q377,'EV to EBITDA Analysis'!D164,'EV to EBITDA Analysis'!Q54,'EV to EBITDA Analysis'!Q25,'EV to EBITDA Analysis'!Q298,'EV to EBITDA Analysis'!D298,'EV to EBITDA Analysis'!D427,'EV to EBITDA Analysis'!Q480,'EV to EBITDA Analysis'!Q402,'EV to EBITDA Analysis'!Q452,'EV to EBITDA Analysis'!Q427,'EV to EBITDA Analysis'!D452) -> 0.164648715 | G26: =CHOOSE($E$35,'EV to EBITDA Analysis'!E480,'EV to EBITDA Analysis'!R218,'EV to EBITDA Analysis'!E25,'EV to EBITDA Analysis'!E54,'EV to EBITDA Analysis'!R351,'EV to EBITDA Analysis'!R270,'EV to EBITDA Analysis'!R324,'EV to EBITDA Analysis'!R377,'EV to EBITDA Analysis'!E164,'EV to EBITDA Analysis'!R54,'EV to EBITDA Analysis'!R25,'EV to EBITDA Analysis'!R298,'EV to EBITDA Analysis'!E298,'EV to EBITDA Analysis'!E427,'EV to EBITDA Analysis'!R480,'EV to EBITDA Analysis'!R402,'EV to EBITDA Analysis'!R452,'EV to EBITDA Analysis'!R427,'EV to EBITDA Analysis'!E452) -> 0.1754744953 | H26: =CHOOSE($E$35,'EV to EBITDA Analysis'!F480,'EV to EBITDA Analysis'!S218,'EV to EBITDA Analysis'!F25,'EV to EBITDA Analysis'!F54,'EV to EBITDA Analysis'!S351,'EV to EBITDA Analysis'!S270,'EV to EBITDA Analysis'!S324,'EV to EBITDA Analysis'!S377,'EV to EBITDA Analysis'!F164,'EV to EBITDA Analysis'!S54,'EV to EBITDA Analysis'!S25,'EV to EBITDA Analysis'!S298,'EV to EBITDA Analysis'!F298,'EV to EBITDA Analysis'!F427,'EV to EBITDA Analysis'!S480,'EV to EBITDA Analysis'!S402,'EV to EBITDA Analysis'!S452,'EV to EBITDA Analysis'!S427,'EV to EBITDA Analysis'!F452) -> 0.201845958 | I26: =CHOOSE($E$35,'EV to EBITDA Analysis'!G480,'EV to EBITDA Analysis'!T218,'EV to EBITDA Analysis'!G25,'EV to EBITDA Analysis'!G54,'EV to EBITDA Analysis'!T351,'EV to EBITDA Analysis'!T270,'EV to EBITDA Analysis'!T324,'EV to EBITDA Analysis'!T377,'EV to EBITDA Analysis'!G164,'EV to EBITDA Analysis'!T54,'EV to EBITDA Analysis'!T25,'EV to EBITDA Analysis'!T298,'EV to EBITDA Analysis'!G298,'EV to EBITDA Analysis'!G427,'EV to EBITDA Analysis'!T480,'EV to EBITDA Analysis'!T402,'EV to EBITDA Analysis'!T452,'EV to EBITDA Analysis'!T427,'EV to EBITDA Analysis'!G452) -> 0.2244461701 | J26: =CHOOSE($E$35,'EV to EBITDA Analysis'!H480,'EV to EBITDA Analysis'!U218,'EV to EBITDA Analysis'!H25,'EV to EBITDA Analysis'!H54,'EV to EBITDA Analysis'!U351,'EV to EBITDA Analysis'!U270,'EV to EBITDA Analysis'!U324,'EV to EBITDA Analysis'!U377,'EV to EBITDA Analysis'!H164,'EV to EBITDA Analysis'!U54,'EV to EBITDA Analysis'!U25,'EV to EBITDA Analysis'!U298,'EV to EBITDA Analysis'!H298,'EV to EBITDA Analysis'!H427,'EV to EBITDA Analysis'!U480,'EV to EBITDA Analysis'!U402,'EV to EBITDA Analysis'!U452,'EV to EBITDA Analysis'!U427,'EV to EBITDA Analysis'!H452) -> 0.2407544891 | K26: =CHOOSE($E$35,'EV to EBITDA Analysis'!I480,'EV to EBITDA Analysis'!V218,'EV to EBITDA Analysis'!I25,'EV to EBITDA Analysis'!I54,'EV to EBITDA Analysis'!V351,'EV to EBITDA Analysis'!V270,'EV to EBITDA Analysis'!V324,'EV to EBITDA Analysis'!V377,'EV to EBITDA Analysis'!I164,'EV to EBITDA Analysis'!V54,'EV to EBITDA Analysis'!V25,'EV to EBITDA Analysis'!V298,'EV to EBITDA Analysis'!I298,'EV to EBITDA Analysis'!I427,'EV to EBITDA Analysis'!V480,'EV to EBITDA Analysis'!V402,'EV to EBITDA Analysis'!V452,'EV to EBITDA Analysis'!V427,'EV to EBITDA Analysis'!I452) -> 0.2399659919 | L26: =CHOOSE($E$35,'EV to EBITDA Analysis'!J480,'EV to EBITDA Analysis'!W218,'EV to EBITDA Analysis'!J25,'EV to EBITDA Analysis'!J54,'EV to EBITDA Analysis'!W351,'EV to EBITDA Analysis'!W270,'EV to EBITDA Analysis'!W324,'EV to EBITDA Analysis'!W377,'EV to EBITDA Analysis'!J164,'EV to EBITDA Analysis'!W54,'EV to EBITDA Analysis'!W25,'EV to EBITDA Analysis'!W298,'EV to EBITDA Analysis'!J298,'EV to EBITDA Analysis'!J427,'EV to EBITDA Analysis'!W480,'EV to EBITDA Analysis'!W402,'EV to EBITDA Analysis'!W452,'EV to EBITDA Analysis'!W427,'EV to EBITDA Analysis'!J452) -> FALSE | M26: =CHOOSE($E$35,'EV to EBITDA Analysis'!K480,'EV to EBITDA Analysis'!X218,'EV to EBITDA Analysis'!K25,'EV to EBITDA Analysis'!K54,'EV to EBITDA Analysis'!X351,'EV to EBITDA Analysis'!X270,'EV to EBITDA Analysis'!X324,'EV to EBITDA Analysis'!X377,'EV to EBITDA Analysis'!K164,'EV to EBITDA Analysis'!X54,'EV to EBITDA Analysis'!X25,'EV to EBITDA Analysis'!X298,'EV to EBITDA Analysis'!K298,'EV to EBITDA Analysis'!K427,'EV to EBITDA Analysis'!X480,'EV to EBITDA Analysis'!X402,'EV to EBITDA Analysis'!X452,'EV to EBITDA Analysis'!X427,'EV to EBITDA Analysis'!K452) -> FALSE | N26: =CHOOSE($E$35,'EV to EBITDA Analysis'!L480,'EV to EBITDA Analysis'!Y218,'EV to EBITDA Analysis'!L25,'EV to EBITDA Analysis'!L54,'EV to EBITDA Analysis'!Y351,'EV to EBITDA Analysis'!Y270,'EV to EBITDA Analysis'!Y324,'EV to EBITDA Analysis'!Y377,'EV to EBITDA Analysis'!L164,'EV to EBITDA Analysis'!Y54,'EV to EBITDA Analysis'!Y25,'EV to EBITDA Analysis'!Y298,'EV to EBITDA Analysis'!L298,'EV to EBITDA Analysis'!L427,'EV to EBITDA Analysis'!Y480,'EV to EBITDA Analysis'!Y402,'EV to EBITDA Analysis'!Y452,'EV to EBITDA Analysis'!Y427,'EV to EBITDA Analysis'!L452) -> 0 | O26: TRUE | P26: 19 | R26: 15 | S26: 22 | T26: Pernod Ricard SA (USD,EUR) | V26: FALSE | W26: 0.08568189033 | X26: 0.07729226594 | Y26: 0.08049890651 | Z26: 0.07822702231 | AA26: 0.08527815041 | AB26: 0.08521472889 | AC26: FALSE | AD26: FALSE | AE26: 0
C27: ='Data Cost of Capital'!D30 -> Coca Cola Botteling | E27: =CHOOSE($E$35,'EV to EBITDA Analysis'!C481,'EV to EBITDA Analysis'!P219,'EV to EBITDA Analysis'!C26,'EV to EBITDA Analysis'!C55,'EV to EBITDA Analysis'!P352,'EV to EBITDA Analysis'!P271,'EV to EBITDA Analysis'!P325,'EV to EBITDA Analysis'!P378,'EV to EBITDA Analysis'!C165,'EV to EBITDA Analysis'!P55,'EV to EBITDA Analysis'!P26,'EV to EBITDA Analysis'!P299,'EV to EBITDA Analysis'!C299,'EV to EBITDA Analysis'!C428,'EV to EBITDA Analysis'!P481,'EV to EBITDA Analysis'!P403,'EV to EBITDA Analysis'!P453,'EV to EBITDA Analysis'!P428,'EV to EBITDA Analysis'!C453) -> FALSE | F27: =CHOOSE($E$35,'EV to EBITDA Analysis'!D481,'EV to EBITDA Analysis'!Q219,'EV to EBITDA Analysis'!D26,'EV to EBITDA Analysis'!D55,'EV to EBITDA Analysis'!Q352,'EV to EBITDA Analysis'!Q271,'EV to EBITDA Analysis'!Q325,'EV to EBITDA Analysis'!Q378,'EV to EBITDA Analysis'!D165,'EV to EBITDA Analysis'!Q55,'EV to EBITDA Analysis'!Q26,'EV to EBITDA Analysis'!Q299,'EV to EBITDA Analysis'!D299,'EV to EBITDA Analysis'!D428,'EV to EBITDA Analysis'!Q481,'EV to EBITDA Analysis'!Q403,'EV to EBITDA Analysis'!Q453,'EV to EBITDA Analysis'!Q428,'EV to EBITDA Analysis'!D453) -> FALSE | G27: =CHOOSE($E$35,'EV to EBITDA Analysis'!E481,'EV to EBITDA Analysis'!R219,'EV to EBITDA Analysis'!E26,'EV to EBITDA Analysis'!E55,'EV to EBITDA Analysis'!R352,'EV to EBITDA Analysis'!R271,'EV to EBITDA Analysis'!R325,'EV to EBITDA Analysis'!R378,'EV to EBITDA Analysis'!E165,'EV to EBITDA Analysis'!R55,'EV to EBITDA Analysis'!R26,'EV to EBITDA Analysis'!R299,'EV to EBITDA Analysis'!E299,'EV to EBITDA Analysis'!E428,'EV to EBITDA Analysis'!R481,'EV to EBITDA Analysis'!R403,'EV to EBITDA Analysis'!R453,'EV to EBITDA Analysis'!R428,'EV to EBITDA Analysis'!E453) -> 0.0836583036 | H27: =CHOOSE($E$35,'EV to EBITDA Analysis'!F481,'EV to EBITDA Analysis'!S219,'EV to EBITDA Analysis'!F26,'EV to EBITDA Analysis'!F55,'EV to EBITDA Analysis'!S352,'EV to EBITDA Analysis'!S271,'EV to EBITDA Analysis'!S325,'EV to EBITDA Analysis'!S378,'EV to EBITDA Analysis'!F165,'EV to EBITDA Analysis'!S55,'EV to EBITDA Analysis'!S26,'EV to EBITDA Analysis'!S299,'EV to EBITDA Analysis'!F299,'EV to EBITDA Analysis'!F428,'EV to EBITDA Analysis'!S481,'EV to EBITDA Analysis'!S403,'EV to EBITDA Analysis'!S453,'EV to EBITDA Analysis'!S428,'EV to EBITDA Analysis'!F453) -> 0.08221439189 | I27: =CHOOSE($E$35,'EV to EBITDA Analysis'!G481,'EV to EBITDA Analysis'!T219,'EV to EBITDA Analysis'!G26,'EV to EBITDA Analysis'!G55,'EV to EBITDA Analysis'!T352,'EV to EBITDA Analysis'!T271,'EV to EBITDA Analysis'!T325,'EV to EBITDA Analysis'!T378,'EV to EBITDA Analysis'!G165,'EV to EBITDA Analysis'!T55,'EV to EBITDA Analysis'!T26,'EV to EBITDA Analysis'!T299,'EV to EBITDA Analysis'!G299,'EV to EBITDA Analysis'!G428,'EV to EBITDA Analysis'!T481,'EV to EBITDA Analysis'!T403,'EV to EBITDA Analysis'!T453,'EV to EBITDA Analysis'!T428,'EV to EBITDA Analysis'!G453) -> 0.08165586491 | J27: =CHOOSE($E$35,'EV to EBITDA Analysis'!H481,'EV to EBITDA Analysis'!U219,'EV to EBITDA Analysis'!H26,'EV to EBITDA Analysis'!H55,'EV to EBITDA Analysis'!U352,'EV to EBITDA Analysis'!U271,'EV to EBITDA Analysis'!U325,'EV to EBITDA Analysis'!U378,'EV to EBITDA Analysis'!H165,'EV to EBITDA Analysis'!U55,'EV to EBITDA Analysis'!U26,'EV to EBITDA Analysis'!U299,'EV to EBITDA Analysis'!H299,'EV to EBITDA Analysis'!H428,'EV to EBITDA Analysis'!U481,'EV to EBITDA Analysis'!U403,'EV to EBITDA Analysis'!U453,'EV to EBITDA Analysis'!U428,'EV to EBITDA Analysis'!H453) -> 0.0652143493 | K27: =CHOOSE($E$35,'EV to EBITDA Analysis'!I481,'EV to EBITDA Analysis'!V219,'EV to EBITDA Analysis'!I26,'EV to EBITDA Analysis'!I55,'EV to EBITDA Analysis'!V352,'EV to EBITDA Analysis'!V271,'EV to EBITDA Analysis'!V325,'EV to EBITDA Analysis'!V378,'EV to EBITDA Analysis'!I165,'EV to EBITDA Analysis'!V55,'EV to EBITDA Analysis'!V26,'EV to EBITDA Analysis'!V299,'EV to EBITDA Analysis'!I299,'EV to EBITDA Analysis'!I428,'EV to EBITDA Analysis'!V481,'EV to EBITDA Analysis'!V403,'EV to EBITDA Analysis'!V453,'EV to EBITDA Analysis'!V428,'EV to EBITDA Analysis'!I453) -> 0.0652143493 | L27: =CHOOSE($E$35,'EV to EBITDA Analysis'!J481,'EV to EBITDA Analysis'!W219,'EV to EBITDA Analysis'!J26,'EV to EBITDA Analysis'!J55,'EV to EBITDA Analysis'!W352,'EV to EBITDA Analysis'!W271,'EV to EBITDA Analysis'!W325,'EV to EBITDA Analysis'!W378,'EV to EBITDA Analysis'!J165,'EV to EBITDA Analysis'!W55,'EV to EBITDA Analysis'!W26,'EV to EBITDA Analysis'!W299,'EV to EBITDA Analysis'!J299,'EV to EBITDA Analysis'!J428,'EV to EBITDA Analysis'!W481,'EV to EBITDA Analysis'!W403,'EV to EBITDA Analysis'!W453,'EV to EBITDA Analysis'!W428,'EV to EBITDA Analysis'!J453) -> FALSE | M27: =CHOOSE($E$35,'EV to EBITDA Analysis'!K481,'EV to EBITDA Analysis'!X219,'EV to EBITDA Analysis'!K26,'EV to EBITDA Analysis'!K55,'EV to EBITDA Analysis'!X352,'EV to EBITDA Analysis'!X271,'EV to EBITDA Analysis'!X325,'EV to EBITDA Analysis'!X378,'EV to EBITDA Analysis'!K165,'EV to EBITDA Analysis'!X55,'EV to EBITDA Analysis'!X26,'EV to EBITDA Analysis'!X299,'EV to EBITDA Analysis'!K299,'EV to EBITDA Analysis'!K428,'EV to EBITDA Analysis'!X481,'EV to EBITDA Analysis'!X403,'EV to EBITDA Analysis'!X453,'EV to EBITDA Analysis'!X428,'EV to EBITDA Analysis'!K453) -> FALSE | N27: =CHOOSE($E$35,'EV to EBITDA Analysis'!L481,'EV to EBITDA Analysis'!Y219,'EV to EBITDA Analysis'!L26,'EV to EBITDA Analysis'!L55,'EV to EBITDA Analysis'!Y352,'EV to EBITDA Analysis'!Y271,'EV to EBITDA Analysis'!Y325,'EV to EBITDA Analysis'!Y378,'EV to EBITDA Analysis'!L165,'EV to EBITDA Analysis'!Y55,'EV to EBITDA Analysis'!Y26,'EV to EBITDA Analysis'!Y299,'EV to EBITDA Analysis'!L299,'EV to EBITDA Analysis'!L428,'EV to EBITDA Analysis'!Y481,'EV to EBITDA Analysis'!Y403,'EV to EBITDA Analysis'!Y453,'EV to EBITDA Analysis'!Y428,'EV to EBITDA Analysis'!L453) -> 0 | O27: TRUE | P27: 20 | R27: 16 | S27: 23 | T27: Thai Beverage PLC (USD,THB) | V27: FALSE | W27: 0.1128370786 | X27: 0.1227695301 | Y27: 0.1227616927 | Z27: 0.1302952964 | AA27: 0.1411413723 | AB27: 0.1410455796 | AC27: FALSE | AD27: FALSE | AE27: 0
C28: ='Data Cost of Capital'!D31 -> Dr Pepper | E28: =CHOOSE($E$35,'EV to EBITDA Analysis'!C482,'EV to EBITDA Analysis'!P220,'EV to EBITDA Analysis'!C27,'EV to EBITDA Analysis'!C56,'EV to EBITDA Analysis'!P353,'EV to EBITDA Analysis'!P272,'EV to EBITDA Analysis'!P326,'EV to EBITDA Analysis'!P379,'EV to EBITDA Analysis'!C166,'EV to EBITDA Analysis'!P56,'EV to EBITDA Analysis'!P27,'EV to EBITDA Analysis'!P300,'EV to EBITDA Analysis'!C300,'EV to EBITDA Analysis'!C429,'EV to EBITDA Analysis'!P482,'EV to EBITDA Analysis'!P404,'EV to EBITDA Analysis'!P454,'EV to EBITDA Analysis'!P429,'EV to EBITDA Analysis'!C454) -> FALSE | F28: =CHOOSE($E$35,'EV to EBITDA Analysis'!D482,'EV to EBITDA Analysis'!Q220,'EV to EBITDA Analysis'!D27,'EV to EBITDA Analysis'!D56,'EV to EBITDA Analysis'!Q353,'EV to EBITDA Analysis'!Q272,'EV to EBITDA Analysis'!Q326,'EV to EBITDA Analysis'!Q379,'EV to EBITDA Analysis'!D166,'EV to EBITDA Analysis'!Q56,'EV to EBITDA Analysis'!Q27,'EV to EBITDA Analysis'!Q300,'EV to EBITDA Analysis'!D300,'EV to EBITDA Analysis'!D429,'EV to EBITDA Analysis'!Q482,'EV to EBITDA Analysis'!Q404,'EV to EBITDA Analysis'!Q454,'EV to EBITDA Analysis'!Q429,'EV to EBITDA Analysis'!D454) -> 0.1649488753 | G28: =CHOOSE($E$35,'EV to EBITDA Analysis'!E482,'EV to EBITDA Analysis'!R220,'EV to EBITDA Analysis'!E27,'EV to EBITDA Analysis'!E56,'EV to EBITDA Analysis'!R353,'EV to EBITDA Analysis'!R272,'EV to EBITDA Analysis'!R326,'EV to EBITDA Analysis'!R379,'EV to EBITDA Analysis'!E166,'EV to EBITDA Analysis'!R56,'EV to EBITDA Analysis'!R27,'EV to EBITDA Analysis'!R300,'EV to EBITDA Analysis'!E300,'EV to EBITDA Analysis'!E429,'EV to EBITDA Analysis'!R482,'EV to EBITDA Analysis'!R404,'EV to EBITDA Analysis'!R454,'EV to EBITDA Analysis'!R429,'EV to EBITDA Analysis'!E454) -> 0.2641615609 | H28: =CHOOSE($E$35,'EV to EBITDA Analysis'!F482,'EV to EBITDA Analysis'!S220,'EV to EBITDA Analysis'!F27,'EV to EBITDA Analysis'!F56,'EV to EBITDA Analysis'!S353,'EV to EBITDA Analysis'!S272,'EV to EBITDA Analysis'!S326,'EV to EBITDA Analysis'!S379,'EV to EBITDA Analysis'!F166,'EV to EBITDA Analysis'!S56,'EV to EBITDA Analysis'!S27,'EV to EBITDA Analysis'!S300,'EV to EBITDA Analysis'!F300,'EV to EBITDA Analysis'!F429,'EV to EBITDA Analysis'!S482,'EV to EBITDA Analysis'!S404,'EV to EBITDA Analysis'!S454,'EV to EBITDA Analysis'!S429,'EV to EBITDA Analysis'!F454) -> 0.1704123289 | I28: =CHOOSE($E$35,'EV to EBITDA Analysis'!G482,'EV to EBITDA Analysis'!T220,'EV to EBITDA Analysis'!G27,'EV to EBITDA Analysis'!G56,'EV to EBITDA Analysis'!T353,'EV to EBITDA Analysis'!T272,'EV to EBITDA Analysis'!T326,'EV to EBITDA Analysis'!T379,'EV to EBITDA Analysis'!G166,'EV to EBITDA Analysis'!T56,'EV to EBITDA Analysis'!T27,'EV to EBITDA Analysis'!T300,'EV to EBITDA Analysis'!G300,'EV to EBITDA Analysis'!G429,'EV to EBITDA Analysis'!T482,'EV to EBITDA Analysis'!T404,'EV to EBITDA Analysis'!T454,'EV to EBITDA Analysis'!T429,'EV to EBITDA Analysis'!G454) -> 0.1884905319 | J28: =CHOOSE($E$35,'EV to EBITDA Analysis'!H482,'EV to EBITDA Analysis'!U220,'EV to EBITDA Analysis'!H27,'EV to EBITDA Analysis'!H56,'EV to EBITDA Analysis'!U353,'EV to EBITDA Analysis'!U272,'EV to EBITDA Analysis'!U326,'EV to EBITDA Analysis'!U379,'EV to EBITDA Analysis'!H166,'EV to EBITDA Analysis'!U56,'EV to EBITDA Analysis'!U27,'EV to EBITDA Analysis'!U300,'EV to EBITDA Analysis'!H300,'EV to EBITDA Analysis'!H429,'EV to EBITDA Analysis'!U482,'EV to EBITDA Analysis'!U404,'EV to EBITDA Analysis'!U454,'EV to EBITDA Analysis'!U429,'EV to EBITDA Analysis'!H454) -> 0.1883196179 | K28: =CHOOSE($E$35,'EV to EBITDA Analysis'!I482,'EV to EBITDA Analysis'!V220,'EV to EBITDA Analysis'!I27,'EV to EBITDA Analysis'!I56,'EV to EBITDA Analysis'!V353,'EV to EBITDA Analysis'!V272,'EV to EBITDA Analysis'!V326,'EV to EBITDA Analysis'!V379,'EV to EBITDA Analysis'!I166,'EV to EBITDA Analysis'!V56,'EV to EBITDA Analysis'!V27,'EV to EBITDA Analysis'!V300,'EV to EBITDA Analysis'!I300,'EV to EBITDA Analysis'!I429,'EV to EBITDA Analysis'!V482,'EV to EBITDA Analysis'!V404,'EV to EBITDA Analysis'!V454,'EV to EBITDA Analysis'!V429,'EV to EBITDA Analysis'!I454) -> 0.1883196179 | L28: =CHOOSE($E$35,'EV to EBITDA Analysis'!J482,'EV to EBITDA Analysis'!W220,'EV to EBITDA Analysis'!J27,'EV to EBITDA Analysis'!J56,'EV to EBITDA Analysis'!W353,'EV to EBITDA Analysis'!W272,'EV to EBITDA Analysis'!W326,'EV to EBITDA Analysis'!W379,'EV to EBITDA Analysis'!J166,'EV to EBITDA Analysis'!W56,'EV to EBITDA Analysis'!W27,'EV to EBITDA Analysis'!W300,'EV to EBITDA Analysis'!J300,'EV to EBITDA Analysis'!J429,'EV to EBITDA Analysis'!W482,'EV to EBITDA Analysis'!W404,'EV to EBITDA Analysis'!W454,'EV to EBITDA Analysis'!W429,'EV to EBITDA Analysis'!J454) -> FALSE | M28: =CHOOSE($E$35,'EV to EBITDA Analysis'!K482,'EV to EBITDA Analysis'!X220,'EV to EBITDA Analysis'!K27,'EV to EBITDA Analysis'!K56,'EV to EBITDA Analysis'!X353,'EV to EBITDA Analysis'!X272,'EV to EBITDA Analysis'!X326,'EV to EBITDA Analysis'!X379,'EV to EBITDA Analysis'!K166,'EV to EBITDA Analysis'!X56,'EV to EBITDA Analysis'!X27,'EV to EBITDA Analysis'!X300,'EV to EBITDA Analysis'!K300,'EV to EBITDA Analysis'!K429,'EV to EBITDA Analysis'!X482,'EV to EBITDA Analysis'!X404,'EV to EBITDA Analysis'!X454,'EV to EBITDA Analysis'!X429,'EV to EBITDA Analysis'!K454) -> FALSE | N28: =CHOOSE($E$35,'EV to EBITDA Analysis'!L482,'EV to EBITDA Analysis'!Y220,'EV to EBITDA Analysis'!L27,'EV to EBITDA Analysis'!L56,'EV to EBITDA Analysis'!Y353,'EV to EBITDA Analysis'!Y272,'EV to EBITDA Analysis'!Y326,'EV to EBITDA Analysis'!Y379,'EV to EBITDA Analysis'!L166,'EV to EBITDA Analysis'!Y56,'EV to EBITDA Analysis'!Y27,'EV to EBITDA Analysis'!Y300,'EV to EBITDA Analysis'!L300,'EV to EBITDA Analysis'!L429,'EV to EBITDA Analysis'!Y482,'EV to EBITDA Analysis'!Y404,'EV to EBITDA Analysis'!Y454,'EV to EBITDA Analysis'!Y429,'EV to EBITDA Analysis'!L454) -> 0 | O28: TRUE | P28: 21 | R28: 17 | S28: 24 | T28: Brown-Forman Corp (USD) | V28: FALSE | W28: 0.2510079896 | X28: 0.2571387462 | Y28: 0.24475 | Z28: 0.2495147541 | AA28: 0.1995601656 | AB28: 0.1995601656 | AC28: FALSE | AD28: FALSE | AE28: 0
C29: ='Data Cost of Capital'!D32 -> Ebay | E29: =CHOOSE($E$35,'EV to EBITDA Analysis'!C483,'EV to EBITDA Analysis'!P221,'EV to EBITDA Analysis'!C28,'EV to EBITDA Analysis'!C57,'EV to EBITDA Analysis'!P354,'EV to EBITDA Analysis'!P273,'EV to EBITDA Analysis'!P327,'EV to EBITDA Analysis'!P380,'EV to EBITDA Analysis'!C167,'EV to EBITDA Analysis'!P57,'EV to EBITDA Analysis'!P28,'EV to EBITDA Analysis'!P301,'EV to EBITDA Analysis'!C301,'EV to EBITDA Analysis'!C430,'EV to EBITDA Analysis'!P483,'EV to EBITDA Analysis'!P405,'EV to EBITDA Analysis'!P455,'EV to EBITDA Analysis'!P430,'EV to EBITDA Analysis'!C455) -> FALSE | F29: =CHOOSE($E$35,'EV to EBITDA Analysis'!D483,'EV to EBITDA Analysis'!Q221,'EV to EBITDA Analysis'!D28,'EV to EBITDA Analysis'!D57,'EV to EBITDA Analysis'!Q354,'EV to EBITDA Analysis'!Q273,'EV to EBITDA Analysis'!Q327,'EV to EBITDA Analysis'!Q380,'EV to EBITDA Analysis'!D167,'EV to EBITDA Analysis'!Q57,'EV to EBITDA Analysis'!Q28,'EV to EBITDA Analysis'!Q301,'EV to EBITDA Analysis'!D301,'EV to EBITDA Analysis'!D430,'EV to EBITDA Analysis'!Q483,'EV to EBITDA Analysis'!Q405,'EV to EBITDA Analysis'!Q455,'EV to EBITDA Analysis'!Q430,'EV to EBITDA Analysis'!D455) -> 0.1490485117 | G29: =CHOOSE($E$35,'EV to EBITDA Analysis'!E483,'EV to EBITDA Analysis'!R221,'EV to EBITDA Analysis'!E28,'EV to EBITDA Analysis'!E57,'EV to EBITDA Analysis'!R354,'EV to EBITDA Analysis'!R273,'EV to EBITDA Analysis'!R327,'EV to EBITDA Analysis'!R380,'EV to EBITDA Analysis'!E167,'EV to EBITDA Analysis'!R57,'EV to EBITDA Analysis'!R28,'EV to EBITDA Analysis'!R301,'EV to EBITDA Analysis'!E301,'EV to EBITDA Analysis'!E430,'EV to EBITDA Analysis'!R483,'EV to EBITDA Analysis'!R405,'EV to EBITDA Analysis'!R455,'EV to EBITDA Analysis'!R430,'EV to EBITDA Analysis'!E455) -> -0.04292724196 | H29: =CHOOSE($E$35,'EV to EBITDA Analysis'!F483,'EV to EBITDA Analysis'!S221,'EV to EBITDA Analysis'!F28,'EV to EBITDA Analysis'!F57,'EV to EBITDA Analysis'!S354,'EV to EBITDA Analysis'!S273,'EV to EBITDA Analysis'!S327,'EV to EBITDA Analysis'!S380,'EV to EBITDA Analysis'!F167,'EV to EBITDA Analysis'!S57,'EV to EBITDA Analysis'!S28,'EV to EBITDA Analysis'!S301,'EV to EBITDA Analysis'!F301,'EV to EBITDA Analysis'!F430,'EV to EBITDA Analysis'!S483,'EV to EBITDA Analysis'!S405,'EV to EBITDA Analysis'!S455,'EV to EBITDA Analysis'!S430,'EV to EBITDA Analysis'!F455) -> 0.2365927469 | I29: =CHOOSE($E$35,'EV to EBITDA Analysis'!G483,'EV to EBITDA Analysis'!T221,'EV to EBITDA Analysis'!G28,'EV to EBITDA Analysis'!G57,'EV to EBITDA Analysis'!T354,'EV to EBITDA Analysis'!T273,'EV to EBITDA Analysis'!T327,'EV to EBITDA Analysis'!T380,'EV to EBITDA Analysis'!G167,'EV to EBITDA Analysis'!T57,'EV to EBITDA Analysis'!T28,'EV to EBITDA Analysis'!T301,'EV to EBITDA Analysis'!G301,'EV to EBITDA Analysis'!G430,'EV to EBITDA Analysis'!T483,'EV to EBITDA Analysis'!T405,'EV to EBITDA Analysis'!T455,'EV to EBITDA Analysis'!T430,'EV to EBITDA Analysis'!G455) -> 0.3743561644 | J29: =CHOOSE($E$35,'EV to EBITDA Analysis'!H483,'EV to EBITDA Analysis'!U221,'EV to EBITDA Analysis'!H28,'EV to EBITDA Analysis'!H57,'EV to EBITDA Analysis'!U354,'EV to EBITDA Analysis'!U273,'EV to EBITDA Analysis'!U327,'EV to EBITDA Analysis'!U380,'EV to EBITDA Analysis'!H167,'EV to EBITDA Analysis'!U57,'EV to EBITDA Analysis'!U28,'EV to EBITDA Analysis'!U301,'EV to EBITDA Analysis'!H301,'EV to EBITDA Analysis'!H430,'EV to EBITDA Analysis'!U483,'EV to EBITDA Analysis'!U405,'EV to EBITDA Analysis'!U455,'EV to EBITDA Analysis'!U430,'EV to EBITDA Analysis'!H455) -> -0.08213186796 | K29: =CHOOSE($E$35,'EV to EBITDA Analysis'!I483,'EV to EBITDA Analysis'!V221,'EV to EBITDA Analysis'!I28,'EV to EBITDA Analysis'!I57,'EV to EBITDA Analysis'!V354,'EV to EBITDA Analysis'!V273,'EV to EBITDA Analysis'!V327,'EV to EBITDA Analysis'!V380,'EV to EBITDA Analysis'!I167,'EV to EBITDA Analysis'!V57,'EV to EBITDA Analysis'!V28,'EV to EBITDA Analysis'!V301,'EV to EBITDA Analysis'!I301,'EV to EBITDA Analysis'!I430,'EV to EBITDA Analysis'!V483,'EV to EBITDA Analysis'!V405,'EV to EBITDA Analysis'!V455,'EV to EBITDA Analysis'!V430,'EV to EBITDA Analysis'!I455) -> -0.1483378504 | L29: =CHOOSE($E$35,'EV to EBITDA Analysis'!J483,'EV to EBITDA Analysis'!W221,'EV to EBITDA Analysis'!J28,'EV to EBITDA Analysis'!J57,'EV to EBITDA Analysis'!W354,'EV to EBITDA Analysis'!W273,'EV to EBITDA Analysis'!W327,'EV to EBITDA Analysis'!W380,'EV to EBITDA Analysis'!J167,'EV to EBITDA Analysis'!W57,'EV to EBITDA Analysis'!W28,'EV to EBITDA Analysis'!W301,'EV to EBITDA Analysis'!J301,'EV to EBITDA Analysis'!J430,'EV to EBITDA Analysis'!W483,'EV to EBITDA Analysis'!W405,'EV to EBITDA Analysis'!W455,'EV to EBITDA Analysis'!W430,'EV to EBITDA Analysis'!J455) -> FALSE | M29: =CHOOSE($E$35,'EV to EBITDA Analysis'!K483,'EV to EBITDA Analysis'!X221,'EV to EBITDA Analysis'!K28,'EV to EBITDA Analysis'!K57,'EV to EBITDA Analysis'!X354,'EV to EBITDA Analysis'!X273,'EV to EBITDA Analysis'!X327,'EV to EBITDA Analysis'!X380,'EV to EBITDA Analysis'!K167,'EV to EBITDA Analysis'!X57,'EV to EBITDA Analysis'!X28,'EV to EBITDA Analysis'!X301,'EV to EBITDA Analysis'!K301,'EV to EBITDA Analysis'!K430,'EV to EBITDA Analysis'!X483,'EV to EBITDA Analysis'!X405,'EV to EBITDA Analysis'!X455,'EV to EBITDA Analysis'!X430,'EV to EBITDA Analysis'!K455) -> FALSE | N29: =CHOOSE($E$35,'EV to EBITDA Analysis'!L483,'EV to EBITDA Analysis'!Y221,'EV to EBITDA Analysis'!L28,'EV to EBITDA Analysis'!L57,'EV to EBITDA Analysis'!Y354,'EV to EBITDA Analysis'!Y273,'EV to EBITDA Analysis'!Y327,'EV to EBITDA Analysis'!Y380,'EV to EBITDA Analysis'!L167,'EV to EBITDA Analysis'!Y57,'EV to EBITDA Analysis'!Y28,'EV to EBITDA Analysis'!Y301,'EV to EBITDA Analysis'!L301,'EV to EBITDA Analysis'!L430,'EV to EBITDA Analysis'!Y483,'EV to EBITDA Analysis'!Y405,'EV to EBITDA Analysis'!Y455,'EV to EBITDA Analysis'!Y430,'EV to EBITDA Analysis'!L455) -> FALSE | O29: FALSE | P29: 21 | R29: 18 | S29: 25 | T29: Treasury Wine Estates Ltd. | V29: FALSE | W29: -0.003525264458 | X29: 0.009442874661 | Y29: 0.04819144431 | Z29: 0.03365622834 | AA29: 0.06569481158 | AB29: 0.06569481158 | AC29: FALSE | AD29: FALSE | AE29: 0
C30: ='Data Cost of Capital'!D33 -> 0 | E30: =CHOOSE($E$35,'EV to EBITDA Analysis'!C484,'EV to EBITDA Analysis'!P222,'EV to EBITDA Analysis'!C29,'EV to EBITDA Analysis'!C58,'EV to EBITDA Analysis'!P355,'EV to EBITDA Analysis'!P274,'EV to EBITDA Analysis'!P328,'EV to EBITDA Analysis'!P381,'EV to EBITDA Analysis'!C168,'EV to EBITDA Analysis'!P58,'EV to EBITDA Analysis'!P29,'EV to EBITDA Analysis'!P302,'EV to EBITDA Analysis'!C302,'EV to EBITDA Analysis'!C431,'EV to EBITDA Analysis'!P484,'EV to EBITDA Analysis'!P406,'EV to EBITDA Analysis'!P456,'EV to EBITDA Analysis'!P431,'EV to EBITDA Analysis'!C456) -> FALSE | F30: =CHOOSE($E$35,'EV to EBITDA Analysis'!D484,'EV to EBITDA Analysis'!Q222,'EV to EBITDA Analysis'!D29,'EV to EBITDA Analysis'!D58,'EV to EBITDA Analysis'!Q355,'EV to EBITDA Analysis'!Q274,'EV to EBITDA Analysis'!Q328,'EV to EBITDA Analysis'!Q381,'EV to EBITDA Analysis'!D168,'EV to EBITDA Analysis'!Q58,'EV to EBITDA Analysis'!Q29,'EV to EBITDA Analysis'!Q302,'EV to EBITDA Analysis'!D302,'EV to EBITDA Analysis'!D431,'EV to EBITDA Analysis'!Q484,'EV to EBITDA Analysis'!Q406,'EV to EBITDA Analysis'!Q456,'EV to EBITDA Analysis'!Q431,'EV to EBITDA Analysis'!D456) -> FALSE | G30: =CHOOSE($E$35,'EV to EBITDA Analysis'!E484,'EV to EBITDA Analysis'!R222,'EV to EBITDA Analysis'!E29,'EV to EBITDA Analysis'!E58,'EV to EBITDA Analysis'!R355,'EV to EBITDA Analysis'!R274,'EV to EBITDA Analysis'!R328,'EV to EBITDA Analysis'!R381,'EV to EBITDA Analysis'!E168,'EV to EBITDA Analysis'!R58,'EV to EBITDA Analysis'!R29,'EV to EBITDA Analysis'!R302,'EV to EBITDA Analysis'!E302,'EV to EBITDA Analysis'!E431,'EV to EBITDA Analysis'!R484,'EV to EBITDA Analysis'!R406,'EV to EBITDA Analysis'!R456,'EV to EBITDA Analysis'!R431,'EV to EBITDA Analysis'!E456) -> FALSE | H30: =CHOOSE($E$35,'EV to EBITDA Analysis'!F484,'EV to EBITDA Analysis'!S222,'EV to EBITDA Analysis'!F29,'EV to EBITDA Analysis'!F58,'EV to EBITDA Analysis'!S355,'EV to EBITDA Analysis'!S274,'EV to EBITDA Analysis'!S328,'EV to EBITDA Analysis'!S381,'EV to EBITDA Analysis'!F168,'EV to EBITDA Analysis'!S58,'EV to EBITDA Analysis'!S29,'EV to EBITDA Analysis'!S302,'EV to EBITDA Analysis'!F302,'EV to EBITDA Analysis'!F431,'EV to EBITDA Analysis'!S484,'EV to EBITDA Analysis'!S406,'EV to EBITDA Analysis'!S456,'EV to EBITDA Analysis'!S431,'EV to EBITDA Analysis'!F456) -> FALSE | I30: =CHOOSE($E$35,'EV to EBITDA Analysis'!G484,'EV to EBITDA Analysis'!T222,'EV to EBITDA Analysis'!G29,'EV to EBITDA Analysis'!G58,'EV to EBITDA Analysis'!T355,'EV to EBITDA Analysis'!T274,'EV to EBITDA Analysis'!T328,'EV to EBITDA Analysis'!T381,'EV to EBITDA Analysis'!G168,'EV to EBITDA Analysis'!T58,'EV to EBITDA Analysis'!T29,'EV to EBITDA Analysis'!T302,'EV to EBITDA Analysis'!G302,'EV to EBITDA Analysis'!G431,'EV to EBITDA Analysis'!T484,'EV to EBITDA Analysis'!T406,'EV to EBITDA Analysis'!T456,'EV to EBITDA Analysis'!T431,'EV to EBITDA Analysis'!G456) -> FALSE | J30: =CHOOSE($E$35,'EV to EBITDA Analysis'!H484,'EV to EBITDA Analysis'!U222,'EV to EBITDA Analysis'!H29,'EV to EBITDA Analysis'!H58,'EV to EBITDA Analysis'!U355,'EV to EBITDA Analysis'!U274,'EV to EBITDA Analysis'!U328,'EV to EBITDA Analysis'!U381,'EV to EBITDA Analysis'!H168,'EV to EBITDA Analysis'!U58,'EV to EBITDA Analysis'!U29,'EV to EBITDA Analysis'!U302,'EV to EBITDA Analysis'!H302,'EV to EBITDA Analysis'!H431,'EV to EBITDA Analysis'!U484,'EV to EBITDA Analysis'!U406,'EV to EBITDA Analysis'!U456,'EV to EBITDA Analysis'!U431,'EV to EBITDA Analysis'!H456) -> FALSE | K30: =CHOOSE($E$35,'EV to EBITDA Analysis'!I484,'EV to EBITDA Analysis'!V222,'EV to EBITDA Analysis'!I29,'EV to EBITDA Analysis'!I58,'EV to EBITDA Analysis'!V355,'EV to EBITDA Analysis'!V274,'EV to EBITDA Analysis'!V328,'EV to EBITDA Analysis'!V381,'EV to EBITDA Analysis'!I168,'EV to EBITDA Analysis'!V58,'EV to EBITDA Analysis'!V29,'EV to EBITDA Analysis'!V302,'EV to EBITDA Analysis'!I302,'EV to EBITDA Analysis'!I431,'EV to EBITDA Analysis'!V484,'EV to EBITDA Analysis'!V406,'EV to EBITDA Analysis'!V456,'EV to EBITDA Analysis'!V431,'EV to EBITDA Analysis'!I456) -> FALSE | L30: =CHOOSE($E$35,'EV to EBITDA Analysis'!J484,'EV to EBITDA Analysis'!W222,'EV to EBITDA Analysis'!J29,'EV to EBITDA Analysis'!J58,'EV to EBITDA Analysis'!W355,'EV to EBITDA Analysis'!W274,'EV to EBITDA Analysis'!W328,'EV to EBITDA Analysis'!W381,'EV to EBITDA Analysis'!J168,'EV to EBITDA Analysis'!W58,'EV to EBITDA Analysis'!W29,'EV to EBITDA Analysis'!W302,'EV to EBITDA Analysis'!J302,'EV to EBITDA Analysis'!J431,'EV to EBITDA Analysis'!W484,'EV to EBITDA Analysis'!W406,'EV to EBITDA Analysis'!W456,'EV to EBITDA Analysis'!W431,'EV to EBITDA Analysis'!J456) -> FALSE | M30: =CHOOSE($E$35,'EV to EBITDA Analysis'!K484,'EV to EBITDA Analysis'!X222,'EV to EBITDA Analysis'!K29,'EV to EBITDA Analysis'!K58,'EV to EBITDA Analysis'!X355,'EV to EBITDA Analysis'!X274,'EV to EBITDA Analysis'!X328,'EV to EBITDA Analysis'!X381,'EV to EBITDA Analysis'!K168,'EV to EBITDA Analysis'!X58,'EV to EBITDA Analysis'!X29,'EV to EBITDA Analysis'!X302,'EV to EBITDA Analysis'!K302,'EV to EBITDA Analysis'!K431,'EV to EBITDA Analysis'!X484,'EV to EBITDA Analysis'!X406,'EV to EBITDA Analysis'!X456,'EV to EBITDA Analysis'!X431,'EV to EBITDA Analysis'!K456) -> FALSE | N30: =CHOOSE($E$35,'EV to EBITDA Analysis'!L484,'EV to EBITDA Analysis'!Y222,'EV to EBITDA Analysis'!L29,'EV to EBITDA Analysis'!L58,'EV to EBITDA Analysis'!Y355,'EV to EBITDA Analysis'!Y274,'EV to EBITDA Analysis'!Y328,'EV to EBITDA Analysis'!Y381,'EV to EBITDA Analysis'!L168,'EV to EBITDA Analysis'!Y58,'EV to EBITDA Analysis'!Y29,'EV to EBITDA Analysis'!Y302,'EV to EBITDA Analysis'!L302,'EV to EBITDA Analysis'!L431,'EV to EBITDA Analysis'!Y484,'EV to EBITDA Analysis'!Y406,'EV to EBITDA Analysis'!Y456,'EV to EBITDA Analysis'!Y431,'EV to EBITDA Analysis'!L456) -> FALSE | O30: FALSE | P30: 21 | R30: 19 | S30: 26 | T30: Pepsi Co | V30: FALSE | W30: 0.164648715 | X30: 0.1754744953 | Y30: 0.201845958 | Z30: 0.2244461701 | AA30: 0.2407544891 | AB30: 0.2399659919 | AC30: FALSE | AD30: FALSE | AE30: 0
R31: 20 | S31: 27 | T31: Coca Cola Botteling | V31: FALSE | W31: FALSE | X31: 0.0836583036 | Y31: 0.08221439189 | Z31: 0.08165586491 | AA31: 0.0652143493 | AB31: 0.0652143493 | AC31: FALSE | AD31: FALSE | AE31: 0
R32: 21 | S32: 28 | T32: Dr Pepper | V32: FALSE | W32: 0.1649488753 | X32: 0.2641615609 | Y32: 0.1704123289 | Z32: 0.1884905319 | AA32: 0.1883196179 | AB32: 0.1883196179 | AC32: FALSE | AD32: FALSE | AE32: 0
R33: 22
R34: 23
E35: 12
B38: EBITDA Growth | E38: 1 | F38: C456
B39: Enterprise Value | E39: 2 | F39: P196
B40: EV/EBITDA | E40: 3 | F40: C5
B41: EV/EBIT | E41: 4 | F41: C32
B42: Revenue Growth | E42: 5 | F42: P327
B43: Income Tax Rate | E43: 6 | F43: P248
B44: COGS to Revenues | E44: 7 | F44: P300
B45: R&D to Gross Margin | E45: 8 | F45: P353
B46: Cash and Investments | E46: 9 | F46: C142
B47: ROIC - Simple Invested Capital | E47: 10 | F47: P32
B48: EV/Invested Capital | E48: 11 | F48: P5
B49: ROIC - Detailed Invested Capital | E49: 12 | F49: P274
B50: Deprecition Rate | E50: 13 | F50: C274
B51: SG&A Expense to Revenues | E51: 14 | F51: C403 | T51: (1) Assumes 25 year continuing EBITDA without growth
B52: A/R to Sales | E52: 15 | F52: P456
B53: EBITDA/Sales | E53: 16 | F53: P378
B54: Cap Exp/EBITDA | E54: 17 | F54: P428
B55: Cap Exp/Sales | E55: 18 | F55: P403
B56: Cap Exp/Depreciation | E56: 19 | F56: C428
B58: =INDEX(B38:B56,G1) -> ROIC - Detailed Invested Capital

Sheet Single Company Graph
H1: 6 | N1: 2012
J3: =INDEX('Equity Trend Analysis'!C8:C31,'Single Company Graph'!H1) -> Constellation Brands
L4: 1 Year | M4: 5 Year
J5: Expected Growth | L5: =INDEX('Data Cost of Capital'!AT11:AT33,'Single Company Graph'!H1) -> 0.118 | M5: =INDEX('Data Cost of Capital'!AU11:AU33,'Single Company Graph'!H1) -> 0.1679
J6: Past Growth | M6: =INDEX('Data Cost of Capital'!AV11:AV33,'Single Company Graph'!H1) -> 0.3224 | P6: Yahoo
J8: Dividend Yield | L8: =INDEX('Data Cost of Capital'!BZ11:BZ33,'Single Company Graph'!H1) -> 0.0097 | P8: EPS
J9: Dividend Payout | L9: =IFERROR(INDEX('Data Cost of Capital'!CB11:CB33,'Single Company Graph'!H1),0) -> 0.2387826511 | O9: Current Quarters Estimate: | P9: =INDEX('Data Cost of Capital'!BD11:BD33,'Single Company Graph'!H1) -> 1.74
J10: Historic ROE | L10: =INDEX('Data Cost of Capital'!AK11:AK33,'Single Company Graph'!H1) -> 0.2283 | O10: Current Year's Estimate: | P10: =INDEX('Data Cost of Capital'!BK11:BK33,'Single Company Graph'!H1) -> 8.54
J11: Forward ROE | L11: =INDEX('Data Cost of Capital'!AO11:AO33,'Single Company Graph'!H1) -> 0.2328300049 | O11: Next Fiscal Year Estimate: | P11: =INDEX('Data Cost of Capital'!BO11:BO33,'Single Company Graph'!H1) -> 9.55
J12: Stock Price | L12: =INDEX('Data Cost of Capital'!M11:M33,'Single Company Graph'!H1) -> 210.26
N13: Market Watch
N14: =INDEX('Data Extract Income Stmt'!H556:H578,'Single Company Graph'!H1) -> Fiscal year is March-February. All values USD millions.
J15: ROIC Reported | L15: =INDEX('Data Cost of Capital'!DB11:DB33,H1) -> 0.1097
J16: Depreciation Rate | L16: =INDEX('Data Cost of Capital'!DD11:DD33,H1) -> 0.05641074856 | P16: Revenue | Q16: EPS
J17: Tax Rate | L17: =INDEX('Data Cost of Capital'!DG11:DG33,'Single Company Graph'!H1) -> 0.2570996192 | N17: =INDEX('Data Cost of Capital'!BC11:BC33,'Single Company Graph'!$H$1) -> Current Qtr. (Feb 2018) | P17: =INDEX('Data Cost of Capital'!BF11:BF33,'Single Company Graph'!H1) -> 1750000 | Q17: =INDEX('Data Cost of Capital'!BE11:BE33,'Single Company Graph'!H1) -> 1.74
J18: EBITDA | L18: =INDEX('Data Cost of Capital'!CP11:CP33,'Single Company Graph'!H1) -> 2740000 | N18: =INDEX('Data Cost of Capital'!BG11:BG33,'Single Company Graph'!$H$1) -> Next Qtr. (May 2018) | P18: =INDEX('Data Cost of Capital'!BI11:BI33,'Single Company Graph'!H1) -> 2079999.875 | Q18: =INDEX('Data Cost of Capital'!BH11:BH33,'Single Company Graph'!H1) -> 2.55
J19: Enterprise Value | L19: =INDEX('Data Cost of Capital'!CJ11:CJ33,'Single Company Graph'!H1) -> 49840000 | N19: =INDEX('Data Cost of Capital'!BJ11:BJ33,'Single Company Graph'!H1) -> Current Year (2018) | P19: =INDEX('Data Cost of Capital'!BM11:BM33,'Single Company Graph'!H1) -> 7570000 | Q19: =INDEX('Data Cost of Capital'!BL11:BL33,'Single Company Graph'!H1) -> 8.55
N20: =INDEX('Data Cost of Capital'!BN11:BN33,'Single Company Graph'!H1) -> Next Year (2019) | P20: =INDEX('Data Cost of Capital'!BQ11:BQ33,'Single Company Graph'!H1) -> 8130000 | Q20: =INDEX('Data Cost of Capital'!BP11:BP33,'Single Company Graph'!H1) -> 9.56
J21: Net Debt | L21: =INDEX('Data Cost of Capital'!CO11:CO33,'Single Company Graph'!H1) -> 14067852.6
J22: Shares | L22: =INDEX('Data Cost of Capital'!CD11:CD33,'Single Company Graph'!H1) -> 171380 | N22: Growth Rate | P22: =IFERROR(P20/P19-1,FALSE) -> 0.07397622193 | Q22: =IFERROR(Q20/Q19-1,FALSE) -> 0.118128655
J23: Net Debt to Mkt Cap | L23: =INDEX('Data Cost of Capital'!DF11:DF33,'Single Company Graph'!H1) -> 0.2570575341
J24: Invested Capital | L24: =INDEX('Data Cost of Capital'!CZ11:CZ33,'Single Company Graph'!H1) -> 17209874.58
J25: Invested Capital/Share | L25: =L24/L22 -> 100.4193872
G47: ='Equity Trend Analysis'!E7 -> 2011 | H47: =G47+1 -> 2012 | I47: =H47+1 -> 2013 | J47: 2014 | K47: 2015 | L47: 2016 | M47: 2017 | N47: 2018 | O47: 2019 | P47: =E48+0.1 -> 2018.1
D48: =N1 -> 2012 | E48: ='Menu Sheet'!L3+2 -> 2018 | G48: =AND(G47>=$D$48,G47<=$E$48) -> FALSE | H48: TRUE | I48: TRUE | J48: TRUE | K48: TRUE | L48: TRUE | M48: TRUE | N48: TRUE | O48: FALSE | P48: FALSE
G50: =IF(G48,G47,NA()) ->  | H50: 2012 | I50: 2013 | J50: 2014 | K50: 2015 | L50: 2016 | M50: 2017 | N50: 2018 | P50: =P47 -> 2018.1
F51: ='Single Company Graph'!J3&" "&'Equity Trend Analysis'!$E$5&" " -> Constellation Brands Forward P/E - Average Price | G51: =IF(G48,INDEX('Equity Trend Analysis'!E8:E31,'Single Company Graph'!$H$1),NA()) ->  | H51: =IF(H48,INDEX('Equity Trend Analysis'!F8:F31,'Single Company Graph'!$H$1),NA()) -> 3.073697049 | I51: =IF(I48,INDEX('Equity Trend Analysis'!G8:G31,'Single Company Graph'!$H$1),NA()) -> 14.19346342 | J51: =IF(J48,INDEX('Equity Trend Analysis'!H8:H31,'Single Company Graph'!$H$1),NA()) -> 18.24380779 | K51: =IF(K48,INDEX('Equity Trend Analysis'!I8:I31,'Single Company Graph'!$H$1),NA()) -> 18.08564879 | L51: =IF(L48,INDEX('Equity Trend Analysis'!J8:J31,'Single Company Graph'!$H$1),NA()) -> 18.26433722 | M51: =IF(M48,INDEX('Equity Trend Analysis'!K8:K31,'Single Company Graph'!$H$1),NA()) -> 19.66642262 | N51: =IF(N48,INDEX('Equity Trend Analysis'!L8:L31,'Single Company Graph'!$H$1),NA()) -> 22.49 | O51: =IF(O48,INDEX('Equity Trend Analysis'!M8:M31,'Single Company Graph'!$H$1),NA()) ->  | P51: =IF(P48,INDEX('Equity Trend Analysis'!N8:N31,'Single Company Graph'!$H$1),NA()) -> 
D53: Historic Switch | F53: ='Menu Sheet'!L3 -> 2016 | G53: =G47<=$F$53 -> TRUE | H53: =H47<=$F$53 -> TRUE | I53: TRUE | J53: TRUE | K53: TRUE | L53: TRUE | M53: FALSE | N53: FALSE | O53: FALSE | P53: FALSE
G54: =G50 ->  | H54: =H50 -> 2012 | I54: 2013 | J54: 2014 | K54: 2015 | L54: 2016 | M54: 2017 | N54: 2018 | P54: 2018.1
E55: History | G55: =IF(G53,G51,NA()) ->  | H55: =IF(H53,H51,NA()) -> 3.073697049 | I55: 14.19346342 | J55: 18.24380779 | K55: 18.08564879 | L55: 18.26433722
E56: Forecast | G56: =IF(NOT(G53),G51,NA()) ->  | H56: =IF(NOT(H53),H51,NA()) ->  | M56: 19.66642262 | N56: 22.49
G59: ='EBITDA Trend Analysis'!E7 -> 2011 | H59: =G59+1 -> 2012 | I59: 2013 | J59: 2014 | K59: 2015 | L59: 2016 | M59: 2017 | N59: 2018 | O59: ='EBITDA Trend Analysis'!N7 -> Current | P59: =E60+1 -> 2018
D60: =D48 -> 2012 | E60: ='Menu Sheet'!$L$3+1 -> 2017 | G60: =AND(G59>=$D$60,G59<=$E$60) -> FALSE | H60: TRUE | I60: TRUE | J60: TRUE | K60: TRUE | L60: TRUE | M60: TRUE | N60: FALSE | O60: FALSE | P60: TRUE
G62: =IF(G60,G59,NA()) ->  | H62: 2012 | I62: 2013 | J62: 2014 | K62: 2015 | L62: 2016 | M62: 2017 | P62: 2018
F63: =J3&" "&INDEX('EBITDA Trend Analysis'!$B$38:$B$49,'EBITDA Trend Analysis'!$E$35) -> Constellation Brands ROIC - Detailed Invested Capital | G63: =IF(G60,INDEX('EBITDA Trend Analysis'!E8:E30,$H$1),NA()) ->  | H63: =IF(H60,INDEX('EBITDA Trend Analysis'!F8:F30,$H$1),NA()) -> 0.07149259866 | I63: =IF(I60,INDEX('EBITDA Trend Analysis'!G8:G30,$H$1),NA()) -> 0.08536241754 | J63: =IF(J60,INDEX('EBITDA Trend Analysis'!H8:H30,$H$1),NA()) -> 0.084681473 | K63: =IF(K60,INDEX('EBITDA Trend Analysis'!I8:I30,$H$1),NA()) -> 0.09255662266 | L63: =IF(L60,INDEX('EBITDA Trend Analysis'!J8:J30,$H$1),NA()) -> 0.1034632175 | M63: =IF(M60,INDEX('EBITDA Trend Analysis'!K8:K30,$H$1),NA()) -> 0.1034632175 | N63: =IF(N60,INDEX('EBITDA Trend Analysis'!L8:L30,$H$1),NA()) ->  | O63: =IF(O60,INDEX('EBITDA Trend Analysis'!M8:M30,$H$1),NA()) ->  | P63: =IF(P60,INDEX('EBITDA Trend Analysis'!N8:N30,$H$1),NA()) -> 0
G66: =G54 ->  | H66: =H54 -> 2012 | I66: 2013 | J66: 2014 | K66: 2015 | L66: 2016 | M66: 2017 | N66: 2018 | P66: =P47 -> 2018.1
E67: History | G67: =IF(G53,G63,NA()) ->  | H67: =IF(H53,H63,NA()) -> 0.07149259866 | I67: 0.08536241754 | J67: 0.084681473 | K67: 0.09255662266 | L67: 0.1034632175
E68: Forecast | G68: =IF(NOT(G53),IF(G63,G63,NA()),NA()) ->  | H68: =IF(NOT(H53),IF(H63,H63,NA()),NA()) ->  | M68: 0.1034632175

Sheet Historic for Model
D1: ='Single Company Graph'!$H$1 -> 6 | F1: Jan Start | G1: =G2=1 -> FALSE | H1: Annual Analysis for Financial Model --------------------------------------------------------------------------------> | O1: Quarterly ----------------------------------------------------------------------------------> | T1: Annualisation ---------------------------------------------------------------------->
B2: =INDEX(INDIRECT(D183&"A:A"),MATCH(E8,INDIRECT(D183&"A:A"),0)+1) -> Fiscal year is March-February. All values USD millions. | F2: First Month | G2: =IF(SUM(188:188)>0,SUM(188:188),1) -> 3 | H2: =DATE(G3,$G$2,1) -> 2012-03-01 | I2: =H3+1 -> 2013-03-01 | J2: =I3+1 -> 2014-03-01 | K2: =J3+1 -> 2015-03-01 | L2: =K3+1 -> 2016-03-01 | M2: =L3+1 -> 2017-03-01 | O2: FALSE | R2: Periods Not Inc | S2: =COUNTIF(10:10,TRUE) -> 3
B3: Last Annual Date | F3: First Year | G3: =IF(G1,H9,H9-1) -> 2012 | H3: =EOMONTH(H2,11) -> 2013-02-28 | I3: 2014-02-28 | J3: 2015-02-28 | K3: 2016-02-29 | L3: 2017-02-28 | M3: 2018-02-28
C4: Histoic Year | F4: Last Year | G4: =IF(G1,L9,L9-1) -> 2016 | H4: =H3<=$G$5 -> TRUE | I4: TRUE | J4: TRUE | K4: TRUE | L4: TRUE | M4: FALSE
C5: Partial Historic Year | G5: =IFERROR(DATE(G4+1,G2,1)-1,DATE(2000,1,1)) -> 2017-02-28 | H5: =YEAR(H3)=$G$6 -> FALSE | I5: FALSE | J5: FALSE | K5: FALSE | L5: TRUE | M5: FALSE
C6: Assumption Year | F6: Annual Row | G6: =G4+1 -> 2017 | H6: =OR(H4:H5) -> TRUE | I6: TRUE | J6: TRUE | K6: TRUE | L6: TRUE | M6: FALSE | O6: =O9 -> 42704 | P6: =P9 -> 42794 | Q6: 2017-05-31 | R6: 2017-08-31 | S6: 2017-11-30 | T6: Not In Annual | U6: YTD | V6: Growth | W6: Growth Amount | X6: Ratio
A7: Profit and Loss | O7: =IFERROR(O12/O11,FALSE) -> 0.472320442 | P7: =IFERROR(P12/P11,FALSE) -> 0.4426380368 | Q7: =Q12/Q11 -> 0.4424226804 | R7: =R12/R11 -> 0.4572115659 | S7: =S12/S11 -> 0.4528333333
C8: All values USD millions. | E8: View Ratios | O8: =IFERROR(O15/O11,FALSE) -> 0.1915469613 | P8: =IFERROR(P15/P11,FALSE) -> 0.2136809816 | Q8: =Q15/Q11 -> 0.1746907216 | R8: =R15/R11 -> 0.1700961641 | S8: =S15/S11 -> 0.1995555556 | W8: =W15/W11 -> 0.1916197823
C9: Fiscal Year | E9: =IFERROR(match_partial_sheet($C$9,"A",10,D182,200),FALSE) -> 102 | F9: =IFERROR(match_partial_sheet($C$8,"A",10,H182,200),FALSE) -> 102 | H9: =INDEX(INDIRECT($D$183&V$191),$E9) -> 2013 | I9: =INDEX(INDIRECT($D$183&H$191),$E9) -> 2014 | J9: =INDEX(INDIRECT($D$183&I$191),$E9) -> 2015 | K9: =INDEX(INDIRECT($D$183&J$191),$E9) -> 2016 | L9: =INDEX(INDIRECT($D$183&K$191),$E9) -> 2017 | M9: =YEAR(M3) -> 2018 | O9: =INDEX(INDIRECT($H$183&O$191),$F$9) -> 42704 | P9: =INDEX(INDIRECT($H$183&P$191),$F$9) -> 42794 | Q9: =INDEX(INDIRECT($H$183&Q$191),$F$9) -> 2017-05-31 | R9: =INDEX(INDIRECT($H$183&R$191),$F$9) -> 2017-08-31 | S9: =INDEX(INDIRECT($H$183&S$191),$F$9) -> 2017-11-30 | T9: Not In Annual | U9: YTD | V9: Growth | W9: Growth Amount | X9: Ratio
C10: Income Statement | O10: =O9>$G$5 -> FALSE | P10: =P9>$G$5 -> FALSE | Q10: =Q9>$G$5 -> TRUE | R10: =R9>$G$5 -> TRUE | S10: =S9>$G$5 -> TRUE
D11: Sales/Revenue | E11: =IFERROR(MATCH($D11,INDIRECT($D$183&"A:A"),0),FALSE) -> 103 | F11: =IFERROR(MATCH($D11,INDIRECT($H$183&"A:A"),0),FALSE) -> 103 | H11: =IF($E11,clean_alt(INDEX(INDIRECT($D$183&O$191),$E11)),FALSE) -> 2790000 | I11: =IF($E11,clean_alt(INDEX(INDIRECT($D$183&P$191),$E11)),FALSE) -> 4860000 | J11: =IF($E11,clean_alt(INDEX(INDIRECT($D$183&Q$191),$E11)),FALSE) -> 6030000 | K11: =IF($E11,clean_alt(INDEX(INDIRECT($D$183&R$191),$E11)),FALSE) -> 6550000 | L11: =IF($E11,clean_alt(INDEX(INDIRECT($D$183&S$191),$E11)),FALSE) -> 7330000 | M11: =W11 -> 7440994.35 | O11: =IF($F11,clean_alt(INDEX(INDIRECT($H$183&O$191),$F11)),FALSE) -> 1810000 | P11: =IF($F11,clean_alt(INDEX(INDIRECT($H$183&P$191),$F11)),FALSE) -> 1630000 | Q11: =IF($F11,clean_alt(INDEX(INDIRECT($H$183&Q$191),$F11)),FALSE) -> 1940000 | R11: =IF($F11,clean_alt(INDEX(INDIRECT($H$183&R$191),$F11)),FALSE) -> 2079999.875 | S11: =IF($F11,clean_alt(INDEX(INDIRECT($H$183&S$191),$F11)),FALSE) -> 1800000 | T11: =SUMIF($10:$10,TRUE,11:11) -> 5819999.875 | U11: =SUM(P11:S11) -> 7449999.875 | V11: =IFERROR(OFFSET(S11,0,-$S$2)/OFFSET(S11,0,-$S$2-1),FALSE) -> 0.9005524862 | W11: =V11*S11+T11 -> 7440994.35 | X11: =T11+'Single Company Graph'!P17 -> 7569999.875 | Y11: ='Single Company Graph'!P17 -> 1750000
D12: COGS excluding D&A | E12: =IFERROR(MATCH($D12,INDIRECT($D$183&"A:A"),0),FALSE) -> 106 | F12: =IFERROR(MATCH($D12,INDIRECT($H$183&"A:A"),0),FALSE) -> 106 | H12: =IF($E12,clean_alt(INDEX(INDIRECT($D$183&O$191),$E12)),FALSE) -> 1570000 | I12: =IF($E12,clean_alt(INDEX(INDIRECT($D$183&P$191),$E12)),FALSE) -> 2710000 | J12: =IF($E12,clean_alt(INDEX(INDIRECT($D$183&Q$191),$E12)),FALSE) -> 3220000 | K12: =IF($E12,clean_alt(INDEX(INDIRECT($D$183&R$191),$E12)),FALSE) -> 3300000 | L12: =IF($E12,clean_alt(INDEX(INDIRECT($D$183&S$191),$E12)),FALSE) -> 3500000 | M12: =X12 -> 3399016.564 | O12: =IF($F12,clean_alt(INDEX(INDIRECT($H$183&O$191),$F12)),FALSE) -> 854900 | P12: =IF($F12,clean_alt(INDEX(INDIRECT($H$183&P$191),$F12)),FALSE) -> 721500 | Q12: =IF($F12,clean_alt(INDEX(INDIRECT($H$183&Q$191),$F12)),FALSE) -> 858300 | R12: =IF($F12,clean_alt(INDEX(INDIRECT($H$183&R$191),$F12)),FALSE) -> 951000 | S12: =IF($F12,clean_alt(INDEX(INDIRECT($H$183&S$191),$F12)),FALSE) -> 815100 | T12: =SUMIF($10:$10,TRUE,12:12) -> 2624400 | U12: =SUM(P12:S12) -> 3345900 | V12: =IFERROR(OFFSET(S12,0,-$S$2)/OFFSET(S12,0,-$S$2-1),FALSE) -> 0.8439583577 | W12: =V12*S12+T12 -> 3312310.457 | X12: =T12+Y12 -> 3399016.564 | Y12: =Y11*P7 -> 774616.5644
D13: Cash Gross Margin | E13: Calc | H13: =H11-H12 -> 1220000 | I13: 2150000 | J13: 2810000 | K13: 3250000 | L13: 3830000 | M13: 4041977.786 | O13: =O11-O12 -> 955100 | P13: 908500 | Q13: 1081700 | R13: 1128999.875 | S13: 984900 | T13: 3195599.875 | U13: 4104099.875 | V13: 0.05659412849 | W13: 4128683.893 | X13: 4170983.311
D14: Research & Development | E14: =IFERROR(MATCH($D14,INDIRECT($D$183&"A:A"),0),FALSE) -> 116 | F14: =IFERROR(MATCH($D14,INDIRECT($H$183&"A:A"),0),FALSE) -> 116 | H14: =IF($E14,clean_alt(INDEX(INDIRECT($D$183&O$191),$E14)),FALSE) -> 0 | I14: =IF($E14,clean_alt(INDEX(INDIRECT($D$183&P$191),$E14)),FALSE) -> 0 | J14: =IF($E14,clean_alt(INDEX(INDIRECT($D$183&Q$191),$E14)),FALSE) -> 0 | K14: =IF($E14,clean_alt(INDEX(INDIRECT($D$183&R$191),$E14)),FALSE) -> 0 | L14: =IF($E14,clean_alt(INDEX(INDIRECT($D$183&S$191),$E14)),FALSE) -> 0 | M14: =X14 -> 0 | O14: =IF($F14,clean_alt(INDEX(INDIRECT($H$183&O$191),$F14)),FALSE) -> 0 | P14: =IF($F14,clean_alt(INDEX(INDIRECT($H$183&P$191),$F14)),FALSE) -> 0 | Q14: =IF($F14,clean_alt(INDEX(INDIRECT($H$183&Q$191),$F14)),FALSE) -> 0 | R14: =IF($F14,clean_alt(INDEX(INDIRECT($H$183&R$191),$F14)),FALSE) -> 0 | S14: =IF($F14,clean_alt(INDEX(INDIRECT($H$183&S$191),$F14)),FALSE) -> 0 | T14: =SUMIF($10:$10,TRUE,14:14) -> 0 | U14: =SUM(P14:S14) -> 0 | V14: =IFERROR(OFFSET(S14,0,-$S$2)/OFFSET(S14,0,-$S$2-1),FALSE) -> FALSE | W14: =V14*S14+T14 -> 0 | X14: =IFERROR(4/$S$2*T14,FALSE) -> 0
D15: Other SG&A | E15: =IFERROR(MATCH($D15,INDIRECT($D$183&"A:A"),0),FALSE) -> 117 | F15: =IFERROR(MATCH($D15,INDIRECT($H$183&"A:A"),0),FALSE) -> 117 | H15: =IF($E15,clean_alt(INDEX(INDIRECT($D$183&O$191),$E15)),FALSE) -> 555600 | I15: =IF($E15,clean_alt(INDEX(INDIRECT($D$183&P$191),$E15)),FALSE) -> 842200 | J15: =IF($E15,clean_alt(INDEX(INDIRECT($D$183&Q$191),$E15)),FALSE) -> 1050000 | K15: =IF($E15,clean_alt(INDEX(INDIRECT($D$183&R$191),$E15)),FALSE) -> 1120000 | L15: =IF($E15,clean_alt(INDEX(INDIRECT($D$183&S$191),$E15)),FALSE) -> 1290000 | M15: =W15 -> 1425841.718 | O15: =IF($F15,clean_alt(INDEX(INDIRECT($H$183&O$191),$F15)),FALSE) -> 346700 | P15: =IF($F15,clean_alt(INDEX(INDIRECT($H$183&P$191),$F15)),FALSE) -> 348300 | Q15: =IF($F15,clean_alt(INDEX(INDIRECT($H$183&Q$191),$F15)),FALSE) -> 338900 | R15: =IF($F15,clean_alt(INDEX(INDIRECT($H$183&R$191),$F15)),FALSE) -> 353800 | S15: =IF($F15,clean_alt(INDEX(INDIRECT($H$183&S$191),$F15)),FALSE) -> 359200 | T15: =SUMIF($10:$10,TRUE,15:15) -> 1051900 | U15: =SUM(P15:S15) -> 1400200 | V15: =IFERROR(OFFSET(S15,0,-$S$2)/OFFSET(S15,0,-$S$2-1),FALSE) -> 1.004614941 | W15: =T15+Y11*P8 -> 1425841.718 | X15: =IFERROR(4/$S$2*T15,FALSE) -> 1402533.333
D16: Other Operating Expense | E16: =IFERROR(MATCH($D16,INDIRECT($D$183&"A:A"),0),FALSE) -> 119 | F16: =IFERROR(MATCH($D16,INDIRECT($H$183&"A:A"),0),FALSE) -> 119 | H16: =IF($E16,clean_alt(INDEX(INDIRECT($D$183&O$191),$E16)),FALSE) -> 0 | I16: =IF($E16,clean_alt(INDEX(INDIRECT($D$183&P$191),$E16)),FALSE) -> 0 | J16: =IF($E16,clean_alt(INDEX(INDIRECT($D$183&Q$191),$E16)),FALSE) -> 0 | K16: =IF($E16,clean_alt(INDEX(INDIRECT($D$183&R$191),$E16)),FALSE) -> 0 | L16: =IF($E16,clean_alt(INDEX(INDIRECT($D$183&S$191),$E16)),FALSE) -> 0 | M16: =W16 -> 0 | O16: =IF($F16,clean_alt(INDEX(INDIRECT($H$183&O$191),$F16)),FALSE) -> 0 | P16: =IF($F16,clean_alt(INDEX(INDIRECT($H$183&P$191),$F16)),FALSE) -> 0 | Q16: =IF($F16,clean_alt(INDEX(INDIRECT($H$183&Q$191),$F16)),FALSE) -> 0 | R16: =IF($F16,clean_alt(INDEX(INDIRECT($H$183&R$191),$F16)),FALSE) -> 0 | S16: =IF($F16,clean_alt(INDEX(INDIRECT($H$183&S$191),$F16)),FALSE) -> 0 | T16: =SUMIF($10:$10,TRUE,16:16) -> 0 | U16: =SUM(P16:S16) -> 0 | V16: =IFERROR(OFFSET(S16,0,-$S$2)/OFFSET(S16,0,-$S$2-1),FALSE) -> FALSE | W16: =V16*S16+T16 -> 0 | X16: =IFERROR(4/$S$2*T16,FALSE) -> 0
D17: EBITDA Calculated | H17: =H13-H14-H15-H16 -> 664400 | I17: 1307800 | J17: 1760000 | K17: 2130000 | L17: 2540000 | M17: 2616136.068 | O17: =O13-O14-O15-O16 -> 608400 | P17: 560200 | Q17: 742800 | R17: 775199.875 | S17: 625700 | T17: 2143699.875 | U17: 2703899.875 | V17: -0.9480208124 | W17: 2702842.175 | X17: 2768449.977
D18: Unusual Expense | E18: =IFERROR(MATCH($D18,INDIRECT($D$183&"A:A"),0),FALSE) -> 120 | F18: =IFERROR(MATCH($D18,INDIRECT($H$183&"A:A"),0),FALSE) -> 120 | H18: =IF($E18,clean_alt(INDEX(INDIRECT($D$183&O$191),$E18)),FALSE) -> 65700 | I18: =IF($E18,clean_alt(INDEX(INDIRECT($D$183&P$191),$E18)),FALSE) -> -1280000 | J18: =IF($E18,clean_alt(INDEX(INDIRECT($D$183&Q$191),$E18)),FALSE) -> 65800 | K18: =IF($E18,clean_alt(INDEX(INDIRECT($D$183&R$191),$E18)),FALSE) -> 152300 | L18: =IF($E18,clean_alt(INDEX(INDIRECT($D$183&S$191),$E18)),FALSE) -> 107800 | M18: =X18 -> 238933.3333 | O18: =IF($F18,clean_alt(INDEX(INDIRECT($H$183&O$191),$F18)),FALSE) -> 8900 | P18: =IF($F18,clean_alt(INDEX(INDIRECT($H$183&P$191),$F18)),FALSE) -> 1800 | Q18: =IF($F18,clean_alt(INDEX(INDIRECT($H$183&Q$191),$F18)),FALSE) -> 105100 | R18: =IF($F18,clean_alt(INDEX(INDIRECT($H$183&R$191),$F18)),FALSE) -> -1400 | S18: =IF($F18,clean_alt(INDEX(INDIRECT($H$183&S$191),$F18)),FALSE) -> 75500 | T18: =SUMIF($10:$10,TRUE,18:18) -> 179200 | U18: =SUM(P18:S18) -> 181000 | V18: =IFERROR(OFFSET(S18,0,-$S$2)/OFFSET(S18,0,-$S$2-1),FALSE) -> 0.202247191 | W18: =V18*S18+T18 -> 194469.6629 | X18: =IFERROR(4/$S$2*T18,FALSE) -> 238933.3333
D19: Depreciation | E19: =IFERROR(MATCH($D19,INDIRECT($D$183&"A:A"),0),FALSE) -> 108 | F19: =IFERROR(MATCH($D19,INDIRECT($H$183&"A:A"),0),FALSE) -> 108 | H19: =IF($E19,clean_alt(INDEX(INDIRECT($D$183&O$191),$E19)),FALSE) -> 108200 | I19: =IF($E19,clean_alt(INDEX(INDIRECT($D$183&P$191),$E19)),FALSE) -> 139800 | J19: =IF($E19,clean_alt(INDEX(INDIRECT($D$183&Q$191),$E19)),FALSE) -> 162000 | K19: =IF($E19,clean_alt(INDEX(INDIRECT($D$183&R$191),$E19)),FALSE) -> 180300 | L19: =IF($E19,clean_alt(INDEX(INDIRECT($D$183&S$191),$E19)),FALSE) -> 237500 | M19: =W19 -> 0 | O19: =IF($F19,clean_alt(INDEX(INDIRECT($H$183&O$191),$F19)),FALSE) -> 0 | P19: =IF($F19,clean_alt(INDEX(INDIRECT($H$183&P$191),$F19)),FALSE) -> 0 | Q19: =IF($F19,clean_alt(INDEX(INDIRECT($H$183&Q$191),$F19)),FALSE) -> 0 | R19: =IF($F19,clean_alt(INDEX(INDIRECT($H$183&R$191),$F19)),FALSE) -> 0 | S19: =IF($F19,clean_alt(INDEX(INDIRECT($H$183&S$191),$F19)),FALSE) -> 0 | T19: =SUMIF($10:$10,TRUE,19:19) -> 0 | U19: =SUM(P19:S19) -> 0 | V19: =IFERROR(OFFSET(S19,0,-$S$2)/OFFSET(S19,0,-$S$2-1),FALSE) -> FALSE | W19: =V19*S19+T19 -> 0 | X19: =IFERROR(4/$S$2*T19,FALSE) -> 0
D20: Amortization of Intangibles | E20: =IFERROR(MATCH($D20,INDIRECT($D$183&"A:A"),0),FALSE) -> 109 | F20: =IFERROR(MATCH($D20,INDIRECT($H$183&"A:A"),0),FALSE) -> 109 | H20: =IF($E20,clean_alt(INDEX(INDIRECT($D$183&O$191),$E20)),FALSE) -> 7200 | I20: =IF($E20,clean_alt(INDEX(INDIRECT($D$183&P$191),$E20)),FALSE) -> 15500 | J20: =IF($E20,clean_alt(INDEX(INDIRECT($D$183&Q$191),$E20)),FALSE) -> 40000 | K20: =IF($E20,clean_alt(INDEX(INDIRECT($D$183&R$191),$E20)),FALSE) -> 40700 | L20: =IF($E20,clean_alt(INDEX(INDIRECT($D$183&S$191),$E20)),FALSE) -> 56400 | M20: =W20 -> 0 | O20: =IF($F20,clean_alt(INDEX(INDIRECT($H$183&O$191),$F20)),FALSE) -> 0 | P20: =IF($F20,clean_alt(INDEX(INDIRECT($H$183&P$191),$F20)),FALSE) -> 0 | Q20: =IF($F20,clean_alt(INDEX(INDIRECT($H$183&Q$191),$F20)),FALSE) -> 0 | R20: =IF($F20,clean_alt(INDEX(INDIRECT($H$183&R$191),$F20)),FALSE) -> 0 | S20: =IF($F20,clean_alt(INDEX(INDIRECT($H$183&S$191),$F20)),FALSE) -> 0 | T20: =SUMIF($10:$10,TRUE,20:20) -> 0 | U20: =SUM(P20:S20) -> 0 | V20: =IFERROR(OFFSET(S20,0,-$S$2)/OFFSET(S20,0,-$S$2-1),FALSE) -> FALSE | W20: =V20*S20+T20 -> 0 | X20: =IFERROR(4/$S$2*T20,FALSE) -> 0
D21: EBIT Computed | H21: =H17-H18-H19-H20 -> 483300 | I21: 2432500 | J21: 1492200 | K21: 1756700 | L21: 2138300 | M21: 2377202.735 | O21: =O17-O18-O19-O20 -> 599500 | P21: 558400 | Q21: 637700 | R21: 776599.875 | S21: 550200 | T21: 1964499.875 | U21: 2522899.875 | V21: -1.150268003 | W21: 2508372.512 | X21: 2529516.644
D22: Non Operating Income/Expense | E22: =IFERROR(MATCH($D22,INDIRECT($D$183&"A:A"),0),FALSE) -> 122 | F22: =IFERROR(MATCH($D22,INDIRECT($H$183&"A:A"),0),FALSE) -> 122 | H22: =IF($E22,clean_alt(INDEX(INDIRECT($D$183&O$191),$E22)),FALSE) -> 12000 | I22: =IF($E22,clean_alt(INDEX(INDIRECT($D$183&P$191),$E22)),FALSE) -> 11000 | J22: =IF($E22,clean_alt(INDEX(INDIRECT($D$183&Q$191),$E22)),FALSE) -> 500000 | K22: =IF($E22,clean_alt(INDEX(INDIRECT($D$183&R$191),$E22)),FALSE) -> 28000 | L22: =IF($E22,clean_alt(INDEX(INDIRECT($D$183&S$191),$E22)),FALSE) -> 254600 | M22: =W22 -> -435600.0208 | O22: =IF($F22,clean_alt(INDEX(INDIRECT($H$183&O$191),$F22)),FALSE) -> -2400 | P22: =IF($F22,clean_alt(INDEX(INDIRECT($H$183&P$191),$F22)),FALSE) -> 256200.0156 | Q22: =IF($F22,clean_alt(INDEX(INDIRECT($H$183&Q$191),$F22)),FALSE) -> -100000 | R22: =IF($F22,clean_alt(INDEX(INDIRECT($H$183&R$191),$F22)),FALSE) -> 2800 | S22: =IF($F22,clean_alt(INDEX(INDIRECT($H$183&S$191),$F22)),FALSE) -> 3200 | T22: =SUMIF($10:$10,TRUE,22:22) -> -94000 | U22: =SUM(P22:S22) -> 162200.0156 | V22: =IFERROR(OFFSET(S22,0,-$S$2)/OFFSET(S22,0,-$S$2-1),FALSE) -> -106.7500065 | W22: =V22*S22+T22 -> -435600.0208 | X22: =IFERROR(4/$S$2*T22,FALSE) -> -125333.3333
D23: Non-Operating Interest Income | E23: =IFERROR(MATCH($D23,INDIRECT($D$183&"A:A"),0),FALSE) -> 123 | F23: =IFERROR(MATCH($D23,INDIRECT($H$183&"A:A"),0),FALSE) -> 123 | H23: =IF($E23,clean_alt(INDEX(INDIRECT($D$183&O$191),$E23)),FALSE) -> 6800 | I23: =IF($E23,clean_alt(INDEX(INDIRECT($D$183&P$191),$E23)),FALSE) -> 7700 | J23: =IF($E23,clean_alt(INDEX(INDIRECT($D$183&Q$191),$E23)),FALSE) -> 1400 | K23: =IF($E23,clean_alt(INDEX(INDIRECT($D$183&R$191),$E23)),FALSE) -> 800000 | L23: =IF($E23,clean_alt(INDEX(INDIRECT($D$183&S$191),$E23)),FALSE) -> 1800 | M23: =W23 -> 0 | O23: =IF($F23,clean_alt(INDEX(INDIRECT($H$183&O$191),$F23)),FALSE) -> 0 | P23: =IF($F23,clean_alt(INDEX(INDIRECT($H$183&P$191),$F23)),FALSE) -> 0 | Q23: =IF($F23,clean_alt(INDEX(INDIRECT($H$183&Q$191),$F23)),FALSE) -> 0 | R23: =IF($F23,clean_alt(INDEX(INDIRECT($H$183&R$191),$F23)),FALSE) -> 0 | S23: =IF($F23,clean_alt(INDEX(INDIRECT($H$183&S$191),$F23)),FALSE) -> 0 | T23: =SUMIF($10:$10,TRUE,23:23) -> 0 | U23: =SUM(P23:S23) -> 0 | V23: =IFERROR(OFFSET(S23,0,-$S$2)/OFFSET(S23,0,-$S$2-1),FALSE) -> FALSE | W23: =V23*S23+T23 -> 0 | X23: =IFERROR(4/$S$2*T23,FALSE) -> 0
D24: Equity in Affiliates (Pretax) | E24: =IFERROR(MATCH($D24,INDIRECT($D$183&"A:A"),0),FALSE) -> 124 | F24: =IFERROR(MATCH($D24,INDIRECT($H$183&"A:A"),0),FALSE) -> 124 | H24: =IF($E24,clean_alt(INDEX(INDIRECT($D$183&O$191),$E24)),FALSE) -> 233100 | I24: =IF($E24,clean_alt(INDEX(INDIRECT($D$183&P$191),$E24)),FALSE) -> 87800 | J24: =IF($E24,clean_alt(INDEX(INDIRECT($D$183&Q$191),$E24)),FALSE) -> 21500 | K24: =IF($E24,clean_alt(INDEX(INDIRECT($D$183&R$191),$E24)),FALSE) -> 26600 | L24: =IF($E24,clean_alt(INDEX(INDIRECT($D$183&S$191),$E24)),FALSE) -> 27300 | M24: =W24 -> -7303263.636 | O24: =IF($F24,clean_alt(INDEX(INDIRECT($H$183&O$191),$F24)),FALSE) -> 27500 | P24: =IF($F24,clean_alt(INDEX(INDIRECT($H$183&P$191),$F24)),FALSE) -> -900000 | Q24: =IF($F24,clean_alt(INDEX(INDIRECT($H$183&Q$191),$F24)),FALSE) -> 400000 | R24: =IF($F24,clean_alt(INDEX(INDIRECT($H$183&R$191),$F24)),FALSE) -> 200000 | S24: =IF($F24,clean_alt(INDEX(INDIRECT($H$183&S$191),$F24)),FALSE) -> 249100 | T24: =SUMIF($10:$10,TRUE,24:24) -> 849100 | U24: =SUM(P24:S24) -> -50900 | V24: =IFERROR(OFFSET(S24,0,-$S$2)/OFFSET(S24,0,-$S$2-1),FALSE) -> -32.72727273 | W24: =V24*S24+T24 -> -7303263.636 | X24: =IFERROR(4/$S$2*T24,FALSE) -> 1132133.333
D25: Interest Expense | E25: =IFERROR(MATCH($D25,INDIRECT($D$183&"A:A"),0),FALSE) -> 125 | F25: =IFERROR(MATCH($D25,INDIRECT($H$183&"A:A"),0),FALSE) -> 125 | H25: =IF($E25,clean_alt(INDEX(INDIRECT($D$183&O$191),$E25)),FALSE) -> 225400 | I25: =IF($E25,clean_alt(INDEX(INDIRECT($D$183&P$191),$E25)),FALSE) -> 338900 | J25: =IF($E25,clean_alt(INDEX(INDIRECT($D$183&Q$191),$E25)),FALSE) -> 330700 | K25: =IF($E25,clean_alt(INDEX(INDIRECT($D$183&R$191),$E25)),FALSE) -> 306500 | L25: =IF($E25,clean_alt(INDEX(INDIRECT($D$183&S$191),$E25)),FALSE) -> 331100 | M25: =W25 -> 329586.3578 | O25: =IF($F25,clean_alt(INDEX(INDIRECT($H$183&O$191),$F25)),FALSE) -> 77700 | P25: =IF($F25,clean_alt(INDEX(INDIRECT($H$183&P$191),$F25)),FALSE) -> 77500 | Q25: =IF($F25,clean_alt(INDEX(INDIRECT($H$183&Q$191),$F25)),FALSE) -> 82400 | R25: =IF($F25,clean_alt(INDEX(INDIRECT($H$183&R$191),$F25)),FALSE) -> 81400 | S25: =IF($F25,clean_alt(INDEX(INDIRECT($H$183&S$191),$F25)),FALSE) -> 83000 | T25: =SUMIF($10:$10,TRUE,25:25) -> 246800 | U25: =SUM(P25:S25) -> 324300 | V25: =IFERROR(OFFSET(S25,0,-$S$2)/OFFSET(S25,0,-$S$2-1),FALSE) -> 0.9974259974 | W25: =V25*S25+T25 -> 329586.3578 | X25: =IFERROR(4/$S$2*T25,FALSE) -> 329066.6667
D26: Pretax Income Computed | H26: =H21+H22+H23+H24-H25 -> 509800 | I26: 2200100 | J26: 1684400 | K26: 2304800 | L26: 2090900 | M26: -5691247.28 | O26: =O21+O22+O23+O24-O25 -> 546900 | P26: -162899.9844 | Q26: 855300 | R26: 897999.875 | S26: 719500 | T26: 2472799.875 | U26: 2309899.891 | V26: -141.6249732 | W26: -5560077.503 | X26: 3207249.977
D27: Income Tax | E27: =IFERROR(MATCH($D27,INDIRECT($D$183&"A:A"),0),FALSE) -> 132 | F27: =IFERROR(MATCH($D27,INDIRECT($H$183&"A:A"),0),FALSE) -> 132 | H27: =IF($E27,clean_alt(INDEX(INDIRECT($D$183&O$191),$E27)),FALSE) -> 128600.0078 | I27: =IF($E27,clean_alt(INDEX(INDIRECT($D$183&P$191),$E27)),FALSE) -> 259200.0156 | J27: =IF($E27,clean_alt(INDEX(INDIRECT($D$183&Q$191),$E27)),FALSE) -> 343400 | K27: =IF($E27,clean_alt(INDEX(INDIRECT($D$183&R$191),$E27)),FALSE) -> 440600 | L27: =IF($E27,clean_alt(INDEX(INDIRECT($D$183&S$191),$E27)),FALSE) -> 554200 | M27: =W27 -> 659258.1749 | O27: =IF($F27,clean_alt(INDEX(INDIRECT($H$183&O$191),$F27)),FALSE) -> 78900 | P27: =IF($F27,clean_alt(INDEX(INDIRECT($H$183&P$191),$F27)),FALSE) -> 162000 | Q27: =IF($F27,clean_alt(INDEX(INDIRECT($H$183&Q$191),$F27)),FALSE) -> 74100 | R27: =IF($F27,clean_alt(INDEX(INDIRECT($H$183&R$191),$F27)),FALSE) -> 128700 | S27: =IF($F27,clean_alt(INDEX(INDIRECT($H$183&S$191),$F27)),FALSE) -> 149500 | T27: =SUMIF($10:$10,TRUE,27:27) -> 352300 | U27: =SUM(P27:S27) -> 514300 | V27: =IFERROR(OFFSET(S27,0,-$S$2)/OFFSET(S27,0,-$S$2-1),FALSE) -> 2.053231939 | W27: =V27*S27+T27 -> 659258.1749 | X27: =IFERROR(4/$S$2*T27,FALSE) -> 469733.3333
D28: Equity in Affiliates | E28: =IFERROR(MATCH($D28,INDIRECT($D$183&"A:A"),0),FALSE) -> 138 | F28: =IFERROR(MATCH($D28,INDIRECT($H$183&"A:A"),0),FALSE) -> 138 | H28: =IF($E28,clean_alt(INDEX(INDIRECT($D$183&O$191),$E28)),FALSE) -> 0 | I28: =IF($E28,clean_alt(INDEX(INDIRECT($D$183&P$191),$E28)),FALSE) -> 0 | J28: =IF($E28,clean_alt(INDEX(INDIRECT($D$183&Q$191),$E28)),FALSE) -> 0 | K28: =IF($E28,clean_alt(INDEX(INDIRECT($D$183&R$191),$E28)),FALSE) -> 0 | L28: =IF($E28,clean_alt(INDEX(INDIRECT($D$183&S$191),$E28)),FALSE) -> 0 | M28: =W28 -> 0 | O28: =IF($F28,clean_alt(INDEX(INDIRECT($H$183&O$191),$F28)),FALSE) -> 0 | P28: =IF($F28,clean_alt(INDEX(INDIRECT($H$183&P$191),$F28)),FALSE) -> 0 | Q28: =IF($F28,clean_alt(INDEX(INDIRECT($H$183&Q$191),$F28)),FALSE) -> 0 | R28: =IF($F28,clean_alt(INDEX(INDIRECT($H$183&R$191),$F28)),FALSE) -> 0 | S28: =IF($F28,clean_alt(INDEX(INDIRECT($H$183&S$191),$F28)),FALSE) -> 0 | T28: =SUMIF($10:$10,TRUE,28:28) -> 0 | U28: =SUM(P28:S28) -> 0 | V28: =IFERROR(OFFSET(S28,0,-$S$2)/OFFSET(S28,0,-$S$2-1),FALSE) -> FALSE | W28: =V28*S28+T28 -> 0 | X28: =IFERROR(4/$S$2*T28,FALSE) -> 0
D29: Other After Tax Income (Expense) | E29: =IFERROR(MATCH($D29,INDIRECT($D$183&"A:A"),0),FALSE) -> 139 | F29: =IFERROR(MATCH($D29,INDIRECT($H$183&"A:A"),0),FALSE) -> 139 | H29: =IF($E29,clean_alt(INDEX(INDIRECT($D$183&O$191),$E29)),FALSE) -> 0 | I29: =IF($E29,clean_alt(INDEX(INDIRECT($D$183&P$191),$E29)),FALSE) -> 0 | J29: =IF($E29,clean_alt(INDEX(INDIRECT($D$183&Q$191),$E29)),FALSE) -> 0 | K29: =IF($E29,clean_alt(INDEX(INDIRECT($D$183&R$191),$E29)),FALSE) -> 0 | L29: =IF($E29,clean_alt(INDEX(INDIRECT($D$183&S$191),$E29)),FALSE) -> 0 | M29: =W29 -> 0 | O29: =IF($F29,clean_alt(INDEX(INDIRECT($H$183&O$191),$F29)),FALSE) -> 0 | P29: =IF($F29,clean_alt(INDEX(INDIRECT($H$183&P$191),$F29)),FALSE) -> 0 | Q29: =IF($F29,clean_alt(INDEX(INDIRECT($H$183&Q$191),$F29)),FALSE) -> 0 | R29: =IF($F29,clean_alt(INDEX(INDIRECT($H$183&R$191),$F29)),FALSE) -> 0 | S29: =IF($F29,clean_alt(INDEX(INDIRECT($H$183&S$191),$F29)),FALSE) -> 0 | T29: =SUMIF($10:$10,TRUE,29:29) -> 0 | U29: =SUM(P29:S29) -> 0 | V29: =IFERROR(OFFSET(S29,0,-$S$2)/OFFSET(S29,0,-$S$2-1),FALSE) -> FALSE | W29: =V29*S29+T29 -> 0 | X29: =IFERROR(4/$S$2*T29,FALSE) -> 0
D30: Consolidated Net Income | E30: =IFERROR(MATCH($D30,INDIRECT($D$183&"A:A"),0),FALSE) -> 140 | F30: =IFERROR(MATCH($D30,INDIRECT($H$183&"A:A"),0),FALSE) -> 140 | H30: =IF($E30,clean_alt(INDEX(INDIRECT($D$183&O$191),$E30)),FALSE) -> 387800 | I30: =IF($E30,clean_alt(INDEX(INDIRECT($D$183&P$191),$E30)),FALSE) -> 1940000 | J30: =IF($E30,clean_alt(INDEX(INDIRECT($D$183&Q$191),$E30)),FALSE) -> 836200 | K30: =IF($E30,clean_alt(INDEX(INDIRECT($D$183&R$191),$E30)),FALSE) -> 1060000 | L30: =IF($E30,clean_alt(INDEX(INDIRECT($D$183&S$191),$E30)),FALSE) -> 1540000 | O30: =IF($F30,clean_alt(INDEX(INDIRECT($H$183&O$191),$F30)),FALSE) -> 405000 | P30: =IF($F30,clean_alt(INDEX(INDIRECT($H$183&P$191),$F30)),FALSE) -> 461900 | Q30: =IF($F30,clean_alt(INDEX(INDIRECT($H$183&Q$191),$F30)),FALSE) -> 405300 | R30: =IF($F30,clean_alt(INDEX(INDIRECT($H$183&R$191),$F30)),FALSE) -> 502000 | S30: =IF($F30,clean_alt(INDEX(INDIRECT($H$183&S$191),$F30)),FALSE) -> 494700
D31: Other Reconciling Item (Income) | H31: =H30-(H26-H27+H28+H29) -> 6600.007812 | I31: =I30-(I26-I27+I28+I29) -> -899.984375 | J31: =J30-(J26-J27+J28+J29) -> -504800 | K31: =K30-(K26-K27+K28+K29) -> -804200 | L31: =L30-(L26-L27+L28+L29) -> 3300 | O31: =O30-(O26-O27+O28+O29) -> -63000 | P31: =P30-(P26-P27+P28+P29) -> 786799.9844 | Q31: =Q30-(Q26-Q27+Q28+Q29) -> -375900 | R31: =R30-(R26-R27+R28+R29) -> -267299.875 | S31: =S30-(S26-S27+S28+S29) -> -75300 | T31: =SUMIF($10:$10,TRUE,31:31) -> -718499.875 | U31: =SUM(P31:S31) -> 68300.10938 | V31: =IFERROR(OFFSET(S31,0,-$S$2)/OFFSET(S31,0,-$S$2-1),FALSE) -> -12.48888864 | W31: =V31*S31+T31 -> 221913.4397 | X31: =IFERROR(4/$S$2*T31,FALSE) -> -957999.8333
D32: Net Income Computed | H32: =H26-H27+H28+H31 -> 387800 | I32: =I26-I27+I28+I31 -> 1940000 | J32: =J26-J27+J28+J31 -> 836200 | K32: =K26-K27+K28+K31 -> 1060000 | L32: =L26-L27+L28+L31 -> 1540000 | O32: =O26-O27+O28+O29+O31 -> 405000 | P32: =P26-P27+P28+P29+P31 -> 461900 | Q32: =Q26-Q27+Q28+Q29+Q31 -> 405300 | R32: =R26-R27+R28+R29+R31 -> 502000 | S32: =S26-S27+S28+S29+S31 -> 494700 | T32: =SUMIF($10:$10,TRUE,32:32) -> 1402000 | U32: =SUM(P32:S32) -> 1863900 | V32: =IFERROR(OFFSET(S32,0,-$S$2)/OFFSET(S32,0,-$S$2-1),FALSE) -> 1.140493827 | W32: =V32*S32+T32 -> 1966202.296 | X32: =IFERROR(4/$S$2*T32,FALSE) -> 1869333.333
D33: Minority Interest Expense | E33: =IFERROR(MATCH($D33,INDIRECT($D$183&"A:A"),0),FALSE) -> 141 | F33: =IFERROR(MATCH($D33,INDIRECT($H$183&"A:A"),0),FALSE) -> 141 | H33: =IF($E33,clean_alt(INDEX(INDIRECT($D$183&O$191),$E33)),FALSE) -> 0 | I33: =IF($E33,clean_alt(INDEX(INDIRECT($D$183&P$191),$E33)),FALSE) -> 0 | J33: =IF($E33,clean_alt(INDEX(INDIRECT($D$183&Q$191),$E33)),FALSE) -> -3100 | K33: =IF($E33,clean_alt(INDEX(INDIRECT($D$183&R$191),$E33)),FALSE) -> 5700 | L33: =IF($E33,clean_alt(INDEX(INDIRECT($D$183&S$191),$E33)),FALSE) -> 4100 | O33: =IF($F33,clean_alt(INDEX(INDIRECT($H$183&O$191),$F33)),FALSE) -> -900000 | P33: =IF($F33,clean_alt(INDEX(INDIRECT($H$183&P$191),$F33)),FALSE) -> 9900 | Q33: =IF($F33,clean_alt(INDEX(INDIRECT($H$183&Q$191),$F33)),FALSE) -> 2500 | R33: =IF($F33,clean_alt(INDEX(INDIRECT($H$183&R$191),$F33)),FALSE) -> 2500 | S33: =IF($F33,clean_alt(INDEX(INDIRECT($H$183&S$191),$F33)),FALSE) -> 3600 | T33: =SUMIF($10:$10,TRUE,33:33) -> 8600 | U33: =SUM(P33:S33) -> 18500 | V33: =IFERROR(OFFSET(S33,0,-$S$2)/OFFSET(S33,0,-$S$2-1),FALSE) -> -0.011 | W33: =V33*S33+T33 -> 8560.4 | X33: =IFERROR(4/$S$2*T33,FALSE) -> 11466.66667
D34: Net Income | E34: 142 | F34: 142 | H34: =IF($E34,clean_alt(INDEX(INDIRECT($D$183&O$191),$E34)),FALSE) -> 387800 | I34: =IF($E34,clean_alt(INDEX(INDIRECT($D$183&P$191),$E34)),FALSE) -> 1940000 | J34: =IF($E34,clean_alt(INDEX(INDIRECT($D$183&Q$191),$E34)),FALSE) -> 839300 | K34: =IF($E34,clean_alt(INDEX(INDIRECT($D$183&R$191),$E34)),FALSE) -> 1050000 | L34: =IF($E34,clean_alt(INDEX(INDIRECT($D$183&S$191),$E34)),FALSE) -> 1540000 | O34: =IF($F34,clean_alt(INDEX(INDIRECT($H$183&O$191),$F34)),FALSE) -> 405900 | P34: =IF($F34,clean_alt(INDEX(INDIRECT($H$183&P$191),$F34)),FALSE) -> 452000 | Q34: =IF($F34,clean_alt(INDEX(INDIRECT($H$183&Q$191),$F34)),FALSE) -> 402800 | R34: =IF($F34,clean_alt(INDEX(INDIRECT($H$183&R$191),$F34)),FALSE) -> 499500 | S34: =IF($F34,clean_alt(INDEX(INDIRECT($H$183&S$191),$F34)),FALSE) -> 491100
D35: Extraordinaries & Discontinued Operations | E35: 145 | F35: 145 | H35: =IF($E35,clean_alt(INDEX(INDIRECT($D$183&O$191),$E35)),FALSE) -> 0 | I35: =IF($E35,clean_alt(INDEX(INDIRECT($D$183&P$191),$E35)),FALSE) -> 0 | J35: =IF($E35,clean_alt(INDEX(INDIRECT($D$183&Q$191),$E35)),FALSE) -> 0 | K35: =IF($E35,clean_alt(INDEX(INDIRECT($D$183&R$191),$E35)),FALSE) -> 0 | L35: =IF($E35,clean_alt(INDEX(INDIRECT($D$183&S$191),$E35)),FALSE) -> 0 | O35: =IF($F35,clean_alt(INDEX(INDIRECT($H$183&O$191),$F35)),FALSE) -> 0 | P35: =IF($F35,clean_alt(INDEX(INDIRECT($H$183&P$191),$F35)),FALSE) -> 0 | Q35: =IF($F35,clean_alt(INDEX(INDIRECT($H$183&Q$191),$F35)),FALSE) -> 0 | R35: =IF($F35,clean_alt(INDEX(INDIRECT($H$183&R$191),$F35)),FALSE) -> 0 | S35: =IF($F35,clean_alt(INDEX(INDIRECT($H$183&S$191),$F35)),FALSE) -> 0
D36: Net Income After Extraordinaries | E36: 149 | F36: 149 | H36: =IF($E36,clean_alt(INDEX(INDIRECT($D$183&O$191),$E36)),FALSE) -> 387800 | I36: =IF($E36,clean_alt(INDEX(INDIRECT($D$183&P$191),$E36)),FALSE) -> 1940000 | J36: =IF($E36,clean_alt(INDEX(INDIRECT($D$183&Q$191),$E36)),FALSE) -> 839300 | K36: =IF($E36,clean_alt(INDEX(INDIRECT($D$183&R$191),$E36)),FALSE) -> 1050000 | L36: =IF($E36,clean_alt(INDEX(INDIRECT($D$183&S$191),$E36)),FALSE) -> 1540000 | O36: =IF($F36,clean_alt(INDEX(INDIRECT($H$183&O$191),$F36)),FALSE) -> 405900 | P36: =IF($F36,clean_alt(INDEX(INDIRECT($H$183&P$191),$F36)),FALSE) -> 452000 | Q36: =IF($F36,clean_alt(INDEX(INDIRECT($H$183&Q$191),$F36)),FALSE) -> 402800 | R36: =IF($F36,clean_alt(INDEX(INDIRECT($H$183&R$191),$F36)),FALSE) -> 499500 | S36: =IF($F36,clean_alt(INDEX(INDIRECT($H$183&S$191),$F36)),FALSE) -> 491100
D37: Preferred Dividends | E37: 150 | F37: 150 | H37: =IF($E37,clean_alt(INDEX(INDIRECT($D$183&O$191),$E37)),FALSE) -> 0 | I37: =IF($E37,clean_alt(INDEX(INDIRECT($D$183&P$191),$E37)),FALSE) -> 0 | J37: =IF($E37,clean_alt(INDEX(INDIRECT($D$183&Q$191),$E37)),FALSE) -> 0 | K37: =IF($E37,clean_alt(INDEX(INDIRECT($D$183&R$191),$E37)),FALSE) -> 0 | L37: =IF($E37,clean_alt(INDEX(INDIRECT($D$183&S$191),$E37)),FALSE) -> 0 | O37: =IF($F37,clean_alt(INDEX(INDIRECT($H$183&O$191),$F37)),FALSE) -> 0 | P37: =IF($F37,clean_alt(INDEX(INDIRECT($H$183&P$191),$F37)),FALSE) -> 0 | Q37: =IF($F37,clean_alt(INDEX(INDIRECT($H$183&Q$191),$F37)),FALSE) -> 0 | R37: =IF($F37,clean_alt(INDEX(INDIRECT($H$183&R$191),$F37)),FALSE) -> 0 | S37: =IF($F37,clean_alt(INDEX(INDIRECT($H$183&S$191),$F37)),FALSE) -> 0
D38: Net Income Available to Common | E38: 151 | F38: 151 | H38: =IF($E38,clean_alt(INDEX(INDIRECT($D$183&O$191),$E38)),FALSE) -> 387800 | I38: =IF($E38,clean_alt(INDEX(INDIRECT($D$183&P$191),$E38)),FALSE) -> 1940000 | J38: =IF($E38,clean_alt(INDEX(INDIRECT($D$183&Q$191),$E38)),FALSE) -> 839300 | K38: =IF($E38,clean_alt(INDEX(INDIRECT($D$183&R$191),$E38)),FALSE) -> 1050000 | L38: =IF($E38,clean_alt(INDEX(INDIRECT($D$183&S$191),$E38)),FALSE) -> 1540000 | O38: =IF($F38,clean_alt(INDEX(INDIRECT($H$183&O$191),$F38)),FALSE) -> 405900 | P38: =IF($F38,clean_alt(INDEX(INDIRECT($H$183&P$191),$F38)),FALSE) -> 452000 | Q38: =IF($F38,clean_alt(INDEX(INDIRECT($H$183&Q$191),$F38)),FALSE) -> 402800 | R38: =IF($F38,clean_alt(INDEX(INDIRECT($H$183&R$191),$F38)),FALSE) -> 499500 | S38: =IF($F38,clean_alt(INDEX(INDIRECT($H$183&S$191),$F38)),FALSE) -> 491100
D40: EPS (Basic) | E40: =IFERROR(MATCH($D40,INDIRECT($D$183&"A:A"),0),FALSE) -> 152 | F40: =IFERROR(MATCH($D40,INDIRECT($H$183&"A:A"),0),FALSE) -> 152 | H40: =IF($E40,INDEX(INDIRECT($D$183&O$191),$E40),FALSE) -> 2.16 | I40: =IF($E40,INDEX(INDIRECT($D$183&P$191),$E40),FALSE) -> 10.46 | J40: =IF($E40,INDEX(INDIRECT($D$183&Q$191),$E40),FALSE) -> 4.41 | K40: =IF($E40,INDEX(INDIRECT($D$183&R$191),$E40),FALSE) -> 5.43 | L40: =IF($E40,INDEX(INDIRECT($D$183&S$191),$E40),FALSE) -> 7.79 | O40: =IF($F40,clean_alt(INDEX(INDIRECT($H$183&O$191),$F40)),FALSE)*1000 -> 2040 | P40: =IF($F40,clean_alt(INDEX(INDIRECT($H$183&P$191),$F40)),FALSE)*1000 -> 2340 | Q40: =IF($F40,clean_alt(INDEX(INDIRECT($H$183&Q$191),$F40)),FALSE)*1000 -> 2090 | R40: =IF($F40,clean_alt(INDEX(INDIRECT($H$183&R$191),$F40)),FALSE)*1000 -> 2590 | S40: =IF($F40,clean_alt(INDEX(INDIRECT($H$183&S$191),$F40)),FALSE)*1000 -> 2550
D41: Basic Shares Outstanding | E41: =IFERROR(MATCH($D41,INDIRECT($D$183&"A:A"),0),FALSE) -> 154 | F41: =IFERROR(MATCH($D41,INDIRECT($H$183&"A:A"),0),FALSE) -> 154 | H41: =IF($E41,clean_alt(INDEX(INDIRECT($D$183&O$191),$E41)),FALSE) -> 179840 | I41: =IF($E41,clean_alt(INDEX(INDIRECT($D$183&P$191),$E41)),FALSE) -> 185810 | J41: =IF($E41,clean_alt(INDEX(INDIRECT($D$183&Q$191),$E41)),FALSE) -> 190380 | K41: =IF($E41,clean_alt(INDEX(INDIRECT($D$183&R$191),$E41)),FALSE) -> 194410 | L41: =IF($E41,clean_alt(INDEX(INDIRECT($D$183&S$191),$E41)),FALSE) -> 196950 | O41: =IF($F41,clean_alt(INDEX(INDIRECT($H$183&O$191),$F41)),FALSE) -> 198530 | P41: =IF($F41,clean_alt(INDEX(INDIRECT($H$183&P$191),$F41)),FALSE) -> 193170 | Q41: =IF($F41,clean_alt(INDEX(INDIRECT($H$183&Q$191),$F41)),FALSE) -> 192560 | R41: =IF($F41,clean_alt(INDEX(INDIRECT($H$183&R$191),$F41)),FALSE) -> 193090 | S41: =IF($F41,clean_alt(INDEX(INDIRECT($H$183&S$191),$F41)),FALSE) -> 192920
D42: EPS (Diluted) | E42: =IFERROR(MATCH($D42,INDIRECT($D$183&"A:A"),0),FALSE) -> 155 | F42: =IFERROR(MATCH($D42,INDIRECT($H$183&"A:A"),0),FALSE) -> 155 | H42: =IF($E42,INDEX(INDIRECT($D$183&O$191),$E42),FALSE) -> 1.83 | I42: =IF($E42,INDEX(INDIRECT($D$183&P$191),$E42),FALSE) -> 8.89 | J42: =IF($E42,INDEX(INDIRECT($D$183&Q$191),$E42),FALSE) -> 3.78 | K42: =IF($E42,INDEX(INDIRECT($D$183&R$191),$E42),FALSE) -> 4.69 | L42: =IF($E42,INDEX(INDIRECT($D$183&S$191),$E42),FALSE) -> 6.82 | O42: =IF($F42,clean_alt(INDEX(INDIRECT($H$183&O$191),$F42)),FALSE)*1000 -> 1790 | P42: =IF($F42,clean_alt(INDEX(INDIRECT($H$183&P$191),$F42)),FALSE)*1000 -> 2050 | Q42: =IF($F42,clean_alt(INDEX(INDIRECT($H$183&Q$191),$F42)),FALSE)*1000 -> 1810 | R42: =IF($F42,clean_alt(INDEX(INDIRECT($H$183&R$191),$F42)),FALSE)*1000 -> 2250 | S42: =IF($F42,clean_alt(INDEX(INDIRECT($H$183&S$191),$F42)),FALSE)*1000 -> 2210
D43: Diluted Shares Outstanding | E43: =IFERROR(MATCH($D43,INDIRECT($D$183&"A:A"),0),FALSE) -> 157 | F43: =IFERROR(MATCH($D43,INDIRECT($H$183&"A:A"),0),FALSE) -> 157 | H43: =IF($E43,clean_alt(INDEX(INDIRECT($D$183&O$191),$E43)),FALSE) -> 211490 | I43: =IF($E43,clean_alt(INDEX(INDIRECT($D$183&P$191),$E43)),FALSE) -> 218690 | J43: =IF($E43,clean_alt(INDEX(INDIRECT($D$183&Q$191),$E43)),FALSE) -> 222280 | K43: =IF($E43,clean_alt(INDEX(INDIRECT($D$183&R$191),$E43)),FALSE) -> 224850 | L43: =IF($E43,clean_alt(INDEX(INDIRECT($D$183&S$191),$E43)),FALSE) -> 225120 | O43: =IF($F43,clean_alt(INDEX(INDIRECT($H$183&O$191),$F43)),FALSE) -> 226470 | P43: =IF($F43,clean_alt(INDEX(INDIRECT($H$183&P$191),$F43)),FALSE) -> 220890 | Q43: =IF($F43,clean_alt(INDEX(INDIRECT($H$183&Q$191),$F43)),FALSE) -> 222040 | R43: =IF($F43,clean_alt(INDEX(INDIRECT($H$183&R$191),$F43)),FALSE) -> 222350 | S43: =IF($F43,clean_alt(INDEX(INDIRECT($H$183&S$191),$F43)),FALSE) -> 222180
A45: Cash Flow
B46: View Ratios
B47: All values USD millions. | E47: =INDEX(INDIRECT(F183&"A:A"),MATCH(B46,INDIRECT(F183&"A:A"),0)+2) -> Fiscal year is March-February. All values USD millions.
B48: Fiscal Year | E48: =IFERROR(match_partial_sheet(B48,"A",10,F182,200),FALSE) -> 90 | F48: =IFERROR(match_partial_sheet(B48,"A",10,F182,200),FALSE) -> 90 | H48: =INDEX(INDIRECT($F$183&V$191),$E48) -> 2013 | I48: =INDEX(INDIRECT($F$183&H$191),$E48) -> 2014 | J48: =INDEX(INDIRECT($F$183&I$191),$E48) -> 2015 | K48: =INDEX(INDIRECT($F$183&J$191),$E48) -> 2016 | L48: =INDEX(INDIRECT($F$183&K$191),$E48) -> 2017 | O48: =INDEX(INDIRECT($J$183&O$191),$F$91) -> 2016-11-30 | P48: =INDEX(INDIRECT($J$183&P$191),$F$91) -> 2017-02-28 | Q48: =INDEX(INDIRECT($J$183&Q$191),$F$91) -> 2017-05-31 | R48: =INDEX(INDIRECT($J$183&R$191),$F$91) -> 2017-08-31 | S48: =INDEX(INDIRECT($J$183&S$191),$F$91) -> 2017-11-30
D49: Net Income before Extraordinaries | E49: =IFERROR(MATCH($D49,INDIRECT($F$183&"A:A"),0),FALSE) -> 91 | F49: =IFERROR(MATCH($D49,INDIRECT($J$183&"A:A"),0),FALSE) -> 104 | H49: =IF($E49,clean_alt(INDEX(INDIRECT($D$183&O$191),$E49)),FALSE) -> 0 | I49: =IF($E49,clean_alt(INDEX(INDIRECT($D$183&P$191),$E49)),FALSE) -> 0 | J49: =IF($E49,clean_alt(INDEX(INDIRECT($D$183&Q$191),$E49)),FALSE) -> 0 | K49: =IF($E49,clean_alt(INDEX(INDIRECT($D$183&R$191),$E49)),FALSE) -> 0 | L49: =IF($E49,clean_alt(INDEX(INDIRECT($D$183&S$191),$E49)),FALSE) -> 0 | O49: =IF($F49,clean_alt(INDEX(INDIRECT($H$183&O$191),$F49)),FALSE) -> 0 | P49: =IF($F49,clean_alt(INDEX(INDIRECT($H$183&P$191),$F49)),FALSE) -> -0.101 | Q49: =IF($F49,clean_alt(INDEX(INDIRECT($H$183&Q$191),$F49)),FALSE) -> 0.1891 | R49: =IF($F49,clean_alt(INDEX(INDIRECT($H$183&R$191),$F49)),FALSE) -> 0.0773 | S49: =IF($F49,clean_alt(INDEX(INDIRECT($H$183&S$191),$F49)),FALSE) -> -0.1368
D50: Depreciation, Depletion & Amortization | E50: =IFERROR(MATCH($D50,INDIRECT($F$183&"A:A"),0),FALSE) -> 93 | F50: =IFERROR(MATCH($D50,INDIRECT($J$183&"A:A"),0),FALSE) -> 106 | H50: =IF($E50,clean_alt(INDEX(INDIRECT($D$183&O$191),$E50)),FALSE) -> 0 | I50: =IF($E50,clean_alt(INDEX(INDIRECT($D$183&P$191),$E50)),FALSE) -> 0 | J50: =IF($E50,clean_alt(INDEX(INDIRECT($D$183&Q$191),$E50)),FALSE) -> 0 | K50: =IF($E50,clean_alt(INDEX(INDIRECT($D$183&R$191),$E50)),FALSE) -> 0 | L50: =IF($E50,clean_alt(INDEX(INDIRECT($D$183&S$191),$E50)),FALSE) -> 0 | M50: =X50 -> 3499200 | O50: =IF($F50,clean_alt(INDEX(INDIRECT($H$183&O$191),$F50)),FALSE) -> 854900 | P50: =IF($F50,clean_alt(INDEX(INDIRECT($H$183&P$191),$F50)),FALSE) -> 721500 | Q50: =IF($F50,clean_alt(INDEX(INDIRECT($H$183&Q$191),$F50)),FALSE) -> 858300 | R50: =IF($F50,clean_alt(INDEX(INDIRECT($H$183&R$191),$F50)),FALSE) -> 951000 | S50: =IF($F50,clean_alt(INDEX(INDIRECT($H$183&S$191),$F50)),FALSE) -> 815100 | T50: =SUMIF($10:$10,TRUE,50:50) -> 2624400 | U50: =SUM(P50:S50) -> 3345900 | V50: =IFERROR(OFFSET(S50,0,-$S$2)/OFFSET(S50,0,-$S$2-1),FALSE) -> 0.8439583577 | W50: =V50*S50+T50 -> 3312310.457 | X50: =IFERROR(4/$S$2*T50,FALSE) -> 3499200
D51: Deferred Taxes & Investment Tax Credit | E51: =IFERROR(MATCH($D51,INDIRECT($F$183&"A:A"),0),FALSE) -> 96 | F51: =IFERROR(MATCH($D51,INDIRECT($J$183&"A:A"),0),FALSE) -> 109 | H51: =IF($E51,clean_alt(INDEX(INDIRECT($D$183&O$191),$E51)),FALSE) -> 0 | I51: =IF($E51,clean_alt(INDEX(INDIRECT($D$183&P$191),$E51)),FALSE) -> 0 | J51: =IF($E51,clean_alt(INDEX(INDIRECT($D$183&Q$191),$E51)),FALSE) -> 0 | K51: =IF($E51,clean_alt(INDEX(INDIRECT($D$183&R$191),$E51)),FALSE) -> 0 | L51: =IF($E51,clean_alt(INDEX(INDIRECT($D$183&S$191),$E51)),FALSE) -> 0 | M51: =U51 -> 0 | O51: =IF($F51,clean_alt(INDEX(INDIRECT($H$183&O$191),$F51)),FALSE) -> 0 | P51: =IF($F51,clean_alt(INDEX(INDIRECT($H$183&P$191),$F51)),FALSE) -> 0 | Q51: =IF($F51,clean_alt(INDEX(INDIRECT($H$183&Q$191),$F51)),FALSE) -> 0 | R51: =IF($F51,clean_alt(INDEX(INDIRECT($H$183&R$191),$F51)),FALSE) -> 0 | S51: =IF($F51,clean_alt(INDEX(INDIRECT($H$183&S$191),$F51)),FALSE) -> 0 | T51: =SUMIF($10:$10,TRUE,51:51) -> 0 | U51: =SUM(P51:S51) -> 0 | V51: =IFERROR(OFFSET(S51,0,-$S$2)/OFFSET(S51,0,-$S$2-1),FALSE) -> FALSE | W51: =V51*S51+T51 -> 0 | X51: =IFERROR(4/$S$2*T51,FALSE) -> 0
D52: Other Funds | E52: =IFERROR(MATCH($D52,INDIRECT($F$183&"A:A"),0),FALSE) -> 99 | F52: =IFERROR(MATCH($D52,INDIRECT($J$183&"A:A"),0),FALSE) -> 112 | H52: =IF($E52,clean_alt(INDEX(INDIRECT($D$183&O$191),$E52)),FALSE) -> 0 | I52: =IF($E52,clean_alt(INDEX(INDIRECT($D$183&P$191),$E52)),FALSE) -> 0 | J52: =IF($E52,clean_alt(INDEX(INDIRECT($D$183&Q$191),$E52)),FALSE) -> 0 | K52: =IF($E52,clean_alt(INDEX(INDIRECT($D$183&R$191),$E52)),FALSE) -> 0 | L52: =IF($E52,clean_alt(INDEX(INDIRECT($D$183&S$191),$E52)),FALSE) -> 0 | M52: =U52 -> 0.0682 | O52: =IF($F52,clean_alt(INDEX(INDIRECT($H$183&O$191),$F52)),FALSE) -> 0 | P52: =IF($F52,clean_alt(INDEX(INDIRECT($H$183&P$191),$F52)),FALSE) -> -0.1078 | Q52: =IF($F52,clean_alt(INDEX(INDIRECT($H$183&Q$191),$F52)),FALSE) -> 0.2635 | R52: =IF($F52,clean_alt(INDEX(INDIRECT($H$183&R$191),$F52)),FALSE) -> 0.0557 | S52: =IF($F52,clean_alt(INDEX(INDIRECT($H$183&S$191),$F52)),FALSE) -> -0.1432 | T52: =SUMIF($10:$10,TRUE,52:52) -> 0.176 | U52: =SUM(P52:S52) -> 0.0682 | V52: =IFERROR(OFFSET(S52,0,-$S$2)/OFFSET(S52,0,-$S$2-1),FALSE) -> FALSE | W52: =V52*S52+T52 -> 0.176 | X52: =IFERROR(4/$S$2*T52,FALSE) -> 0.2346666667
D53: Funds from Operations | H53: =SUM(H49:H52) -> 0 | I53: =SUM(I49:I52) -> 0 | J53: =SUM(J49:J52) -> 0 | K53: =SUM(K49:K52) -> 0 | L53: =SUM(L49:L52) -> 0 | O53: =SUM(O49:O52) -> 854900 | P53: =SUM(P49:P52) -> 721499.7912 | Q53: =SUM(Q49:Q52) -> 858300.4526 | R53: =SUM(R49:R52) -> 951000.133 | S53: =SUM(S49:S52) -> 815099.72
D54: Extraordinaries | E54: =IFERROR(MATCH($D54,INDIRECT($F$183&"A:A"),0),FALSE) -> 101 | F54: =IFERROR(MATCH($D54,INDIRECT($J$183&"A:A"),0),FALSE) -> 114 | H54: =IF($E54,clean_alt(INDEX(INDIRECT($D$183&O$191),$E54)),FALSE) -> 0 | I54: =IF($E54,clean_alt(INDEX(INDIRECT($D$183&P$191),$E54)),FALSE) -> 0 | J54: =IF($E54,clean_alt(INDEX(INDIRECT($D$183&Q$191),$E54)),FALSE) -> 0 | K54: =IF($E54,clean_alt(INDEX(INDIRECT($D$183&R$191),$E54)),FALSE) -> 0 | L54: =IF($E54,clean_alt(INDEX(INDIRECT($D$183&S$191),$E54)),FALSE) -> 0 | M54: =U54 -> 171727 | O54: =IF($F54,clean_alt(INDEX(INDIRECT($H$183&O$191),$F54)),FALSE) -> 42704 | P54: =IF($F54,clean_alt(INDEX(INDIRECT($H$183&P$191),$F54)),FALSE) -> 42794 | Q54: =IF($F54,clean_alt(INDEX(INDIRECT($H$183&Q$191),$F54)),FALSE) -> 42886 | R54: =IF($F54,clean_alt(INDEX(INDIRECT($H$183&R$191),$F54)),FALSE) -> 42978 | S54: =IF($F54,clean_alt(INDEX(INDIRECT($H$183&S$191),$F54)),FALSE) -> 43069 | T54: =SUMIF($10:$10,TRUE,54:54) -> 128933 | U54: =SUM(P54:S54) -> 171727 | V54: =IFERROR(OFFSET(S54,0,-$S$2)/OFFSET(S54,0,-$S$2-1),FALSE) -> 1.002107531 | W54: =V54*S54+T54 -> 172092.7692 | X54: =IFERROR(4/$S$2*T54,FALSE) -> 171910.6667
D55: Changes in Working Capital | E55: =IFERROR(MATCH($D55,INDIRECT($F$183&"A:A"),0),FALSE) -> 102 | F55: =IFERROR(MATCH($D55,INDIRECT($J$183&"A:A"),0),FALSE) -> 115 | H55: =IF($E55,clean_alt(INDEX(INDIRECT($D$183&O$191),$E55)),FALSE) -> 2013 | I55: =IF($E55,clean_alt(INDEX(INDIRECT($D$183&P$191),$E55)),FALSE) -> 2014 | J55: =IF($E55,clean_alt(INDEX(INDIRECT($D$183&Q$191),$E55)),FALSE) -> 2015 | K55: =IF($E55,clean_alt(INDEX(INDIRECT($D$183&R$191),$E55)),FALSE) -> 2016 | L55: =IF($E55,clean_alt(INDEX(INDIRECT($D$183&S$191),$E55)),FALSE) -> 2017 | M55: =U55 -> 1400200 | O55: =IF($F55,clean_alt(INDEX(INDIRECT($H$183&O$191),$F55)),FALSE) -> 346700 | P55: =IF($F55,clean_alt(INDEX(INDIRECT($H$183&P$191),$F55)),FALSE) -> 348300 | Q55: =IF($F55,clean_alt(INDEX(INDIRECT($H$183&Q$191),$F55)),FALSE) -> 338900 | R55: =IF($F55,clean_alt(INDEX(INDIRECT($H$183&R$191),$F55)),FALSE) -> 353800 | S55: =IF($F55,clean_alt(INDEX(INDIRECT($H$183&S$191),$F55)),FALSE) -> 359200 | T55: =SUMIF($10:$10,TRUE,55:55) -> 1051900 | U55: =SUM(P55:S55) -> 1400200 | V55: =IFERROR(OFFSET(S55,0,-$S$2)/OFFSET(S55,0,-$S$2-1),FALSE) -> 1.004614941 | W55: =V55*S55+T55 -> 1412757.687 | X55: =IFERROR(4/$S$2*T55,FALSE) -> 1402533.333
D56: Net Operating Cash Flow | H56: =H53+H54+H55 -> 2013 | I56: =I53+I54+I55 -> 2014 | J56: =J53+J54+J55 -> 2015 | K56: =K53+K54+K55 -> 2016 | L56: =L53+L54+L55 -> 2017 | O56: =O53+O54+O55 -> 1244304 | P56: =P53+P54+P55 -> 1112593.791 | Q56: =Q53+Q54+Q55 -> 1240086.453 | R56: =R53+R54+R55 -> 1347778.133 | S56: =S53+S54+S55 -> 1217368.72
D57: Investing Activities
D58: Capital Expenditures (Fixed Assets) | E58: =IFERROR(MATCH($D58,INDIRECT($F$183&"A:A"),0),FALSE) -> 114 | F58: =IFERROR(MATCH($D58,INDIRECT($J$183&"A:A"),0),FALSE) -> 127 | H58: =IF($E58,clean_alt(INDEX(INDIRECT($D$183&O$191),$E58)),FALSE) -> 2013 | I58: =IF($E58,clean_alt(INDEX(INDIRECT($D$183&P$191),$E58)),FALSE) -> 2014 | J58: =IF($E58,clean_alt(INDEX(INDIRECT($D$183&Q$191),$E58)),FALSE) -> 2015 | K58: =IF($E58,clean_alt(INDEX(INDIRECT($D$183&R$191),$E58)),FALSE) -> 2016 | L58: =IF($E58,clean_alt(INDEX(INDIRECT($D$183&S$191),$E58)),FALSE) -> 2017 | M58: =U58 -> 345600 | O58: =IF($F58,clean_alt(INDEX(INDIRECT($H$183&O$191),$F58)),FALSE) -> 80400 | P58: =IF($F58,clean_alt(INDEX(INDIRECT($H$183&P$191),$F58)),FALSE) -> 85800 | Q58: =IF($F58,clean_alt(INDEX(INDIRECT($H$183&Q$191),$F58)),FALSE) -> 86100 | R58: =IF($F58,clean_alt(INDEX(INDIRECT($H$183&R$191),$F58)),FALSE) -> 86300 | S58: =IF($F58,clean_alt(INDEX(INDIRECT($H$183&S$191),$F58)),FALSE) -> 87400 | T58: =SUMIF($10:$10,TRUE,58:58) -> 259800 | U58: =SUM(P58:S58) -> 345600 | V58: =IFERROR(OFFSET(S58,0,-$S$2)/OFFSET(S58,0,-$S$2-1),FALSE) -> 1.067164179 | W58: =V58*S58+T58 -> 353070.1493 | X58: =IFERROR(4/$S$2*T58,FALSE) -> 346400
